Workbook

Sheet INSTRUCTIONS
A1: CONTACT
C2: For questions: Please contact SPRDLP@imf.org
A3: INTRODUCTION
A4: PV TOOL | C4: This PV Tool has been developed to set and monitor debt targets under the Fund's Debt Limits Policy. The file contains two sets of working sheets: (i) For setting debt limits Input - Set Limits: use this sheet to input projections of parameters of conventional debt instruments; the sheet will calculate the grant element (GE) and present values (PV) of up to 300 loans at once. Input - Set Limits UL: use this sheet to input the projected estimates of GE and PV of unconventuional loans. Output - Set Limits: this sheet autonatically generates a summary table of the projected borrowing program for a given period. (ii) For monitoring debt limts Input - Monitor Limits: use this sheet to input the actual parameters of conventional debt instruments; the sheet will calculate the grant element (GE) and present values (PV) of up to 300 loans at once. Input - Monitor Limits UL: use this sheet to input the actual estimates of GE and PV of unconventuional loans. Output - Monitor Limits: this sheet autonatically generates a summary table of the actual external borrowing program for a given period The tool also contains auxiliary GAS file which includes information on LIBOR rates that have bee projected in the WEO.
A5: REFERENCES | C5: Reform of the Policy on Public Debt Limits in Fund-Supported Programs, IMF, December 2014
C6: Staff Guidance Note on the Implementation of Public Debt Limits in Fund-Supported Programs; IMF Policy Paper, May 27, 2015
C7: Unification of Discount Rates used in External Debt Analysis for Low-Income Countries, IMF Policy Papers; October 4, 2013
C8: Grant Element Note on Islamic Development Bank Lending (internal)
A10: INSTRUCTIONS (apply to setting and monitoring sheets)
A11: STEP 0 | C11: ENABLE MACRO | E11: Select "Enable Macros" from the ribbon below the formula bar. If this ribbon is not available, please follow the following steps: Click the Microsoft Office Button, and then click Excel Options => Click Trust Center, click Trust Center Settings, and then click Macro Settings. = > Make sure the Enable all macros option is enabled.
A13: STEP 1 | C13: Fill in yellow cells in Part 1 and Part 2 of the 'Input - Set Limits' sheet.
C14: Input the loan descriptors and terms in the yellow highlighted cells C11:C14 and C15:D15 of Input - Part 1. Cell C13 (highlighted in red) should be changed only if the reference rate set in the TMU differs from the one automatically generated from the GAS file.
C15: Input the loan descriptors and terms in the yellow highlighted cells (column B through column T). Do not make any changes to the Effective interest Rate rate in column Q (highlighted in grey).
A16: STEP 2 | C16: Click on the red CALCULATE button in Input sheet.
A17: STEP 3 | C17: If there is '#Err' in the output columns (columns V and W) then please review the loan terms (columns F through T) and make corrections. Click on the CALCULATE button to recalculate. Common errors in the inputs: negative numbers, maturity period less than grace and not including the percent (%) sign in appropriate cells.
A18: STEP 4 (when applicable) | C18: For unconventional loans (i.e. IDA blend loans with back-loaded repayments, any other non-standard terms, or loans under Islamic law and other IsDB instruments), please enter the data in the 'Input - Set Limits UL' or 'Input - Monitor Limits UL' sheets. The PV and GE of such loans will have to be manually calculated separately. For unconventional loans, please use the 'GE-Calculation Custom' sheet. For IsDB loans or other instruments (lease, installment sales or Istisn'a), please use 'GE-Calculation IsDB Loan' and 'GE-Calculation-Other IsDB' sheets, respectively. The results from these sheets will have to be hardcoded into the relevant inputs. These GE Calculation sheets can only accomodate one loan at a time. All output sheets will reflect this data. The remainder of the fields should be entered in the same manner as those in 'Input - Set Limits' or 'Input - Monitor Limits UL' sheets.
A20: DESCRIPTORS OF INPUTS - PART 1 | L20: INPUT FORMAT
A21: DEBT LIMIT BASIS | C21: By default debt targets in PV terms and NCB/CB limits are set on contracting basis (please refer to Staff Guidance Note on the Implementation of Public Debt Limits in Fund-Supported Programs; IMF Policy Paper, May 27, 2015 ) When the limit is set on a contracting basis please input the entire loan amount on a single line along with its repayment terms. If this tool is used to track a PV of new debt or set debt limits on disbursement basis, please use individual line for each expected disbursement along with the repayment terms for each disbursement. | L21: DROP DOWN MENU
A22: MINIMUM GRANT ELEMENT | C22: Please input the minimum grant element set for the duration of the program. | L22: PERCENT WITH % SIGN
A23: REFERENCE RATE | C23: The reference rate is calculated by the tool and is set as the ten year average of the 6-month USD LIBOR rate as projected in the most recent Fall WEO vintage. Please refer to the sheet named GAS to see the calculation of the reference rate. Enter the reference rate indicated in the TMU if it differes from the one automatically generated from the GAS file. | L23: NOT AN INPUT. Calculated automaticaly on the GAS FILE sheet.
A24: DISCOUNT RATE (in percent) | C24: The discount rate is used to calculate the present value (PV) of the loan. PV calculations are used to compute the grant element of individual loans and to assess observance with concessionality requirements. The IMF’s Debt Limit Policy uses a single discount rate of 5 percent (please refer to Unification of Discount Rates used in External Debt Analysis for Low-Income Countries, IMF Policy Papers; October 4, 2013 ) | L24: PERCENT WITH % SIGN
A25: Period Start date/End date | C25: These dates covers the period for which debt limits will be applied to and are used to select loans for the output tables. For example, if a debt limit analysis is conducted to set an annual debt limit, a 12-month duration will be entered; if a debt limit analysis is conducted for the duration of an arrangement, the duration of the arrangement will be entered. | L25: DATE
A27: DESCRIPTORS OF INPUTS - PART 2 | L27: INPUT FORMAT
A28: Effective date (as of) | C28: For cases when limits are set on contracting basis, the effective date is the effective/estimated effective date of contracting of a loan (should be consistent with the definition of the 'effective date' in the program TMU). For cases when limits are set on disbursement basis, this is the date of expected/actual disbursements. | L28: DATE
A29: Creditor Name | C29: Creditor providing the loan. This field is not required for PV calculations, but is useful for the preparation of a borrowing plan and identification of loans. | L29: TEXT
A30: Use of debt financing | C30: The tool provides a set of pre-defined sectors for which the specific loan is meant to be used: infrastructure, social spending, budget financing, other. This information is used to generate a borrowing plan summary table. This field is not required for PV calculations. | L30: DROP DOWN MENU
A31: Creditor Type | C31: This information is used to generate a borrowing plan summary table. The tool provides a set of pre-defined creditor groups: multilateral, bilateral: Paris Club, bilateral ; non-Paris Club or a commercial creditor. | L31: DROP DOWN MENU
A32: Currency for rate calculation | C32: Currency of the underlying benchmark on which the loan is based. | L32: DROP DOWN MENU
A33: Currency of loan denomination | C33: Currency of repayment indicated in the loan contract. | L33: DROP DOWN MENU
A34: Exchange rate (Currency per USD) | C34: Applicable exchange rate for the converting the loan into USD. For the purposes of setting and monitoring debt conditionality, this will refer to the exchange rate outstanding on the effective date provided in the loan contract (or the estimated date of effectiveness/signature, typically provided by authorities) or the expected/actual disbursement date when conditionality is set on a disbursing basis. | L34: NUMBER
A35: Fixed / Variable | C35: Indicates whether the interest rate in the loan contract is a fixed or a variable rate. | L35: DROP DOWN MENU
A36: Rate (if Fixed) / Spread from loan contract (if Variable) | C36: If the loan is based on a fixed rate, input the interest rate specified in the contract. If the loan is based on a variable rate, please input the margin added to the (variable) base rate (e.g. LIBOR) as specified in the contract (if there is no margin, input zero). | L36: PERCENT WITH % SIGN
A37: Repayment Profile (choose from the 5 profiles in the drop down menu) | C37: This field selects the repayment characteristics of the loan (or a financing package). - Equal principal payment; - Annuity: repayment with fixed total annual amortization amount; - Lump sum principal: bullet payment, the entire principal or nominal amount is paid on the last repayment date while the interest is paid throughout the repayment period; - Lump sum principal & interest: both principal and the interest are paid on the last repayment date; - Lump sum principal & compounded interest: both principal and interest are paid on the last repayment date, however the interest is capitalized over the repayment period. | L37: DROP DOWN MENU
A38: Face Value (currency of denonimation) | C38: Total nominal amount (in units) of the loan in original currency (or a financing package). | L38: NUMBER
A39: Grant (as part of financing package) | C39: Please input the nominal amount of the grant as a part of a financing package. | L39: NUMBER
A40: Upfront Commission (in percent) | C40: These are amounts paid as commissions for contracting the loan or financing package. These commissions are quoted as percent of the contracted nominal amount. Upfront commissions (and/or management fees) throughout the lifetime of the loan constitute a cost of contracting/managing the loan and therefore an implicit interest cost, which should be included in calculating the level of concessionality. There is no commitment fee or any charges imposed on undisbursed portions of the loan since this calculation assumes that the full amount is disbursed upfront. | L40: PERCENT WITH % SIGN
A41: Management Fees | C41: Fees paid per payment period, quoted in the contract as either: i) percent of the outstanding nominal amount, or ii) a fixed nominal amount per period. Please ONLY FILL ONE COLUMN - either percent in column N or nominal amount in column O - depending on the loan contract. | L41: PERCENT WITH % SIGN OR NUMBER
A42: Effective interest Rate | C42: This is the actual rate that is used to calculate the concessionality of the loan / financing package. For fixed rate loans, the effective rate is equal to the rate in the loan contract. For variable rate loans, the effective interest rate is calculated as follows: if the loan is based on a USD interest rate then the effective interest rate is program reference rate plus the margin in the loan contract. If the loan is based on a non-USD rate, then the effective interest rate is the sum of the program reference rate, the margin in the loan contract plus a spread. For the currencies whose LIBOR rate is projected in the WEO, this spread is calculated as difference between the 10 year forward looking average of the LIBOR rate and the program reference rate (rounded to the nearest 50 bps). For currencies not included in the WEO, the spread is calculated as the spread between the SDR weighted average of the four WEO based rates and the program reference rate. Please see the discussion in the Staff Guidance Note on the Implementation of Public Debt Limits in Fund-Supported Programs, Annex II section A. 1. | L42: NOT AN INPUT, but a calculated variable.
A43: Maturity (years) | C43: The numbers of years required to service the loan. The maturity period includes the grace period. | L43: NUMBER
A44: Payments per annum | C44: The number of payments made on an annual basis while servicing the contracted loan (or financing package). | L44: NUMBER
A45: Grace Period (years) | C45: The grace period is defined as the period during which only the interest and no principal payments are payable by Borrower to the creditor. | L45: NUMBER
A47: DESCRIPTORS OF OUTPUTS
A48: Present Value (currency specific) | C48: The current worth of a future stream of cash flows given a specified rate of interest discounted at the discount rate currently set at 5 percent.
A49: Grant Element | C49: The grant element measures the concessionality of a loan. It is defined as the difference between its nominal value (face value) and the sum of the discounted future debt-service payments (net present value) to be made by the borrower, expressed as a percentage of the face value of the loan. Whenever the interest rate charged for a loan is lower than the discount rate, the resulting present value of the debt is smaller than its face value, with the difference reflecting the grant element of the loan.
A50: Concessionality | C50: A loan is considered concessional if it its grant element is equal or above the program minimum grant element (specified in cell C12 in the Input - Set Limist sheet)
A51: Present Value in USD | C51: Currency specific present value converted to USD at the given exchange rate assumption.
A52: Present Value in USD for program purposes | C52: This calculation assumes that the PV of loans with a negative grant element is equal to the nominal value of the loan. This value is used only for the purposes of setting and monitoring debt conditionality. See Staff Guidance Note on the Implementation of Public Debt Limits in Fund-Supported Programs, Annex III.
A53: Nominal in USD | C53: Nominal amount converted to USD at the specified exchange rate.
A55: INSTRUCTIONS (apply to GE - Calculation Custom sheet)
C56: Below are general instructions, but the user may customize the sheet to accommodate unconventional loans.
A57: STEP 1 | C57: Fill in pink cells the 'Input' section in 'GE - Calculation IsDB Loan' sheet.
C58: Input the loan descriptors and terms in the pink highlighted cells C5:C14 based on the terms of the IsDB loan contract.
C59: The payment schedule will be calculated based on the inputs. Alternatively, the payment schedule may be entered directly if it is available from the IsDB.
A60: STEP 2 | C60: Take the Net Present Value (cell C32) and Grant Element (cell C34) and hardcode the values into the 'Input - Set Limits' or 'Input - Monitor Limits' sheet.
A62: INSTRUCTIONS (apply to GE - Calculation IsDB Loan sheet)
C63: Assume upfront disbursement even if the loan agreement entails a phased disbursement schedule. This assumption is standard and applied consistently across instruments and creditors because the actual disbursement schedule is not known ex ante.
A64: STEP 1 | C64: Fill in pink cells the 'Input' section in 'GE - Calculation IsDB Loan' sheet.
C65: Input the loan descriptors and terms in the pink highlighted cells C5:C14 based on the terms of the IsDB loan contract.
C66: The payment schedule will be calculated based on the inputs. Alternatively, the payment schedule may be entered directly if it is available from the IsDB.
A67: STEP 2 | C67: Take the Net Present Value (cell C32) and Grant Element (cell C34) and hardcode the values into the 'Input - Set Limits' or 'Input - Monitor Limits' sheet.
A69: DESCRIPTORS OF GE - Calculation IsDB Loan sheet | L69: INPUT FORMAT
A70: General terms | C70: Loans to low-income countries have a repayment period of 25 years with a 7-year grace period. These loans carry a service fee—rather than interest—and principal is repaid in equal installments.
A71: Face Value (in currency units) | C71: Total nominal amount (in units) of the loan in original currency (or a financing package). | L71: NUMBER
A72: Expense Coefficient (in percent) | C72: The expense coefficient is calculated annually by the Department of Finance of the IsDB as the ratio of (i) all expenses incurred during the previous fiscal year related to the management of the active portfolio of concessional loans (under implementation) and (ii) the cumulative amount of the concerned loans. The expense coefficient is changed every year and capped at 2.5 percent. In 2006, it was 1.74 percent. | L72: NUMBER
A73: Implementation period (in years) | C73: The projected implementation period is the period between the date of the loan agreement and the date of the last disbursement as specified in the contract. The actual implementation period may differ ex post. | L73: NUMBER
A74: Maturity (in years) | C74: The numbers of years required to service the loan. | L74: NUMBER
A75: Payments per annum | C75: The numbers of principal repayments per year. | L75: NUMBER
A76: Grace period (in years) | C76: The grace period is defined as the period during which no principal payments are payable by Borrower to the creditor. | L76: NUMBER
A77: Service fee payments phase I | C77: The service fee is calculated as a fraction of the amount of the loan: Service fee payments phase I = Loan amount * Current Expense Coefficient *Projected Implementation Period I | L77: NUMBER
A78: Service fee payments phase II | C78: The service fee is calculated as a fraction of the amount of the loan: Service fee payments phase II = Loan amount * Current Expense Coefficient *Projected Implementation Period II | L78: NUMBER
A79: Service fee payments phase III | C79: The service fee is calculated as a fraction of the amount of the loan: Service fee payments phase III = Loan amount * Current Expense Coefficient *Projected Implementation Period III | L79: NUMBER
A81: INSTRUCTIONS (apply to GE - Calcualtion Other IsDB sheet)
C82: From the perspective of concessionality assessments, these instruments are very similar to standard loans (annuities). The only difference is that mark-up accruing during the gestation period (grace period) is capitalized. Assume upfront disbursement.
A83: STEP 1 | C83: Fill in pink cells the 'Input' section in 'GE - Calculation IsDB Loan and GE - Calcualtion Other IsDB' sheet.
C84: Input the loan descriptors and terms in the pink highlighted cells C6, C9:C12 based on the terms of the IsDB contract.
C85: The payment schedule will be calculated based on the inputs. Alternatively, the payment schedule may be entered directly if it is available from the IsDB.
A86: STEP 2 | C86: Take the Net Present Value (cell C32) and Grant Element (cell C34) and hardcode the values into the 'Input - Set Limits' or 'Input - Monitor Limits' sheet.
A88: DESCRIPTORS OF GE - Calcualtion Other IsDB | L88: INPUT FORMAT
A89: Terms of instruments:
A90: Lease Financing | C90: Lease operations carry a rental mark-up rate. The IsDB retains the ownership of the leased assets throughout the entire lease period (up to 15 years including a gestation of up to 3 years). During the gestation period no payment is due, but rental mark up accrues. Principal and mark up (including the mark up accrued during the grace period) are paid in equal semi-annual installments starting after the gestation period. The first installment falls due six months after the closing date (last disbursement date). The lease and gestation periods may be extended on a case-by-case basis. The upper ceiling for a lease operation is currently SDR 80 million but it may be increased on a case-by-case basis.
A91: Installment Sale Financing | C91: The terms and purpose are similar to leasing. Installment sales carry a mark-up rate. Financing is provided for up to 15 years including a grace period of up to 3 years. Unlike in a lease, the ownership of assets is transferred from the IsDB to the beneficiary at delivery. The sale amount (principal and mark up accrued during the grace period) is paid in equal semi-annual installments starting after the grace period. The first installment falls due six months after the closing date (last disbursement date). The maturity and grace period may be extended on a case-by-case basis. The upper ceiling for an installment sale is currently SDR 80 million but it may be increased on a case-by-case basis.
A92: Istisna’a Financing | C92: The terms are similar to leasing and installment sales. Istisna’a financing carries a mark-up rate. Principal and mark up (including the mark up accrued during the grace period) are paid in equal semi-annual installments starting after the grace period. The upper ceiling for each Istisna’a operation is currently SDR 80 million but it may be increased on a case-by-case basis.
A93: Face Value (in currency units) | C93: Total nominal amount (in units) of the loan in original currency (or a financing package). | L93: NUMBER
A94: Interest rate (per annum) | C94: Rate as defined in the contract. | L94: NUMBER
A95: Maturity (in years) | C95: The numbers of years required to service the loan. | L95: NUMBER
A96: Payments per annum | C96: The numbers of principal repayments per year. | L96: NUMBER
A97: Grace period (in years) | C97: The grace period is defined as the period during which no principal payments are payable by Borrower to the creditor. | L97: NUMBER

Sheet GAS FILE (hidden)
A1: EcDatabase | B1: Series_code | C1: Indicator.Code | D1: Indicator.Name | E1: Country | F1: 2021 | G1: =F1+1 -> 2022 | H1: 2023 | I1: 2024 | J1: 2025 | K1: 2026 | L1: 2027 | M1: 2028 | N1: 2029 | O1: 2030 | P1: 2031 | Q1: 2032
A2: \\RES\GAS\Archives\2023\GasOct2023Pub | B2: 163FILIBOR.A | C2: FLIBOR | D2: Interest rate, 3- or 6-month London interbank offered rate (LIBOR), period average | E2: Euro area
A3: =A2 -> \\RES\GAS\Archives\2023\GasOct2023Pub | B3: 158FILIBOR.A | C3: FLIBOR | D3: Interest rate, 3- or 6-month London interbank offered rate (LIBOR), period average | E3: Japan | F3: -0.05685416667
A4: \\RES\GAS\Archives\2023\GasOct2023Pub | B4: 111FILIBOR.A | C4: FLIBOR | D4: Interest rate, 3- or 6-month London interbank offered rate (LIBOR), period average | E4: United States | F4: 0.197725 | G4: 2.854616667 | H4: 5.567283333 | I4: 5.727083333 | J4: 4.414583333 | K4: 3.352083333 | L4: 3.091666667 | M4: 3.091666667 | N4: 3.091666667 | O4: 3.091666667 | P4: 3.091666667 | Q4: 3.091666667
A5: \\RES\GAS\Archives\2023\GasOct2023Pub | B5: 112FILIBOR.A | C5: FLIBOR | D5: Interest rate, 3- or 6-month London interbank offered rate (LIBOR), period average | E5: United Kingdom | F5: 0.08970083333
A6: \\RES\GAS\Archives\2023\GasOct2023Pub | B6: 111FIRF.A | C6: FIRF | D6: Interest rate, risk-free rate | E6: United States | F6: 0.03924324374 | G6: 1.640960282 | H6: 5.017526282 | I6: 5.260416667 | J6: 3.947916667 | K6: 2.885416667 | L6: 2.625 | M6: 2.625 | N6: 2.625 | O6: 2.625 | P6: 2.625 | Q6: 2.625
A7: \\RES\GAS\Archives\2023\GasOct2023Pub | B7: 112FIRF.A | C7: FIRF | D7: Interest rate, risk-free rate | E7: United Kingdom | F7: 0.065 | G7: 3.1875 | H7: 5.5575 | I7: 5.76375 | J7: 5.0375 | K7: 4.60625 | L7: 4.3825 | M7: 4.28625 | N7: 4.28625 | O7: 4.28625 | P7: 4.28625 | Q7: 4.28625
A8: \\RES\GAS\Archives\2023\GasOct2023Pub | B8: 163FIRF.A | C8: FIRF | D8: Interest rate, risk-free rate | E8: Euro area | F8: -0.5676666667 | G8: -0.01116666667 | H8: 3.140583333 | I8: 3.578824524 | J8: 3.00550124 | K8: 2.725450519 | L8: 2.64059207 | M8: 2.56059207 | N8: 2.56059207 | O8: 2.56059207 | P8: 2.56059207 | Q8: 2.56059207
A9: =A7 -> \\RES\GAS\Archives\2023\GasOct2023Pub | B9: 001FISDR.A | C9: FISDR | D9: Interest Rate, SDR interest rate | E9: World | F9: 0.05451588 | G9: 1.200522138 | H9: 3.782087337 | I9: 3.667703542 | J9: 3.254764901 | K9: 3.168965551 | L9: 3.211235634 | M9: 3.285928086 | N9: 3.285928086 | O9: 3.285928086 | P9: 3.285928086 | Q9: 3.285928086
A10: =A9 -> \\RES\GAS\Archives\2023\GasOct2023Pub | B10: N/A
A12: UPDATES TO THE GAS FILE
A13: The rates above are based on the latest SPRING AND FALL WEO vintage (Lines 2 - 5).
A15: Table 1. 10 year average | B15: =CONCATENATE(YEAR('Input - Set Limits'!C16)," - ",YEAR('Input - Set Limits'!C16)+9) -> 2023 - 2032
A17: Euro area FLIBOR | B17: =IF(YEAR('Input - Set Limits'!$C$16)=$F$1,AVERAGE($F2:$O2),IF(YEAR('Input - Set Limits'!$C$16)=$G$1,AVERAGE($G2:$P2),IF(YEAR('Input - Set Limits'!$C$16)=$H$1,AVERAGE($H2:$Q2),"N/A"))) -> 
A18: =E3 -> Japan | B18: =IF(YEAR('Input - Set Limits'!$C$16)=$F$1,AVERAGE($F3:$O3),IF(YEAR('Input - Set Limits'!$C$16)=$G$1,AVERAGE($G3:$P3),IF(YEAR('Input - Set Limits'!$C$16)=$H$1,AVERAGE($H3:$Q3),"N/A"))) -> 
A19: =E4&" FLIBOR" -> United States FLIBOR | B19: =IF(YEAR('Input - Set Limits'!$C$16)=$F$1,AVERAGE($F4:$O4),IF(YEAR('Input - Set Limits'!$C$16)=$G$1,AVERAGE($G4:$P4),IF(YEAR('Input - Set Limits'!$C$16)=$H$1,AVERAGE($H4:$Q4),"N/A"))) -> 3.761103333
A20: =E5&" FLIBOR" -> United Kingdom FLIBOR | B20: =IF(YEAR('Input - Set Limits'!$C$16)=$F$1,AVERAGE($F5:$O5),IF(YEAR('Input - Set Limits'!$C$16)=$G$1,AVERAGE($G5:$P5),IF(YEAR('Input - Set Limits'!$C$16)=$H$1,AVERAGE($H5:$Q5),"N/A"))) -> 
A21: =E6&" "&C6 -> United States FIRF | B21: =IF(YEAR('Input - Set Limits'!$C$16)=$F$1,AVERAGE($F6:$O6),IF(YEAR('Input - Set Limits'!$C$16)=$G$1,AVERAGE($G6:$P6),IF(YEAR('Input - Set Limits'!$C$16)=$H$1,AVERAGE($H6:$Q6),"N/A"))) -> 3.286127628
A22: =E7&" "&C7 -> United Kingdom FIRF | B22: =IF(YEAR('Input - Set Limits'!$C$16)=$F$1,AVERAGE($F7:$O7),IF(YEAR('Input - Set Limits'!$C$16)=$G$1,AVERAGE($G7:$P7),IF(YEAR('Input - Set Limits'!$C$16)=$H$1,AVERAGE($H7:$Q7),"N/A"))) -> 4.677875
A23: Euro area FIRF | B23: =IF(YEAR('Input - Set Limits'!$C$16)=$F$1,AVERAGE($F8:$O8),IF(YEAR('Input - Set Limits'!$C$16)=$G$1,AVERAGE($G8:$P8),IF(YEAR('Input - Set Limits'!$C$16)=$H$1,AVERAGE($H8:$Q8),"N/A"))) -> 2.789391203
A24: Chinese Yen | B24: N/A
A25: Other | B25: =IF(YEAR('Input - Set Limits'!$C$16)=$F$1,AVERAGE($F9:$O9),IF(YEAR('Input - Set Limits'!$C$16)=$G$1,AVERAGE($G9:$P9),IF(YEAR('Input - Set Limits'!$C$16)=$H$1,AVERAGE($H9:$Q9),"N/A"))) -> 3.351439739
A28: Table 2. SDR Weights
A29: Currency Weight: USD | B29: 0.4338
A30: Currency Weight: Euro | B30: 0.2931
A31: Currency Weight: Yen | B31: 0.0759
A32: Currency Weight: UK Pound | B32: 0.0744
A33: Currency Weight: Yuan | B33: 0.1228
A35: Table 3. Assumptions for Variable Interest Rates Set Limits 1/ | B35: ="10 year average six-month LIBOR "& B15 -> 10 year average six-month LIBOR 2023 - 2032 | C35: Spread (Currency minus USD, rounded to nearest 50 bps)
A36: U.S. dollars LIBOR | B36: ='GAS FILE'!B19/100 -> 0.03761103333 | C36: 0
A37: U.S. dollars FIRF | B37: ='GAS FILE'!B21/100 -> 0.03286127628 | C37: 0
A38: Euro LIBOR | B38: ='GAS FILE'!B17/100 ->  | C38: =ROUND((B38-$B$37)*200,0)*0.005 -> 
A39: Japanese yen | B39: ='GAS FILE'!B18/100 -> 
A40: Pounds sterling LIBOR | B40: ='GAS FILE'!B20/100 -> 
A41: Pounds sterling FIRF | B41: ='GAS FILE'!B22/100 -> 0.04677875 | C41: 0.015
A42: Euro FIRF | B42: ='GAS FILE'!B23/100 -> 0.02789391203 | C42: -0.005
A43: Other | B43: ='GAS FILE'!B25/100 -> 0.03351439739 | C43: 0
A44: 1/ For loans carrying a variable interest rate, a “program reference rate” will be specified in the program documents (e.g., the TMU). This rate would be based on staff’s “average projected rate” for the six-month USD LIBOR over the following 10 years. This projected average rate will be updated annually on the Fund’s concessionality calculator, based on the fall vintage of the World Economic Outlook (WEO). The program reference rate would be set based on the interest rate projections from the WEO and will be fixed for the duration of the program. The PV of the loan would be calculated using the program reference rate, plus the fixed spread (in basis points) specified in the loan contract. Where the variable rate is linked to a benchmark interest rate other than the six-month USD LIBOR, a spread reflecting the difference between the benchmark rate and the six-month USD LIBOR (rounded to the nearest 50 bps) will be added.
A52: Table 3. Assumptions for Variable Interest Rates Monitor Limits 1/ | B52: =B35 -> 10 year average six-month LIBOR 2023 - 2032 | C52: Spread (Currency minus USD, rounded to nearest 50 bps)
A53: U.S. dollars LIBOR | B53: ='GAS FILE'!B19/100 -> 0.03761103333 | C53: 0
A54: U.S. dollars FIRF | B54: ='GAS FILE'!B21/100 -> 0.03286127628 | C54: 0
A55: Euro LIBOR | B55: ='GAS FILE'!B17/100 ->  | C55: =ROUND((B55-$B$54)*200,0)*0.005 -> 
A56: Japanese yen | B56: ='GAS FILE'!B18/100 -> 
A57: Pounds sterling LIBOR | B57: ='GAS FILE'!B20/100 -> 
A58: Pounds sterling FIRF | B58: ='GAS FILE'!B22/100 -> 0.04677875 | C58: 0.015
A59: Euro FIRF | B59: ='GAS FILE'!B23/100 -> 0.02789391203 | C59: -0.005
A60: Other | B60: ='GAS FILE'!B25/100 -> 0.03351439739 | C60: 0
A61: 1/ For loans carrying a variable interest rate, a “program reference rate” will be specified in the program documents (e.g., the TMU). This rate would be based on staff’s “average projected rate” for the six-month USD LIBOR over the following 10 years. This projected average rate will be updated annually on the Fund’s concessionality calculator, based on the fall vintage of the World Economic Outlook (WEO). The program reference rate would be set based on the interest rate projections from the WEO and will be fixed for the duration of the program. The PV of the loan would be calculated using the program reference rate, plus the fixed spread (in basis points) specified in the loan contract. Where the variable rate is linked to a benchmark interest rate other than the six-month USD LIBOR, a spread reflecting the difference between the benchmark rate and the six-month USD LIBOR (rounded to the nearest 50 bps) will be added.

Sheet Input - Set Limits
H2:  SETTING DEBT TARGETS 
B3: INTRODUCTION: | C3: This calculator calculates the Grant Element and Present Values of 300 loans at once.
C4: #Err messges are flagged in the output columns if the Loan Terms
C5: are incorrectly input. In these cases, please verify the loan terms and then click the CALCULATE button.
C6: The Output Table sheet summarizes the results from these loans.
B10: INPUTS - PART 1
B11: INTEREST RATE TYPE | C11: FIRF
B12: DEBT LIMIT BASIS | C12: Contracting
B13: MIN GRANT ELEMENT | C13: 0.35
B14: REFERENCE RATE | C14: =IF(C11="LIBOR",'GAS FILE'!B53,'GAS FILE'!B54) -> 0.03286127628
B15: DISCOUNT RATE | C15: 0.05
B16: Period Start/End Date | C16: 2023-01-01 | D16: 2023-12-31
B17: INPUTS PART 2 | O17: Management Fees | Q17: Calculated | V17: OUTPUT
B18: Effective date (as of) | C18: Creditor Name (Optional) | D18: Use of debt financing | E18: Creditor Type | F18: Currency for rate calculation | G18: Currency of loan denomination | H18: Exchange rate (Currency per USD) | I18: Fixed/ Variable | J18: Rate (if Fixed) / Spread from loan contract (if Variable) | K18: Repayment Profile (choose from the 5 profiles in the drop down menu) | L18: Face Value (currency of denonimation) | M18: Grant (as part of financing package) | N18: Upfront Commission (in percent) | O18: Percent of the outstanding nominal amount | P18: Nominal Amount (per period) | Q18: Effective interest Rate | R18: Maturity (years) | S18: Payments per annum | T18: Grace Period (years) | V18: Present Value (currency specific) | W18: Grant Element | X18: =CONCATENATE("Concessionality (based on ", C13*100," % GE)") -> Concessionality (based on 35 % GE) | Z18: Present Value Actual in USD | AA18: Present Value in USD for program purposes | AB18: Nominal in USD | AC18: Weights by nominal amount | AD18: Weighted by Grant Element | AF18: YEAR of Loan
A19: 1 | B19: 2018-08-01 | C19: IDA | E19: Other | F19: USD | G19: USD | H19: 1 | I19: Fixed | J19: 0.04 | K19: Annuity | L19: 120000000 | M19: 0 | N19: 0 | O19: 0 | P19: 0 | Q19: =IF(ISNUMBER(L19),IF(I19="Fixed",J19,IF(F19="USD",J19+$C$14+IF($C$11="LIBOR",'GAS FILE'!$C$36,'GAS FILE'!$C$37),IF(F19="JPY",J19+$C$14+'GAS FILE'!$C$39,IF(F19="EUR",J19+$C$14+IF($C$11="LIBOR",'GAS FILE'!$C$38,'GAS FILE'!$C$42),IF(J19="GBP",J19+$C$14+IF($C$11="LIBOR",'GAS FILE'!$C$40,'GAS FILE'!$C$41),J19+$C$14+'GAS FILE'!$C$43))))),"") -> 0.04 | R19: 2 | S19: 14 | T19: 0 | V19: 122381936.6 | W19: -0.01984947129 | X19: =IF(ISNUMBER(W19),IF(W19>=$C$13,Lists!$E$2,Lists!$E$4),"") -> Non-concessional | Z19: =IF(ISNUMBER(V19/H19),V19/H19,"") -> 122381936.6 | AA19: =IF(ISNUMBER(IF(W19<0,AB19,Z19)),IF(W19<0,AB19,Z19),"") -> 120000000 | AB19: =IF(ISNUMBER(L19/H19),L19/H19,"") -> 120000000 | AC19: =IF(ISNUMBER(AB19/SUMIF('Input - Monitor Limits'!$AB$19:$AB$318,"<1E100")*100),AB19/SUMIF('Input - Monitor Limits'!$AB$19:$AB$318,"<1E100")*100) -> 32.78226759 | AD19: =AC19*W19 -> -0.6507106795 | AF19: =IF(YEAR(B19)=1900,"",YEAR(B19)) -> 2018
A20: 2 | Q20: =IF(ISNUMBER(L20),IF(I20="Fixed",J20,IF(F20="USD",J20+$C$14+IF($C$11="LIBOR",'GAS FILE'!$C$36,'GAS FILE'!$C$37),IF(F20="JPY",J20+$C$14+'GAS FILE'!$C$39,IF(F20="EUR",J20+$C$14+IF($C$11="LIBOR",'GAS FILE'!$C$38,'GAS FILE'!$C$42),IF(J20="GBP",J20+$C$14+IF($C$11="LIBOR",'GAS FILE'!$C$40,'GAS FILE'!$C$41),J20+$C$14+'GAS FILE'!$C$43))))),"") ->  | X20: =IF(ISNUMBER(W20),IF(W20>=$C$13,Lists!$E$2,Lists!$E$4),"") ->  | Z20: =IF(ISNUMBER(V20/H20),V20/H20,"") ->  | AA20: =IF(ISNUMBER(IF(W20<0,AB20,Z20)),IF(W20<0,AB20,Z20),"") ->  | AB20: =IF(ISNUMBER(L20/H20),L20/H20,"") ->  | AC20: =AB20/SUMIF('Input - Monitor Limits'!$AB$19:$AB$318,"<1E100")*100 ->  | AF20: =IF(YEAR(B20)=1900,"",YEAR(B20)) -> 
A21: 3 | Q21: =IF(ISNUMBER(L21),IF(I21="Fixed",J21,IF(F21="USD",J21+$C$14+IF($C$11="LIBOR",'GAS FILE'!$C$36,'GAS FILE'!$C$37),IF(F21="JPY",J21+$C$14+'GAS FILE'!$C$39,IF(F21="EUR",J21+$C$14+IF($C$11="LIBOR",'GAS FILE'!$C$38,'GAS FILE'!$C$42),IF(J21="GBP",J21+$C$14+IF($C$11="LIBOR",'GAS FILE'!$C$40,'GAS FILE'!$C$41),J21+$C$14+'GAS FILE'!$C$43))))),"") ->  | X21: =IF(ISNUMBER(W21),IF(W21>=$C$13,Lists!$E$2,Lists!$E$4),"") ->  | AC21: =AB21/SUMIF('Input - Monitor Limits'!$AB$19:$AB$318,"<1E100")*100 -> 
A22: 4 | Q22: =IF(ISNUMBER(L22),IF(I22="Fixed",J22,IF(F22="USD",J22+$C$14+IF($C$11="LIBOR",'GAS FILE'!$C$36,'GAS FILE'!$C$37),IF(F22="JPY",J22+$C$14+'GAS FILE'!$C$39,IF(F22="EUR",J22+$C$14+IF($C$11="LIBOR",'GAS FILE'!$C$38,'GAS FILE'!$C$42),IF(J22="GBP",J22+$C$14+IF($C$11="LIBOR",'GAS FILE'!$C$40,'GAS FILE'!$C$41),J22+$C$14+'GAS FILE'!$C$43))))),"") ->  | X22: =IF(ISNUMBER(W22),IF(W22>=$C$13,Lists!$E$2,Lists!$E$4),"") ->  | AC22: =AB22/SUMIF('Input - Monitor Limits'!$AB$19:$AB$318,"<1E100")*100 -> 
A23: 5 | Q23: =IF(ISNUMBER(L23),IF(I23="Fixed",J23,IF(F23="USD",J23+$C$14+IF($C$11="LIBOR",'GAS FILE'!$C$36,'GAS FILE'!$C$37),IF(F23="JPY",J23+$C$14+'GAS FILE'!$C$39,IF(F23="EUR",J23+$C$14+IF($C$11="LIBOR",'GAS FILE'!$C$38,'GAS FILE'!$C$42),IF(J23="GBP",J23+$C$14+IF($C$11="LIBOR",'GAS FILE'!$C$40,'GAS FILE'!$C$41),J23+$C$14+'GAS FILE'!$C$43))))),"") ->  | X23: =IF(ISNUMBER(W23),IF(W23>=$C$13,Lists!$E$2,Lists!$E$4),"") ->  | AC23: =AB23/SUMIF('Input - Monitor Limits'!$AB$19:$AB$318,"<1E100")*100 -> 
A24: 6 | Q24: =IF(ISNUMBER(L24),IF(I24="Fixed",J24,IF(F24="USD",J24+$C$14+IF($C$11="LIBOR",'GAS FILE'!$C$36,'GAS FILE'!$C$37),IF(F24="JPY",J24+$C$14+'GAS FILE'!$C$39,IF(F24="EUR",J24+$C$14+IF($C$11="LIBOR",'GAS FILE'!$C$38,'GAS FILE'!$C$42),IF(J24="GBP",J24+$C$14+IF($C$11="LIBOR",'GAS FILE'!$C$40,'GAS FILE'!$C$41),J24+$C$14+'GAS FILE'!$C$43))))),"") ->  | X24: =IF(ISNUMBER(W24),IF(W24>=$C$13,Lists!$E$2,Lists!$E$4),"") ->  | AC24: =AB24/SUMIF('Input - Monitor Limits'!$AB$19:$AB$318,"<1E100")*100 -> 
A25: 7 | Q25: =IF(ISNUMBER(L25),IF(I25="Fixed",J25,IF(F25="USD",J25+$C$14+IF($C$11="LIBOR",'GAS FILE'!$C$36,'GAS FILE'!$C$37),IF(F25="JPY",J25+$C$14+'GAS FILE'!$C$39,IF(F25="EUR",J25+$C$14+IF($C$11="LIBOR",'GAS FILE'!$C$38,'GAS FILE'!$C$42),IF(J25="GBP",J25+$C$14+IF($C$11="LIBOR",'GAS FILE'!$C$40,'GAS FILE'!$C$41),J25+$C$14+'GAS FILE'!$C$43))))),"") ->  | X25: =IF(ISNUMBER(W25),IF(W25>=$C$13,Lists!$E$2,Lists!$E$4),"") ->  | AC25: =AB25/SUMIF('Input - Monitor Limits'!$AB$19:$AB$318,"<1E100")*100 -> 
A26: 8 | Q26: =IF(ISNUMBER(L26),IF(I26="Fixed",J26,IF(F26="USD",J26+$C$14+IF($C$11="LIBOR",'GAS FILE'!$C$36,'GAS FILE'!$C$37),IF(F26="JPY",J26+$C$14+'GAS FILE'!$C$39,IF(F26="EUR",J26+$C$14+IF($C$11="LIBOR",'GAS FILE'!$C$38,'GAS FILE'!$C$42),IF(J26="GBP",J26+$C$14+IF($C$11="LIBOR",'GAS FILE'!$C$40,'GAS FILE'!$C$41),J26+$C$14+'GAS FILE'!$C$43))))),"") ->  | X26: =IF(ISNUMBER(W26),IF(W26>=$C$13,Lists!$E$2,Lists!$E$4),"") ->  | AC26: =AB26/SUMIF('Input - Monitor Limits'!$AB$19:$AB$318,"<1E100")*100 -> 
A27: 9 | Q27: =IF(ISNUMBER(L27),IF(I27="Fixed",J27,IF(F27="USD",J27+$C$14+IF($C$11="LIBOR",'GAS FILE'!$C$36,'GAS FILE'!$C$37),IF(F27="JPY",J27+$C$14+'GAS FILE'!$C$39,IF(F27="EUR",J27+$C$14+IF($C$11="LIBOR",'GAS FILE'!$C$38,'GAS FILE'!$C$42),IF(J27="GBP",J27+$C$14+IF($C$11="LIBOR",'GAS FILE'!$C$40,'GAS FILE'!$C$41),J27+$C$14+'GAS FILE'!$C$43))))),"") ->  | X27: =IF(ISNUMBER(W27),IF(W27>=$C$13,Lists!$E$2,Lists!$E$4),"") ->  | AC27: =AB27/SUMIF('Input - Monitor Limits'!$AB$19:$AB$318,"<1E100")*100 -> 
A28: 10 | Q28: =IF(ISNUMBER(L28),IF(I28="Fixed",J28,IF(F28="USD",J28+$C$14+IF($C$11="LIBOR",'GAS FILE'!$C$36,'GAS FILE'!$C$37),IF(F28="JPY",J28+$C$14+'GAS FILE'!$C$39,IF(F28="EUR",J28+$C$14+IF($C$11="LIBOR",'GAS FILE'!$C$38,'GAS FILE'!$C$42),IF(J28="GBP",J28+$C$14+IF($C$11="LIBOR",'GAS FILE'!$C$40,'GAS FILE'!$C$41),J28+$C$14+'GAS FILE'!$C$43))))),"") ->  | X28: =IF(ISNUMBER(W28),IF(W28>=$C$13,Lists!$E$2,Lists!$E$4),"") ->  | AC28: =AB28/SUMIF('Input - Monitor Limits'!$AB$19:$AB$318,"<1E100")*100 -> 
A29: 11 | Q29: =IF(ISNUMBER(L29),IF(I29="Fixed",J29,IF(F29="USD",J29+$C$14+IF($C$11="LIBOR",'GAS FILE'!$C$36,'GAS FILE'!$C$37),IF(F29="JPY",J29+$C$14+'GAS FILE'!$C$39,IF(F29="EUR",J29+$C$14+IF($C$11="LIBOR",'GAS FILE'!$C$38,'GAS FILE'!$C$42),IF(J29="GBP",J29+$C$14+IF($C$11="LIBOR",'GAS FILE'!$C$40,'GAS FILE'!$C$41),J29+$C$14+'GAS FILE'!$C$43))))),"") ->  | X29: =IF(ISNUMBER(W29),IF(W29>=$C$13,Lists!$E$2,Lists!$E$4),"") ->  | AC29: =AB29/SUMIF('Input - Monitor Limits'!$AB$19:$AB$318,"<1E100")*100 -> 
A30: 12 | Q30: =IF(ISNUMBER(L30),IF(I30="Fixed",J30,IF(F30="USD",J30+$C$14+IF($C$11="LIBOR",'GAS FILE'!$C$36,'GAS FILE'!$C$37),IF(F30="JPY",J30+$C$14+'GAS FILE'!$C$39,IF(F30="EUR",J30+$C$14+IF($C$11="LIBOR",'GAS FILE'!$C$38,'GAS FILE'!$C$42),IF(J30="GBP",J30+$C$14+IF($C$11="LIBOR",'GAS FILE'!$C$40,'GAS FILE'!$C$41),J30+$C$14+'GAS FILE'!$C$43))))),"") ->  | X30: =IF(ISNUMBER(W30),IF(W30>=$C$13,Lists!$E$2,Lists!$E$4),"") ->  | AC30: =AB30/SUMIF('Input - Monitor Limits'!$AB$19:$AB$318,"<1E100")*100 -> 
A31: 13 | Q31: =IF(ISNUMBER(L31),IF(I31="Fixed",J31,IF(F31="USD",J31+$C$14+IF($C$11="LIBOR",'GAS FILE'!$C$36,'GAS FILE'!$C$37),IF(F31="JPY",J31+$C$14+'GAS FILE'!$C$39,IF(F31="EUR",J31+$C$14+IF($C$11="LIBOR",'GAS FILE'!$C$38,'GAS FILE'!$C$42),IF(J31="GBP",J31+$C$14+IF($C$11="LIBOR",'GAS FILE'!$C$40,'GAS FILE'!$C$41),J31+$C$14+'GAS FILE'!$C$43))))),"") ->  | X31: =IF(ISNUMBER(W31),IF(W31>=$C$13,Lists!$E$2,Lists!$E$4),"") ->  | AC31: =AB31/SUMIF('Input - Monitor Limits'!$AB$19:$AB$318,"<1E100")*100 -> 
A32: 14 | Q32: =IF(ISNUMBER(L32),IF(I32="Fixed",J32,IF(F32="USD",J32+$C$14+IF($C$11="LIBOR",'GAS FILE'!$C$36,'GAS FILE'!$C$37),IF(F32="JPY",J32+$C$14+'GAS FILE'!$C$39,IF(F32="EUR",J32+$C$14+IF($C$11="LIBOR",'GAS FILE'!$C$38,'GAS FILE'!$C$42),IF(J32="GBP",J32+$C$14+IF($C$11="LIBOR",'GAS FILE'!$C$40,'GAS FILE'!$C$41),J32+$C$14+'GAS FILE'!$C$43))))),"") ->  | X32: =IF(ISNUMBER(W32),IF(W32>=$C$13,Lists!$E$2,Lists!$E$4),"") ->  | AC32: =AB32/SUMIF('Input - Monitor Limits'!$AB$19:$AB$318,"<1E100")*100 -> 
A33: 15 | Q33: =IF(ISNUMBER(L33),IF(I33="Fixed",J33,IF(F33="USD",J33+$C$14+IF($C$11="LIBOR",'GAS FILE'!$C$36,'GAS FILE'!$C$37),IF(F33="JPY",J33+$C$14+'GAS FILE'!$C$39,IF(F33="EUR",J33+$C$14+IF($C$11="LIBOR",'GAS FILE'!$C$38,'GAS FILE'!$C$42),IF(J33="GBP",J33+$C$14+IF($C$11="LIBOR",'GAS FILE'!$C$40,'GAS FILE'!$C$41),J33+$C$14+'GAS FILE'!$C$43))))),"") ->  | X33: =IF(ISNUMBER(W33),IF(W33>=$C$13,Lists!$E$2,Lists!$E$4),"") ->  | AC33: =AB33/SUMIF('Input - Monitor Limits'!$AB$19:$AB$318,"<1E100")*100 -> 
A34: 16 | Q34: =IF(ISNUMBER(L34),IF(I34="Fixed",J34,IF(F34="USD",J34+$C$14+IF($C$11="LIBOR",'GAS FILE'!$C$36,'GAS FILE'!$C$37),IF(F34="JPY",J34+$C$14+'GAS FILE'!$C$39,IF(F34="EUR",J34+$C$14+IF($C$11="LIBOR",'GAS FILE'!$C$38,'GAS FILE'!$C$42),IF(J34="GBP",J34+$C$14+IF($C$11="LIBOR",'GAS FILE'!$C$40,'GAS FILE'!$C$41),J34+$C$14+'GAS FILE'!$C$43))))),"") ->  | X34: =IF(ISNUMBER(W34),IF(W34>=$C$13,Lists!$E$2,Lists!$E$4),"") ->  | AC34: =AB34/SUMIF('Input - Monitor Limits'!$AB$19:$AB$318,"<1E100")*100 -> 
A35: 17 | Q35: =IF(ISNUMBER(L35),IF(I35="Fixed",J35,IF(F35="USD",J35+$C$14+IF($C$11="LIBOR",'GAS FILE'!$C$36,'GAS FILE'!$C$37),IF(F35="JPY",J35+$C$14+'GAS FILE'!$C$39,IF(F35="EUR",J35+$C$14+IF($C$11="LIBOR",'GAS FILE'!$C$38,'GAS FILE'!$C$42),IF(J35="GBP",J35+$C$14+IF($C$11="LIBOR",'GAS FILE'!$C$40,'GAS FILE'!$C$41),J35+$C$14+'GAS FILE'!$C$43))))),"") ->  | X35: =IF(ISNUMBER(W35),IF(W35>=$C$13,Lists!$E$2,Lists!$E$4),"") ->  | AC35: =AB35/SUMIF('Input - Monitor Limits'!$AB$19:$AB$318,"<1E100")*100 -> 
A36: 18 | Q36: =IF(ISNUMBER(L36),IF(I36="Fixed",J36,IF(F36="USD",J36+$C$14+IF($C$11="LIBOR",'GAS FILE'!$C$36,'GAS FILE'!$C$37),IF(F36="JPY",J36+$C$14+'GAS FILE'!$C$39,IF(F36="EUR",J36+$C$14+IF($C$11="LIBOR",'GAS FILE'!$C$38,'GAS FILE'!$C$42),IF(J36="GBP",J36+$C$14+IF($C$11="LIBOR",'GAS FILE'!$C$40,'GAS FILE'!$C$41),J36+$C$14+'GAS FILE'!$C$43))))),"") ->  | X36: =IF(ISNUMBER(W36),IF(W36>=$C$13,Lists!$E$2,Lists!$E$4),"") ->  | AC36: =AB36/SUMIF('Input - Monitor Limits'!$AB$19:$AB$318,"<1E100")*100 -> 
A37: 19 | Q37: =IF(ISNUMBER(L37),IF(I37="Fixed",J37,IF(F37="USD",J37+$C$14+IF($C$11="LIBOR",'GAS FILE'!$C$36,'GAS FILE'!$C$37),IF(F37="JPY",J37+$C$14+'GAS FILE'!$C$39,IF(F37="EUR",J37+$C$14+IF($C$11="LIBOR",'GAS FILE'!$C$38,'GAS FILE'!$C$42),IF(J37="GBP",J37+$C$14+IF($C$11="LIBOR",'GAS FILE'!$C$40,'GAS FILE'!$C$41),J37+$C$14+'GAS FILE'!$C$43))))),"") ->  | X37: =IF(ISNUMBER(W37),IF(W37>=$C$13,Lists!$E$2,Lists!$E$4),"") ->  | AC37: =AB37/SUMIF('Input - Monitor Limits'!$AB$19:$AB$318,"<1E100")*100 -> 
A38: 20 | Q38: =IF(ISNUMBER(L38),IF(I38="Fixed",J38,IF(F38="USD",J38+$C$14+IF($C$11="LIBOR",'GAS FILE'!$C$36,'GAS FILE'!$C$37),IF(F38="JPY",J38+$C$14+'GAS FILE'!$C$39,IF(F38="EUR",J38+$C$14+IF($C$11="LIBOR",'GAS FILE'!$C$38,'GAS FILE'!$C$42),IF(J38="GBP",J38+$C$14+IF($C$11="LIBOR",'GAS FILE'!$C$40,'GAS FILE'!$C$41),J38+$C$14+'GAS FILE'!$C$43))))),"") ->  | X38: =IF(ISNUMBER(W38),IF(W38>=$C$13,Lists!$E$2,Lists!$E$4),"") ->  | AC38: =AB38/SUMIF('Input - Monitor Limits'!$AB$19:$AB$318,"<1E100")*100 -> 
A39: 21 | Q39: =IF(ISNUMBER(L39),IF(I39="Fixed",J39,IF(F39="USD",J39+$C$14+IF($C$11="LIBOR",'GAS FILE'!$C$36,'GAS FILE'!$C$37),IF(F39="JPY",J39+$C$14+'GAS FILE'!$C$39,IF(F39="EUR",J39+$C$14+IF($C$11="LIBOR",'GAS FILE'!$C$38,'GAS FILE'!$C$42),IF(J39="GBP",J39+$C$14+IF($C$11="LIBOR",'GAS FILE'!$C$40,'GAS FILE'!$C$41),J39+$C$14+'GAS FILE'!$C$43))))),"") ->  | X39: =IF(ISNUMBER(W39),IF(W39>=$C$13,Lists!$E$2,Lists!$E$4),"") ->  | AC39: =AB39/SUMIF('Input - Monitor Limits'!$AB$19:$AB$318,"<1E100")*100 -> 
A40: 22 | Q40: =IF(ISNUMBER(L40),IF(I40="Fixed",J40,IF(F40="USD",J40+$C$14+IF($C$11="LIBOR",'GAS FILE'!$C$36,'GAS FILE'!$C$37),IF(F40="JPY",J40+$C$14+'GAS FILE'!$C$39,IF(F40="EUR",J40+$C$14+IF($C$11="LIBOR",'GAS FILE'!$C$38,'GAS FILE'!$C$42),IF(J40="GBP",J40+$C$14+IF($C$11="LIBOR",'GAS FILE'!$C$40,'GAS FILE'!$C$41),J40+$C$14+'GAS FILE'!$C$43))))),"") ->  | X40: =IF(ISNUMBER(W40),IF(W40>=$C$13,Lists!$E$2,Lists!$E$4),"") ->  | AC40: =AB40/SUMIF('Input - Monitor Limits'!$AB$19:$AB$318,"<1E100")*100 -> 
A41: 23 | Q41: =IF(ISNUMBER(L41),IF(I41="Fixed",J41,IF(F41="USD",J41+$C$14+IF($C$11="LIBOR",'GAS FILE'!$C$36,'GAS FILE'!$C$37),IF(F41="JPY",J41+$C$14+'GAS FILE'!$C$39,IF(F41="EUR",J41+$C$14+IF($C$11="LIBOR",'GAS FILE'!$C$38,'GAS FILE'!$C$42),IF(J41="GBP",J41+$C$14+IF($C$11="LIBOR",'GAS FILE'!$C$40,'GAS FILE'!$C$41),J41+$C$14+'GAS FILE'!$C$43))))),"") ->  | X41: =IF(ISNUMBER(W41),IF(W41>=$C$13,Lists!$E$2,Lists!$E$4),"") ->  | AC41: =AB41/SUMIF('Input - Monitor Limits'!$AB$19:$AB$318,"<1E100")*100 -> 
A42: 24 | Q42: =IF(ISNUMBER(L42),IF(I42="Fixed",J42,IF(F42="USD",J42+$C$14+IF($C$11="LIBOR",'GAS FILE'!$C$36,'GAS FILE'!$C$37),IF(F42="JPY",J42+$C$14+'GAS FILE'!$C$39,IF(F42="EUR",J42+$C$14+IF($C$11="LIBOR",'GAS FILE'!$C$38,'GAS FILE'!$C$42),IF(J42="GBP",J42+$C$14+IF($C$11="LIBOR",'GAS FILE'!$C$40,'GAS FILE'!$C$41),J42+$C$14+'GAS FILE'!$C$43))))),"") ->  | X42: =IF(ISNUMBER(W42),IF(W42>=$C$13,Lists!$E$2,Lists!$E$4),"") ->  | AC42: =AB42/SUMIF('Input - Monitor Limits'!$AB$19:$AB$318,"<1E100")*100 -> 
A43: 25 | Q43: =IF(ISNUMBER(L43),IF(I43="Fixed",J43,IF(F43="USD",J43+$C$14+IF($C$11="LIBOR",'GAS FILE'!$C$36,'GAS FILE'!$C$37),IF(F43="JPY",J43+$C$14+'GAS FILE'!$C$39,IF(F43="EUR",J43+$C$14+IF($C$11="LIBOR",'GAS FILE'!$C$38,'GAS FILE'!$C$42),IF(J43="GBP",J43+$C$14+IF($C$11="LIBOR",'GAS FILE'!$C$40,'GAS FILE'!$C$41),J43+$C$14+'GAS FILE'!$C$43))))),"") ->  | X43: =IF(ISNUMBER(W43),IF(W43>=$C$13,Lists!$E$2,Lists!$E$4),"") ->  | AC43: =AB43/SUMIF('Input - Monitor Limits'!$AB$19:$AB$318,"<1E100")*100 -> 
A44: 26 | Q44: =IF(ISNUMBER(L44),IF(I44="Fixed",J44,IF(F44="USD",J44+$C$14+IF($C$11="LIBOR",'GAS FILE'!$C$36,'GAS FILE'!$C$37),IF(F44="JPY",J44+$C$14+'GAS FILE'!$C$39,IF(F44="EUR",J44+$C$14+IF($C$11="LIBOR",'GAS FILE'!$C$38,'GAS FILE'!$C$42),IF(J44="GBP",J44+$C$14+IF($C$11="LIBOR",'GAS FILE'!$C$40,'GAS FILE'!$C$41),J44+$C$14+'GAS FILE'!$C$43))))),"") ->  | X44: =IF(ISNUMBER(W44),IF(W44>=$C$13,Lists!$E$2,Lists!$E$4),"") ->  | AC44: =AB44/SUMIF('Input - Monitor Limits'!$AB$19:$AB$318,"<1E100")*100 -> 
A45: 27 | Q45: =IF(ISNUMBER(L45),IF(I45="Fixed",J45,IF(F45="USD",J45+$C$14+IF($C$11="LIBOR",'GAS FILE'!$C$36,'GAS FILE'!$C$37),IF(F45="JPY",J45+$C$14+'GAS FILE'!$C$39,IF(F45="EUR",J45+$C$14+IF($C$11="LIBOR",'GAS FILE'!$C$38,'GAS FILE'!$C$42),IF(J45="GBP",J45+$C$14+IF($C$11="LIBOR",'GAS FILE'!$C$40,'GAS FILE'!$C$41),J45+$C$14+'GAS FILE'!$C$43))))),"") ->  | X45: =IF(ISNUMBER(W45),IF(W45>=$C$13,Lists!$E$2,Lists!$E$4),"") ->  | AC45: =AB45/SUMIF('Input - Monitor Limits'!$AB$19:$AB$318,"<1E100")*100 -> 
A46: 28 | Q46: =IF(ISNUMBER(L46),IF(I46="Fixed",J46,IF(F46="USD",J46+$C$14+IF($C$11="LIBOR",'GAS FILE'!$C$36,'GAS FILE'!$C$37),IF(F46="JPY",J46+$C$14+'GAS FILE'!$C$39,IF(F46="EUR",J46+$C$14+IF($C$11="LIBOR",'GAS FILE'!$C$38,'GAS FILE'!$C$42),IF(J46="GBP",J46+$C$14+IF($C$11="LIBOR",'GAS FILE'!$C$40,'GAS FILE'!$C$41),J46+$C$14+'GAS FILE'!$C$43))))),"") ->  | X46: =IF(ISNUMBER(W46),IF(W46>=$C$13,Lists!$E$2,Lists!$E$4),"") ->  | AC46: =AB46/SUMIF('Input - Monitor Limits'!$AB$19:$AB$318,"<1E100")*100 -> 
A47: 29 | Q47: =IF(ISNUMBER(L47),IF(I47="Fixed",J47,IF(F47="USD",J47+$C$14+IF($C$11="LIBOR",'GAS FILE'!$C$36,'GAS FILE'!$C$37),IF(F47="JPY",J47+$C$14+'GAS FILE'!$C$39,IF(F47="EUR",J47+$C$14+IF($C$11="LIBOR",'GAS FILE'!$C$38,'GAS FILE'!$C$42),IF(J47="GBP",J47+$C$14+IF($C$11="LIBOR",'GAS FILE'!$C$40,'GAS FILE'!$C$41),J47+$C$14+'GAS FILE'!$C$43))))),"") ->  | X47: =IF(ISNUMBER(W47),IF(W47>=$C$13,Lists!$E$2,Lists!$E$4),"") ->  | AC47: =AB47/SUMIF('Input - Monitor Limits'!$AB$19:$AB$318,"<1E100")*100 -> 
A48: 30 | Q48: =IF(ISNUMBER(L48),IF(I48="Fixed",J48,IF(F48="USD",J48+$C$14+IF($C$11="LIBOR",'GAS FILE'!$C$36,'GAS FILE'!$C$37),IF(F48="JPY",J48+$C$14+'GAS FILE'!$C$39,IF(F48="EUR",J48+$C$14+IF($C$11="LIBOR",'GAS FILE'!$C$38,'GAS FILE'!$C$42),IF(J48="GBP",J48+$C$14+IF($C$11="LIBOR",'GAS FILE'!$C$40,'GAS FILE'!$C$41),J48+$C$14+'GAS FILE'!$C$43))))),"") ->  | X48: =IF(ISNUMBER(W48),IF(W48>=$C$13,Lists!$E$2,Lists!$E$4),"") ->  | AC48: =AB48/SUMIF('Input - Monitor Limits'!$AB$19:$AB$318,"<1E100")*100 -> 
A49: 31 | Q49: =IF(ISNUMBER(L49),IF(I49="Fixed",J49,IF(F49="USD",J49+$C$14+IF($C$11="LIBOR",'GAS FILE'!$C$36,'GAS FILE'!$C$37),IF(F49="JPY",J49+$C$14+'GAS FILE'!$C$39,IF(F49="EUR",J49+$C$14+IF($C$11="LIBOR",'GAS FILE'!$C$38,'GAS FILE'!$C$42),IF(J49="GBP",J49+$C$14+IF($C$11="LIBOR",'GAS FILE'!$C$40,'GAS FILE'!$C$41),J49+$C$14+'GAS FILE'!$C$43))))),"") ->  | X49: =IF(ISNUMBER(W49),IF(W49>=$C$13,Lists!$E$2,Lists!$E$4),"") ->  | AC49: =AB49/SUMIF('Input - Monitor Limits'!$AB$19:$AB$318,"<1E100")*100 -> 
A50: 32 | Q50: =IF(ISNUMBER(L50),IF(I50="Fixed",J50,IF(F50="USD",J50+$C$14+IF($C$11="LIBOR",'GAS FILE'!$C$36,'GAS FILE'!$C$37),IF(F50="JPY",J50+$C$14+'GAS FILE'!$C$39,IF(F50="EUR",J50+$C$14+IF($C$11="LIBOR",'GAS FILE'!$C$38,'GAS FILE'!$C$42),IF(J50="GBP",J50+$C$14+IF($C$11="LIBOR",'GAS FILE'!$C$40,'GAS FILE'!$C$41),J50+$C$14+'GAS FILE'!$C$43))))),"") ->  | X50: =IF(ISNUMBER(W50),IF(W50>=$C$13,Lists!$E$2,Lists!$E$4),"") ->  | AC50: =AB50/SUMIF('Input - Monitor Limits'!$AB$19:$AB$318,"<1E100")*100 -> 
A51: 33 | Q51: =IF(ISNUMBER(L51),IF(I51="Fixed",J51,IF(F51="USD",J51+$C$14+IF($C$11="LIBOR",'GAS FILE'!$C$36,'GAS FILE'!$C$37),IF(F51="JPY",J51+$C$14+'GAS FILE'!$C$39,IF(F51="EUR",J51+$C$14+IF($C$11="LIBOR",'GAS FILE'!$C$38,'GAS FILE'!$C$42),IF(J51="GBP",J51+$C$14+IF($C$11="LIBOR",'GAS FILE'!$C$40,'GAS FILE'!$C$41),J51+$C$14+'GAS FILE'!$C$43))))),"") ->  | X51: =IF(ISNUMBER(W51),IF(W51>=$C$13,Lists!$E$2,Lists!$E$4),"") ->  | AC51: =AB51/SUMIF('Input - Monitor Limits'!$AB$19:$AB$318,"<1E100")*100 -> 
A52: 34 | Q52: =IF(ISNUMBER(L52),IF(I52="Fixed",J52,IF(F52="USD",J52+$C$14+IF($C$11="LIBOR",'GAS FILE'!$C$36,'GAS FILE'!$C$37),IF(F52="JPY",J52+$C$14+'GAS FILE'!$C$39,IF(F52="EUR",J52+$C$14+IF($C$11="LIBOR",'GAS FILE'!$C$38,'GAS FILE'!$C$42),IF(J52="GBP",J52+$C$14+IF($C$11="LIBOR",'GAS FILE'!$C$40,'GAS FILE'!$C$41),J52+$C$14+'GAS FILE'!$C$43))))),"") ->  | X52: =IF(ISNUMBER(W52),IF(W52>=$C$13,Lists!$E$2,Lists!$E$4),"") ->  | AC52: =AB52/SUMIF('Input - Monitor Limits'!$AB$19:$AB$318,"<1E100")*100 -> 
A53: 35 | Q53: =IF(ISNUMBER(L53),IF(I53="Fixed",J53,IF(F53="USD",J53+$C$14+IF($C$11="LIBOR",'GAS FILE'!$C$36,'GAS FILE'!$C$37),IF(F53="JPY",J53+$C$14+'GAS FILE'!$C$39,IF(F53="EUR",J53+$C$14+IF($C$11="LIBOR",'GAS FILE'!$C$38,'GAS FILE'!$C$42),IF(J53="GBP",J53+$C$14+IF($C$11="LIBOR",'GAS FILE'!$C$40,'GAS FILE'!$C$41),J53+$C$14+'GAS FILE'!$C$43))))),"") ->  | X53: =IF(ISNUMBER(W53),IF(W53>=$C$13,Lists!$E$2,Lists!$E$4),"") ->  | AC53: =AB53/SUMIF('Input - Monitor Limits'!$AB$19:$AB$318,"<1E100")*100 -> 
A54: 36 | Q54: =IF(ISNUMBER(L54),IF(I54="Fixed",J54,IF(F54="USD",J54+$C$14+IF($C$11="LIBOR",'GAS FILE'!$C$36,'GAS FILE'!$C$37),IF(F54="JPY",J54+$C$14+'GAS FILE'!$C$39,IF(F54="EUR",J54+$C$14+IF($C$11="LIBOR",'GAS FILE'!$C$38,'GAS FILE'!$C$42),IF(J54="GBP",J54+$C$14+IF($C$11="LIBOR",'GAS FILE'!$C$40,'GAS FILE'!$C$41),J54+$C$14+'GAS FILE'!$C$43))))),"") ->  | X54: =IF(ISNUMBER(W54),IF(W54>=$C$13,Lists!$E$2,Lists!$E$4),"") ->  | AC54: =AB54/SUMIF('Input - Monitor Limits'!$AB$19:$AB$318,"<1E100")*100 -> 
A55: 37 | Q55: =IF(ISNUMBER(L55),IF(I55="Fixed",J55,IF(F55="USD",J55+$C$14+IF($C$11="LIBOR",'GAS FILE'!$C$36,'GAS FILE'!$C$37),IF(F55="JPY",J55+$C$14+'GAS FILE'!$C$39,IF(F55="EUR",J55+$C$14+IF($C$11="LIBOR",'GAS FILE'!$C$38,'GAS FILE'!$C$42),IF(J55="GBP",J55+$C$14+IF($C$11="LIBOR",'GAS FILE'!$C$40,'GAS FILE'!$C$41),J55+$C$14+'GAS FILE'!$C$43))))),"") ->  | X55: =IF(ISNUMBER(W55),IF(W55>=$C$13,Lists!$E$2,Lists!$E$4),"") ->  | AC55: =AB55/SUMIF('Input - Monitor Limits'!$AB$19:$AB$318,"<1E100")*100 -> 
A56: 38 | Q56: =IF(ISNUMBER(L56),IF(I56="Fixed",J56,IF(F56="USD",J56+$C$14+IF($C$11="LIBOR",'GAS FILE'!$C$36,'GAS FILE'!$C$37),IF(F56="JPY",J56+$C$14+'GAS FILE'!$C$39,IF(F56="EUR",J56+$C$14+IF($C$11="LIBOR",'GAS FILE'!$C$38,'GAS FILE'!$C$42),IF(J56="GBP",J56+$C$14+IF($C$11="LIBOR",'GAS FILE'!$C$40,'GAS FILE'!$C$41),J56+$C$14+'GAS FILE'!$C$43))))),"") ->  | X56: =IF(ISNUMBER(W56),IF(W56>=$C$13,Lists!$E$2,Lists!$E$4),"") ->  | AC56: =AB56/SUMIF('Input - Monitor Limits'!$AB$19:$AB$318,"<1E100")*100 -> 
A57: 39 | Q57: =IF(ISNUMBER(L57),IF(I57="Fixed",J57,IF(F57="USD",J57+$C$14+IF($C$11="LIBOR",'GAS FILE'!$C$36,'GAS FILE'!$C$37),IF(F57="JPY",J57+$C$14+'GAS FILE'!$C$39,IF(F57="EUR",J57+$C$14+IF($C$11="LIBOR",'GAS FILE'!$C$38,'GAS FILE'!$C$42),IF(J57="GBP",J57+$C$14+IF($C$11="LIBOR",'GAS FILE'!$C$40,'GAS FILE'!$C$41),J57+$C$14+'GAS FILE'!$C$43))))),"") ->  | X57: =IF(ISNUMBER(W57),IF(W57>=$C$13,Lists!$E$2,Lists!$E$4),"") ->  | AC57: =AB57/SUMIF('Input - Monitor Limits'!$AB$19:$AB$318,"<1E100")*100 -> 
A58: 40 | Q58: =IF(ISNUMBER(L58),IF(I58="Fixed",J58,IF(F58="USD",J58+$C$14+IF($C$11="LIBOR",'GAS FILE'!$C$36,'GAS FILE'!$C$37),IF(F58="JPY",J58+$C$14+'GAS FILE'!$C$39,IF(F58="EUR",J58+$C$14+IF($C$11="LIBOR",'GAS FILE'!$C$38,'GAS FILE'!$C$42),IF(J58="GBP",J58+$C$14+IF($C$11="LIBOR",'GAS FILE'!$C$40,'GAS FILE'!$C$41),J58+$C$14+'GAS FILE'!$C$43))))),"") ->  | X58: =IF(ISNUMBER(W58),IF(W58>=$C$13,Lists!$E$2,Lists!$E$4),"") ->  | AC58: =AB58/SUMIF('Input - Monitor Limits'!$AB$19:$AB$318,"<1E100")*100 -> 
A59: 41 | Q59: =IF(ISNUMBER(L59),IF(I59="Fixed",J59,IF(F59="USD",J59+$C$14+IF($C$11="LIBOR",'GAS FILE'!$C$36,'GAS FILE'!$C$37),IF(F59="JPY",J59+$C$14+'GAS FILE'!$C$39,IF(F59="EUR",J59+$C$14+IF($C$11="LIBOR",'GAS FILE'!$C$38,'GAS FILE'!$C$42),IF(J59="GBP",J59+$C$14+IF($C$11="LIBOR",'GAS FILE'!$C$40,'GAS FILE'!$C$41),J59+$C$14+'GAS FILE'!$C$43))))),"") ->  | X59: =IF(ISNUMBER(W59),IF(W59>=$C$13,Lists!$E$2,Lists!$E$4),"") ->  | AC59: =AB59/SUMIF('Input - Monitor Limits'!$AB$19:$AB$318,"<1E100")*100 -> 
A60: 42 | Q60: =IF(ISNUMBER(L60),IF(I60="Fixed",J60,IF(F60="USD",J60+$C$14+IF($C$11="LIBOR",'GAS FILE'!$C$36,'GAS FILE'!$C$37),IF(F60="JPY",J60+$C$14+'GAS FILE'!$C$39,IF(F60="EUR",J60+$C$14+IF($C$11="LIBOR",'GAS FILE'!$C$38,'GAS FILE'!$C$42),IF(J60="GBP",J60+$C$14+IF($C$11="LIBOR",'GAS FILE'!$C$40,'GAS FILE'!$C$41),J60+$C$14+'GAS FILE'!$C$43))))),"") ->  | X60: =IF(ISNUMBER(W60),IF(W60>=$C$13,Lists!$E$2,Lists!$E$4),"") ->  | AC60: =AB60/SUMIF('Input - Monitor Limits'!$AB$19:$AB$318,"<1E100")*100 -> 
A61: 43 | Q61: =IF(ISNUMBER(L61),IF(I61="Fixed",J61,IF(F61="USD",J61+$C$14+IF($C$11="LIBOR",'GAS FILE'!$C$36,'GAS FILE'!$C$37),IF(F61="JPY",J61+$C$14+'GAS FILE'!$C$39,IF(F61="EUR",J61+$C$14+IF($C$11="LIBOR",'GAS FILE'!$C$38,'GAS FILE'!$C$42),IF(J61="GBP",J61+$C$14+IF($C$11="LIBOR",'GAS FILE'!$C$40,'GAS FILE'!$C$41),J61+$C$14+'GAS FILE'!$C$43))))),"") ->  | X61: =IF(ISNUMBER(W61),IF(W61>=$C$13,Lists!$E$2,Lists!$E$4),"") ->  | AC61: =AB61/SUMIF('Input - Monitor Limits'!$AB$19:$AB$318,"<1E100")*100 -> 
A62: 44 | Q62: =IF(ISNUMBER(L62),IF(I62="Fixed",J62,IF(F62="USD",J62+$C$14+IF($C$11="LIBOR",'GAS FILE'!$C$36,'GAS FILE'!$C$37),IF(F62="JPY",J62+$C$14+'GAS FILE'!$C$39,IF(F62="EUR",J62+$C$14+IF($C$11="LIBOR",'GAS FILE'!$C$38,'GAS FILE'!$C$42),IF(J62="GBP",J62+$C$14+IF($C$11="LIBOR",'GAS FILE'!$C$40,'GAS FILE'!$C$41),J62+$C$14+'GAS FILE'!$C$43))))),"") ->  | X62: =IF(ISNUMBER(W62),IF(W62>=$C$13,Lists!$E$2,Lists!$E$4),"") ->  | AC62: =AB62/SUMIF('Input - Monitor Limits'!$AB$19:$AB$318,"<1E100")*100 -> 
A63: 45 | Q63: =IF(ISNUMBER(L63),IF(I63="Fixed",J63,IF(F63="USD",J63+$C$14+IF($C$11="LIBOR",'GAS FILE'!$C$36,'GAS FILE'!$C$37),IF(F63="JPY",J63+$C$14+'GAS FILE'!$C$39,IF(F63="EUR",J63+$C$14+IF($C$11="LIBOR",'GAS FILE'!$C$38,'GAS FILE'!$C$42),IF(J63="GBP",J63+$C$14+IF($C$11="LIBOR",'GAS FILE'!$C$40,'GAS FILE'!$C$41),J63+$C$14+'GAS FILE'!$C$43))))),"") ->  | X63: =IF(ISNUMBER(W63),IF(W63>=$C$13,Lists!$E$2,Lists!$E$4),"") ->  | AC63: =AB63/SUMIF('Input - Monitor Limits'!$AB$19:$AB$318,"<1E100")*100 -> 
A64: 46 | Q64: =IF(ISNUMBER(L64),IF(I64="Fixed",J64,IF(F64="USD",J64+$C$14+IF($C$11="LIBOR",'GAS FILE'!$C$36,'GAS FILE'!$C$37),IF(F64="JPY",J64+$C$14+'GAS FILE'!$C$39,IF(F64="EUR",J64+$C$14+IF($C$11="LIBOR",'GAS FILE'!$C$38,'GAS FILE'!$C$42),IF(J64="GBP",J64+$C$14+IF($C$11="LIBOR",'GAS FILE'!$C$40,'GAS FILE'!$C$41),J64+$C$14+'GAS FILE'!$C$43))))),"") ->  | X64: =IF(ISNUMBER(W64),IF(W64>=$C$13,Lists!$E$2,Lists!$E$4),"") ->  | AC64: =AB64/SUMIF('Input - Monitor Limits'!$AB$19:$AB$318,"<1E100")*100 -> 
A65: 47 | Q65: =IF(ISNUMBER(L65),IF(I65="Fixed",J65,IF(F65="USD",J65+$C$14+IF($C$11="LIBOR",'GAS FILE'!$C$36,'GAS FILE'!$C$37),IF(F65="JPY",J65+$C$14+'GAS FILE'!$C$39,IF(F65="EUR",J65+$C$14+IF($C$11="LIBOR",'GAS FILE'!$C$38,'GAS FILE'!$C$42),IF(J65="GBP",J65+$C$14+IF($C$11="LIBOR",'GAS FILE'!$C$40,'GAS FILE'!$C$41),J65+$C$14+'GAS FILE'!$C$43))))),"") ->  | X65: =IF(ISNUMBER(W65),IF(W65>=$C$13,Lists!$E$2,Lists!$E$4),"") ->  | AC65: =AB65/SUMIF('Input - Monitor Limits'!$AB$19:$AB$318,"<1E100")*100 -> 
A66: 48 | Q66: =IF(ISNUMBER(L66),IF(I66="Fixed",J66,IF(F66="USD",J66+$C$14+IF($C$11="LIBOR",'GAS FILE'!$C$36,'GAS FILE'!$C$37),IF(F66="JPY",J66+$C$14+'GAS FILE'!$C$39,IF(F66="EUR",J66+$C$14+IF($C$11="LIBOR",'GAS FILE'!$C$38,'GAS FILE'!$C$42),IF(J66="GBP",J66+$C$14+IF($C$11="LIBOR",'GAS FILE'!$C$40,'GAS FILE'!$C$41),J66+$C$14+'GAS FILE'!$C$43))))),"") ->  | X66: =IF(ISNUMBER(W66),IF(W66>=$C$13,Lists!$E$2,Lists!$E$4),"") ->  | AC66: =AB66/SUMIF('Input - Monitor Limits'!$AB$19:$AB$318,"<1E100")*100 -> 
A67: 49 | Q67: =IF(ISNUMBER(L67),IF(I67="Fixed",J67,IF(F67="USD",J67+$C$14+IF($C$11="LIBOR",'GAS FILE'!$C$36,'GAS FILE'!$C$37),IF(F67="JPY",J67+$C$14+'GAS FILE'!$C$39,IF(F67="EUR",J67+$C$14+IF($C$11="LIBOR",'GAS FILE'!$C$38,'GAS FILE'!$C$42),IF(J67="GBP",J67+$C$14+IF($C$11="LIBOR",'GAS FILE'!$C$40,'GAS FILE'!$C$41),J67+$C$14+'GAS FILE'!$C$43))))),"") ->  | X67: =IF(ISNUMBER(W67),IF(W67>=$C$13,Lists!$E$2,Lists!$E$4),"") ->  | AC67: =AB67/SUMIF('Input - Monitor Limits'!$AB$19:$AB$318,"<1E100")*100 -> 
A68: 50 | Q68: =IF(ISNUMBER(L68),IF(I68="Fixed",J68,IF(F68="USD",J68+$C$14+IF($C$11="LIBOR",'GAS FILE'!$C$36,'GAS FILE'!$C$37),IF(F68="JPY",J68+$C$14+'GAS FILE'!$C$39,IF(F68="EUR",J68+$C$14+IF($C$11="LIBOR",'GAS FILE'!$C$38,'GAS FILE'!$C$42),IF(J68="GBP",J68+$C$14+IF($C$11="LIBOR",'GAS FILE'!$C$40,'GAS FILE'!$C$41),J68+$C$14+'GAS FILE'!$C$43))))),"") ->  | X68: =IF(ISNUMBER(W68),IF(W68>=$C$13,Lists!$E$2,Lists!$E$4),"") ->  | AC68: =AB68/SUMIF('Input - Monitor Limits'!$AB$19:$AB$318,"<1E100")*100 -> 
A69: 51 | Q69: =IF(ISNUMBER(L69),IF(I69="Fixed",J69,IF(F69="USD",J69+$C$14+IF($C$11="LIBOR",'GAS FILE'!$C$36,'GAS FILE'!$C$37),IF(F69="JPY",J69+$C$14+'GAS FILE'!$C$39,IF(F69="EUR",J69+$C$14+IF($C$11="LIBOR",'GAS FILE'!$C$38,'GAS FILE'!$C$42),IF(J69="GBP",J69+$C$14+IF($C$11="LIBOR",'GAS FILE'!$C$40,'GAS FILE'!$C$41),J69+$C$14+'GAS FILE'!$C$43))))),"") ->  | X69: =IF(ISNUMBER(W69),IF(W69>=$C$13,Lists!$E$2,Lists!$E$4),"") ->  | AC69: =AB69/SUMIF('Input - Monitor Limits'!$AB$19:$AB$318,"<1E100")*100 -> 
A70: 52 | Q70: =IF(ISNUMBER(L70),IF(I70="Fixed",J70,IF(F70="USD",J70+$C$14+IF($C$11="LIBOR",'GAS FILE'!$C$36,'GAS FILE'!$C$37),IF(F70="JPY",J70+$C$14+'GAS FILE'!$C$39,IF(F70="EUR",J70+$C$14+IF($C$11="LIBOR",'GAS FILE'!$C$38,'GAS FILE'!$C$42),IF(J70="GBP",J70+$C$14+IF($C$11="LIBOR",'GAS FILE'!$C$40,'GAS FILE'!$C$41),J70+$C$14+'GAS FILE'!$C$43))))),"") ->  | X70: =IF(ISNUMBER(W70),IF(W70>=$C$13,Lists!$E$2,Lists!$E$4),"") ->  | AC70: =AB70/SUMIF('Input - Monitor Limits'!$AB$19:$AB$318,"<1E100")*100 -> 
A71: 53 | Q71: =IF(ISNUMBER(L71),IF(I71="Fixed",J71,IF(F71="USD",J71+$C$14+IF($C$11="LIBOR",'GAS FILE'!$C$36,'GAS FILE'!$C$37),IF(F71="JPY",J71+$C$14+'GAS FILE'!$C$39,IF(F71="EUR",J71+$C$14+IF($C$11="LIBOR",'GAS FILE'!$C$38,'GAS FILE'!$C$42),IF(J71="GBP",J71+$C$14+IF($C$11="LIBOR",'GAS FILE'!$C$40,'GAS FILE'!$C$41),J71+$C$14+'GAS FILE'!$C$43))))),"") ->  | X71: =IF(ISNUMBER(W71),IF(W71>=$C$13,Lists!$E$2,Lists!$E$4),"") ->  | AC71: =AB71/SUMIF('Input - Monitor Limits'!$AB$19:$AB$318,"<1E100")*100 -> 
A72: 54 | Q72: =IF(ISNUMBER(L72),IF(I72="Fixed",J72,IF(F72="USD",J72+$C$14+IF($C$11="LIBOR",'GAS FILE'!$C$36,'GAS FILE'!$C$37),IF(F72="JPY",J72+$C$14+'GAS FILE'!$C$39,IF(F72="EUR",J72+$C$14+IF($C$11="LIBOR",'GAS FILE'!$C$38,'GAS FILE'!$C$42),IF(J72="GBP",J72+$C$14+IF($C$11="LIBOR",'GAS FILE'!$C$40,'GAS FILE'!$C$41),J72+$C$14+'GAS FILE'!$C$43))))),"") ->  | X72: =IF(ISNUMBER(W72),IF(W72>=$C$13,Lists!$E$2,Lists!$E$4),"") ->  | AC72: =AB72/SUMIF('Input - Monitor Limits'!$AB$19:$AB$318,"<1E100")*100 -> 
A73: 55 | Q73: =IF(ISNUMBER(L73),IF(I73="Fixed",J73,IF(F73="USD",J73+$C$14+IF($C$11="LIBOR",'GAS FILE'!$C$36,'GAS FILE'!$C$37),IF(F73="JPY",J73+$C$14+'GAS FILE'!$C$39,IF(F73="EUR",J73+$C$14+IF($C$11="LIBOR",'GAS FILE'!$C$38,'GAS FILE'!$C$42),IF(J73="GBP",J73+$C$14+IF($C$11="LIBOR",'GAS FILE'!$C$40,'GAS FILE'!$C$41),J73+$C$14+'GAS FILE'!$C$43))))),"") ->  | X73: =IF(ISNUMBER(W73),IF(W73>=$C$13,Lists!$E$2,Lists!$E$4),"") ->  | AC73: =AB73/SUMIF('Input - Monitor Limits'!$AB$19:$AB$318,"<1E100")*100 -> 
A74: 56 | Q74: =IF(ISNUMBER(L74),IF(I74="Fixed",J74,IF(F74="USD",J74+$C$14+IF($C$11="LIBOR",'GAS FILE'!$C$36,'GAS FILE'!$C$37),IF(F74="JPY",J74+$C$14+'GAS FILE'!$C$39,IF(F74="EUR",J74+$C$14+IF($C$11="LIBOR",'GAS FILE'!$C$38,'GAS FILE'!$C$42),IF(J74="GBP",J74+$C$14+IF($C$11="LIBOR",'GAS FILE'!$C$40,'GAS FILE'!$C$41),J74+$C$14+'GAS FILE'!$C$43))))),"") ->  | X74: =IF(ISNUMBER(W74),IF(W74>=$C$13,Lists!$E$2,Lists!$E$4),"") ->  | AC74: =AB74/SUMIF('Input - Monitor Limits'!$AB$19:$AB$318,"<1E100")*100 -> 
A75: 57 | Q75: =IF(ISNUMBER(L75),IF(I75="Fixed",J75,IF(F75="USD",J75+$C$14+IF($C$11="LIBOR",'GAS FILE'!$C$36,'GAS FILE'!$C$37),IF(F75="JPY",J75+$C$14+'GAS FILE'!$C$39,IF(F75="EUR",J75+$C$14+IF($C$11="LIBOR",'GAS FILE'!$C$38,'GAS FILE'!$C$42),IF(J75="GBP",J75+$C$14+IF($C$11="LIBOR",'GAS FILE'!$C$40,'GAS FILE'!$C$41),J75+$C$14+'GAS FILE'!$C$43))))),"") ->  | X75: =IF(ISNUMBER(W75),IF(W75>=$C$13,Lists!$E$2,Lists!$E$4),"") ->  | AC75: =AB75/SUMIF('Input - Monitor Limits'!$AB$19:$AB$318,"<1E100")*100 -> 
A76: 58 | Q76: =IF(ISNUMBER(L76),IF(I76="Fixed",J76,IF(F76="USD",J76+$C$14+IF($C$11="LIBOR",'GAS FILE'!$C$36,'GAS FILE'!$C$37),IF(F76="JPY",J76+$C$14+'GAS FILE'!$C$39,IF(F76="EUR",J76+$C$14+IF($C$11="LIBOR",'GAS FILE'!$C$38,'GAS FILE'!$C$42),IF(J76="GBP",J76+$C$14+IF($C$11="LIBOR",'GAS FILE'!$C$40,'GAS FILE'!$C$41),J76+$C$14+'GAS FILE'!$C$43))))),"") ->  | X76: =IF(ISNUMBER(W76),IF(W76>=$C$13,Lists!$E$2,Lists!$E$4),"") ->  | AC76: =AB76/SUMIF('Input - Monitor Limits'!$AB$19:$AB$318,"<1E100")*100 -> 
A77: 59 | Q77: =IF(ISNUMBER(L77),IF(I77="Fixed",J77,IF(F77="USD",J77+$C$14+IF($C$11="LIBOR",'GAS FILE'!$C$36,'GAS FILE'!$C$37),IF(F77="JPY",J77+$C$14+'GAS FILE'!$C$39,IF(F77="EUR",J77+$C$14+IF($C$11="LIBOR",'GAS FILE'!$C$38,'GAS FILE'!$C$42),IF(J77="GBP",J77+$C$14+IF($C$11="LIBOR",'GAS FILE'!$C$40,'GAS FILE'!$C$41),J77+$C$14+'GAS FILE'!$C$43))))),"") ->  | X77: =IF(ISNUMBER(W77),IF(W77>=$C$13,Lists!$E$2,Lists!$E$4),"") ->  | AC77: =AB77/SUMIF('Input - Monitor Limits'!$AB$19:$AB$318,"<1E100")*100 -> 
A78: 60 | Q78: =IF(ISNUMBER(L78),IF(I78="Fixed",J78,IF(F78="USD",J78+$C$14+IF($C$11="LIBOR",'GAS FILE'!$C$36,'GAS FILE'!$C$37),IF(F78="JPY",J78+$C$14+'GAS FILE'!$C$39,IF(F78="EUR",J78+$C$14+IF($C$11="LIBOR",'GAS FILE'!$C$38,'GAS FILE'!$C$42),IF(J78="GBP",J78+$C$14+IF($C$11="LIBOR",'GAS FILE'!$C$40,'GAS FILE'!$C$41),J78+$C$14+'GAS FILE'!$C$43))))),"") ->  | X78: =IF(ISNUMBER(W78),IF(W78>=$C$13,Lists!$E$2,Lists!$E$4),"") ->  | AC78: =AB78/SUMIF('Input - Monitor Limits'!$AB$19:$AB$318,"<1E100")*100 -> 
A79: 61 | Q79: =IF(ISNUMBER(L79),IF(I79="Fixed",J79,IF(F79="USD",J79+$C$14+IF($C$11="LIBOR",'GAS FILE'!$C$36,'GAS FILE'!$C$37),IF(F79="JPY",J79+$C$14+'GAS FILE'!$C$39,IF(F79="EUR",J79+$C$14+IF($C$11="LIBOR",'GAS FILE'!$C$38,'GAS FILE'!$C$42),IF(J79="GBP",J79+$C$14+IF($C$11="LIBOR",'GAS FILE'!$C$40,'GAS FILE'!$C$41),J79+$C$14+'GAS FILE'!$C$43))))),"") ->  | X79: =IF(ISNUMBER(W79),IF(W79>=$C$13,Lists!$E$2,Lists!$E$4),"") ->  | AC79: =AB79/SUMIF('Input - Monitor Limits'!$AB$19:$AB$318,"<1E100")*100 -> 
A80: 62 | Q80: =IF(ISNUMBER(L80),IF(I80="Fixed",J80,IF(F80="USD",J80+$C$14+IF($C$11="LIBOR",'GAS FILE'!$C$36,'GAS FILE'!$C$37),IF(F80="JPY",J80+$C$14+'GAS FILE'!$C$39,IF(F80="EUR",J80+$C$14+IF($C$11="LIBOR",'GAS FILE'!$C$38,'GAS FILE'!$C$42),IF(J80="GBP",J80+$C$14+IF($C$11="LIBOR",'GAS FILE'!$C$40,'GAS FILE'!$C$41),J80+$C$14+'GAS FILE'!$C$43))))),"") ->  | X80: =IF(ISNUMBER(W80),IF(W80>=$C$13,Lists!$E$2,Lists!$E$4),"") ->  | AC80: =AB80/SUMIF('Input - Monitor Limits'!$AB$19:$AB$318,"<1E100")*100 -> 
A81: 63 | Q81: =IF(ISNUMBER(L81),IF(I81="Fixed",J81,IF(F81="USD",J81+$C$14+IF($C$11="LIBOR",'GAS FILE'!$C$36,'GAS FILE'!$C$37),IF(F81="JPY",J81+$C$14+'GAS FILE'!$C$39,IF(F81="EUR",J81+$C$14+IF($C$11="LIBOR",'GAS FILE'!$C$38,'GAS FILE'!$C$42),IF(J81="GBP",J81+$C$14+IF($C$11="LIBOR",'GAS FILE'!$C$40,'GAS FILE'!$C$41),J81+$C$14+'GAS FILE'!$C$43))))),"") ->  | X81: =IF(ISNUMBER(W81),IF(W81>=$C$13,Lists!$E$2,Lists!$E$4),"") ->  | AC81: =AB81/SUMIF('Input - Monitor Limits'!$AB$19:$AB$318,"<1E100")*100 -> 
A82: 64 | Q82: =IF(ISNUMBER(L82),IF(I82="Fixed",J82,IF(F82="USD",J82+$C$14+IF($C$11="LIBOR",'GAS FILE'!$C$36,'GAS FILE'!$C$37),IF(F82="JPY",J82+$C$14+'GAS FILE'!$C$39,IF(F82="EUR",J82+$C$14+IF($C$11="LIBOR",'GAS FILE'!$C$38,'GAS FILE'!$C$42),IF(J82="GBP",J82+$C$14+IF($C$11="LIBOR",'GAS FILE'!$C$40,'GAS FILE'!$C$41),J82+$C$14+'GAS FILE'!$C$43))))),"") ->  | X82: =IF(ISNUMBER(W82),IF(W82>=$C$13,Lists!$E$2,Lists!$E$4),"") ->  | AC82: =AB82/SUMIF('Input - Monitor Limits'!$AB$19:$AB$318,"<1E100")*100 -> 
A83: 65 | Q83: =IF(ISNUMBER(L83),IF(I83="Fixed",J83,IF(F83="USD",J83+$C$14+IF($C$11="LIBOR",'GAS FILE'!$C$36,'GAS FILE'!$C$37),IF(F83="JPY",J83+$C$14+'GAS FILE'!$C$39,IF(F83="EUR",J83+$C$14+IF($C$11="LIBOR",'GAS FILE'!$C$38,'GAS FILE'!$C$42),IF(J83="GBP",J83+$C$14+IF($C$11="LIBOR",'GAS FILE'!$C$40,'GAS FILE'!$C$41),J83+$C$14+'GAS FILE'!$C$43))))),"") ->  | X83: =IF(ISNUMBER(W83),IF(W83>=$C$13,Lists!$E$2,Lists!$E$4),"") ->  | AC83: =AB83/SUMIF('Input - Monitor Limits'!$AB$19:$AB$318,"<1E100")*100 ->  | AD83: =AC83*W83 -> 
A84: 66 | Q84: =IF(ISNUMBER(L84),IF(I84="Fixed",J84,IF(F84="USD",J84+$C$14+IF($C$11="LIBOR",'GAS FILE'!$C$36,'GAS FILE'!$C$37),IF(F84="JPY",J84+$C$14+'GAS FILE'!$C$39,IF(F84="EUR",J84+$C$14+IF($C$11="LIBOR",'GAS FILE'!$C$38,'GAS FILE'!$C$42),IF(J84="GBP",J84+$C$14+IF($C$11="LIBOR",'GAS FILE'!$C$40,'GAS FILE'!$C$41),J84+$C$14+'GAS FILE'!$C$43))))),"") ->  | X84: =IF(ISNUMBER(W84),IF(W84>=$C$13,Lists!$E$2,Lists!$E$4),"") ->  | Z84: =IF(ISNUMBER(V84/H84),V84/H84,"") ->  | AA84: =IF(ISNUMBER(IF(W84<0,AB84,Z84)),IF(W84<0,AB84,Z84),"") ->  | AB84: =IF(ISNUMBER(L84/H84),L84/H84,"") ->  | AC84: =AB84/SUMIF('Input - Monitor Limits'!$AB$19:$AB$318,"<1E100")*100 ->  | AF84: =IF(YEAR(B84)=1900,"",YEAR(B84)) -> 
A85: 67 | Q85: =IF(ISNUMBER(L85),IF(I85="Fixed",J85,IF(F85="USD",J85+$C$14+IF($C$11="LIBOR",'GAS FILE'!$C$36,'GAS FILE'!$C$37),IF(F85="JPY",J85+$C$14+'GAS FILE'!$C$39,IF(F85="EUR",J85+$C$14+IF($C$11="LIBOR",'GAS FILE'!$C$38,'GAS FILE'!$C$42),IF(J85="GBP",J85+$C$14+IF($C$11="LIBOR",'GAS FILE'!$C$40,'GAS FILE'!$C$41),J85+$C$14+'GAS FILE'!$C$43))))),"") ->  | X85: =IF(ISNUMBER(W85),IF(W85>=$C$13,Lists!$E$2,Lists!$E$4),"") ->  | AC85: =AB85/SUMIF('Input - Monitor Limits'!$AB$19:$AB$318,"<1E100")*100 -> 
A86: 68 | Q86: =IF(ISNUMBER(L86),IF(I86="Fixed",J86,IF(F86="USD",J86+$C$14+IF($C$11="LIBOR",'GAS FILE'!$C$36,'GAS FILE'!$C$37),IF(F86="JPY",J86+$C$14+'GAS FILE'!$C$39,IF(F86="EUR",J86+$C$14+IF($C$11="LIBOR",'GAS FILE'!$C$38,'GAS FILE'!$C$42),IF(J86="GBP",J86+$C$14+IF($C$11="LIBOR",'GAS FILE'!$C$40,'GAS FILE'!$C$41),J86+$C$14+'GAS FILE'!$C$43))))),"") ->  | X86: =IF(ISNUMBER(W86),IF(W86>=$C$13,Lists!$E$2,Lists!$E$4),"") ->  | AC86: =AB86/SUMIF('Input - Monitor Limits'!$AB$19:$AB$318,"<1E100")*100 -> 
A87: 69 | Q87: =IF(ISNUMBER(L87),IF(I87="Fixed",J87,IF(F87="USD",J87+$C$14+IF($C$11="LIBOR",'GAS FILE'!$C$36,'GAS FILE'!$C$37),IF(F87="JPY",J87+$C$14+'GAS FILE'!$C$39,IF(F87="EUR",J87+$C$14+IF($C$11="LIBOR",'GAS FILE'!$C$38,'GAS FILE'!$C$42),IF(J87="GBP",J87+$C$14+IF($C$11="LIBOR",'GAS FILE'!$C$40,'GAS FILE'!$C$41),J87+$C$14+'GAS FILE'!$C$43))))),"") ->  | X87: =IF(ISNUMBER(W87),IF(W87>=$C$13,Lists!$E$2,Lists!$E$4),"") ->  | AC87: =AB87/SUMIF('Input - Monitor Limits'!$AB$19:$AB$318,"<1E100")*100 -> 
A88: 70 | Q88: =IF(ISNUMBER(L88),IF(I88="Fixed",J88,IF(F88="USD",J88+$C$14+IF($C$11="LIBOR",'GAS FILE'!$C$36,'GAS FILE'!$C$37),IF(F88="JPY",J88+$C$14+'GAS FILE'!$C$39,IF(F88="EUR",J88+$C$14+IF($C$11="LIBOR",'GAS FILE'!$C$38,'GAS FILE'!$C$42),IF(J88="GBP",J88+$C$14+IF($C$11="LIBOR",'GAS FILE'!$C$40,'GAS FILE'!$C$41),J88+$C$14+'GAS FILE'!$C$43))))),"") ->  | X88: =IF(ISNUMBER(W88),IF(W88>=$C$13,Lists!$E$2,Lists!$E$4),"") ->  | AC88: =AB88/SUMIF('Input - Monitor Limits'!$AB$19:$AB$318,"<1E100")*100 -> 
A89: 71 | Q89: =IF(ISNUMBER(L89),IF(I89="Fixed",J89,IF(F89="USD",J89+$C$14+IF($C$11="LIBOR",'GAS FILE'!$C$36,'GAS FILE'!$C$37),IF(F89="JPY",J89+$C$14+'GAS FILE'!$C$39,IF(F89="EUR",J89+$C$14+IF($C$11="LIBOR",'GAS FILE'!$C$38,'GAS FILE'!$C$42),IF(J89="GBP",J89+$C$14+IF($C$11="LIBOR",'GAS FILE'!$C$40,'GAS FILE'!$C$41),J89+$C$14+'GAS FILE'!$C$43))))),"") ->  | X89: =IF(ISNUMBER(W89),IF(W89>=$C$13,Lists!$E$2,Lists!$E$4),"") ->  | AC89: =AB89/SUMIF('Input - Monitor Limits'!$AB$19:$AB$318,"<1E100")*100 -> 
A90: 72 | Q90: =IF(ISNUMBER(L90),IF(I90="Fixed",J90,IF(F90="USD",J90+$C$14+IF($C$11="LIBOR",'GAS FILE'!$C$36,'GAS FILE'!$C$37),IF(F90="JPY",J90+$C$14+'GAS FILE'!$C$39,IF(F90="EUR",J90+$C$14+IF($C$11="LIBOR",'GAS FILE'!$C$38,'GAS FILE'!$C$42),IF(J90="GBP",J90+$C$14+IF($C$11="LIBOR",'GAS FILE'!$C$40,'GAS FILE'!$C$41),J90+$C$14+'GAS FILE'!$C$43))))),"") ->  | X90: =IF(ISNUMBER(W90),IF(W90>=$C$13,Lists!$E$2,Lists!$E$4),"") ->  | AC90: =AB90/SUMIF('Input - Monitor Limits'!$AB$19:$AB$318,"<1E100")*100 -> 
A91: 73 | Q91: =IF(ISNUMBER(L91),IF(I91="Fixed",J91,IF(F91="USD",J91+$C$14+IF($C$11="LIBOR",'GAS FILE'!$C$36,'GAS FILE'!$C$37),IF(F91="JPY",J91+$C$14+'GAS FILE'!$C$39,IF(F91="EUR",J91+$C$14+IF($C$11="LIBOR",'GAS FILE'!$C$38,'GAS FILE'!$C$42),IF(J91="GBP",J91+$C$14+IF($C$11="LIBOR",'GAS FILE'!$C$40,'GAS FILE'!$C$41),J91+$C$14+'GAS FILE'!$C$43))))),"") ->  | X91: =IF(ISNUMBER(W91),IF(W91>=$C$13,Lists!$E$2,Lists!$E$4),"") ->  | AC91: =AB91/SUMIF('Input - Monitor Limits'!$AB$19:$AB$318,"<1E100")*100 -> 
A92: 74 | Q92: =IF(ISNUMBER(L92),IF(I92="Fixed",J92,IF(F92="USD",J92+$C$14+IF($C$11="LIBOR",'GAS FILE'!$C$36,'GAS FILE'!$C$37),IF(F92="JPY",J92+$C$14+'GAS FILE'!$C$39,IF(F92="EUR",J92+$C$14+IF($C$11="LIBOR",'GAS FILE'!$C$38,'GAS FILE'!$C$42),IF(J92="GBP",J92+$C$14+IF($C$11="LIBOR",'GAS FILE'!$C$40,'GAS FILE'!$C$41),J92+$C$14+'GAS FILE'!$C$43))))),"") ->  | X92: =IF(ISNUMBER(W92),IF(W92>=$C$13,Lists!$E$2,Lists!$E$4),"") ->  | AC92: =AB92/SUMIF('Input - Monitor Limits'!$AB$19:$AB$318,"<1E100")*100 -> 
A93: 75 | Q93: =IF(ISNUMBER(L93),IF(I93="Fixed",J93,IF(F93="USD",J93+$C$14+IF($C$11="LIBOR",'GAS FILE'!$C$36,'GAS FILE'!$C$37),IF(F93="JPY",J93+$C$14+'GAS FILE'!$C$39,IF(F93="EUR",J93+$C$14+IF($C$11="LIBOR",'GAS FILE'!$C$38,'GAS FILE'!$C$42),IF(J93="GBP",J93+$C$14+IF($C$11="LIBOR",'GAS FILE'!$C$40,'GAS FILE'!$C$41),J93+$C$14+'GAS FILE'!$C$43))))),"") ->  | X93: =IF(ISNUMBER(W93),IF(W93>=$C$13,Lists!$E$2,Lists!$E$4),"") ->  | AC93: =AB93/SUMIF('Input - Monitor Limits'!$AB$19:$AB$318,"<1E100")*100 -> 
A94: 76 | Q94: =IF(ISNUMBER(L94),IF(I94="Fixed",J94,IF(F94="USD",J94+$C$14+IF($C$11="LIBOR",'GAS FILE'!$C$36,'GAS FILE'!$C$37),IF(F94="JPY",J94+$C$14+'GAS FILE'!$C$39,IF(F94="EUR",J94+$C$14+IF($C$11="LIBOR",'GAS FILE'!$C$38,'GAS FILE'!$C$42),IF(J94="GBP",J94+$C$14+IF($C$11="LIBOR",'GAS FILE'!$C$40,'GAS FILE'!$C$41),J94+$C$14+'GAS FILE'!$C$43))))),"") ->  | X94: =IF(ISNUMBER(W94),IF(W94>=$C$13,Lists!$E$2,Lists!$E$4),"") ->  | AC94: =AB94/SUMIF('Input - Monitor Limits'!$AB$19:$AB$318,"<1E100")*100 -> 
A95: 77 | Q95: =IF(ISNUMBER(L95),IF(I95="Fixed",J95,IF(F95="USD",J95+$C$14+IF($C$11="LIBOR",'GAS FILE'!$C$36,'GAS FILE'!$C$37),IF(F95="JPY",J95+$C$14+'GAS FILE'!$C$39,IF(F95="EUR",J95+$C$14+IF($C$11="LIBOR",'GAS FILE'!$C$38,'GAS FILE'!$C$42),IF(J95="GBP",J95+$C$14+IF($C$11="LIBOR",'GAS FILE'!$C$40,'GAS FILE'!$C$41),J95+$C$14+'GAS FILE'!$C$43))))),"") ->  | X95: =IF(ISNUMBER(W95),IF(W95>=$C$13,Lists!$E$2,Lists!$E$4),"") ->  | AC95: =AB95/SUMIF('Input - Monitor Limits'!$AB$19:$AB$318,"<1E100")*100 -> 
A96: 78 | Q96: =IF(ISNUMBER(L96),IF(I96="Fixed",J96,IF(F96="USD",J96+$C$14+IF($C$11="LIBOR",'GAS FILE'!$C$36,'GAS FILE'!$C$37),IF(F96="JPY",J96+$C$14+'GAS FILE'!$C$39,IF(F96="EUR",J96+$C$14+IF($C$11="LIBOR",'GAS FILE'!$C$38,'GAS FILE'!$C$42),IF(J96="GBP",J96+$C$14+IF($C$11="LIBOR",'GAS FILE'!$C$40,'GAS FILE'!$C$41),J96+$C$14+'GAS FILE'!$C$43))))),"") ->  | X96: =IF(ISNUMBER(W96),IF(W96>=$C$13,Lists!$E$2,Lists!$E$4),"") ->  | AC96: =AB96/SUMIF('Input - Monitor Limits'!$AB$19:$AB$318,"<1E100")*100 -> 
A97: 79 | Q97: =IF(ISNUMBER(L97),IF(I97="Fixed",J97,IF(F97="USD",J97+$C$14+IF($C$11="LIBOR",'GAS FILE'!$C$36,'GAS FILE'!$C$37),IF(F97="JPY",J97+$C$14+'GAS FILE'!$C$39,IF(F97="EUR",J97+$C$14+IF($C$11="LIBOR",'GAS FILE'!$C$38,'GAS FILE'!$C$42),IF(J97="GBP",J97+$C$14+IF($C$11="LIBOR",'GAS FILE'!$C$40,'GAS FILE'!$C$41),J97+$C$14+'GAS FILE'!$C$43))))),"") ->  | X97: =IF(ISNUMBER(W97),IF(W97>=$C$13,Lists!$E$2,Lists!$E$4),"") ->  | AC97: =AB97/SUMIF('Input - Monitor Limits'!$AB$19:$AB$318,"<1E100")*100 -> 
A98: 80 | Q98: =IF(ISNUMBER(L98),IF(I98="Fixed",J98,IF(F98="USD",J98+$C$14+IF($C$11="LIBOR",'GAS FILE'!$C$36,'GAS FILE'!$C$37),IF(F98="JPY",J98+$C$14+'GAS FILE'!$C$39,IF(F98="EUR",J98+$C$14+IF($C$11="LIBOR",'GAS FILE'!$C$38,'GAS FILE'!$C$42),IF(J98="GBP",J98+$C$14+IF($C$11="LIBOR",'GAS FILE'!$C$40,'GAS FILE'!$C$41),J98+$C$14+'GAS FILE'!$C$43))))),"") ->  | X98: =IF(ISNUMBER(W98),IF(W98>=$C$13,Lists!$E$2,Lists!$E$4),"") ->  | AC98: =AB98/SUMIF('Input - Monitor Limits'!$AB$19:$AB$318,"<1E100")*100 -> 
A99: 81 | Q99: =IF(ISNUMBER(L99),IF(I99="Fixed",J99,IF(F99="USD",J99+$C$14+IF($C$11="LIBOR",'GAS FILE'!$C$36,'GAS FILE'!$C$37),IF(F99="JPY",J99+$C$14+'GAS FILE'!$C$39,IF(F99="EUR",J99+$C$14+IF($C$11="LIBOR",'GAS FILE'!$C$38,'GAS FILE'!$C$42),IF(J99="GBP",J99+$C$14+IF($C$11="LIBOR",'GAS FILE'!$C$40,'GAS FILE'!$C$41),J99+$C$14+'GAS FILE'!$C$43))))),"") ->  | X99: =IF(ISNUMBER(W99),IF(W99>=$C$13,Lists!$E$2,Lists!$E$4),"") ->  | AC99: =AB99/SUMIF('Input - Monitor Limits'!$AB$19:$AB$318,"<1E100")*100 -> 
A100: 82 | Q100: =IF(ISNUMBER(L100),IF(I100="Fixed",J100,IF(F100="USD",J100+$C$14+IF($C$11="LIBOR",'GAS FILE'!$C$36,'GAS FILE'!$C$37),IF(F100="JPY",J100+$C$14+'GAS FILE'!$C$39,IF(F100="EUR",J100+$C$14+IF($C$11="LIBOR",'GAS FILE'!$C$38,'GAS FILE'!$C$42),IF(J100="GBP",J100+$C$14+IF($C$11="LIBOR",'GAS FILE'!$C$40,'GAS FILE'!$C$41),J100+$C$14+'GAS FILE'!$C$43))))),"") ->  | X100: =IF(ISNUMBER(W100),IF(W100>=$C$13,Lists!$E$2,Lists!$E$4),"") ->  | AC100: =AB100/SUMIF('Input - Monitor Limits'!$AB$19:$AB$318,"<1E100")*100 -> 
A101: 83 | Q101: =IF(ISNUMBER(L101),IF(I101="Fixed",J101,IF(F101="USD",J101+$C$14+IF($C$11="LIBOR",'GAS FILE'!$C$36,'GAS FILE'!$C$37),IF(F101="JPY",J101+$C$14+'GAS FILE'!$C$39,IF(F101="EUR",J101+$C$14+IF($C$11="LIBOR",'GAS FILE'!$C$38,'GAS FILE'!$C$42),IF(J101="GBP",J101+$C$14+IF($C$11="LIBOR",'GAS FILE'!$C$40,'GAS FILE'!$C$41),J101+$C$14+'GAS FILE'!$C$43))))),"") ->  | X101: =IF(ISNUMBER(W101),IF(W101>=$C$13,Lists!$E$2,Lists!$E$4),"") ->  | AC101: =AB101/SUMIF('Input - Monitor Limits'!$AB$19:$AB$318,"<1E100")*100 -> 
A102: 84 | Q102: =IF(ISNUMBER(L102),IF(I102="Fixed",J102,IF(F102="USD",J102+$C$14+IF($C$11="LIBOR",'GAS FILE'!$C$36,'GAS FILE'!$C$37),IF(F102="JPY",J102+$C$14+'GAS FILE'!$C$39,IF(F102="EUR",J102+$C$14+IF($C$11="LIBOR",'GAS FILE'!$C$38,'GAS FILE'!$C$42),IF(J102="GBP",J102+$C$14+IF($C$11="LIBOR",'GAS FILE'!$C$40,'GAS FILE'!$C$41),J102+$C$14+'GAS FILE'!$C$43))))),"") ->  | X102: =IF(ISNUMBER(W102),IF(W102>=$C$13,Lists!$E$2,Lists!$E$4),"") ->  | AC102: =AB102/SUMIF('Input - Monitor Limits'!$AB$19:$AB$318,"<1E100")*100 -> 
A103: 85 | Q103: =IF(ISNUMBER(L103),IF(I103="Fixed",J103,IF(F103="USD",J103+$C$14+IF($C$11="LIBOR",'GAS FILE'!$C$36,'GAS FILE'!$C$37),IF(F103="JPY",J103+$C$14+'GAS FILE'!$C$39,IF(F103="EUR",J103+$C$14+IF($C$11="LIBOR",'GAS FILE'!$C$38,'GAS FILE'!$C$42),IF(J103="GBP",J103+$C$14+IF($C$11="LIBOR",'GAS FILE'!$C$40,'GAS FILE'!$C$41),J103+$C$14+'GAS FILE'!$C$43))))),"") ->  | X103: =IF(ISNUMBER(W103),IF(W103>=$C$13,Lists!$E$2,Lists!$E$4),"") ->  | AC103: =AB103/SUMIF('Input - Monitor Limits'!$AB$19:$AB$318,"<1E100")*100 -> 
A104: 86 | Q104: =IF(ISNUMBER(L104),IF(I104="Fixed",J104,IF(F104="USD",J104+$C$14+IF($C$11="LIBOR",'GAS FILE'!$C$36,'GAS FILE'!$C$37),IF(F104="JPY",J104+$C$14+'GAS FILE'!$C$39,IF(F104="EUR",J104+$C$14+IF($C$11="LIBOR",'GAS FILE'!$C$38,'GAS FILE'!$C$42),IF(J104="GBP",J104+$C$14+IF($C$11="LIBOR",'GAS FILE'!$C$40,'GAS FILE'!$C$41),J104+$C$14+'GAS FILE'!$C$43))))),"") ->  | X104: =IF(ISNUMBER(W104),IF(W104>=$C$13,Lists!$E$2,Lists!$E$4),"") ->  | AC104: =AB104/SUMIF('Input - Monitor Limits'!$AB$19:$AB$318,"<1E100")*100 -> 
A105: 87 | Q105: =IF(ISNUMBER(L105),IF(I105="Fixed",J105,IF(F105="USD",J105+$C$14+IF($C$11="LIBOR",'GAS FILE'!$C$36,'GAS FILE'!$C$37),IF(F105="JPY",J105+$C$14+'GAS FILE'!$C$39,IF(F105="EUR",J105+$C$14+IF($C$11="LIBOR",'GAS FILE'!$C$38,'GAS FILE'!$C$42),IF(J105="GBP",J105+$C$14+IF($C$11="LIBOR",'GAS FILE'!$C$40,'GAS FILE'!$C$41),J105+$C$14+'GAS FILE'!$C$43))))),"") ->  | X105: =IF(ISNUMBER(W105),IF(W105>=$C$13,Lists!$E$2,Lists!$E$4),"") ->  | AC105: =AB105/SUMIF('Input - Monitor Limits'!$AB$19:$AB$318,"<1E100")*100 -> 
A106: 88 | Q106: =IF(ISNUMBER(L106),IF(I106="Fixed",J106,IF(F106="USD",J106+$C$14+IF($C$11="LIBOR",'GAS FILE'!$C$36,'GAS FILE'!$C$37),IF(F106="JPY",J106+$C$14+'GAS FILE'!$C$39,IF(F106="EUR",J106+$C$14+IF($C$11="LIBOR",'GAS FILE'!$C$38,'GAS FILE'!$C$42),IF(J106="GBP",J106+$C$14+IF($C$11="LIBOR",'GAS FILE'!$C$40,'GAS FILE'!$C$41),J106+$C$14+'GAS FILE'!$C$43))))),"") ->  | X106: =IF(ISNUMBER(W106),IF(W106>=$C$13,Lists!$E$2,Lists!$E$4),"") ->  | AC106: =AB106/SUMIF('Input - Monitor Limits'!$AB$19:$AB$318,"<1E100")*100 -> 
A107: 89 | Q107: =IF(ISNUMBER(L107),IF(I107="Fixed",J107,IF(F107="USD",J107+$C$14+IF($C$11="LIBOR",'GAS FILE'!$C$36,'GAS FILE'!$C$37),IF(F107="JPY",J107+$C$14+'GAS FILE'!$C$39,IF(F107="EUR",J107+$C$14+IF($C$11="LIBOR",'GAS FILE'!$C$38,'GAS FILE'!$C$42),IF(J107="GBP",J107+$C$14+IF($C$11="LIBOR",'GAS FILE'!$C$40,'GAS FILE'!$C$41),J107+$C$14+'GAS FILE'!$C$43))))),"") ->  | X107: =IF(ISNUMBER(W107),IF(W107>=$C$13,Lists!$E$2,Lists!$E$4),"") ->  | AC107: =AB107/SUMIF('Input - Monitor Limits'!$AB$19:$AB$318,"<1E100")*100 -> 
A108: 90 | Q108: =IF(ISNUMBER(L108),IF(I108="Fixed",J108,IF(F108="USD",J108+$C$14+IF($C$11="LIBOR",'GAS FILE'!$C$36,'GAS FILE'!$C$37),IF(F108="JPY",J108+$C$14+'GAS FILE'!$C$39,IF(F108="EUR",J108+$C$14+IF($C$11="LIBOR",'GAS FILE'!$C$38,'GAS FILE'!$C$42),IF(J108="GBP",J108+$C$14+IF($C$11="LIBOR",'GAS FILE'!$C$40,'GAS FILE'!$C$41),J108+$C$14+'GAS FILE'!$C$43))))),"") ->  | X108: =IF(ISNUMBER(W108),IF(W108>=$C$13,Lists!$E$2,Lists!$E$4),"") ->  | AC108: =AB108/SUMIF('Input - Monitor Limits'!$AB$19:$AB$318,"<1E100")*100 -> 
A109: 91 | Q109: =IF(ISNUMBER(L109),IF(I109="Fixed",J109,IF(F109="USD",J109+$C$14+IF($C$11="LIBOR",'GAS FILE'!$C$36,'GAS FILE'!$C$37),IF(F109="JPY",J109+$C$14+'GAS FILE'!$C$39,IF(F109="EUR",J109+$C$14+IF($C$11="LIBOR",'GAS FILE'!$C$38,'GAS FILE'!$C$42),IF(J109="GBP",J109+$C$14+IF($C$11="LIBOR",'GAS FILE'!$C$40,'GAS FILE'!$C$41),J109+$C$14+'GAS FILE'!$C$43))))),"") ->  | X109: =IF(ISNUMBER(W109),IF(W109>=$C$13,Lists!$E$2,Lists!$E$4),"") ->  | AC109: =AB109/SUMIF('Input - Monitor Limits'!$AB$19:$AB$318,"<1E100")*100 -> 
A110: 92 | Q110: =IF(ISNUMBER(L110),IF(I110="Fixed",J110,IF(F110="USD",J110+$C$14+IF($C$11="LIBOR",'GAS FILE'!$C$36,'GAS FILE'!$C$37),IF(F110="JPY",J110+$C$14+'GAS FILE'!$C$39,IF(F110="EUR",J110+$C$14+IF($C$11="LIBOR",'GAS FILE'!$C$38,'GAS FILE'!$C$42),IF(J110="GBP",J110+$C$14+IF($C$11="LIBOR",'GAS FILE'!$C$40,'GAS FILE'!$C$41),J110+$C$14+'GAS FILE'!$C$43))))),"") ->  | X110: =IF(ISNUMBER(W110),IF(W110>=$C$13,Lists!$E$2,Lists!$E$4),"") ->  | AC110: =AB110/SUMIF('Input - Monitor Limits'!$AB$19:$AB$318,"<1E100")*100 -> 
A111: 93 | Q111: =IF(ISNUMBER(L111),IF(I111="Fixed",J111,IF(F111="USD",J111+$C$14+IF($C$11="LIBOR",'GAS FILE'!$C$36,'GAS FILE'!$C$37),IF(F111="JPY",J111+$C$14+'GAS FILE'!$C$39,IF(F111="EUR",J111+$C$14+IF($C$11="LIBOR",'GAS FILE'!$C$38,'GAS FILE'!$C$42),IF(J111="GBP",J111+$C$14+IF($C$11="LIBOR",'GAS FILE'!$C$40,'GAS FILE'!$C$41),J111+$C$14+'GAS FILE'!$C$43))))),"") ->  | X111: =IF(ISNUMBER(W111),IF(W111>=$C$13,Lists!$E$2,Lists!$E$4),"") ->  | AC111: =AB111/SUMIF('Input - Monitor Limits'!$AB$19:$AB$318,"<1E100")*100 -> 
A112: 94 | Q112: =IF(ISNUMBER(L112),IF(I112="Fixed",J112,IF(F112="USD",J112+$C$14+IF($C$11="LIBOR",'GAS FILE'!$C$36,'GAS FILE'!$C$37),IF(F112="JPY",J112+$C$14+'GAS FILE'!$C$39,IF(F112="EUR",J112+$C$14+IF($C$11="LIBOR",'GAS FILE'!$C$38,'GAS FILE'!$C$42),IF(J112="GBP",J112+$C$14+IF($C$11="LIBOR",'GAS FILE'!$C$40,'GAS FILE'!$C$41),J112+$C$14+'GAS FILE'!$C$43))))),"") ->  | X112: =IF(ISNUMBER(W112),IF(W112>=$C$13,Lists!$E$2,Lists!$E$4),"") ->  | AC112: =AB112/SUMIF('Input - Monitor Limits'!$AB$19:$AB$318,"<1E100")*100 -> 
A113: 95 | Q113: =IF(ISNUMBER(L113),IF(I113="Fixed",J113,IF(F113="USD",J113+$C$14+IF($C$11="LIBOR",'GAS FILE'!$C$36,'GAS FILE'!$C$37),IF(F113="JPY",J113+$C$14+'GAS FILE'!$C$39,IF(F113="EUR",J113+$C$14+IF($C$11="LIBOR",'GAS FILE'!$C$38,'GAS FILE'!$C$42),IF(J113="GBP",J113+$C$14+IF($C$11="LIBOR",'GAS FILE'!$C$40,'GAS FILE'!$C$41),J113+$C$14+'GAS FILE'!$C$43))))),"") ->  | X113: =IF(ISNUMBER(W113),IF(W113>=$C$13,Lists!$E$2,Lists!$E$4),"") ->  | AC113: =AB113/SUMIF('Input - Monitor Limits'!$AB$19:$AB$318,"<1E100")*100 -> 
A114: 96 | Q114: =IF(ISNUMBER(L114),IF(I114="Fixed",J114,IF(F114="USD",J114+$C$14+IF($C$11="LIBOR",'GAS FILE'!$C$36,'GAS FILE'!$C$37),IF(F114="JPY",J114+$C$14+'GAS FILE'!$C$39,IF(F114="EUR",J114+$C$14+IF($C$11="LIBOR",'GAS FILE'!$C$38,'GAS FILE'!$C$42),IF(J114="GBP",J114+$C$14+IF($C$11="LIBOR",'GAS FILE'!$C$40,'GAS FILE'!$C$41),J114+$C$14+'GAS FILE'!$C$43))))),"") ->  | X114: =IF(ISNUMBER(W114),IF(W114>=$C$13,Lists!$E$2,Lists!$E$4),"") ->  | AC114: =AB114/SUMIF('Input - Monitor Limits'!$AB$19:$AB$318,"<1E100")*100 -> 
A115: 97 | Q115: =IF(ISNUMBER(L115),IF(I115="Fixed",J115,IF(F115="USD",J115+$C$14+IF($C$11="LIBOR",'GAS FILE'!$C$36,'GAS FILE'!$C$37),IF(F115="JPY",J115+$C$14+'GAS FILE'!$C$39,IF(F115="EUR",J115+$C$14+IF($C$11="LIBOR",'GAS FILE'!$C$38,'GAS FILE'!$C$42),IF(J115="GBP",J115+$C$14+IF($C$11="LIBOR",'GAS FILE'!$C$40,'GAS FILE'!$C$41),J115+$C$14+'GAS FILE'!$C$43))))),"") ->  | X115: =IF(ISNUMBER(W115),IF(W115>=$C$13,Lists!$E$2,Lists!$E$4),"") ->  | AC115: =AB115/SUMIF('Input - Monitor Limits'!$AB$19:$AB$318,"<1E100")*100 -> 
A116: 98 | Q116: =IF(ISNUMBER(L116),IF(I116="Fixed",J116,IF(F116="USD",J116+$C$14+IF($C$11="LIBOR",'GAS FILE'!$C$36,'GAS FILE'!$C$37),IF(F116="JPY",J116+$C$14+'GAS FILE'!$C$39,IF(F116="EUR",J116+$C$14+IF($C$11="LIBOR",'GAS FILE'!$C$38,'GAS FILE'!$C$42),IF(J116="GBP",J116+$C$14+IF($C$11="LIBOR",'GAS FILE'!$C$40,'GAS FILE'!$C$41),J116+$C$14+'GAS FILE'!$C$43))))),"") ->  | X116: =IF(ISNUMBER(W116),IF(W116>=$C$13,Lists!$E$2,Lists!$E$4),"") ->  | AC116: =AB116/SUMIF('Input - Monitor Limits'!$AB$19:$AB$318,"<1E100")*100 -> 
A117: 99 | Q117: =IF(ISNUMBER(L117),IF(I117="Fixed",J117,IF(F117="USD",J117+$C$14+IF($C$11="LIBOR",'GAS FILE'!$C$36,'GAS FILE'!$C$37),IF(F117="JPY",J117+$C$14+'GAS FILE'!$C$39,IF(F117="EUR",J117+$C$14+IF($C$11="LIBOR",'GAS FILE'!$C$38,'GAS FILE'!$C$42),IF(J117="GBP",J117+$C$14+IF($C$11="LIBOR",'GAS FILE'!$C$40,'GAS FILE'!$C$41),J117+$C$14+'GAS FILE'!$C$43))))),"") ->  | X117: =IF(ISNUMBER(W117),IF(W117>=$C$13,Lists!$E$2,Lists!$E$4),"") ->  | AC117: =AB117/SUMIF('Input - Monitor Limits'!$AB$19:$AB$318,"<1E100")*100 -> 
A118: 100 | Q118: =IF(ISNUMBER(L118),IF(I118="Fixed",J118,IF(F118="USD",J118+$C$14+IF($C$11="LIBOR",'GAS FILE'!$C$36,'GAS FILE'!$C$37),IF(F118="JPY",J118+$C$14+'GAS FILE'!$C$39,IF(F118="EUR",J118+$C$14+IF($C$11="LIBOR",'GAS FILE'!$C$38,'GAS FILE'!$C$42),IF(J118="GBP",J118+$C$14+IF($C$11="LIBOR",'GAS FILE'!$C$40,'GAS FILE'!$C$41),J118+$C$14+'GAS FILE'!$C$43))))),"") ->  | X118: =IF(ISNUMBER(W118),IF(W118>=$C$13,Lists!$E$2,Lists!$E$4),"") ->  | AC118: =AB118/SUMIF('Input - Monitor Limits'!$AB$19:$AB$318,"<1E100")*100 -> 
A119: 101 | Q119: =IF(ISNUMBER(L119),IF(I119="Fixed",J119,IF(F119="USD",J119+$C$14+IF($C$11="LIBOR",'GAS FILE'!$C$36,'GAS FILE'!$C$37),IF(F119="JPY",J119+$C$14+'GAS FILE'!$C$39,IF(F119="EUR",J119+$C$14+IF($C$11="LIBOR",'GAS FILE'!$C$38,'GAS FILE'!$C$42),IF(J119="GBP",J119+$C$14+IF($C$11="LIBOR",'GAS FILE'!$C$40,'GAS FILE'!$C$41),J119+$C$14+'GAS FILE'!$C$43))))),"") ->  | X119: =IF(ISNUMBER(W119),IF(W119>=$C$13,Lists!$E$2,Lists!$E$4),"") ->  | AC119: =AB119/SUMIF('Input - Monitor Limits'!$AB$19:$AB$318,"<1E100")*100 -> 
A120: 102 | Q120: =IF(ISNUMBER(L120),IF(I120="Fixed",J120,IF(F120="USD",J120+$C$14+IF($C$11="LIBOR",'GAS FILE'!$C$36,'GAS FILE'!$C$37),IF(F120="JPY",J120+$C$14+'GAS FILE'!$C$39,IF(F120="EUR",J120+$C$14+IF($C$11="LIBOR",'GAS FILE'!$C$38,'GAS FILE'!$C$42),IF(J120="GBP",J120+$C$14+IF($C$11="LIBOR",'GAS FILE'!$C$40,'GAS FILE'!$C$41),J120+$C$14+'GAS FILE'!$C$43))))),"") ->  | X120: =IF(ISNUMBER(W120),IF(W120>=$C$13,Lists!$E$2,Lists!$E$4),"") ->  | AC120: =AB120/SUMIF('Input - Monitor Limits'!$AB$19:$AB$318,"<1E100")*100 -> 
A121: 103 | Q121: =IF(ISNUMBER(L121),IF(I121="Fixed",J121,IF(F121="USD",J121+$C$14+IF($C$11="LIBOR",'GAS FILE'!$C$36,'GAS FILE'!$C$37),IF(F121="JPY",J121+$C$14+'GAS FILE'!$C$39,IF(F121="EUR",J121+$C$14+IF($C$11="LIBOR",'GAS FILE'!$C$38,'GAS FILE'!$C$42),IF(J121="GBP",J121+$C$14+IF($C$11="LIBOR",'GAS FILE'!$C$40,'GAS FILE'!$C$41),J121+$C$14+'GAS FILE'!$C$43))))),"") ->  | X121: =IF(ISNUMBER(W121),IF(W121>=$C$13,Lists!$E$2,Lists!$E$4),"") ->  | AC121: =AB121/SUMIF('Input - Monitor Limits'!$AB$19:$AB$318,"<1E100")*100 -> 
A122: 104 | Q122: =IF(ISNUMBER(L122),IF(I122="Fixed",J122,IF(F122="USD",J122+$C$14+IF($C$11="LIBOR",'GAS FILE'!$C$36,'GAS FILE'!$C$37),IF(F122="JPY",J122+$C$14+'GAS FILE'!$C$39,IF(F122="EUR",J122+$C$14+IF($C$11="LIBOR",'GAS FILE'!$C$38,'GAS FILE'!$C$42),IF(J122="GBP",J122+$C$14+IF($C$11="LIBOR",'GAS FILE'!$C$40,'GAS FILE'!$C$41),J122+$C$14+'GAS FILE'!$C$43))))),"") ->  | X122: =IF(ISNUMBER(W122),IF(W122>=$C$13,Lists!$E$2,Lists!$E$4),"") ->  | AC122: =AB122/SUMIF('Input - Monitor Limits'!$AB$19:$AB$318,"<1E100")*100 -> 
A123: 105 | Q123: =IF(ISNUMBER(L123),IF(I123="Fixed",J123,IF(F123="USD",J123+$C$14+IF($C$11="LIBOR",'GAS FILE'!$C$36,'GAS FILE'!$C$37),IF(F123="JPY",J123+$C$14+'GAS FILE'!$C$39,IF(F123="EUR",J123+$C$14+IF($C$11="LIBOR",'GAS FILE'!$C$38,'GAS FILE'!$C$42),IF(J123="GBP",J123+$C$14+IF($C$11="LIBOR",'GAS FILE'!$C$40,'GAS FILE'!$C$41),J123+$C$14+'GAS FILE'!$C$43))))),"") ->  | X123: =IF(ISNUMBER(W123),IF(W123>=$C$13,Lists!$E$2,Lists!$E$4),"") ->  | AC123: =AB123/SUMIF('Input - Monitor Limits'!$AB$19:$AB$318,"<1E100")*100 -> 
A124: 106 | Q124: =IF(ISNUMBER(L124),IF(I124="Fixed",J124,IF(F124="USD",J124+$C$14+IF($C$11="LIBOR",'GAS FILE'!$C$36,'GAS FILE'!$C$37),IF(F124="JPY",J124+$C$14+'GAS FILE'!$C$39,IF(F124="EUR",J124+$C$14+IF($C$11="LIBOR",'GAS FILE'!$C$38,'GAS FILE'!$C$42),IF(J124="GBP",J124+$C$14+IF($C$11="LIBOR",'GAS FILE'!$C$40,'GAS FILE'!$C$41),J124+$C$14+'GAS FILE'!$C$43))))),"") ->  | X124: =IF(ISNUMBER(W124),IF(W124>=$C$13,Lists!$E$2,Lists!$E$4),"") ->  | AC124: =AB124/SUMIF('Input - Monitor Limits'!$AB$19:$AB$318,"<1E100")*100 -> 
A125: 107 | Q125: =IF(ISNUMBER(L125),IF(I125="Fixed",J125,IF(F125="USD",J125+$C$14+IF($C$11="LIBOR",'GAS FILE'!$C$36,'GAS FILE'!$C$37),IF(F125="JPY",J125+$C$14+'GAS FILE'!$C$39,IF(F125="EUR",J125+$C$14+IF($C$11="LIBOR",'GAS FILE'!$C$38,'GAS FILE'!$C$42),IF(J125="GBP",J125+$C$14+IF($C$11="LIBOR",'GAS FILE'!$C$40,'GAS FILE'!$C$41),J125+$C$14+'GAS FILE'!$C$43))))),"") ->  | X125: =IF(ISNUMBER(W125),IF(W125>=$C$13,Lists!$E$2,Lists!$E$4),"") ->  | AC125: =AB125/SUMIF('Input - Monitor Limits'!$AB$19:$AB$318,"<1E100")*100 -> 
A126: 108 | Q126: =IF(ISNUMBER(L126),IF(I126="Fixed",J126,IF(F126="USD",J126+$C$14+IF($C$11="LIBOR",'GAS FILE'!$C$36,'GAS FILE'!$C$37),IF(F126="JPY",J126+$C$14+'GAS FILE'!$C$39,IF(F126="EUR",J126+$C$14+IF($C$11="LIBOR",'GAS FILE'!$C$38,'GAS FILE'!$C$42),IF(J126="GBP",J126+$C$14+IF($C$11="LIBOR",'GAS FILE'!$C$40,'GAS FILE'!$C$41),J126+$C$14+'GAS FILE'!$C$43))))),"") ->  | X126: =IF(ISNUMBER(W126),IF(W126>=$C$13,Lists!$E$2,Lists!$E$4),"") ->  | AC126: =AB126/SUMIF('Input - Monitor Limits'!$AB$19:$AB$318,"<1E100")*100 -> 
A127: 109 | Q127: =IF(ISNUMBER(L127),IF(I127="Fixed",J127,IF(F127="USD",J127+$C$14+IF($C$11="LIBOR",'GAS FILE'!$C$36,'GAS FILE'!$C$37),IF(F127="JPY",J127+$C$14+'GAS FILE'!$C$39,IF(F127="EUR",J127+$C$14+IF($C$11="LIBOR",'GAS FILE'!$C$38,'GAS FILE'!$C$42),IF(J127="GBP",J127+$C$14+IF($C$11="LIBOR",'GAS FILE'!$C$40,'GAS FILE'!$C$41),J127+$C$14+'GAS FILE'!$C$43))))),"") ->  | X127: =IF(ISNUMBER(W127),IF(W127>=$C$13,Lists!$E$2,Lists!$E$4),"") ->  | AC127: =AB127/SUMIF('Input - Monitor Limits'!$AB$19:$AB$318,"<1E100")*100 -> 
A128: 110 | Q128: =IF(ISNUMBER(L128),IF(I128="Fixed",J128,IF(F128="USD",J128+$C$14+IF($C$11="LIBOR",'GAS FILE'!$C$36,'GAS FILE'!$C$37),IF(F128="JPY",J128+$C$14+'GAS FILE'!$C$39,IF(F128="EUR",J128+$C$14+IF($C$11="LIBOR",'GAS FILE'!$C$38,'GAS FILE'!$C$42),IF(J128="GBP",J128+$C$14+IF($C$11="LIBOR",'GAS FILE'!$C$40,'GAS FILE'!$C$41),J128+$C$14+'GAS FILE'!$C$43))))),"") ->  | X128: =IF(ISNUMBER(W128),IF(W128>=$C$13,Lists!$E$2,Lists!$E$4),"") ->  | AC128: =AB128/SUMIF('Input - Monitor Limits'!$AB$19:$AB$318,"<1E100")*100 -> 
A129: 111 | Q129: =IF(ISNUMBER(L129),IF(I129="Fixed",J129,IF(F129="USD",J129+$C$14+IF($C$11="LIBOR",'GAS FILE'!$C$36,'GAS FILE'!$C$37),IF(F129="JPY",J129+$C$14+'GAS FILE'!$C$39,IF(F129="EUR",J129+$C$14+IF($C$11="LIBOR",'GAS FILE'!$C$38,'GAS FILE'!$C$42),IF(J129="GBP",J129+$C$14+IF($C$11="LIBOR",'GAS FILE'!$C$40,'GAS FILE'!$C$41),J129+$C$14+'GAS FILE'!$C$43))))),"") ->  | X129: =IF(ISNUMBER(W129),IF(W129>=$C$13,Lists!$E$2,Lists!$E$4),"") ->  | AC129: =AB129/SUMIF('Input - Monitor Limits'!$AB$19:$AB$318,"<1E100")*100 -> 
A130: 112 | Q130: =IF(ISNUMBER(L130),IF(I130="Fixed",J130,IF(F130="USD",J130+$C$14+IF($C$11="LIBOR",'GAS FILE'!$C$36,'GAS FILE'!$C$37),IF(F130="JPY",J130+$C$14+'GAS FILE'!$C$39,IF(F130="EUR",J130+$C$14+IF($C$11="LIBOR",'GAS FILE'!$C$38,'GAS FILE'!$C$42),IF(J130="GBP",J130+$C$14+IF($C$11="LIBOR",'GAS FILE'!$C$40,'GAS FILE'!$C$41),J130+$C$14+'GAS FILE'!$C$43))))),"") ->  | X130: =IF(ISNUMBER(W130),IF(W130>=$C$13,Lists!$E$2,Lists!$E$4),"") ->  | AC130: =AB130/SUMIF('Input - Monitor Limits'!$AB$19:$AB$318,"<1E100")*100 -> 
A131: 113 | Q131: =IF(ISNUMBER(L131),IF(I131="Fixed",J131,IF(F131="USD",J131+$C$14+IF($C$11="LIBOR",'GAS FILE'!$C$36,'GAS FILE'!$C$37),IF(F131="JPY",J131+$C$14+'GAS FILE'!$C$39,IF(F131="EUR",J131+$C$14+IF($C$11="LIBOR",'GAS FILE'!$C$38,'GAS FILE'!$C$42),IF(J131="GBP",J131+$C$14+IF($C$11="LIBOR",'GAS FILE'!$C$40,'GAS FILE'!$C$41),J131+$C$14+'GAS FILE'!$C$43))))),"") ->  | X131: =IF(ISNUMBER(W131),IF(W131>=$C$13,Lists!$E$2,Lists!$E$4),"") ->  | AC131: =AB131/SUMIF('Input - Monitor Limits'!$AB$19:$AB$318,"<1E100")*100 -> 
A132: 114 | Q132: =IF(ISNUMBER(L132),IF(I132="Fixed",J132,IF(F132="USD",J132+$C$14+IF($C$11="LIBOR",'GAS FILE'!$C$36,'GAS FILE'!$C$37),IF(F132="JPY",J132+$C$14+'GAS FILE'!$C$39,IF(F132="EUR",J132+$C$14+IF($C$11="LIBOR",'GAS FILE'!$C$38,'GAS FILE'!$C$42),IF(J132="GBP",J132+$C$14+IF($C$11="LIBOR",'GAS FILE'!$C$40,'GAS FILE'!$C$41),J132+$C$14+'GAS FILE'!$C$43))))),"") ->  | X132: =IF(ISNUMBER(W132),IF(W132>=$C$13,Lists!$E$2,Lists!$E$4),"") ->  | AC132: =AB132/SUMIF('Input - Monitor Limits'!$AB$19:$AB$318,"<1E100")*100 -> 
A133: 115 | Q133: =IF(ISNUMBER(L133),IF(I133="Fixed",J133,IF(F133="USD",J133+$C$14+IF($C$11="LIBOR",'GAS FILE'!$C$36,'GAS FILE'!$C$37),IF(F133="JPY",J133+$C$14+'GAS FILE'!$C$39,IF(F133="EUR",J133+$C$14+IF($C$11="LIBOR",'GAS FILE'!$C$38,'GAS FILE'!$C$42),IF(J133="GBP",J133+$C$14+IF($C$11="LIBOR",'GAS FILE'!$C$40,'GAS FILE'!$C$41),J133+$C$14+'GAS FILE'!$C$43))))),"") ->  | X133: =IF(ISNUMBER(W133),IF(W133>=$C$13,Lists!$E$2,Lists!$E$4),"") ->  | AC133: =AB133/SUMIF('Input - Monitor Limits'!$AB$19:$AB$318,"<1E100")*100 -> 
A134: 116 | Q134: =IF(ISNUMBER(L134),IF(I134="Fixed",J134,IF(F134="USD",J134+$C$14+IF($C$11="LIBOR",'GAS FILE'!$C$36,'GAS FILE'!$C$37),IF(F134="JPY",J134+$C$14+'GAS FILE'!$C$39,IF(F134="EUR",J134+$C$14+IF($C$11="LIBOR",'GAS FILE'!$C$38,'GAS FILE'!$C$42),IF(J134="GBP",J134+$C$14+IF($C$11="LIBOR",'GAS FILE'!$C$40,'GAS FILE'!$C$41),J134+$C$14+'GAS FILE'!$C$43))))),"") ->  | X134: =IF(ISNUMBER(W134),IF(W134>=$C$13,Lists!$E$2,Lists!$E$4),"") ->  | AC134: =AB134/SUMIF('Input - Monitor Limits'!$AB$19:$AB$318,"<1E100")*100 -> 
A135: 117 | Q135: =IF(ISNUMBER(L135),IF(I135="Fixed",J135,IF(F135="USD",J135+$C$14+IF($C$11="LIBOR",'GAS FILE'!$C$36,'GAS FILE'!$C$37),IF(F135="JPY",J135+$C$14+'GAS FILE'!$C$39,IF(F135="EUR",J135+$C$14+IF($C$11="LIBOR",'GAS FILE'!$C$38,'GAS FILE'!$C$42),IF(J135="GBP",J135+$C$14+IF($C$11="LIBOR",'GAS FILE'!$C$40,'GAS FILE'!$C$41),J135+$C$14+'GAS FILE'!$C$43))))),"") ->  | X135: =IF(ISNUMBER(W135),IF(W135>=$C$13,Lists!$E$2,Lists!$E$4),"") ->  | AC135: =AB135/SUMIF('Input - Monitor Limits'!$AB$19:$AB$318,"<1E100")*100 -> 
A136: 118 | Q136: =IF(ISNUMBER(L136),IF(I136="Fixed",J136,IF(F136="USD",J136+$C$14+IF($C$11="LIBOR",'GAS FILE'!$C$36,'GAS FILE'!$C$37),IF(F136="JPY",J136+$C$14+'GAS FILE'!$C$39,IF(F136="EUR",J136+$C$14+IF($C$11="LIBOR",'GAS FILE'!$C$38,'GAS FILE'!$C$42),IF(J136="GBP",J136+$C$14+IF($C$11="LIBOR",'GAS FILE'!$C$40,'GAS FILE'!$C$41),J136+$C$14+'GAS FILE'!$C$43))))),"") ->  | X136: =IF(ISNUMBER(W136),IF(W136>=$C$13,Lists!$E$2,Lists!$E$4),"") ->  | AC136: =AB136/SUMIF('Input - Monitor Limits'!$AB$19:$AB$318,"<1E100")*100 -> 
A137: 119 | Q137: =IF(ISNUMBER(L137),IF(I137="Fixed",J137,IF(F137="USD",J137+$C$14+IF($C$11="LIBOR",'GAS FILE'!$C$36,'GAS FILE'!$C$37),IF(F137="JPY",J137+$C$14+'GAS FILE'!$C$39,IF(F137="EUR",J137+$C$14+IF($C$11="LIBOR",'GAS FILE'!$C$38,'GAS FILE'!$C$42),IF(J137="GBP",J137+$C$14+IF($C$11="LIBOR",'GAS FILE'!$C$40,'GAS FILE'!$C$41),J137+$C$14+'GAS FILE'!$C$43))))),"") ->  | X137: =IF(ISNUMBER(W137),IF(W137>=$C$13,Lists!$E$2,Lists!$E$4),"") ->  | AC137: =AB137/SUMIF('Input - Monitor Limits'!$AB$19:$AB$318,"<1E100")*100 -> 
A138: 120 | Q138: =IF(ISNUMBER(L138),IF(I138="Fixed",J138,IF(F138="USD",J138+$C$14+IF($C$11="LIBOR",'GAS FILE'!$C$36,'GAS FILE'!$C$37),IF(F138="JPY",J138+$C$14+'GAS FILE'!$C$39,IF(F138="EUR",J138+$C$14+IF($C$11="LIBOR",'GAS FILE'!$C$38,'GAS FILE'!$C$42),IF(J138="GBP",J138+$C$14+IF($C$11="LIBOR",'GAS FILE'!$C$40,'GAS FILE'!$C$41),J138+$C$14+'GAS FILE'!$C$43))))),"") ->  | X138: =IF(ISNUMBER(W138),IF(W138>=$C$13,Lists!$E$2,Lists!$E$4),"") ->  | AC138: =AB138/SUMIF('Input - Monitor Limits'!$AB$19:$AB$318,"<1E100")*100 -> 
A139: 121 | Q139: =IF(ISNUMBER(L139),IF(I139="Fixed",J139,IF(F139="USD",J139+$C$14+IF($C$11="LIBOR",'GAS FILE'!$C$36,'GAS FILE'!$C$37),IF(F139="JPY",J139+$C$14+'GAS FILE'!$C$39,IF(F139="EUR",J139+$C$14+IF($C$11="LIBOR",'GAS FILE'!$C$38,'GAS FILE'!$C$42),IF(J139="GBP",J139+$C$14+IF($C$11="LIBOR",'GAS FILE'!$C$40,'GAS FILE'!$C$41),J139+$C$14+'GAS FILE'!$C$43))))),"") ->  | X139: =IF(ISNUMBER(W139),IF(W139>=$C$13,Lists!$E$2,Lists!$E$4),"") ->  | AC139: =AB139/SUMIF('Input - Monitor Limits'!$AB$19:$AB$318,"<1E100")*100 -> 
A140: 122 | Q140: =IF(ISNUMBER(L140),IF(I140="Fixed",J140,IF(F140="USD",J140+$C$14+IF($C$11="LIBOR",'GAS FILE'!$C$36,'GAS FILE'!$C$37),IF(F140="JPY",J140+$C$14+'GAS FILE'!$C$39,IF(F140="EUR",J140+$C$14+IF($C$11="LIBOR",'GAS FILE'!$C$38,'GAS FILE'!$C$42),IF(J140="GBP",J140+$C$14+IF($C$11="LIBOR",'GAS FILE'!$C$40,'GAS FILE'!$C$41),J140+$C$14+'GAS FILE'!$C$43))))),"") ->  | X140: =IF(ISNUMBER(W140),IF(W140>=$C$13,Lists!$E$2,Lists!$E$4),"") ->  | AC140: =AB140/SUMIF('Input - Monitor Limits'!$AB$19:$AB$318,"<1E100")*100 -> 
A141: 123 | Q141: =IF(ISNUMBER(L141),IF(I141="Fixed",J141,IF(F141="USD",J141+$C$14+IF($C$11="LIBOR",'GAS FILE'!$C$36,'GAS FILE'!$C$37),IF(F141="JPY",J141+$C$14+'GAS FILE'!$C$39,IF(F141="EUR",J141+$C$14+IF($C$11="LIBOR",'GAS FILE'!$C$38,'GAS FILE'!$C$42),IF(J141="GBP",J141+$C$14+IF($C$11="LIBOR",'GAS FILE'!$C$40,'GAS FILE'!$C$41),J141+$C$14+'GAS FILE'!$C$43))))),"") ->  | X141: =IF(ISNUMBER(W141),IF(W141>=$C$13,Lists!$E$2,Lists!$E$4),"") ->  | AC141: =AB141/SUMIF('Input - Monitor Limits'!$AB$19:$AB$318,"<1E100")*100 -> 
A142: 124 | Q142: =IF(ISNUMBER(L142),IF(I142="Fixed",J142,IF(F142="USD",J142+$C$14+IF($C$11="LIBOR",'GAS FILE'!$C$36,'GAS FILE'!$C$37),IF(F142="JPY",J142+$C$14+'GAS FILE'!$C$39,IF(F142="EUR",J142+$C$14+IF($C$11="LIBOR",'GAS FILE'!$C$38,'GAS FILE'!$C$42),IF(J142="GBP",J142+$C$14+IF($C$11="LIBOR",'GAS FILE'!$C$40,'GAS FILE'!$C$41),J142+$C$14+'GAS FILE'!$C$43))))),"") ->  | X142: =IF(ISNUMBER(W142),IF(W142>=$C$13,Lists!$E$2,Lists!$E$4),"") ->  | AC142: =AB142/SUMIF('Input - Monitor Limits'!$AB$19:$AB$318,"<1E100")*100 -> 
A143: 125 | Q143: =IF(ISNUMBER(L143),IF(I143="Fixed",J143,IF(F143="USD",J143+$C$14+IF($C$11="LIBOR",'GAS FILE'!$C$36,'GAS FILE'!$C$37),IF(F143="JPY",J143+$C$14+'GAS FILE'!$C$39,IF(F143="EUR",J143+$C$14+IF($C$11="LIBOR",'GAS FILE'!$C$38,'GAS FILE'!$C$42),IF(J143="GBP",J143+$C$14+IF($C$11="LIBOR",'GAS FILE'!$C$40,'GAS FILE'!$C$41),J143+$C$14+'GAS FILE'!$C$43))))),"") ->  | X143: =IF(ISNUMBER(W143),IF(W143>=$C$13,Lists!$E$2,Lists!$E$4),"") ->  | AC143: =AB143/SUMIF('Input - Monitor Limits'!$AB$19:$AB$318,"<1E100")*100 -> 
A144: 126 | Q144: =IF(ISNUMBER(L144),IF(I144="Fixed",J144,IF(F144="USD",J144+$C$14+IF($C$11="LIBOR",'GAS FILE'!$C$36,'GAS FILE'!$C$37),IF(F144="JPY",J144+$C$14+'GAS FILE'!$C$39,IF(F144="EUR",J144+$C$14+IF($C$11="LIBOR",'GAS FILE'!$C$38,'GAS FILE'!$C$42),IF(J144="GBP",J144+$C$14+IF($C$11="LIBOR",'GAS FILE'!$C$40,'GAS FILE'!$C$41),J144+$C$14+'GAS FILE'!$C$43))))),"") ->  | X144: =IF(ISNUMBER(W144),IF(W144>=$C$13,Lists!$E$2,Lists!$E$4),"") ->  | AC144: =AB144/SUMIF('Input - Monitor Limits'!$AB$19:$AB$318,"<1E100")*100 -> 
A145: 127 | Q145: =IF(ISNUMBER(L145),IF(I145="Fixed",J145,IF(F145="USD",J145+$C$14+IF($C$11="LIBOR",'GAS FILE'!$C$36,'GAS FILE'!$C$37),IF(F145="JPY",J145+$C$14+'GAS FILE'!$C$39,IF(F145="EUR",J145+$C$14+IF($C$11="LIBOR",'GAS FILE'!$C$38,'GAS FILE'!$C$42),IF(J145="GBP",J145+$C$14+IF($C$11="LIBOR",'GAS FILE'!$C$40,'GAS FILE'!$C$41),J145+$C$14+'GAS FILE'!$C$43))))),"") ->  | X145: =IF(ISNUMBER(W145),IF(W145>=$C$13,Lists!$E$2,Lists!$E$4),"") ->  | AC145: =AB145/SUMIF('Input - Monitor Limits'!$AB$19:$AB$318,"<1E100")*100 -> 
A146: 128 | Q146: =IF(ISNUMBER(L146),IF(I146="Fixed",J146,IF(F146="USD",J146+$C$14+IF($C$11="LIBOR",'GAS FILE'!$C$36,'GAS FILE'!$C$37),IF(F146="JPY",J146+$C$14+'GAS FILE'!$C$39,IF(F146="EUR",J146+$C$14+IF($C$11="LIBOR",'GAS FILE'!$C$38,'GAS FILE'!$C$42),IF(J146="GBP",J146+$C$14+IF($C$11="LIBOR",'GAS FILE'!$C$40,'GAS FILE'!$C$41),J146+$C$14+'GAS FILE'!$C$43))))),"") ->  | X146: =IF(ISNUMBER(W146),IF(W146>=$C$13,Lists!$E$2,Lists!$E$4),"") ->  | AC146: =AB146/SUMIF('Input - Monitor Limits'!$AB$19:$AB$318,"<1E100")*100 -> 
A147: 129 | Q147: =IF(ISNUMBER(L147),IF(I147="Fixed",J147,IF(F147="USD",J147+$C$14+IF($C$11="LIBOR",'GAS FILE'!$C$36,'GAS FILE'!$C$37),IF(F147="JPY",J147+$C$14+'GAS FILE'!$C$39,IF(F147="EUR",J147+$C$14+IF($C$11="LIBOR",'GAS FILE'!$C$38,'GAS FILE'!$C$42),IF(J147="GBP",J147+$C$14+IF($C$11="LIBOR",'GAS FILE'!$C$40,'GAS FILE'!$C$41),J147+$C$14+'GAS FILE'!$C$43))))),"") ->  | X147: =IF(ISNUMBER(W147),IF(W147>=$C$13,Lists!$E$2,Lists!$E$4),"") ->  | AC147: =AB147/SUMIF('Input - Monitor Limits'!$AB$19:$AB$318,"<1E100")*100 ->  | AD147: =AC147*W147 -> 
A148: 130 | Q148: =IF(ISNUMBER(L148),IF(I148="Fixed",J148,IF(F148="USD",J148+$C$14+IF($C$11="LIBOR",'GAS FILE'!$C$36,'GAS FILE'!$C$37),IF(F148="JPY",J148+$C$14+'GAS FILE'!$C$39,IF(F148="EUR",J148+$C$14+IF($C$11="LIBOR",'GAS FILE'!$C$38,'GAS FILE'!$C$42),IF(J148="GBP",J148+$C$14+IF($C$11="LIBOR",'GAS FILE'!$C$40,'GAS FILE'!$C$41),J148+$C$14+'GAS FILE'!$C$43))))),"") ->  | X148: =IF(ISNUMBER(W148),IF(W148>=$C$13,Lists!$E$2,Lists!$E$4),"") ->  | Z148: =IF(ISNUMBER(V148/H148),V148/H148,"") ->  | AA148: =IF(ISNUMBER(IF(W148<0,AB148,Z148)),IF(W148<0,AB148,Z148),"") ->  | AB148: =IF(ISNUMBER(L148/H148),L148/H148,"") ->  | AC148: =AB148/SUMIF('Input - Monitor Limits'!$AB$19:$AB$318,"<1E100")*100 ->  | AF148: =IF(YEAR(B148)=1900,"",YEAR(B148)) -> 
A149: 131 | Q149: =IF(ISNUMBER(L149),IF(I149="Fixed",J149,IF(F149="USD",J149+$C$14+IF($C$11="LIBOR",'GAS FILE'!$C$36,'GAS FILE'!$C$37),IF(F149="JPY",J149+$C$14+'GAS FILE'!$C$39,IF(F149="EUR",J149+$C$14+IF($C$11="LIBOR",'GAS FILE'!$C$38,'GAS FILE'!$C$42),IF(J149="GBP",J149+$C$14+IF($C$11="LIBOR",'GAS FILE'!$C$40,'GAS FILE'!$C$41),J149+$C$14+'GAS FILE'!$C$43))))),"") ->  | X149: =IF(ISNUMBER(W149),IF(W149>=$C$13,Lists!$E$2,Lists!$E$4),"") ->  | AC149: =AB149/SUMIF('Input - Monitor Limits'!$AB$19:$AB$318,"<1E100")*100 -> 
A150: 132 | Q150: =IF(ISNUMBER(L150),IF(I150="Fixed",J150,IF(F150="USD",J150+$C$14+IF($C$11="LIBOR",'GAS FILE'!$C$36,'GAS FILE'!$C$37),IF(F150="JPY",J150+$C$14+'GAS FILE'!$C$39,IF(F150="EUR",J150+$C$14+IF($C$11="LIBOR",'GAS FILE'!$C$38,'GAS FILE'!$C$42),IF(J150="GBP",J150+$C$14+IF($C$11="LIBOR",'GAS FILE'!$C$40,'GAS FILE'!$C$41),J150+$C$14+'GAS FILE'!$C$43))))),"") ->  | X150: =IF(ISNUMBER(W150),IF(W150>=$C$13,Lists!$E$2,Lists!$E$4),"") ->  | AC150: =AB150/SUMIF('Input - Monitor Limits'!$AB$19:$AB$318,"<1E100")*100 -> 
A151: 133 | Q151: =IF(ISNUMBER(L151),IF(I151="Fixed",J151,IF(F151="USD",J151+$C$14+IF($C$11="LIBOR",'GAS FILE'!$C$36,'GAS FILE'!$C$37),IF(F151="JPY",J151+$C$14+'GAS FILE'!$C$39,IF(F151="EUR",J151+$C$14+IF($C$11="LIBOR",'GAS FILE'!$C$38,'GAS FILE'!$C$42),IF(J151="GBP",J151+$C$14+IF($C$11="LIBOR",'GAS FILE'!$C$40,'GAS FILE'!$C$41),J151+$C$14+'GAS FILE'!$C$43))))),"") ->  | X151: =IF(ISNUMBER(W151),IF(W151>=$C$13,Lists!$E$2,Lists!$E$4),"") ->  | AC151: =AB151/SUMIF('Input - Monitor Limits'!$AB$19:$AB$318,"<1E100")*100 -> 
A152: 134 | Q152: =IF(ISNUMBER(L152),IF(I152="Fixed",J152,IF(F152="USD",J152+$C$14+IF($C$11="LIBOR",'GAS FILE'!$C$36,'GAS FILE'!$C$37),IF(F152="JPY",J152+$C$14+'GAS FILE'!$C$39,IF(F152="EUR",J152+$C$14+IF($C$11="LIBOR",'GAS FILE'!$C$38,'GAS FILE'!$C$42),IF(J152="GBP",J152+$C$14+IF($C$11="LIBOR",'GAS FILE'!$C$40,'GAS FILE'!$C$41),J152+$C$14+'GAS FILE'!$C$43))))),"") ->  | X152: =IF(ISNUMBER(W152),IF(W152>=$C$13,Lists!$E$2,Lists!$E$4),"") ->  | AC152: =AB152/SUMIF('Input - Monitor Limits'!$AB$19:$AB$318,"<1E100")*100 -> 
A153: 135 | Q153: =IF(ISNUMBER(L153),IF(I153="Fixed",J153,IF(F153="USD",J153+$C$14+IF($C$11="LIBOR",'GAS FILE'!$C$36,'GAS FILE'!$C$37),IF(F153="JPY",J153+$C$14+'GAS FILE'!$C$39,IF(F153="EUR",J153+$C$14+IF($C$11="LIBOR",'GAS FILE'!$C$38,'GAS FILE'!$C$42),IF(J153="GBP",J153+$C$14+IF($C$11="LIBOR",'GAS FILE'!$C$40,'GAS FILE'!$C$41),J153+$C$14+'GAS FILE'!$C$43))))),"") ->  | X153: =IF(ISNUMBER(W153),IF(W153>=$C$13,Lists!$E$2,Lists!$E$4),"") ->  | AC153: =AB153/SUMIF('Input - Monitor Limits'!$AB$19:$AB$318,"<1E100")*100 -> 
A154: 136 | Q154: =IF(ISNUMBER(L154),IF(I154="Fixed",J154,IF(F154="USD",J154+$C$14+IF($C$11="LIBOR",'GAS FILE'!$C$36,'GAS FILE'!$C$37),IF(F154="JPY",J154+$C$14+'GAS FILE'!$C$39,IF(F154="EUR",J154+$C$14+IF($C$11="LIBOR",'GAS FILE'!$C$38,'GAS FILE'!$C$42),IF(J154="GBP",J154+$C$14+IF($C$11="LIBOR",'GAS FILE'!$C$40,'GAS FILE'!$C$41),J154+$C$14+'GAS FILE'!$C$43))))),"") ->  | X154: =IF(ISNUMBER(W154),IF(W154>=$C$13,Lists!$E$2,Lists!$E$4),"") ->  | AC154: =AB154/SUMIF('Input - Monitor Limits'!$AB$19:$AB$318,"<1E100")*100 -> 
A155: 137 | Q155: =IF(ISNUMBER(L155),IF(I155="Fixed",J155,IF(F155="USD",J155+$C$14+IF($C$11="LIBOR",'GAS FILE'!$C$36,'GAS FILE'!$C$37),IF(F155="JPY",J155+$C$14+'GAS FILE'!$C$39,IF(F155="EUR",J155+$C$14+IF($C$11="LIBOR",'GAS FILE'!$C$38,'GAS FILE'!$C$42),IF(J155="GBP",J155+$C$14+IF($C$11="LIBOR",'GAS FILE'!$C$40,'GAS FILE'!$C$41),J155+$C$14+'GAS FILE'!$C$43))))),"") ->  | X155: =IF(ISNUMBER(W155),IF(W155>=$C$13,Lists!$E$2,Lists!$E$4),"") ->  | AC155: =AB155/SUMIF('Input - Monitor Limits'!$AB$19:$AB$318,"<1E100")*100 -> 
A156: 138 | Q156: =IF(ISNUMBER(L156),IF(I156="Fixed",J156,IF(F156="USD",J156+$C$14+IF($C$11="LIBOR",'GAS FILE'!$C$36,'GAS FILE'!$C$37),IF(F156="JPY",J156+$C$14+'GAS FILE'!$C$39,IF(F156="EUR",J156+$C$14+IF($C$11="LIBOR",'GAS FILE'!$C$38,'GAS FILE'!$C$42),IF(J156="GBP",J156+$C$14+IF($C$11="LIBOR",'GAS FILE'!$C$40,'GAS FILE'!$C$41),J156+$C$14+'GAS FILE'!$C$43))))),"") ->  | X156: =IF(ISNUMBER(W156),IF(W156>=$C$13,Lists!$E$2,Lists!$E$4),"") ->  | AC156: =AB156/SUMIF('Input - Monitor Limits'!$AB$19:$AB$318,"<1E100")*100 -> 
A157: 139 | Q157: =IF(ISNUMBER(L157),IF(I157="Fixed",J157,IF(F157="USD",J157+$C$14+IF($C$11="LIBOR",'GAS FILE'!$C$36,'GAS FILE'!$C$37),IF(F157="JPY",J157+$C$14+'GAS FILE'!$C$39,IF(F157="EUR",J157+$C$14+IF($C$11="LIBOR",'GAS FILE'!$C$38,'GAS FILE'!$C$42),IF(J157="GBP",J157+$C$14+IF($C$11="LIBOR",'GAS FILE'!$C$40,'GAS FILE'!$C$41),J157+$C$14+'GAS FILE'!$C$43))))),"") ->  | X157: =IF(ISNUMBER(W157),IF(W157>=$C$13,Lists!$E$2,Lists!$E$4),"") ->  | AC157: =AB157/SUMIF('Input - Monitor Limits'!$AB$19:$AB$318,"<1E100")*100 -> 
A158: 140 | Q158: =IF(ISNUMBER(L158),IF(I158="Fixed",J158,IF(F158="USD",J158+$C$14+IF($C$11="LIBOR",'GAS FILE'!$C$36,'GAS FILE'!$C$37),IF(F158="JPY",J158+$C$14+'GAS FILE'!$C$39,IF(F158="EUR",J158+$C$14+IF($C$11="LIBOR",'GAS FILE'!$C$38,'GAS FILE'!$C$42),IF(J158="GBP",J158+$C$14+IF($C$11="LIBOR",'GAS FILE'!$C$40,'GAS FILE'!$C$41),J158+$C$14+'GAS FILE'!$C$43))))),"") ->  | X158: =IF(ISNUMBER(W158),IF(W158>=$C$13,Lists!$E$2,Lists!$E$4),"") ->  | AC158: =AB158/SUMIF('Input - Monitor Limits'!$AB$19:$AB$318,"<1E100")*100 -> 
A159: 141 | Q159: =IF(ISNUMBER(L159),IF(I159="Fixed",J159,IF(F159="USD",J159+$C$14+IF($C$11="LIBOR",'GAS FILE'!$C$36,'GAS FILE'!$C$37),IF(F159="JPY",J159+$C$14+'GAS FILE'!$C$39,IF(F159="EUR",J159+$C$14+IF($C$11="LIBOR",'GAS FILE'!$C$38,'GAS FILE'!$C$42),IF(J159="GBP",J159+$C$14+IF($C$11="LIBOR",'GAS FILE'!$C$40,'GAS FILE'!$C$41),J159+$C$14+'GAS FILE'!$C$43))))),"") ->  | X159: =IF(ISNUMBER(W159),IF(W159>=$C$13,Lists!$E$2,Lists!$E$4),"") ->  | AC159: =AB159/SUMIF('Input - Monitor Limits'!$AB$19:$AB$318,"<1E100")*100 -> 
A160: 142 | Q160: =IF(ISNUMBER(L160),IF(I160="Fixed",J160,IF(F160="USD",J160+$C$14+IF($C$11="LIBOR",'GAS FILE'!$C$36,'GAS FILE'!$C$37),IF(F160="JPY",J160+$C$14+'GAS FILE'!$C$39,IF(F160="EUR",J160+$C$14+IF($C$11="LIBOR",'GAS FILE'!$C$38,'GAS FILE'!$C$42),IF(J160="GBP",J160+$C$14+IF($C$11="LIBOR",'GAS FILE'!$C$40,'GAS FILE'!$C$41),J160+$C$14+'GAS FILE'!$C$43))))),"") ->  | X160: =IF(ISNUMBER(W160),IF(W160>=$C$13,Lists!$E$2,Lists!$E$4),"") ->  | AC160: =AB160/SUMIF('Input - Monitor Limits'!$AB$19:$AB$318,"<1E100")*100 -> 
A161: 143 | Q161: =IF(ISNUMBER(L161),IF(I161="Fixed",J161,IF(F161="USD",J161+$C$14+IF($C$11="LIBOR",'GAS FILE'!$C$36,'GAS FILE'!$C$37),IF(F161="JPY",J161+$C$14+'GAS FILE'!$C$39,IF(F161="EUR",J161+$C$14+IF($C$11="LIBOR",'GAS FILE'!$C$38,'GAS FILE'!$C$42),IF(J161="GBP",J161+$C$14+IF($C$11="LIBOR",'GAS FILE'!$C$40,'GAS FILE'!$C$41),J161+$C$14+'GAS FILE'!$C$43))))),"") ->  | X161: =IF(ISNUMBER(W161),IF(W161>=$C$13,Lists!$E$2,Lists!$E$4),"") ->  | AC161: =AB161/SUMIF('Input - Monitor Limits'!$AB$19:$AB$318,"<1E100")*100 -> 
A162: 144 | Q162: =IF(ISNUMBER(L162),IF(I162="Fixed",J162,IF(F162="USD",J162+$C$14+IF($C$11="LIBOR",'GAS FILE'!$C$36,'GAS FILE'!$C$37),IF(F162="JPY",J162+$C$14+'GAS FILE'!$C$39,IF(F162="EUR",J162+$C$14+IF($C$11="LIBOR",'GAS FILE'!$C$38,'GAS FILE'!$C$42),IF(J162="GBP",J162+$C$14+IF($C$11="LIBOR",'GAS FILE'!$C$40,'GAS FILE'!$C$41),J162+$C$14+'GAS FILE'!$C$43))))),"") ->  | X162: =IF(ISNUMBER(W162),IF(W162>=$C$13,Lists!$E$2,Lists!$E$4),"") ->  | AC162: =AB162/SUMIF('Input - Monitor Limits'!$AB$19:$AB$318,"<1E100")*100 -> 
A163: 145 | Q163: =IF(ISNUMBER(L163),IF(I163="Fixed",J163,IF(F163="USD",J163+$C$14+IF($C$11="LIBOR",'GAS FILE'!$C$36,'GAS FILE'!$C$37),IF(F163="JPY",J163+$C$14+'GAS FILE'!$C$39,IF(F163="EUR",J163+$C$14+IF($C$11="LIBOR",'GAS FILE'!$C$38,'GAS FILE'!$C$42),IF(J163="GBP",J163+$C$14+IF($C$11="LIBOR",'GAS FILE'!$C$40,'GAS FILE'!$C$41),J163+$C$14+'GAS FILE'!$C$43))))),"") ->  | X163: =IF(ISNUMBER(W163),IF(W163>=$C$13,Lists!$E$2,Lists!$E$4),"") ->  | AC163: =AB163/SUMIF('Input - Monitor Limits'!$AB$19:$AB$318,"<1E100")*100 -> 
A164: 146 | Q164: =IF(ISNUMBER(L164),IF(I164="Fixed",J164,IF(F164="USD",J164+$C$14+IF($C$11="LIBOR",'GAS FILE'!$C$36,'GAS FILE'!$C$37),IF(F164="JPY",J164+$C$14+'GAS FILE'!$C$39,IF(F164="EUR",J164+$C$14+IF($C$11="LIBOR",'GAS FILE'!$C$38,'GAS FILE'!$C$42),IF(J164="GBP",J164+$C$14+IF($C$11="LIBOR",'GAS FILE'!$C$40,'GAS FILE'!$C$41),J164+$C$14+'GAS FILE'!$C$43))))),"") ->  | X164: =IF(ISNUMBER(W164),IF(W164>=$C$13,Lists!$E$2,Lists!$E$4),"") ->  | AC164: =AB164/SUMIF('Input - Monitor Limits'!$AB$19:$AB$318,"<1E100")*100 -> 
A165: 147 | Q165: =IF(ISNUMBER(L165),IF(I165="Fixed",J165,IF(F165="USD",J165+$C$14+IF($C$11="LIBOR",'GAS FILE'!$C$36,'GAS FILE'!$C$37),IF(F165="JPY",J165+$C$14+'GAS FILE'!$C$39,IF(F165="EUR",J165+$C$14+IF($C$11="LIBOR",'GAS FILE'!$C$38,'GAS FILE'!$C$42),IF(J165="GBP",J165+$C$14+IF($C$11="LIBOR",'GAS FILE'!$C$40,'GAS FILE'!$C$41),J165+$C$14+'GAS FILE'!$C$43))))),"") ->  | X165: =IF(ISNUMBER(W165),IF(W165>=$C$13,Lists!$E$2,Lists!$E$4),"") ->  | AC165: =AB165/SUMIF('Input - Monitor Limits'!$AB$19:$AB$318,"<1E100")*100 -> 
A166: 148 | Q166: =IF(ISNUMBER(L166),IF(I166="Fixed",J166,IF(F166="USD",J166+$C$14+IF($C$11="LIBOR",'GAS FILE'!$C$36,'GAS FILE'!$C$37),IF(F166="JPY",J166+$C$14+'GAS FILE'!$C$39,IF(F166="EUR",J166+$C$14+IF($C$11="LIBOR",'GAS FILE'!$C$38,'GAS FILE'!$C$42),IF(J166="GBP",J166+$C$14+IF($C$11="LIBOR",'GAS FILE'!$C$40,'GAS FILE'!$C$41),J166+$C$14+'GAS FILE'!$C$43))))),"") ->  | X166: =IF(ISNUMBER(W166),IF(W166>=$C$13,Lists!$E$2,Lists!$E$4),"") ->  | AC166: =AB166/SUMIF('Input - Monitor Limits'!$AB$19:$AB$318,"<1E100")*100 -> 
A167: 149 | Q167: =IF(ISNUMBER(L167),IF(I167="Fixed",J167,IF(F167="USD",J167+$C$14+IF($C$11="LIBOR",'GAS FILE'!$C$36,'GAS FILE'!$C$37),IF(F167="JPY",J167+$C$14+'GAS FILE'!$C$39,IF(F167="EUR",J167+$C$14+IF($C$11="LIBOR",'GAS FILE'!$C$38,'GAS FILE'!$C$42),IF(J167="GBP",J167+$C$14+IF($C$11="LIBOR",'GAS FILE'!$C$40,'GAS FILE'!$C$41),J167+$C$14+'GAS FILE'!$C$43))))),"") ->  | X167: =IF(ISNUMBER(W167),IF(W167>=$C$13,Lists!$E$2,Lists!$E$4),"") ->  | AC167: =AB167/SUMIF('Input - Monitor Limits'!$AB$19:$AB$318,"<1E100")*100 -> 
A168: 150 | Q168: =IF(ISNUMBER(L168),IF(I168="Fixed",J168,IF(F168="USD",J168+$C$14+IF($C$11="LIBOR",'GAS FILE'!$C$36,'GAS FILE'!$C$37),IF(F168="JPY",J168+$C$14+'GAS FILE'!$C$39,IF(F168="EUR",J168+$C$14+IF($C$11="LIBOR",'GAS FILE'!$C$38,'GAS FILE'!$C$42),IF(J168="GBP",J168+$C$14+IF($C$11="LIBOR",'GAS FILE'!$C$40,'GAS FILE'!$C$41),J168+$C$14+'GAS FILE'!$C$43))))),"") ->  | X168: =IF(ISNUMBER(W168),IF(W168>=$C$13,Lists!$E$2,Lists!$E$4),"") ->  | AC168: =AB168/SUMIF('Input - Monitor Limits'!$AB$19:$AB$318,"<1E100")*100 -> 
A169: 151 | Q169: =IF(ISNUMBER(L169),IF(I169="Fixed",J169,IF(F169="USD",J169+$C$14+IF($C$11="LIBOR",'GAS FILE'!$C$36,'GAS FILE'!$C$37),IF(F169="JPY",J169+$C$14+'GAS FILE'!$C$39,IF(F169="EUR",J169+$C$14+IF($C$11="LIBOR",'GAS FILE'!$C$38,'GAS FILE'!$C$42),IF(J169="GBP",J169+$C$14+IF($C$11="LIBOR",'GAS FILE'!$C$40,'GAS FILE'!$C$41),J169+$C$14+'GAS FILE'!$C$43))))),"") ->  | X169: =IF(ISNUMBER(W169),IF(W169>=$C$13,Lists!$E$2,Lists!$E$4),"") ->  | AC169: =AB169/SUMIF('Input - Monitor Limits'!$AB$19:$AB$318,"<1E100")*100 -> 
A170: 152 | Q170: =IF(ISNUMBER(L170),IF(I170="Fixed",J170,IF(F170="USD",J170+$C$14+IF($C$11="LIBOR",'GAS FILE'!$C$36,'GAS FILE'!$C$37),IF(F170="JPY",J170+$C$14+'GAS FILE'!$C$39,IF(F170="EUR",J170+$C$14+IF($C$11="LIBOR",'GAS FILE'!$C$38,'GAS FILE'!$C$42),IF(J170="GBP",J170+$C$14+IF($C$11="LIBOR",'GAS FILE'!$C$40,'GAS FILE'!$C$41),J170+$C$14+'GAS FILE'!$C$43))))),"") ->  | X170: =IF(ISNUMBER(W170),IF(W170>=$C$13,Lists!$E$2,Lists!$E$4),"") ->  | AC170: =AB170/SUMIF('Input - Monitor Limits'!$AB$19:$AB$318,"<1E100")*100 -> 
A171: 153 | Q171: =IF(ISNUMBER(L171),IF(I171="Fixed",J171,IF(F171="USD",J171+$C$14+IF($C$11="LIBOR",'GAS FILE'!$C$36,'GAS FILE'!$C$37),IF(F171="JPY",J171+$C$14+'GAS FILE'!$C$39,IF(F171="EUR",J171+$C$14+IF($C$11="LIBOR",'GAS FILE'!$C$38,'GAS FILE'!$C$42),IF(J171="GBP",J171+$C$14+IF($C$11="LIBOR",'GAS FILE'!$C$40,'GAS FILE'!$C$41),J171+$C$14+'GAS FILE'!$C$43))))),"") ->  | X171: =IF(ISNUMBER(W171),IF(W171>=$C$13,Lists!$E$2,Lists!$E$4),"") ->  | AC171: =AB171/SUMIF('Input - Monitor Limits'!$AB$19:$AB$318,"<1E100")*100 -> 
A172: 154 | Q172: =IF(ISNUMBER(L172),IF(I172="Fixed",J172,IF(F172="USD",J172+$C$14+IF($C$11="LIBOR",'GAS FILE'!$C$36,'GAS FILE'!$C$37),IF(F172="JPY",J172+$C$14+'GAS FILE'!$C$39,IF(F172="EUR",J172+$C$14+IF($C$11="LIBOR",'GAS FILE'!$C$38,'GAS FILE'!$C$42),IF(J172="GBP",J172+$C$14+IF($C$11="LIBOR",'GAS FILE'!$C$40,'GAS FILE'!$C$41),J172+$C$14+'GAS FILE'!$C$43))))),"") ->  | X172: =IF(ISNUMBER(W172),IF(W172>=$C$13,Lists!$E$2,Lists!$E$4),"") ->  | AC172: =AB172/SUMIF('Input - Monitor Limits'!$AB$19:$AB$318,"<1E100")*100 -> 
A173: 155 | Q173: =IF(ISNUMBER(L173),IF(I173="Fixed",J173,IF(F173="USD",J173+$C$14+IF($C$11="LIBOR",'GAS FILE'!$C$36,'GAS FILE'!$C$37),IF(F173="JPY",J173+$C$14+'GAS FILE'!$C$39,IF(F173="EUR",J173+$C$14+IF($C$11="LIBOR",'GAS FILE'!$C$38,'GAS FILE'!$C$42),IF(J173="GBP",J173+$C$14+IF($C$11="LIBOR",'GAS FILE'!$C$40,'GAS FILE'!$C$41),J173+$C$14+'GAS FILE'!$C$43))))),"") ->  | X173: =IF(ISNUMBER(W173),IF(W173>=$C$13,Lists!$E$2,Lists!$E$4),"") ->  | AC173: =AB173/SUMIF('Input - Monitor Limits'!$AB$19:$AB$318,"<1E100")*100 -> 
A174: 156 | Q174: =IF(ISNUMBER(L174),IF(I174="Fixed",J174,IF(F174="USD",J174+$C$14+IF($C$11="LIBOR",'GAS FILE'!$C$36,'GAS FILE'!$C$37),IF(F174="JPY",J174+$C$14+'GAS FILE'!$C$39,IF(F174="EUR",J174+$C$14+IF($C$11="LIBOR",'GAS FILE'!$C$38,'GAS FILE'!$C$42),IF(J174="GBP",J174+$C$14+IF($C$11="LIBOR",'GAS FILE'!$C$40,'GAS FILE'!$C$41),J174+$C$14+'GAS FILE'!$C$43))))),"") ->  | X174: =IF(ISNUMBER(W174),IF(W174>=$C$13,Lists!$E$2,Lists!$E$4),"") ->  | AC174: =AB174/SUMIF('Input - Monitor Limits'!$AB$19:$AB$318,"<1E100")*100 -> 
A175: 157 | Q175: =IF(ISNUMBER(L175),IF(I175="Fixed",J175,IF(F175="USD",J175+$C$14+IF($C$11="LIBOR",'GAS FILE'!$C$36,'GAS FILE'!$C$37),IF(F175="JPY",J175+$C$14+'GAS FILE'!$C$39,IF(F175="EUR",J175+$C$14+IF($C$11="LIBOR",'GAS FILE'!$C$38,'GAS FILE'!$C$42),IF(J175="GBP",J175+$C$14+IF($C$11="LIBOR",'GAS FILE'!$C$40,'GAS FILE'!$C$41),J175+$C$14+'GAS FILE'!$C$43))))),"") ->  | X175: =IF(ISNUMBER(W175),IF(W175>=$C$13,Lists!$E$2,Lists!$E$4),"") ->  | AC175: =AB175/SUMIF('Input - Monitor Limits'!$AB$19:$AB$318,"<1E100")*100 -> 
A176: 158 | Q176: =IF(ISNUMBER(L176),IF(I176="Fixed",J176,IF(F176="USD",J176+$C$14+IF($C$11="LIBOR",'GAS FILE'!$C$36,'GAS FILE'!$C$37),IF(F176="JPY",J176+$C$14+'GAS FILE'!$C$39,IF(F176="EUR",J176+$C$14+IF($C$11="LIBOR",'GAS FILE'!$C$38,'GAS FILE'!$C$42),IF(J176="GBP",J176+$C$14+IF($C$11="LIBOR",'GAS FILE'!$C$40,'GAS FILE'!$C$41),J176+$C$14+'GAS FILE'!$C$43))))),"") ->  | X176: =IF(ISNUMBER(W176),IF(W176>=$C$13,Lists!$E$2,Lists!$E$4),"") ->  | AC176: =AB176/SUMIF('Input - Monitor Limits'!$AB$19:$AB$318,"<1E100")*100 -> 
A177: 159 | Q177: =IF(ISNUMBER(L177),IF(I177="Fixed",J177,IF(F177="USD",J177+$C$14+IF($C$11="LIBOR",'GAS FILE'!$C$36,'GAS FILE'!$C$37),IF(F177="JPY",J177+$C$14+'GAS FILE'!$C$39,IF(F177="EUR",J177+$C$14+IF($C$11="LIBOR",'GAS FILE'!$C$38,'GAS FILE'!$C$42),IF(J177="GBP",J177+$C$14+IF($C$11="LIBOR",'GAS FILE'!$C$40,'GAS FILE'!$C$41),J177+$C$14+'GAS FILE'!$C$43))))),"") ->  | X177: =IF(ISNUMBER(W177),IF(W177>=$C$13,Lists!$E$2,Lists!$E$4),"") ->  | AC177: =AB177/SUMIF('Input - Monitor Limits'!$AB$19:$AB$318,"<1E100")*100 -> 
A178: 160 | Q178: =IF(ISNUMBER(L178),IF(I178="Fixed",J178,IF(F178="USD",J178+$C$14+IF($C$11="LIBOR",'GAS FILE'!$C$36,'GAS FILE'!$C$37),IF(F178="JPY",J178+$C$14+'GAS FILE'!$C$39,IF(F178="EUR",J178+$C$14+IF($C$11="LIBOR",'GAS FILE'!$C$38,'GAS FILE'!$C$42),IF(J178="GBP",J178+$C$14+IF($C$11="LIBOR",'GAS FILE'!$C$40,'GAS FILE'!$C$41),J178+$C$14+'GAS FILE'!$C$43))))),"") ->  | X178: =IF(ISNUMBER(W178),IF(W178>=$C$13,Lists!$E$2,Lists!$E$4),"") ->  | AC178: =AB178/SUMIF('Input - Monitor Limits'!$AB$19:$AB$318,"<1E100")*100 -> 
A179: 161 | Q179: =IF(ISNUMBER(L179),IF(I179="Fixed",J179,IF(F179="USD",J179+$C$14+IF($C$11="LIBOR",'GAS FILE'!$C$36,'GAS FILE'!$C$37),IF(F179="JPY",J179+$C$14+'GAS FILE'!$C$39,IF(F179="EUR",J179+$C$14+IF($C$11="LIBOR",'GAS FILE'!$C$38,'GAS FILE'!$C$42),IF(J179="GBP",J179+$C$14+IF($C$11="LIBOR",'GAS FILE'!$C$40,'GAS FILE'!$C$41),J179+$C$14+'GAS FILE'!$C$43))))),"") ->  | X179: =IF(ISNUMBER(W179),IF(W179>=$C$13,Lists!$E$2,Lists!$E$4),"") ->  | AC179: =AB179/SUMIF('Input - Monitor Limits'!$AB$19:$AB$318,"<1E100")*100 -> 
A180: 162 | Q180: =IF(ISNUMBER(L180),IF(I180="Fixed",J180,IF(F180="USD",J180+$C$14+IF($C$11="LIBOR",'GAS FILE'!$C$36,'GAS FILE'!$C$37),IF(F180="JPY",J180+$C$14+'GAS FILE'!$C$39,IF(F180="EUR",J180+$C$14+IF($C$11="LIBOR",'GAS FILE'!$C$38,'GAS FILE'!$C$42),IF(J180="GBP",J180+$C$14+IF($C$11="LIBOR",'GAS FILE'!$C$40,'GAS FILE'!$C$41),J180+$C$14+'GAS FILE'!$C$43))))),"") ->  | X180: =IF(ISNUMBER(W180),IF(W180>=$C$13,Lists!$E$2,Lists!$E$4),"") ->  | AC180: =AB180/SUMIF('Input - Monitor Limits'!$AB$19:$AB$318,"<1E100")*100 -> 
A181: 163 | Q181: =IF(ISNUMBER(L181),IF(I181="Fixed",J181,IF(F181="USD",J181+$C$14+IF($C$11="LIBOR",'GAS FILE'!$C$36,'GAS FILE'!$C$37),IF(F181="JPY",J181+$C$14+'GAS FILE'!$C$39,IF(F181="EUR",J181+$C$14+IF($C$11="LIBOR",'GAS FILE'!$C$38,'GAS FILE'!$C$42),IF(J181="GBP",J181+$C$14+IF($C$11="LIBOR",'GAS FILE'!$C$40,'GAS FILE'!$C$41),J181+$C$14+'GAS FILE'!$C$43))))),"") ->  | X181: =IF(ISNUMBER(W181),IF(W181>=$C$13,Lists!$E$2,Lists!$E$4),"") ->  | AC181: =AB181/SUMIF('Input - Monitor Limits'!$AB$19:$AB$318,"<1E100")*100 -> 
A182: 164 | Q182: =IF(ISNUMBER(L182),IF(I182="Fixed",J182,IF(F182="USD",J182+$C$14+IF($C$11="LIBOR",'GAS FILE'!$C$36,'GAS FILE'!$C$37),IF(F182="JPY",J182+$C$14+'GAS FILE'!$C$39,IF(F182="EUR",J182+$C$14+IF($C$11="LIBOR",'GAS FILE'!$C$38,'GAS FILE'!$C$42),IF(J182="GBP",J182+$C$14+IF($C$11="LIBOR",'GAS FILE'!$C$40,'GAS FILE'!$C$41),J182+$C$14+'GAS FILE'!$C$43))))),"") ->  | X182: =IF(ISNUMBER(W182),IF(W182>=$C$13,Lists!$E$2,Lists!$E$4),"") ->  | AC182: =AB182/SUMIF('Input - Monitor Limits'!$AB$19:$AB$318,"<1E100")*100 -> 
A183: 165 | Q183: =IF(ISNUMBER(L183),IF(I183="Fixed",J183,IF(F183="USD",J183+$C$14+IF($C$11="LIBOR",'GAS FILE'!$C$36,'GAS FILE'!$C$37),IF(F183="JPY",J183+$C$14+'GAS FILE'!$C$39,IF(F183="EUR",J183+$C$14+IF($C$11="LIBOR",'GAS FILE'!$C$38,'GAS FILE'!$C$42),IF(J183="GBP",J183+$C$14+IF($C$11="LIBOR",'GAS FILE'!$C$40,'GAS FILE'!$C$41),J183+$C$14+'GAS FILE'!$C$43))))),"") ->  | X183: =IF(ISNUMBER(W183),IF(W183>=$C$13,Lists!$E$2,Lists!$E$4),"") ->  | AC183: =AB183/SUMIF('Input - Monitor Limits'!$AB$19:$AB$318,"<1E100")*100 -> 
A184: 166 | Q184: =IF(ISNUMBER(L184),IF(I184="Fixed",J184,IF(F184="USD",J184+$C$14+IF($C$11="LIBOR",'GAS FILE'!$C$36,'GAS FILE'!$C$37),IF(F184="JPY",J184+$C$14+'GAS FILE'!$C$39,IF(F184="EUR",J184+$C$14+IF($C$11="LIBOR",'GAS FILE'!$C$38,'GAS FILE'!$C$42),IF(J184="GBP",J184+$C$14+IF($C$11="LIBOR",'GAS FILE'!$C$40,'GAS FILE'!$C$41),J184+$C$14+'GAS FILE'!$C$43))))),"") ->  | X184: =IF(ISNUMBER(W184),IF(W184>=$C$13,Lists!$E$2,Lists!$E$4),"") ->  | AC184: =AB184/SUMIF('Input - Monitor Limits'!$AB$19:$AB$318,"<1E100")*100 -> 
A185: 167 | Q185: =IF(ISNUMBER(L185),IF(I185="Fixed",J185,IF(F185="USD",J185+$C$14+IF($C$11="LIBOR",'GAS FILE'!$C$36,'GAS FILE'!$C$37),IF(F185="JPY",J185+$C$14+'GAS FILE'!$C$39,IF(F185="EUR",J185+$C$14+IF($C$11="LIBOR",'GAS FILE'!$C$38,'GAS FILE'!$C$42),IF(J185="GBP",J185+$C$14+IF($C$11="LIBOR",'GAS FILE'!$C$40,'GAS FILE'!$C$41),J185+$C$14+'GAS FILE'!$C$43))))),"") ->  | X185: =IF(ISNUMBER(W185),IF(W185>=$C$13,Lists!$E$2,Lists!$E$4),"") ->  | AC185: =AB185/SUMIF('Input - Monitor Limits'!$AB$19:$AB$318,"<1E100")*100 -> 
A186: 168 | Q186: =IF(ISNUMBER(L186),IF(I186="Fixed",J186,IF(F186="USD",J186+$C$14+IF($C$11="LIBOR",'GAS FILE'!$C$36,'GAS FILE'!$C$37),IF(F186="JPY",J186+$C$14+'GAS FILE'!$C$39,IF(F186="EUR",J186+$C$14+IF($C$11="LIBOR",'GAS FILE'!$C$38,'GAS FILE'!$C$42),IF(J186="GBP",J186+$C$14+IF($C$11="LIBOR",'GAS FILE'!$C$40,'GAS FILE'!$C$41),J186+$C$14+'GAS FILE'!$C$43))))),"") ->  | X186: =IF(ISNUMBER(W186),IF(W186>=$C$13,Lists!$E$2,Lists!$E$4),"") ->  | AC186: =AB186/SUMIF('Input - Monitor Limits'!$AB$19:$AB$318,"<1E100")*100 -> 
A187: 169 | Q187: =IF(ISNUMBER(L187),IF(I187="Fixed",J187,IF(F187="USD",J187+$C$14+IF($C$11="LIBOR",'GAS FILE'!$C$36,'GAS FILE'!$C$37),IF(F187="JPY",J187+$C$14+'GAS FILE'!$C$39,IF(F187="EUR",J187+$C$14+IF($C$11="LIBOR",'GAS FILE'!$C$38,'GAS FILE'!$C$42),IF(J187="GBP",J187+$C$14+IF($C$11="LIBOR",'GAS FILE'!$C$40,'GAS FILE'!$C$41),J187+$C$14+'GAS FILE'!$C$43))))),"") ->  | X187: =IF(ISNUMBER(W187),IF(W187>=$C$13,Lists!$E$2,Lists!$E$4),"") ->  | AC187: =AB187/SUMIF('Input - Monitor Limits'!$AB$19:$AB$318,"<1E100")*100 -> 
A188: 170 | Q188: =IF(ISNUMBER(L188),IF(I188="Fixed",J188,IF(F188="USD",J188+$C$14+IF($C$11="LIBOR",'GAS FILE'!$C$36,'GAS FILE'!$C$37),IF(F188="JPY",J188+$C$14+'GAS FILE'!$C$39,IF(F188="EUR",J188+$C$14+IF($C$11="LIBOR",'GAS FILE'!$C$38,'GAS FILE'!$C$42),IF(J188="GBP",J188+$C$14+IF($C$11="LIBOR",'GAS FILE'!$C$40,'GAS FILE'!$C$41),J188+$C$14+'GAS FILE'!$C$43))))),"") ->  | X188: =IF(ISNUMBER(W188),IF(W188>=$C$13,Lists!$E$2,Lists!$E$4),"") ->  | AC188: =AB188/SUMIF('Input - Monitor Limits'!$AB$19:$AB$318,"<1E100")*100 -> 
A189: 171 | Q189: =IF(ISNUMBER(L189),IF(I189="Fixed",J189,IF(F189="USD",J189+$C$14+IF($C$11="LIBOR",'GAS FILE'!$C$36,'GAS FILE'!$C$37),IF(F189="JPY",J189+$C$14+'GAS FILE'!$C$39,IF(F189="EUR",J189+$C$14+IF($C$11="LIBOR",'GAS FILE'!$C$38,'GAS FILE'!$C$42),IF(J189="GBP",J189+$C$14+IF($C$11="LIBOR",'GAS FILE'!$C$40,'GAS FILE'!$C$41),J189+$C$14+'GAS FILE'!$C$43))))),"") ->  | X189: =IF(ISNUMBER(W189),IF(W189>=$C$13,Lists!$E$2,Lists!$E$4),"") ->  | AC189: =AB189/SUMIF('Input - Monitor Limits'!$AB$19:$AB$318,"<1E100")*100 -> 
A190: 172 | Q190: =IF(ISNUMBER(L190),IF(I190="Fixed",J190,IF(F190="USD",J190+$C$14+IF($C$11="LIBOR",'GAS FILE'!$C$36,'GAS FILE'!$C$37),IF(F190="JPY",J190+$C$14+'GAS FILE'!$C$39,IF(F190="EUR",J190+$C$14+IF($C$11="LIBOR",'GAS FILE'!$C$38,'GAS FILE'!$C$42),IF(J190="GBP",J190+$C$14+IF($C$11="LIBOR",'GAS FILE'!$C$40,'GAS FILE'!$C$41),J190+$C$14+'GAS FILE'!$C$43))))),"") ->  | X190: =IF(ISNUMBER(W190),IF(W190>=$C$13,Lists!$E$2,Lists!$E$4),"") ->  | AC190: =AB190/SUMIF('Input - Monitor Limits'!$AB$19:$AB$318,"<1E100")*100 -> 
A191: 173 | Q191: =IF(ISNUMBER(L191),IF(I191="Fixed",J191,IF(F191="USD",J191+$C$14+IF($C$11="LIBOR",'GAS FILE'!$C$36,'GAS FILE'!$C$37),IF(F191="JPY",J191+$C$14+'GAS FILE'!$C$39,IF(F191="EUR",J191+$C$14+IF($C$11="LIBOR",'GAS FILE'!$C$38,'GAS FILE'!$C$42),IF(J191="GBP",J191+$C$14+IF($C$11="LIBOR",'GAS FILE'!$C$40,'GAS FILE'!$C$41),J191+$C$14+'GAS FILE'!$C$43))))),"") ->  | X191: =IF(ISNUMBER(W191),IF(W191>=$C$13,Lists!$E$2,Lists!$E$4),"") ->  | AC191: =AB191/SUMIF('Input - Monitor Limits'!$AB$19:$AB$318,"<1E100")*100 -> 
A192: 174 | Q192: =IF(ISNUMBER(L192),IF(I192="Fixed",J192,IF(F192="USD",J192+$C$14+IF($C$11="LIBOR",'GAS FILE'!$C$36,'GAS FILE'!$C$37),IF(F192="JPY",J192+$C$14+'GAS FILE'!$C$39,IF(F192="EUR",J192+$C$14+IF($C$11="LIBOR",'GAS FILE'!$C$38,'GAS FILE'!$C$42),IF(J192="GBP",J192+$C$14+IF($C$11="LIBOR",'GAS FILE'!$C$40,'GAS FILE'!$C$41),J192+$C$14+'GAS FILE'!$C$43))))),"") ->  | X192: =IF(ISNUMBER(W192),IF(W192>=$C$13,Lists!$E$2,Lists!$E$4),"") ->  | AC192: =AB192/SUMIF('Input - Monitor Limits'!$AB$19:$AB$318,"<1E100")*100 -> 
A193: 175 | Q193: =IF(ISNUMBER(L193),IF(I193="Fixed",J193,IF(F193="USD",J193+$C$14+IF($C$11="LIBOR",'GAS FILE'!$C$36,'GAS FILE'!$C$37),IF(F193="JPY",J193+$C$14+'GAS FILE'!$C$39,IF(F193="EUR",J193+$C$14+IF($C$11="LIBOR",'GAS FILE'!$C$38,'GAS FILE'!$C$42),IF(J193="GBP",J193+$C$14+IF($C$11="LIBOR",'GAS FILE'!$C$40,'GAS FILE'!$C$41),J193+$C$14+'GAS FILE'!$C$43))))),"") ->  | X193: =IF(ISNUMBER(W193),IF(W193>=$C$13,Lists!$E$2,Lists!$E$4),"") ->  | AC193: =AB193/SUMIF('Input - Monitor Limits'!$AB$19:$AB$318,"<1E100")*100 -> 
A194: 176 | Q194: =IF(ISNUMBER(L194),IF(I194="Fixed",J194,IF(F194="USD",J194+$C$14+IF($C$11="LIBOR",'GAS FILE'!$C$36,'GAS FILE'!$C$37),IF(F194="JPY",J194+$C$14+'GAS FILE'!$C$39,IF(F194="EUR",J194+$C$14+IF($C$11="LIBOR",'GAS FILE'!$C$38,'GAS FILE'!$C$42),IF(J194="GBP",J194+$C$14+IF($C$11="LIBOR",'GAS FILE'!$C$40,'GAS FILE'!$C$41),J194+$C$14+'GAS FILE'!$C$43))))),"") ->  | X194: =IF(ISNUMBER(W194),IF(W194>=$C$13,Lists!$E$2,Lists!$E$4),"") ->  | AC194: =AB194/SUMIF('Input - Monitor Limits'!$AB$19:$AB$318,"<1E100")*100 -> 
A195: 177 | Q195: =IF(ISNUMBER(L195),IF(I195="Fixed",J195,IF(F195="USD",J195+$C$14+IF($C$11="LIBOR",'GAS FILE'!$C$36,'GAS FILE'!$C$37),IF(F195="JPY",J195+$C$14+'GAS FILE'!$C$39,IF(F195="EUR",J195+$C$14+IF($C$11="LIBOR",'GAS FILE'!$C$38,'GAS FILE'!$C$42),IF(J195="GBP",J195+$C$14+IF($C$11="LIBOR",'GAS FILE'!$C$40,'GAS FILE'!$C$41),J195+$C$14+'GAS FILE'!$C$43))))),"") ->  | X195: =IF(ISNUMBER(W195),IF(W195>=$C$13,Lists!$E$2,Lists!$E$4),"") ->  | AC195: =AB195/SUMIF('Input - Monitor Limits'!$AB$19:$AB$318,"<1E100")*100 -> 
A196: 178 | Q196: =IF(ISNUMBER(L196),IF(I196="Fixed",J196,IF(F196="USD",J196+$C$14+IF($C$11="LIBOR",'GAS FILE'!$C$36,'GAS FILE'!$C$37),IF(F196="JPY",J196+$C$14+'GAS FILE'!$C$39,IF(F196="EUR",J196+$C$14+IF($C$11="LIBOR",'GAS FILE'!$C$38,'GAS FILE'!$C$42),IF(J196="GBP",J196+$C$14+IF($C$11="LIBOR",'GAS FILE'!$C$40,'GAS FILE'!$C$41),J196+$C$14+'GAS FILE'!$C$43))))),"") ->  | X196: =IF(ISNUMBER(W196),IF(W196>=$C$13,Lists!$E$2,Lists!$E$4),"") ->  | AC196: =AB196/SUMIF('Input - Monitor Limits'!$AB$19:$AB$318,"<1E100")*100 -> 
A197: 179 | Q197: =IF(ISNUMBER(L197),IF(I197="Fixed",J197,IF(F197="USD",J197+$C$14+IF($C$11="LIBOR",'GAS FILE'!$C$36,'GAS FILE'!$C$37),IF(F197="JPY",J197+$C$14+'GAS FILE'!$C$39,IF(F197="EUR",J197+$C$14+IF($C$11="LIBOR",'GAS FILE'!$C$38,'GAS FILE'!$C$42),IF(J197="GBP",J197+$C$14+IF($C$11="LIBOR",'GAS FILE'!$C$40,'GAS FILE'!$C$41),J197+$C$14+'GAS FILE'!$C$43))))),"") ->  | X197: =IF(ISNUMBER(W197),IF(W197>=$C$13,Lists!$E$2,Lists!$E$4),"") ->  | AC197: =AB197/SUMIF('Input - Monitor Limits'!$AB$19:$AB$318,"<1E100")*100 -> 
A198: 180 | Q198: =IF(ISNUMBER(L198),IF(I198="Fixed",J198,IF(F198="USD",J198+$C$14+IF($C$11="LIBOR",'GAS FILE'!$C$36,'GAS FILE'!$C$37),IF(F198="JPY",J198+$C$14+'GAS FILE'!$C$39,IF(F198="EUR",J198+$C$14+IF($C$11="LIBOR",'GAS FILE'!$C$38,'GAS FILE'!$C$42),IF(J198="GBP",J198+$C$14+IF($C$11="LIBOR",'GAS FILE'!$C$40,'GAS FILE'!$C$41),J198+$C$14+'GAS FILE'!$C$43))))),"") ->  | X198: =IF(ISNUMBER(W198),IF(W198>=$C$13,Lists!$E$2,Lists!$E$4),"") ->  | AC198: =AB198/SUMIF('Input - Monitor Limits'!$AB$19:$AB$318,"<1E100")*100 -> 
A199: 181 | Q199: =IF(ISNUMBER(L199),IF(I199="Fixed",J199,IF(F199="USD",J199+$C$14+IF($C$11="LIBOR",'GAS FILE'!$C$36,'GAS FILE'!$C$37),IF(F199="JPY",J199+$C$14+'GAS FILE'!$C$39,IF(F199="EUR",J199+$C$14+IF($C$11="LIBOR",'GAS FILE'!$C$38,'GAS FILE'!$C$42),IF(J199="GBP",J199+$C$14+IF($C$11="LIBOR",'GAS FILE'!$C$40,'GAS FILE'!$C$41),J199+$C$14+'GAS FILE'!$C$43))))),"") ->  | X199: =IF(ISNUMBER(W199),IF(W199>=$C$13,Lists!$E$2,Lists!$E$4),"") ->  | AC199: =AB199/SUMIF('Input - Monitor Limits'!$AB$19:$AB$318,"<1E100")*100 -> 
A200: 182 | Q200: =IF(ISNUMBER(L200),IF(I200="Fixed",J200,IF(F200="USD",J200+$C$14+IF($C$11="LIBOR",'GAS FILE'!$C$36,'GAS FILE'!$C$37),IF(F200="JPY",J200+$C$14+'GAS FILE'!$C$39,IF(F200="EUR",J200+$C$14+IF($C$11="LIBOR",'GAS FILE'!$C$38,'GAS FILE'!$C$42),IF(J200="GBP",J200+$C$14+IF($C$11="LIBOR",'GAS FILE'!$C$40,'GAS FILE'!$C$41),J200+$C$14+'GAS FILE'!$C$43))))),"") ->  | X200: =IF(ISNUMBER(W200),IF(W200>=$C$13,Lists!$E$2,Lists!$E$4),"") ->  | AC200: =AB200/SUMIF('Input - Monitor Limits'!$AB$19:$AB$318,"<1E100")*100 -> 
A201: 183 | Q201: =IF(ISNUMBER(L201),IF(I201="Fixed",J201,IF(F201="USD",J201+$C$14+IF($C$11="LIBOR",'GAS FILE'!$C$36,'GAS FILE'!$C$37),IF(F201="JPY",J201+$C$14+'GAS FILE'!$C$39,IF(F201="EUR",J201+$C$14+IF($C$11="LIBOR",'GAS FILE'!$C$38,'GAS FILE'!$C$42),IF(J201="GBP",J201+$C$14+IF($C$11="LIBOR",'GAS FILE'!$C$40,'GAS FILE'!$C$41),J201+$C$14+'GAS FILE'!$C$43))))),"") ->  | X201: =IF(ISNUMBER(W201),IF(W201>=$C$13,Lists!$E$2,Lists!$E$4),"") ->  | AC201: =AB201/SUMIF('Input - Monitor Limits'!$AB$19:$AB$318,"<1E100")*100 -> 
A202: 184 | Q202: =IF(ISNUMBER(L202),IF(I202="Fixed",J202,IF(F202="USD",J202+$C$14+IF($C$11="LIBOR",'GAS FILE'!$C$36,'GAS FILE'!$C$37),IF(F202="JPY",J202+$C$14+'GAS FILE'!$C$39,IF(F202="EUR",J202+$C$14+IF($C$11="LIBOR",'GAS FILE'!$C$38,'GAS FILE'!$C$42),IF(J202="GBP",J202+$C$14+IF($C$11="LIBOR",'GAS FILE'!$C$40,'GAS FILE'!$C$41),J202+$C$14+'GAS FILE'!$C$43))))),"") ->  | X202: =IF(ISNUMBER(W202),IF(W202>=$C$13,Lists!$E$2,Lists!$E$4),"") ->  | AC202: =AB202/SUMIF('Input - Monitor Limits'!$AB$19:$AB$318,"<1E100")*100 -> 
A203: 185 | Q203: =IF(ISNUMBER(L203),IF(I203="Fixed",J203,IF(F203="USD",J203+$C$14+IF($C$11="LIBOR",'GAS FILE'!$C$36,'GAS FILE'!$C$37),IF(F203="JPY",J203+$C$14+'GAS FILE'!$C$39,IF(F203="EUR",J203+$C$14+IF($C$11="LIBOR",'GAS FILE'!$C$38,'GAS FILE'!$C$42),IF(J203="GBP",J203+$C$14+IF($C$11="LIBOR",'GAS FILE'!$C$40,'GAS FILE'!$C$41),J203+$C$14+'GAS FILE'!$C$43))))),"") ->  | X203: =IF(ISNUMBER(W203),IF(W203>=$C$13,Lists!$E$2,Lists!$E$4),"") ->  | AC203: =AB203/SUMIF('Input - Monitor Limits'!$AB$19:$AB$318,"<1E100")*100 -> 
A204: 186 | Q204: =IF(ISNUMBER(L204),IF(I204="Fixed",J204,IF(F204="USD",J204+$C$14+IF($C$11="LIBOR",'GAS FILE'!$C$36,'GAS FILE'!$C$37),IF(F204="JPY",J204+$C$14+'GAS FILE'!$C$39,IF(F204="EUR",J204+$C$14+IF($C$11="LIBOR",'GAS FILE'!$C$38,'GAS FILE'!$C$42),IF(J204="GBP",J204+$C$14+IF($C$11="LIBOR",'GAS FILE'!$C$40,'GAS FILE'!$C$41),J204+$C$14+'GAS FILE'!$C$43))))),"") ->  | X204: =IF(ISNUMBER(W204),IF(W204>=$C$13,Lists!$E$2,Lists!$E$4),"") ->  | AC204: =AB204/SUMIF('Input - Monitor Limits'!$AB$19:$AB$318,"<1E100")*100 -> 
... 115 more rows

Sheet Input - Set Limits UL
B2: INTRODUCTION: | C2: This sheet is used for unconventional loans (i.e. loans under Islamic law and other IsDB instruments).
C3: The PV of such loans will have to be manually calculated separately. For IsDP loans or other instruments (lease, installment sales or Istisn'a), please use GE-Calculation IsDB Loan
C4: or GE-Calculation-Other IsDB sheets, respectively. The results from these IsDB sheets will have to be hardcoded into the relevant inputs.
C5: The Output Table sheet summarizes the results from these loans.
B10: INPUTS - PART 1
B11: INTEREST RATE TYPE | C11: ='Input - Set Limits'!C11 -> FIRF
B12: DEBT LIMIT BASIS | C12: ='Input - Set Limits'!C12 -> Contracting
B13: MIN GRANT ELEMENT | C13: ='Input - Set Limits'!C13 -> 0.35
B14: REFERENCE RATE | C14: ='Input - Set Limits'!C14 -> 0.03286127628
B15: DISCOUNT RATE | C15: ='Input - Set Limits'!C15 -> 0.05
B16: Period Start/End Date | C16: ='Input - Set Limits'!C16 -> 2023-01-01 | D16: ='Input - Set Limits'!D16 -> 2023-12-31
B17: INPUTS PART 2 | O17: Management Fees | V17: INPUT | Z17: OUTPUT
B18: Effective date (as of) | C18: Creditor Name (Optional) | D18: Use of debt financing | E18: Creditor Type | F18: Currency for rate calculation | G18: Currency of loan denomination | H18: Exchange rate (Currency per USD) | I18: Fixed/ Variable | J18: Rate (if Fixed) / Spread from loan contract (if Variable) | K18: Repayment Profile (choose from the 5 profiles in the drop down menu) | L18: Face Value (currency of denonimation) | M18: Grant (as part of financing package) | N18: Upfront Commission (in percent) | O18: Percent of the outstanding nominal amount | P18: Nominal Amount (per period) | Q18: Effective interest Rate | R18: Maturity (years) | S18: Payments per annum | T18: Grace Period (years) | V18: Present Value (currency specific) | W18: Grant Element | X18: =CONCATENATE("Concessionality (based on ", C13*100," % GE)") -> Concessionality (based on 35 % GE) | Z18: Present Value Actual in USD | AA18: Present Value in USD for program purposes | AB18: Nominal in USD
B19: 2018-01-01 | C19: IDA | G19: EUR | H19: 1 | L19: 1000000 | V19: 532631 | W19: -0.05 | X19: Concessional | Z19: =IF(ISNUMBER(V19/H19),V19/H19,"") -> 532631 | AA19: =IF(ISNUMBER(IF(W19<0,AB19,Z19)),IF(W19<0,AB19,Z19),"") -> 1000000 | AB19: =IF(ISNUMBER(L19/H19),L19/H19,"") -> 1000000 | AC19: =IF(YEAR(B19)<$C$16,"",YEAR(B19)) -> 
Z20: =IF(ISNUMBER(V20/H20),V20/H20,"") ->  | AA20: =IF(ISNUMBER(IF(W20<0,AB20,Z20)),IF(W20<0,AB20,Z20),"") ->  | AB20: =IF(ISNUMBER(L20/H20),L20/H20,"") ->  | AC20: =IF(YEAR(B20)<$C$16,"",YEAR(B20)) -> 
Z22: =IF(ISNUMBER(V22/H22),V22/H22,"") ->  | AA22: =IF(ISNUMBER(IF(W22<0,AB22,Z22)),IF(W22<0,AB22,Z22),"") ->  | AB22: =IF(ISNUMBER(L22/H22),L22/H22,"") -> 
AC84: =IF(YEAR(B84)<$C$16,"",YEAR(B84)) -> 
Z86: =IF(ISNUMBER(V86/H86),V86/H86,"") ->  | AA86: =IF(ISNUMBER(IF(W86<0,AB86,Z86)),IF(W86<0,AB86,Z86),"") ->  | AB86: =IF(ISNUMBER(L86/H86),L86/H86,"") -> 
AC148: =IF(YEAR(B148)<$C$16,"",YEAR(B148)) -> 
Z150: =IF(ISNUMBER(V150/H150),V150/H150,"") ->  | AA150: =IF(ISNUMBER(IF(W150<0,AB150,Z150)),IF(W150<0,AB150,Z150),"") ->  | AB150: =IF(ISNUMBER(L150/H150),L150/H150,"") -> 
AC212: =IF(YEAR(B212)<$C$16,"",YEAR(B212)) -> 
Z214: =IF(ISNUMBER(V214/H214),V214/H214,"") ->  | AA214: =IF(ISNUMBER(IF(W214<0,AB214,Z214)),IF(W214<0,AB214,Z214),"") ->  | AB214: =IF(ISNUMBER(L214/H214),L214/H214,"") -> 
AC276: =IF(YEAR(B276)<$C$16,"",YEAR(B276)) -> 
Z278: =IF(ISNUMBER(V278/H278),V278/H278,"") ->  | AA278: =IF(ISNUMBER(IF(W278<0,AB278,Z278)),IF(W278<0,AB278,Z278),"") ->  | AB278: =IF(ISNUMBER(L278/H278),L278/H278,"") -> 

Sheet Output - Set Limits
B1: Period Start/End Date | C1: ='Input - Set Limits'!C16 -> 2023-01-01 | D1: ='Input - Set Limits'!D16 -> 2023-12-31 | F1: Reference year | G1: =YEAR(C1) -> 2023
B2: Debt Limit Basis | C2: ='Input - Set Limits'!C12 -> Contracting
B4: Table 1. Summary Table of Projected External Borrowing Program
B5: =TEXT(C1,"[$-409]mmmm d, yyyy;@") & " to " &TEXT(D1,"[$-409]mmmm d, yyyy;@") -> January 1, 2023 to December 31, 2023
B7: PPG external debt | C7: =CONCATENATE("Volume of new debt in ",G1) -> Volume of new debt in 2023 | F7: =CONCATENATE("PV of new debt in ",G1," (program purposes) ") -> PV of new debt in 2023 (program purposes) | I7: =CONCATENATE("PV of new debt in ",G1," (including negative GEs)") -> PV of new debt in 2023 (including negative GEs)
C8: USD million | D8: Percent | F8: USD million | G8: Percent | I8: USD million | J8: Percent
B10: By sources of debt financing | C10: =C11+C15 -> 0 | D10: =C10/$C$10*100 ->  | F10: =F11+F15 -> 0 | G10: =F10/$F$10*100 ->  | I10: =I11+I15 -> 0 | J10: =I10/$I$10*100 -> 
B11: Concessional debt, of which | C11: =(SUMIFS('Input - Set Limits'!AB19:AB318,'Input - Set Limits'!AB19:AB318,"<1E100",'Input - Set Limits'!W19:W318,">="&'Input - Set Limits'!$C$13,'Input - Set Limits'!B19:B318,">="&$C$1, 'Input - Set Limits'!B19:B318,"<="&$D$1)/1000000)+(SUMIFS('Input - Set Limits UL'!AB19:AB318,'Input - Set Limits UL'!AB19:AB318,"<1E100",'Input - Set Limits UL'!W19:W318,">="&'Input - Set Limits UL'!$C$13,'Input - Set Limits UL'!B19:B318,">="&$C$1, 'Input - Set Limits UL'!B19:B318,"<="&$D$1)/1000000) -> 0 | D11: =C11/$C$10*100 ->  | F11: =(SUMIFS('Input - Set Limits'!AA19:AA318,'Input - Set Limits'!AA19:AA318,"<1E100",'Input - Set Limits'!W19:W318,">="&'Input - Set Limits'!$C$13,'Input - Set Limits'!B19:B318,">="&$C$1, 'Input - Set Limits'!B19:B318,"<="&$D$1)/1000000)+(SUMIFS('Input - Set Limits UL'!AA19:AA318,'Input - Set Limits UL'!AA19:AA318,"<1E100",'Input - Set Limits UL'!W19:W318,">="&'Input - Set Limits UL'!$C$13,'Input - Set Limits UL'!B19:B318,">="&$C$1, 'Input - Set Limits UL'!B19:B318,"<="&$D$1)/1000000) -> 0 | G11: =F11/$F$10*100 ->  | I11: =(SUMIFS('Input - Set Limits'!Z19:Z318,'Input - Set Limits'!Z19:Z318,"<1E100",'Input - Set Limits'!W19:W318,">="&'Input - Set Limits'!$C$13,'Input - Set Limits'!B19:B318,">="&$C$1, 'Input - Set Limits'!B19:B318,"<="&$D$1)/1000000)+(SUMIFS('Input - Set Limits UL'!Z19:Z318,'Input - Set Limits UL'!Z19:Z318,"<1E100",'Input - Set Limits UL'!W19:W318,">="&'Input - Set Limits UL'!$C$13,'Input - Set Limits UL'!B19:B318,">="&$C$1, 'Input - Set Limits UL'!B19:B318,"<="&$D$1)/1000000) -> 0 | J11: =I11/$I$10*100 -> 
B12: Multilateral debt | C12: =(SUMIFS('Input - Set Limits'!AB19:AB301,'Input - Set Limits'!AB19:AB301,"<1E100",'Input - Set Limits'!W19:W301,">="&'Input - Set Limits'!$C$13,'Input - Set Limits'!E19:E301,Lists!$B$2,'Input - Set Limits'!B19:B301,">="&$C$1, 'Input - Set Limits'!B19:B301,"<="&$D$1)/1000000)+(SUMIFS('Input - Set Limits UL'!AB19:AB301,'Input - Set Limits UL'!AB19:AB301,"<1E100",'Input - Set Limits UL'!W19:W301,">="&'Input - Set Limits UL'!$C$13,'Input - Set Limits UL'!E19:E301,Lists!$B$2,'Input - Set Limits UL'!B19:B301,">="&$C$1,'Input - Set Limits UL'!B19:B301,"<="&$D$1)/1000000) -> 0 | D12: =C12/$C$10*100 ->  | F12: =(SUMIFS('Input - Set Limits'!AA19:AA301,'Input - Set Limits'!AA19:AA301,"<1E100",'Input - Set Limits'!W19:W301,">="&'Input - Set Limits'!$C$13,'Input - Set Limits'!E19:E301,Lists!$B$2,'Input - Set Limits'!B19:B301,">="&$C$1, 'Input - Set Limits'!B19:B301,"<="&$D$1)/1000000)+(SUMIFS('Input - Set Limits UL'!AA19:AA301,'Input - Set Limits UL'!AA19:AA301,"<1E100",'Input - Set Limits UL'!W19:W301,">="&'Input - Set Limits UL'!$C$13,'Input - Set Limits UL'!E19:E301,Lists!$B$2,'Input - Set Limits UL'!B19:B301,">="&$C$1,'Input - Set Limits UL'!B19:B301,"<="&$D$1)/1000000) -> 0 | G12: =F12/$F$10*100 ->  | I12: =(SUMIFS('Input - Set Limits'!Z19:Z301,'Input - Set Limits'!Z19:Z301,"<1E100",'Input - Set Limits'!W19:W301,">="&'Input - Set Limits'!$C$13,'Input - Set Limits'!E19:E301,Lists!$B$2,'Input - Set Limits'!B19:B301,">="&$C$1, 'Input - Set Limits'!B19:B301,"<="&$D$1)/1000000)+(SUMIFS('Input - Set Limits UL'!Z19:Z301,'Input - Set Limits UL'!Z19:Z301,"<1E100",'Input - Set Limits UL'!W19:W301,">="&'Input - Set Limits UL'!$C$13,'Input - Set Limits UL'!E19:E301,Lists!$B$2,'Input - Set Limits UL'!B19:B301,">="&$C$1,'Input - Set Limits UL'!B19:B301,"<="&$D$1)/1000000) -> 0 | J12: =I12/$I$10*100 -> 
B13: Bilateral debt | C13: =(SUMIFS('Input - Set Limits'!AB19:AB301,'Input - Set Limits'!AB19:AB301,"<1E100",'Input - Set Limits'!W19:W301,">="&'Input - Set Limits'!$C$13,'Input - Set Limits'!E19:E301,Lists!$B$3,'Input - Set Limits'!B19:B301,">="&$C$1, 'Input - Set Limits'!B19:B301,"<="&$D$1)/1000000)+(SUMIFS('Input - Set Limits'!AB19:AB301,'Input - Set Limits'!AB19:AB301,"<1E100",'Input - Set Limits'!W19:W301,">="&'Input - Set Limits'!$C$13,'Input - Set Limits'!E19:E301,Lists!$B$4,'Input - Set Limits'!B19:B301,">="&$C$1, 'Input - Set Limits'!B19:B301,"<="&$D$1)/1000000)+(SUMIFS('Input - Set Limits UL'!AB19:AB301,'Input - Set Limits UL'!AB19:AB301,"<1E100",'Input - Set Limits UL'!W19:W301,">="&'Input - Set Limits UL'!$C$13,'Input - Set Limits UL'!E19:E301,Lists!$B$3,'Input - Set Limits UL'!B19:B301,">="&$C$1, 'Input - Set Limits UL'!B19:B301,"<="&$D$1)/1000000)+(SUMIFS('Input - Set Limits UL'!AB19:AB301,'Input - Set Limits UL'!AB19:AB301,"<1E100",'Input - Set Limits UL'!W19:W301,">="&'Input - Set Limits UL'!$C$13,'Input - Set Limits UL'!E19:E301,Lists!$B$4,'Input - Set Limits UL'!B19:B301,">="&$C$1, 'Input - Set Limits UL'!B19:B301,"<="&$D$1)/1000000) -> 0 | F13: =(SUMIFS('Input - Set Limits'!AA19:AA301,'Input - Set Limits'!AA19:AA301,"<1E100",'Input - Set Limits'!W19:W301,">="&'Input - Set Limits'!$C$13,'Input - Set Limits'!E19:E301,Lists!$B$3,'Input - Set Limits'!B19:B301,">="&$C$1, 'Input - Set Limits'!B19:B301,"<="&$D$1)/1000000)+(SUMIFS('Input - Set Limits'!AA19:AA301,'Input - Set Limits'!AA19:AA301,"<1E100",'Input - Set Limits'!W19:W301,">="&'Input - Set Limits'!$C$13,'Input - Set Limits'!E19:E301,Lists!$B$4,'Input - Set Limits'!B19:B301,">="&$C$1, 'Input - Set Limits'!B19:B301,"<="&$D$1)/1000000)+(SUMIFS('Input - Set Limits UL'!AA19:AA301,'Input - Set Limits UL'!AA19:AA301,"<1E100",'Input - Set Limits UL'!W19:W301,">="&'Input - Set Limits UL'!$C$13,'Input - Set Limits UL'!E19:E301,Lists!$B$3,'Input - Set Limits UL'!B19:B301,">="&$C$1, 'Input - Set Limits UL'!B19:B301,"<="&$D$1)/1000000)+(SUMIFS('Input - Set Limits UL'!AA19:AA301,'Input - Set Limits UL'!AA19:AA301,"<1E100",'Input - Set Limits UL'!W19:W301,">="&'Input - Set Limits UL'!$C$13,'Input - Set Limits UL'!E19:E301,Lists!$B$4,'Input - Set Limits UL'!B19:B301,">="&$C$1, 'Input - Set Limits UL'!B19:B301,"<="&$D$1)/1000000) -> 0 | I13: =(SUMIFS('Input - Set Limits'!Z19:Z301,'Input - Set Limits'!Z19:Z301,"<1E100",'Input - Set Limits'!W19:W301,">="&'Input - Set Limits'!$C$13,'Input - Set Limits'!E19:E301,Lists!$B$3,'Input - Set Limits'!B19:B301,">="&$C$1, 'Input - Set Limits'!B19:B301,"<="&$D$1)/1000000)+(SUMIFS('Input - Set Limits'!Z19:Z301,'Input - Set Limits'!Z19:Z301,"<1E100",'Input - Set Limits'!W19:W301,">="&'Input - Set Limits'!$C$13,'Input - Set Limits'!E19:E301,Lists!$B$4,'Input - Set Limits'!B19:B301,">="&$C$1, 'Input - Set Limits'!B19:B301,"<="&$D$1)/1000000)+(SUMIFS('Input - Set Limits UL'!Z19:Z301,'Input - Set Limits UL'!Z19:Z301,"<1E100",'Input - Set Limits UL'!W19:W301,">="&'Input - Set Limits UL'!$C$13,'Input - Set Limits UL'!E19:E301,Lists!$B$3,'Input - Set Limits UL'!B19:B301,">="&$C$1, 'Input - Set Limits UL'!B19:B301,"<="&$D$1)/1000000)+(SUMIFS('Input - Set Limits UL'!Z19:Z301,'Input - Set Limits UL'!Z19:Z301,"<1E100",'Input - Set Limits UL'!W19:W301,">="&'Input - Set Limits UL'!$C$13,'Input - Set Limits UL'!E19:E301,Lists!$B$4,'Input - Set Limits UL'!B19:B301,">="&$C$1, 'Input - Set Limits UL'!B19:B301,"<="&$D$1)/1000000) -> 0
B14: Other | C14: =SUM((SUMIFS('Input - Set Limits'!AB19:AB301,'Input - Set Limits'!AB19:AB301,"<1E100",'Input - Set Limits'!W19:W301,">="&'Input - Set Limits'!$C$13,'Input - Set Limits'!E19:E301,Lists!$B$5,'Input - Set Limits'!B19:B301,">="&$C$1, 'Input - Set Limits'!B19:B301,"<="&$D$1)/1000000)+(SUMIFS('Input - Set Limits'!AB19:AB301,'Input - Set Limits'!AB19:AB301,"<1E100",'Input - Set Limits'!W19:W301,">="&'Input - Set Limits'!$C$13,'Input - Set Limits'!E19:E301,"",'Input - Set Limits'!B19:B301,">="&$C$1, 'Input - Set Limits'!B19:B301,"<="&$D$1)/1000000)+(SUMIFS('Input - Set Limits UL'!AB19:AB301,'Input - Set Limits UL'!AB19:AB301,"<1E100",'Input - Set Limits UL'!W19:W301,">="&'Input - Set Limits UL'!$C$13,'Input - Set Limits UL'!E19:E301,Lists!$B$5,'Input - Set Limits UL'!B19:B301,">="&$C$1, 'Input - Set Limits UL'!B19:B301,"<="&$D$1)/1000000)+(SUMIFS('Input - Set Limits UL'!AB19:AB301,'Input - Set Limits UL'!AB19:AB301,"<1E100",'Input - Set Limits UL'!W19:W301,">="&'Input - Set Limits UL'!$C$13,'Input - Set Limits UL'!E19:E301,"",'Input - Set Limits UL'!B19:B301,">="&$C$1, 'Input - Set Limits UL'!B19:B301,"<="&$D$1)/1000000)) -> 0 | F14: =SUM((SUMIFS('Input - Set Limits'!AA19:AA301,'Input - Set Limits'!AA19:AA301,"<1E100",'Input - Set Limits'!W19:W301,">="&'Input - Set Limits'!$C$13,'Input - Set Limits'!E19:E301,Lists!$B$5,'Input - Set Limits'!B19:B301,">="&$C$1, 'Input - Set Limits'!B19:B301,"<="&$D$1)/1000000)+(SUMIFS('Input - Set Limits'!AA19:AA301,'Input - Set Limits'!AA19:AA301,"<1E100",'Input - Set Limits'!W19:W301,">="&'Input - Set Limits'!$C$13,'Input - Set Limits'!E19:E301,"",'Input - Set Limits'!B19:B301,">="&$C$1, 'Input - Set Limits'!B19:B301,"<="&$D$1)/1000000)+(SUMIFS('Input - Set Limits UL'!AA19:AA301,'Input - Set Limits UL'!AA19:AA301,"<1E100",'Input - Set Limits UL'!W19:W301,">="&'Input - Set Limits UL'!$C$13,'Input - Set Limits UL'!E19:E301,Lists!$B$5,'Input - Set Limits UL'!B19:B301,">="&$C$1, 'Input - Set Limits UL'!B19:B301,"<="&$D$1)/1000000)+(SUMIFS('Input - Set Limits UL'!AA19:AA301,'Input - Set Limits UL'!AA19:AA301,"<1E100",'Input - Set Limits UL'!W19:W301,">="&'Input - Set Limits UL'!$C$13,'Input - Set Limits UL'!E19:E301,"",'Input - Set Limits UL'!B19:B301,">="&$C$1, 'Input - Set Limits UL'!B19:B301,"<="&$D$1)/1000000)) -> 0 | I14: =SUM((SUMIFS('Input - Set Limits'!Z19:Z301,'Input - Set Limits'!Z19:Z301,"<1E100",'Input - Set Limits'!W19:W301,">="&'Input - Set Limits'!$C$13,'Input - Set Limits'!E19:E301,Lists!$B$5,'Input - Set Limits'!B19:B301,">="&$C$1, 'Input - Set Limits'!B19:B301,"<="&$D$1)/1000000)+(SUMIFS('Input - Set Limits'!Z19:Z301,'Input - Set Limits'!Z19:Z301,"<1E100",'Input - Set Limits'!W19:W301,">="&'Input - Set Limits'!$C$13,'Input - Set Limits'!E19:E301,"",'Input - Set Limits'!B19:B301,">="&$C$1, 'Input - Set Limits'!B19:B301,"<="&$D$1)/1000000)+(SUMIFS('Input - Set Limits UL'!Z19:Z301,'Input - Set Limits UL'!Z19:Z301,"<1E100",'Input - Set Limits UL'!W19:W301,">="&'Input - Set Limits UL'!$C$13,'Input - Set Limits UL'!E19:E301,Lists!$B$5,'Input - Set Limits UL'!B19:B301,">="&$C$1, 'Input - Set Limits UL'!B19:B301,"<="&$D$1)/1000000)+(SUMIFS('Input - Set Limits UL'!Z19:Z301,'Input - Set Limits UL'!Z19:Z301,"<1E100",'Input - Set Limits UL'!W19:W301,">="&'Input - Set Limits UL'!$C$13,'Input - Set Limits UL'!E19:E301,"",'Input - Set Limits UL'!B19:B301,">="&$C$1, 'Input - Set Limits UL'!B19:B301,"<="&$D$1)/1000000)) -> 0
B15: Non-concessional debt, of which | C15: =C16+C17 -> 0 | F15: =F16+F17 -> 0 | I15: =I16+I17 -> 0
B16: Semi-concessional | C16: =(SUMIFS('Input - Set Limits'!AB19:AB301,'Input - Set Limits'!AB19:AB301,"<1E100",'Input - Set Limits'!W19:W301,"<"&'Input - Set Limits'!$C$13,'Input - Set Limits'!W19:W301,">0",'Input - Set Limits'!B19:B301,">="&$C$1,'Input - Set Limits'!B19:B301,"<="&$D$1)/1000000)+(SUMIFS('Input - Set Limits UL'!AB19:AB301,'Input - Set Limits UL'!AB19:AB301,"<1E100",'Input - Set Limits UL'!W19:W301,"<"&'Input - Set Limits UL'!$C$13,'Input - Set Limits UL'!W19:W301,">0",'Input - Set Limits UL'!B19:B301,">="&$C$1, 'Input - Set Limits UL'!B19:B301,"<="&$D$1)/1000000) -> 0 | F16: =(SUMIFS('Input - Set Limits'!AA19:AA301,'Input - Set Limits'!AA19:AA301,"<1E100",'Input - Set Limits'!W19:W301,"<"&'Input - Set Limits'!$C$13,'Input - Set Limits'!W19:W301,">0",'Input - Set Limits'!B19:B301,">="&$C$1,'Input - Set Limits'!B19:B301,"<="&$D$1)/1000000)+(SUMIFS('Input - Set Limits UL'!AA19:AA301,'Input - Set Limits UL'!AA19:AA301,"<1E100",'Input - Set Limits UL'!W19:W301,"<"&'Input - Set Limits UL'!$C$13,'Input - Set Limits UL'!W19:W301,">0",'Input - Set Limits UL'!B19:B301,">="&$C$1, 'Input - Set Limits UL'!B19:B301,"<="&$D$1)/1000000) -> 0 | G16: =F16/$F$10*100 ->  | I16: =(SUMIFS('Input - Set Limits'!Z19:Z301,'Input - Set Limits'!Z19:Z301,"<1E100",'Input - Set Limits'!W19:W301,"<"&'Input - Set Limits'!$C$13,'Input - Set Limits'!W19:W301,">0",'Input - Set Limits'!B19:B301,">="&$C$1,'Input - Set Limits'!B19:B301,"<="&$D$1)/1000000)+(SUMIFS('Input - Set Limits UL'!Z19:Z301,'Input - Set Limits UL'!Z19:Z301,"<1E100",'Input - Set Limits UL'!W19:W301,"<"&'Input - Set Limits UL'!$C$13,'Input - Set Limits UL'!W19:W301,">0",'Input - Set Limits UL'!B19:B301,">="&$C$1, 'Input - Set Limits UL'!B19:B301,"<="&$D$1)/1000000) -> 0
B17: Commercial terms | C17: =(SUMIFS('Input - Set Limits'!AB19:AB301,'Input - Set Limits'!AB19:AB301,"<1E100",'Input - Set Limits'!W19:W301,"<=0",'Input - Set Limits'!B19:B301,">="&$C$1, 'Input - Set Limits'!B19:B301,"<="&$D$1)/1000000)+(SUMIFS('Input - Set Limits UL'!AB19:AB301,'Input - Set Limits UL'!AB19:AB301,"<1E100",'Input - Set Limits UL'!W19:W301,"<=0",'Input - Set Limits UL'!B19:B301,">="&$C$1, 'Input - Set Limits UL'!B19:B301,"<="&$D$1)/1000000) -> 0 | F17: =(SUMIFS('Input - Set Limits'!AA19:AA301,'Input - Set Limits'!AA19:AA301,"<1E100",'Input - Set Limits'!W19:W301,"<=0",'Input - Set Limits'!B19:B301,">="&$C$1, 'Input - Set Limits'!B19:B301,"<="&$D$1)/1000000)+(SUMIFS('Input - Set Limits UL'!AA19:AA301,'Input - Set Limits UL'!AA19:AA301,"<1E100",'Input - Set Limits UL'!W19:W301,"<=0",'Input - Set Limits UL'!B19:B301,">="&$C$1, 'Input - Set Limits UL'!B19:B301,"<="&$D$1)/1000000) -> 0 | I17: =(SUMIFS('Input - Set Limits'!Z19:Z301,'Input - Set Limits'!Z19:Z301,"<1E100",'Input - Set Limits'!W19:W301,"<=0",'Input - Set Limits'!B19:B301,">="&$C$1, 'Input - Set Limits'!B19:B301,"<="&$D$1)/1000000)+(SUMIFS('Input - Set Limits UL'!Z19:Z301,'Input - Set Limits UL'!Z19:Z301,"<1E100",'Input - Set Limits UL'!W19:W301,"<=0",'Input - Set Limits UL'!B19:B301,">="&$C$1, 'Input - Set Limits UL'!B19:B301,"<="&$D$1)/1000000) -> 0
B19: By Creditor Type | C19: =SUM(C20:C23) -> 0 | D19: =C19/$C$19*100 ->  | F19: =SUM(F20:F23) -> 0 | G19: =F19/$F$19*100 ->  | I19: =SUM(I20:I23) -> 0 | J19: =I19/$I$19*100 -> 
B20: =Lists!B2 -> Multilateral | C20: =(SUMIFS('Input - Set Limits'!AB19:AB301,'Input - Set Limits'!AB19:AB301,"<1E100",'Input - Set Limits'!E19:E301,B20,'Input - Set Limits'!B19:B301,">="&$C$1, 'Input - Set Limits'!B19:B301,"<="&$D$1)/1000000)+(SUMIFS('Input - Set Limits UL'!AB19:AB301,'Input - Set Limits UL'!AB19:AB301,"<1E100",'Input - Set Limits UL'!E19:E301,B20,'Input - Set Limits UL'!B19:B301,">="&$C$1, 'Input - Set Limits UL'!B19:B301,"<="&$D$1)/1000000) -> 0 | D20: =C20/C10*100 ->  | F20: =(SUMIFS('Input - Set Limits'!AA19:AA301,'Input - Set Limits'!AA19:AA301,"<1E100",'Input - Set Limits'!E19:E301,B20,'Input - Set Limits'!B19:B301,">="&$C$1, 'Input - Set Limits'!B19:B301,"<="&$D$1)/1000000)+(SUMIFS('Input - Set Limits UL'!AA19:AA301,'Input - Set Limits UL'!AA19:AA301,"<1E100",'Input - Set Limits UL'!E19:E301,B20,'Input - Set Limits UL'!B19:B301,">="&$C$1, 'Input - Set Limits UL'!B19:B301,"<="&$D$1)/1000000) -> 0 | G20: =F20/$F$10*100 ->  | I20: =(SUMIFS('Input - Set Limits'!Z19:Z301,'Input - Set Limits'!Z19:Z301,"<1E100",'Input - Set Limits'!E19:E301,B20,'Input - Set Limits'!B19:B301,">="&$C$1, 'Input - Set Limits'!B19:B301,"<="&$D$1)/1000000)+(SUMIFS('Input - Set Limits UL'!Z19:Z301,'Input - Set Limits UL'!Z19:Z301,"<1E100",'Input - Set Limits UL'!E19:E301,B20,'Input - Set Limits UL'!B19:B301,">="&$C$1, 'Input - Set Limits UL'!B19:B301,"<="&$D$1)/1000000) -> 0 | J20: =I20/I10*100 -> 
B21: =Lists!B3 -> Bilateral - Paris Club | C21: =(SUMIFS('Input - Set Limits'!AB19:AB301,'Input - Set Limits'!AB19:AB301,"<1E100",'Input - Set Limits'!E19:E301,B21,'Input - Set Limits'!B19:B301,">="&$C$1, 'Input - Set Limits'!B19:B301,"<="&$D$1)/1000000)+(SUMIFS('Input - Set Limits UL'!AB19:AB301,'Input - Set Limits UL'!AB19:AB301,"<1E100",'Input - Set Limits UL'!E19:E301,B21,'Input - Set Limits UL'!B19:B301,">="&$C$1, 'Input - Set Limits UL'!B19:B301,"<="&$D$1)/1000000) -> 0 | D21: =C21/C10*100 ->  | F21: =(SUMIFS('Input - Set Limits'!AA19:AA301,'Input - Set Limits'!AA19:AA301,"<1E100",'Input - Set Limits'!E19:E301,B21,'Input - Set Limits'!B19:B301,">="&$C$1, 'Input - Set Limits'!B19:B301,"<="&$D$1)/1000000)+(SUMIFS('Input - Set Limits UL'!AA19:AA301,'Input - Set Limits UL'!AA19:AA301,"<1E100",'Input - Set Limits UL'!E19:E301,B21,'Input - Set Limits UL'!B19:B301,">="&$C$1, 'Input - Set Limits UL'!B19:B301,"<="&$D$1)/1000000) -> 0 | G21: =F21/$F$10*100 ->  | I21: =(SUMIFS('Input - Set Limits'!Z19:Z301,'Input - Set Limits'!Z19:Z301,"<1E100",'Input - Set Limits'!E19:E301,B21,'Input - Set Limits'!B19:B301,">="&$C$1, 'Input - Set Limits'!B19:B301,"<="&$D$1)/1000000)+(SUMIFS('Input - Set Limits UL'!Z19:Z301,'Input - Set Limits UL'!Z19:Z301,"<1E100",'Input - Set Limits UL'!E19:E301,B21,'Input - Set Limits UL'!B19:B301,">="&$C$1, 'Input - Set Limits UL'!B19:B301,"<="&$D$1)/1000000) -> 0 | J21: =I21/I10*100 -> 
B22: =Lists!B4 -> Bilateral - Non-Paris Club | C22: =(SUMIFS('Input - Set Limits'!AB19:AB301,'Input - Set Limits'!AB19:AB301,"<1E100",'Input - Set Limits'!E19:E301,B22,'Input - Set Limits'!B19:B301,">="&$C$1, 'Input - Set Limits'!B19:B301,"<="&$D$1)/1000000)+(SUMIFS('Input - Set Limits UL'!AB19:AB301,'Input - Set Limits UL'!AB19:AB301,"<1E100",'Input - Set Limits UL'!E19:E301,B22,'Input - Set Limits UL'!B19:B301,">="&$C$1, 'Input - Set Limits UL'!B19:B301,"<="&$D$1)/1000000) -> 0 | D22: =C22/C10*100 ->  | F22: =(SUMIFS('Input - Set Limits'!AA19:AA301,'Input - Set Limits'!AA19:AA301,"<1E100",'Input - Set Limits'!E19:E301,B22,'Input - Set Limits'!B19:B301,">="&$C$1, 'Input - Set Limits'!B19:B301,"<="&$D$1)/1000000)+(SUMIFS('Input - Set Limits UL'!AA19:AA301,'Input - Set Limits UL'!AA19:AA301,"<1E100",'Input - Set Limits UL'!E19:E301,B22,'Input - Set Limits UL'!B19:B301,">="&$C$1, 'Input - Set Limits UL'!B19:B301,"<="&$D$1)/1000000) -> 0 | G22: =F22/$F$10*100 ->  | I22: =(SUMIFS('Input - Set Limits'!Z19:Z301,'Input - Set Limits'!Z19:Z301,"<1E100",'Input - Set Limits'!E19:E301,B22,'Input - Set Limits'!B19:B301,">="&$C$1, 'Input - Set Limits'!B19:B301,"<="&$D$1)/1000000)+(SUMIFS('Input - Set Limits UL'!Z19:Z301,'Input - Set Limits UL'!Z19:Z301,"<1E100",'Input - Set Limits UL'!E19:E301,B22,'Input - Set Limits UL'!B19:B301,">="&$C$1, 'Input - Set Limits UL'!B19:B301,"<="&$D$1)/1000000) -> 0 | J22: =I22/I10*100 -> 
B23: =Lists!B5 -> Other | C23: =C10-SUM(C20:C22) -> 0 | D23: =C23/C10*100 ->  | F23: =F10-SUM(F20:F22) -> 0 | G23: =F23/$F$10*100 ->  | I23: =I10-SUM(I20:I22) -> 0 | J23: =I23/I10*100 -> 
B25: Uses of debt financing | C25: =SUM(C26:C29) -> 0 | D25: =C25/$C$25*100 ->  | F25: =SUM(F26:F29) -> 0 | G25: =F25/$F$25*100 ->  | I25: =SUM(I26:I29) -> 0 | J25: =I25/$I$25*100 -> 
B26: =Lists!F2 -> Infrastructure | C26: =(SUMIFS('Input - Set Limits'!$AB$19:$AB$318,'Input - Set Limits'!$AB$19:$AB$318,"<1E100",'Input - Set Limits'!$D$19:$D$318,Lists!$F$2,'Input - Set Limits'!$B$19:$B$318,">="&$C$1, 'Input - Set Limits'!$B$19:$B$318,"<="&$D$1)/1000000)+(SUMIFS('Input - Set Limits UL'!$AB$19:$AB$318,'Input - Set Limits UL'!$AB$19:$AB$318,"<1E100",'Input - Set Limits UL'!$D$19:$D$318,Lists!$F$2,'Input - Set Limits UL'!$B$19:$B$318,">="&$C$1, 'Input - Set Limits UL'!$B$19:$B$318,"<="&$D$1)/1000000) -> 0 | D26: =C26/$C$10*100 ->  | F26: =(SUMIFS('Input - Set Limits'!$AA$19:$AA$318,'Input - Set Limits'!$AA$19:$AA$318,"<1E100",'Input - Set Limits'!$D$19:$D$318,Lists!$F$2,'Input - Set Limits'!$B$19:$B$318,">="&$C$1, 'Input - Set Limits'!$B$19:$B$318,"<="&$D$1)/1000000)+(SUMIFS('Input - Set Limits UL'!$AA$19:$AA$318,'Input - Set Limits UL'!$AA$19:$AA$318,"<1E100",'Input - Set Limits UL'!$D$19:$D$318,Lists!$F$2,'Input - Set Limits UL'!$B$19:$B$318,">="&$C$1, 'Input - Set Limits UL'!$B$19:$B$318,"<="&$D$1)/1000000) -> 0 | G26: =F26/$F$10*100 ->  | I26: =(SUMIFS('Input - Set Limits'!$Z$19:$Z$318,'Input - Set Limits'!$Z$19:$Z$318,"<1E100",'Input - Set Limits'!$D$19:$D$318,Lists!$F$2,'Input - Set Limits'!$B$19:$B$318,">="&$C$1, 'Input - Set Limits'!$B$19:$B$318,"<="&$D$1)/1000000)+(SUMIFS('Input - Set Limits UL'!$Z$19:$Z$318,'Input - Set Limits UL'!$Z$19:$Z$318,"<1E100",'Input - Set Limits UL'!$D$19:$D$318,Lists!$F$2,'Input - Set Limits UL'!$B$19:$B$318,">="&$C$1, 'Input - Set Limits UL'!$B$19:$B$318,"<="&$D$1)/1000000) -> 0 | J26: =I26/$I$10*100 -> 
B27: =Lists!F3 -> Social Spending | C27: =(SUMIFS('Input - Set Limits'!$AB$19:$AB$318,'Input - Set Limits'!$AB$19:$AB$318,"<1E100",'Input - Set Limits'!$D$19:$D$318,Lists!$F$3,'Input - Set Limits'!$B$19:$B$318,">="&$C$1, 'Input - Set Limits'!$B$19:$B$318,"<="&$D$1)/1000000)+(SUMIFS('Input - Set Limits UL'!$AB$19:$AB$318,'Input - Set Limits UL'!$AB$19:$AB$318,"<1E100",'Input - Set Limits UL'!$D$19:$D$318,Lists!$F$3,'Input - Set Limits UL'!$B$19:$B$318,">="&$C$1, 'Input - Set Limits UL'!$B$19:$B$318,"<="&$D$1)/1000000) -> 0 | D27: =C27/$C$10*100 ->  | F27: =(SUMIFS('Input - Set Limits'!$AA$19:$AA$318,'Input - Set Limits'!$AA$19:$AA$318,"<1E100",'Input - Set Limits'!$D$19:$D$318,Lists!$F$3,'Input - Set Limits'!$B$19:$B$318,">="&$C$1, 'Input - Set Limits'!$B$19:$B$318,"<="&$D$1)/1000000)+(SUMIFS('Input - Set Limits UL'!$AA$19:$AA$318,'Input - Set Limits UL'!$AA$19:$AA$318,"<1E100",'Input - Set Limits UL'!$D$19:$D$318,Lists!$F$3,'Input - Set Limits UL'!$B$19:$B$318,">="&$C$1, 'Input - Set Limits UL'!$B$19:$B$318,"<="&$D$1)/1000000) -> 0 | G27: =F27/$F$10*100 ->  | I27: =(SUMIFS('Input - Set Limits'!$Z$19:$Z$318,'Input - Set Limits'!$Z$19:$Z$318,"<1E100",'Input - Set Limits'!$D$19:$D$318,Lists!$F$3,'Input - Set Limits'!$B$19:$B$318,">="&$C$1, 'Input - Set Limits'!$B$19:$B$318,"<="&$D$1)/1000000)+(SUMIFS('Input - Set Limits UL'!$Z$19:$Z$318,'Input - Set Limits UL'!$Z$19:$Z$318,"<1E100",'Input - Set Limits UL'!$D$19:$D$318,Lists!$F$3,'Input - Set Limits UL'!$B$19:$B$318,">="&$C$1, 'Input - Set Limits UL'!$B$19:$B$318,"<="&$D$1)/1000000) -> 0 | J27: =I27/$I$10*100 -> 
B28: =Lists!F4 -> Budget Financing | C28: =(SUMIFS('Input - Set Limits'!$AB$19:$AB$318,'Input - Set Limits'!$AB$19:$AB$318,"<1E100",'Input - Set Limits'!$D$19:$D$318,Lists!$F$4,'Input - Set Limits'!$B$19:$B$318,">="&$C$1, 'Input - Set Limits'!$B$19:$B$318,"<="&$D$1)/1000000)+(SUMIFS('Input - Set Limits UL'!$AB$19:$AB$318,'Input - Set Limits UL'!$AB$19:$AB$318,"<1E100",'Input - Set Limits UL'!$D$19:$D$318,Lists!$F$4,'Input - Set Limits UL'!$B$19:$B$318,">="&$C$1, 'Input - Set Limits UL'!$B$19:$B$318,"<="&$D$1)/1000000) -> 0 | F28: =(SUMIFS('Input - Set Limits'!$AA$19:$AA$318,'Input - Set Limits'!$AA$19:$AA$318,"<1E100",'Input - Set Limits'!$D$19:$D$318,Lists!$F$4,'Input - Set Limits'!$B$19:$B$318,">="&$C$1, 'Input - Set Limits'!$B$19:$B$318,"<="&$D$1)/1000000)+(SUMIFS('Input - Set Limits UL'!$AA$19:$AA$318,'Input - Set Limits UL'!$AA$19:$AA$318,"<1E100",'Input - Set Limits UL'!$D$19:$D$318,Lists!$F$4,'Input - Set Limits UL'!$B$19:$B$318,">="&$C$1, 'Input - Set Limits UL'!$B$19:$B$318,"<="&$D$1)/1000000) -> 0 | G28: =F28/$F$10*100 ->  | I28: =(SUMIFS('Input - Set Limits'!$Z$19:$Z$318,'Input - Set Limits'!$Z$19:$Z$318,"<1E100",'Input - Set Limits'!$D$19:$D$318,Lists!$F$4,'Input - Set Limits'!$B$19:$B$318,">="&$C$1, 'Input - Set Limits'!$B$19:$B$318,"<="&$D$1)/1000000)+(SUMIFS('Input - Set Limits UL'!$Z$19:$Z$318,'Input - Set Limits UL'!$Z$19:$Z$318,"<1E100",'Input - Set Limits UL'!$D$19:$D$318,Lists!$F$4,'Input - Set Limits UL'!$B$19:$B$318,">="&$C$1, 'Input - Set Limits UL'!$B$19:$B$318,"<="&$D$1)/1000000) -> 0
B29: =Lists!F5 -> Other | C29: =C10-SUM(C26:C28) -> 0 | F29: =F10-SUM(F26:F28) -> 0 | G29: =F29/$F$10*100 ->  | I29: =I10-SUM(I26:I28) -> 0
B31: Memo Items
B32: Indicative projections
B33: Year 2 | C33: =(SUMIFS('Input - Set Limits'!AB19:AB301,'Input - Set Limits'!AB19:AB301,"<1E100",'Input - Set Limits'!B19:B301,">"&$D$1,'Input - Set Limits'!B19:B301,"<="&(EDATE(D1,12)))/1000000)+(SUMIFS('Input - Set Limits UL'!AB19:AB301,'Input - Set Limits UL'!AB19:AB301,"<1E100",'Input - Set Limits UL'!B19:B301,">"&$D$1,'Input - Set Limits UL'!B19:B301,"<="&(EDATE(D1,12)))/1000000) -> 0 | F33: =(SUMIFS('Input - Set Limits'!AA19:AA301,'Input - Set Limits'!AA19:AA301,"<1E100",'Input - Set Limits'!B19:B301,">"&$D$1,'Input - Set Limits'!B19:B301,"<="&(EDATE(D1,12)))/1000000)+(SUMIFS('Input - Set Limits UL'!AA19:AA301,'Input - Set Limits UL'!AA19:AA301,"<1E100",'Input - Set Limits UL'!B19:B301,">"&$D$1,'Input - Set Limits UL'!B19:B301,"<="&(EDATE(D1,12)))/1000000) -> 0 | I33: =(SUMIFS('Input - Set Limits'!Z19:Z301,'Input - Set Limits'!Z19:Z301,"<1E100",'Input - Set Limits'!B19:B301,">"&$D$1,'Input - Set Limits'!B19:B301,"<="&(EDATE(D1,12)))/1000000)+(SUMIFS('Input - Set Limits UL'!Z19:Z301,'Input - Set Limits UL'!Z19:Z301,"<1E100",'Input - Set Limits UL'!B19:B301,">"&$D$1,'Input - Set Limits UL'!B19:B301,"<="&(EDATE(D1,12)))/1000000) -> 0
B34: Year 3 | C34: =(SUMIFS('Input - Set Limits'!AB19:AB301,'Input - Set Limits'!AB19:AB301,"<1E100",'Input - Set Limits'!B19:B301,">"&(EDATE(D1,12)),'Input - Set Limits'!B19:B301,"<="&(EDATE(D1,24)))/1000000)+(SUMIFS('Input - Set Limits UL'!AB19:AB301,'Input - Set Limits UL'!AB19:AB301,"<1E100",'Input - Set Limits UL'!B19:B301,">"&(EDATE(D1,12)),'Input - Set Limits UL'!B19:B301,"<="&(EDATE(D1,24)))/1000000) -> 0 | F34: =(SUMIFS('Input - Set Limits'!AA19:AA301,'Input - Set Limits'!AA19:AA301,"<1E100",'Input - Set Limits'!B19:B301,">"&(EDATE(D1,12)),'Input - Set Limits'!B19:B301,"<="&(EDATE(D1,24)))/1000000)+(SUMIFS('Input - Set Limits UL'!AA19:AA301,'Input - Set Limits UL'!AA19:AA301,"<1E100",'Input - Set Limits UL'!B19:B301,">"&(EDATE(D1,12)),'Input - Set Limits UL'!B19:B301,"<="&(EDATE(D1,24)))/1000000) -> 0 | I34: =(SUMIFS('Input - Set Limits'!Z19:Z301,'Input - Set Limits'!Z19:Z301,"<1E100",'Input - Set Limits'!B19:B301,">"&(EDATE(D1,12)),'Input - Set Limits'!B19:B301,"<="&(EDATE(D1,24)))/1000000)+(SUMIFS('Input - Set Limits UL'!Z19:Z301,'Input - Set Limits UL'!Z19:Z301,"<1E100",'Input - Set Limits UL'!B19:B301,">"&(EDATE(D1,12)),'Input - Set Limits UL'!B19:B301,"<="&(EDATE(D1,24)))/1000000) -> 0
B36: Table 2. Type of New External Debt, USD million
B37: =B5 -> January 1, 2023 to December 31, 2023
B39: By the type of interest rate
B40: Fixed Interest Rate | C40: =(SUMIFS('Input - Set Limits'!AB19:AB318,'Input - Set Limits'!AB19:AB318,"<1E100",'Input - Set Limits'!I19:I318,"Fixed",'Input - Set Limits'!$B$19:$B$318,">="&$C$1, 'Input - Set Limits'!$B$19:$B$318,"<="&$D$1)/1000000)+(SUMIFS('Input - Set Limits UL'!AB19:AB318,'Input - Set Limits UL'!AB19:AB318,"<1E100",'Input - Set Limits UL'!I19:I318,"Fixed",'Input - Set Limits UL'!$B$19:$B$318,">="&$C$1, 'Input - Set Limits UL'!$B$19:$B$318,"<="&$D$1)/1000000) -> 0
B41: Variable Interest Rate | C41: =(SUMIFS('Input - Set Limits'!AB19:AB318,'Input - Set Limits'!AB19:AB318,"<1E100",'Input - Set Limits'!I19:I318,"Variable",'Input - Set Limits'!$B$19:$B$318,">="&$C$1, 'Input - Set Limits'!$B$19:$B$318,"<="&$D$1)/1000000)+(SUMIFS('Input - Set Limits UL'!AB19:AB318,'Input - Set Limits UL'!AB19:AB318,"<1E100",'Input - Set Limits UL'!I19:I318,"Variable",'Input - Set Limits UL'!$B$19:$B$318,">="&$C$1, 'Input - Set Limits UL'!$B$19:$B$318,"<="&$D$1)/1000000) -> 0
B42: Unconventional Loans | C42: =SUMIFS('Input - Set Limits UL'!AB19:AB318,'Input - Set Limits UL'!$B$19:$B$318,">="&$C$1,'Input - Set Limits UL'!$B$19:$B$318,"<="&$D$1)/1000000 -> 0
B43: By currency
B44: USD denominated loans | C44: =(SUMIFS('Input - Set Limits'!AB19:AB318,'Input - Set Limits'!AB19:AB318,"<1E100",'Input - Set Limits'!G19:G318,"USD",'Input - Set Limits'!$B$19:$B$318,">="&$C$1, 'Input - Set Limits'!$B$19:$B$318,"<="&$D$1)/1000000)+(SUMIFS('Input - Set Limits UL'!AB19:AB318,'Input - Set Limits UL'!AB19:AB318,"<1E100",'Input - Set Limits UL'!G19:G318,"USD",'Input - Set Limits UL'!$B$19:$B$318,">="&$C$1, 'Input - Set Limits UL'!$B$19:$B$318,"<="&$D$1)/1000000) -> 0
B45: Loans denominated in other currency | C45: =C40+C41+C42-C44 -> 0

Sheet Input - Monitor Limits
H2:  MONITORING DEBT TARGETS 
B3: INTRODUCTION: | C3: This calculator calculates the Grant Element and Present Values of 300 loans at once.
C4: #Err messges are flagged in the output columns if the Loan Terms
C5: are incorrectly input. In these cases, please verify the loan terms and then click the CALCULATE button.
C6: The Output Table sheet summarizes the results from these loans.
B10: INPUTS - PART 1
B11: INTEREST RATE TYPE | C11: FIRF
B12: DEBT LIMIT BASIS | C12: Contracting
B13: MIN GRANT ELEMENT | C13: 0.35
B14: REFERENCE RATE | C14: =IF(C11="LIBOR",'GAS FILE'!B53,'GAS FILE'!B54) -> 0.03286127628
B15: DISCOUNT RATE | C15: 0.05
B16: Period Start/End Date | C16: 2023-01-01 | D16: 2023-12-31
B17: INPUTS PART 2 | O17: Management Fees | Q17: Calculated | V17: OUTPUT
B18: Effective date | C18: Creditor Name (Optional) | D18: Use of debt financing (if known) | E18: Creditor Type | F18: Currency for rate calculation | G18: Currency of loan denomination | H18: Exchange rate (Currency per USD) | I18: Fixed/ Variable | J18: Rate (if Fixed) / Spread from loan contract (if Variable) | K18: Repayment Profile (choose from the 5 profiles in the drop down menu) | L18: Face Value (currency of denonimation) | M18: Grant (as part of financing package) | N18: Upfront Commission (in percent) | O18: Percent of the outstanding nominal amount | P18: Nominal Amount (per period) | Q18: Effective interest Rate | R18: Maturity (years) | S18: Payments per annum | T18: Grace Period (years) | V18: Present Value (currency specific) | W18: Grant Element | X18: =CONCATENATE("Concessionality (based on ", C13*100," % GE)") -> Concessionality (based on 35 % GE) | Z18: Present Value Actual in USD | AA18: Present Value in USD for program purposes | AB18: Nominal in USD | AC18: Weights by nominal amount | AD18: Weighted by Grant Element | AF18: YEAR of Loan
A19: 1 | B19: 2018-01-01 | C19: IDA | D19: Infrastructure | E19: Multilateral | F19: USD | G19: ILS | H19: 1 | I19: Fixed | J19: 0.0075 | K19: Equal Principal Payment | L19: 140000000 | M19: 0 | N19: 0 | O19: 0 | P19: 0 | Q19: =IF(ISNUMBER(L19),IF(I19="Fixed",J19,IF(F19="USD",J19+$C$14+IF($C$11="LIBOR",'GAS FILE'!$C$53,'GAS FILE'!$C$54),IF(F19="JPY",J19+$C$14+'GAS FILE'!$C$56,IF(F19="EUR",J19+$C$14+IF($C$11="LIBOR",'GAS FILE'!$C$55,'GAS FILE'!$C$59),IF(J19="GBP",'Input - Monitor Limits'!J19+$C$14+IF($C$11="LIBOR",'GAS FILE'!$C$57,'GAS FILE'!$C$58),J19+$C$14+'GAS FILE'!$C$60))))),"") -> 0.0075 | R19: 38 | S19: 10 | T19: 10 | V19: 36730819.5 | W19: 0.7376370036 | X19: =IF(ISNUMBER(W19),IF(W19>=$C$13,Lists!$E$2,Lists!$E$4),"") -> Concessional | Z19: =IF(ISNUMBER(V19/H19),V19/H19,"") -> 36730819.5 | AA19: =IF(ISNUMBER(IF(W19<0,AB19,Z19)),IF(W19<0,AB19,Z19),"") -> 36730819.5 | AB19: =IF(ISNUMBER(L19/H19),L19/H19,"") -> 140000000 | AC19: =AB19/SUMIF('Input - Monitor Limits'!$AB$19:$AB$318,"<1E100")*100 -> 38.24597886 | AD19: =AC19*W19 -> 28.21164924 | AF19: =IF(YEAR(B19)<$C$16,"",YEAR(B19)) -> 
A20: 2 | B20: 2018-01-01 | C20: ADF | D20: Infrastructure | E20: Multilateral | F20: USD | G20: EUR | H20: 5 | I20: Fixed | J20: 0.01 | K20: Equal Principal Payment | L20: 60000000 | M20: 0 | N20: 0 | O20: 0 | P20: 0 | Q20: =IF(ISNUMBER(L20),IF(I20="Fixed",J20,IF(F20="USD",J20+$C$14+IF($C$11="LIBOR",'GAS FILE'!$C$53,'GAS FILE'!$C$54),IF(F20="JPY",J20+$C$14+'GAS FILE'!$C$56,IF(F20="EUR",J20+$C$14+IF($C$11="LIBOR",'GAS FILE'!$C$55,'GAS FILE'!$C$59),IF(J20="GBP",'Input - Monitor Limits'!J20+$C$14+IF($C$11="LIBOR",'GAS FILE'!$C$57,'GAS FILE'!$C$58),J20+$C$14+'GAS FILE'!$C$60))))),"") -> 0.01 | R20: 32 | S20: 10 | T20: 10 | V20: 20222132.58 | W20: 0.6629644571 | X20: =IF(ISNUMBER(W20),IF(W20>=$C$13,Lists!$E$2,Lists!$E$4),"") -> Concessional | Z20: =IF(ISNUMBER(V20/H20),V20/H20,"") -> 4044426.515 | AA20: =IF(ISNUMBER(IF(W20<0,AB20,Z20)),IF(W20<0,AB20,Z20),"") -> 4044426.515 | AB20: =IF(ISNUMBER(L20/H20),L20/H20,"") -> 12000000 | AC20: =AB20/SUMIF('Input - Monitor Limits'!$AB$19:$AB$318,"<1E100")*100 -> 3.278226759 | AD20: 2.173347824 | AF20: =IF(YEAR(B20)<$C$16,"",YEAR(B20)) -> 
A21: 3 | B21: 2018-01-01 | C21: Country Z | D21: Infrastructure | E21: Bilateral - Paris Club | F21: Other | G21: JPY | H21: 1 | I21: Fixed | J21: 0.02 | K21: Equal Principal Payment | L21: 100000000 | M21: 0 | N21: 0 | O21: 0 | P21: 0 | Q21: =IF(ISNUMBER(L21),IF(I21="Fixed",J21,IF(F21="USD",J21+$C$14+IF($C$11="LIBOR",'GAS FILE'!$C$53,'GAS FILE'!$C$54),IF(F21="JPY",J21+$C$14+'GAS FILE'!$C$56,IF(F21="EUR",J21+$C$14+IF($C$11="LIBOR",'GAS FILE'!$C$55,'GAS FILE'!$C$59),IF(J21="GBP",'Input - Monitor Limits'!J21+$C$14+IF($C$11="LIBOR",'GAS FILE'!$C$57,'GAS FILE'!$C$58),J21+$C$14+'GAS FILE'!$C$60))))),"") -> 0.02 | R21: 20 | S21: 10 | T21: 10 | V21: 69301449.7 | W21: 0.306985503 | X21: =IF(ISNUMBER(W21),IF(W21>=$C$13,Lists!$E$2,Lists!$E$4),"") -> Non-concessional | Z21: 69301449.7 | AA21: 69301449.7 | AB21: 100000000 | AC21: =AB21/SUMIF('Input - Monitor Limits'!$AB$19:$AB$318,"<1E100")*100 -> 27.31855633 | AD21: 8.386400756
A22: 4 | B22: 2018-01-01 | C22: Country Y | D22: Infrastructure | E22: Bilateral - Non-Paris Club | F22: USD | G22: USD | H22: 1 | I22: Variable | J22: 0.029 | K22: Equal Principal Payment | L22: 56908697 | M22: 39990000 | N22: 0.0025 | O22: 0 | P22: 0 | Q22: =IF(ISNUMBER(L22),IF(I22="Fixed",J22,IF(F22="USD",J22+$C$14+IF($C$11="LIBOR",'GAS FILE'!$C$53,'GAS FILE'!$C$54),IF(F22="JPY",J22+$C$14+'GAS FILE'!$C$56,IF(F22="EUR",J22+$C$14+IF($C$11="LIBOR",'GAS FILE'!$C$55,'GAS FILE'!$C$59),IF(J22="GBP",'Input - Monitor Limits'!J22+$C$14+IF($C$11="LIBOR",'GAS FILE'!$C$57,'GAS FILE'!$C$58),J22+$C$14+'GAS FILE'!$C$60))))),"") -> 0.06186127628 | R22: 15 | S22: 2 | T22: 3 | V22: 61081520.58 | W22: 0.3696352741 | X22: =IF(ISNUMBER(W22),IF(W22>=$C$13,Lists!$E$2,Lists!$E$4),"") -> Concessional | Z22: 61081520.58 | AA22: 61081520.58 | AB22: 56908697 | AC22: =AB22/SUMIF('Input - Monitor Limits'!$AB$19:$AB$318,"<1E100")*100 -> 15.54663444 | AD22: 5.746584484
A23: 5 | B23: 2018-01-01 | C23: ABC Bank | D23: Infrastructure | E23: Other | F23: USD | G23: JPY | H23: 7 | I23: Variable | J23: 0.04 | K23: Lump Sum Principal | L23: 400000000 | M23: 0 | N23: 0 | O23: 0 | P23: 0 | Q23: =IF(ISNUMBER(L23),IF(I23="Fixed",J23,IF(F23="USD",J23+$C$14+IF($C$11="LIBOR",'GAS FILE'!$C$53,'GAS FILE'!$C$54),IF(F23="JPY",J23+$C$14+'GAS FILE'!$C$56,IF(F23="EUR",J23+$C$14+IF($C$11="LIBOR",'GAS FILE'!$C$55,'GAS FILE'!$C$59),IF(J23="GBP",'Input - Monitor Limits'!J23+$C$14+IF($C$11="LIBOR",'GAS FILE'!$C$57,'GAS FILE'!$C$58),J23+$C$14+'GAS FILE'!$C$60))))),"") -> 0.07286127628 | R23: 10 | S23: 10 | T23: 10 | V23: 467506584.1 | W23: -0.1687664603 | X23: =IF(ISNUMBER(W23),IF(W23>=$C$13,Lists!$E$2,Lists!$E$4),"") -> Non-concessional | Z23: 66786654.87 | AA23: 57142857.14 | AB23: 57142857.14 | AC23: =AB23/SUMIF('Input - Monitor Limits'!$AB$19:$AB$318,"<1E100")*100 -> 15.61060361 | AD23: -2.634546315
A24: 6 | Q24: =IF(ISNUMBER(L24),IF(I24="Fixed",J24,IF(F24="USD",J24+$C$14+IF($C$11="LIBOR",'GAS FILE'!$C$53,'GAS FILE'!$C$54),IF(F24="JPY",J24+$C$14+'GAS FILE'!$C$56,IF(F24="EUR",J24+$C$14+IF($C$11="LIBOR",'GAS FILE'!$C$55,'GAS FILE'!$C$59),IF(J24="GBP",'Input - Monitor Limits'!J24+$C$14+IF($C$11="LIBOR",'GAS FILE'!$C$57,'GAS FILE'!$C$58),J24+$C$14+'GAS FILE'!$C$60))))),"") ->  | X24: =IF(ISNUMBER(W24),IF(W24>=$C$13,Lists!$E$2,Lists!$E$4),"") ->  | AC24: =AB24/SUMIF('Input - Monitor Limits'!$AB$19:$AB$318,"<1E100")*100 -> 
A25: 7 | Q25: =IF(ISNUMBER(L25),IF(I25="Fixed",J25,IF(F25="USD",J25+$C$14+IF($C$11="LIBOR",'GAS FILE'!$C$53,'GAS FILE'!$C$54),IF(F25="JPY",J25+$C$14+'GAS FILE'!$C$56,IF(F25="EUR",J25+$C$14+IF($C$11="LIBOR",'GAS FILE'!$C$55,'GAS FILE'!$C$59),IF(J25="GBP",'Input - Monitor Limits'!J25+$C$14+IF($C$11="LIBOR",'GAS FILE'!$C$57,'GAS FILE'!$C$58),J25+$C$14+'GAS FILE'!$C$60))))),"") ->  | X25: =IF(ISNUMBER(W25),IF(W25>=$C$13,Lists!$E$2,Lists!$E$4),"") ->  | Z25: =IF(ISNUMBER(V25/H25),V25/H25,"") ->  | AA25: =IF(ISNUMBER(IF(W25<0,AB25,Z25)),IF(W25<0,AB25,Z25),"") ->  | AB25: =IF(ISNUMBER(L25/H25),L25/H25,"") ->  | AC25: =AB25/SUMIF('Input - Monitor Limits'!$AB$19:$AB$318,"<1E100")*100 -> 
A26: 8 | Q26: =IF(ISNUMBER(L26),IF(I26="Fixed",J26,IF(F26="USD",J26+$C$14+IF($C$11="LIBOR",'GAS FILE'!$C$53,'GAS FILE'!$C$54),IF(F26="JPY",J26+$C$14+'GAS FILE'!$C$56,IF(F26="EUR",J26+$C$14+IF($C$11="LIBOR",'GAS FILE'!$C$55,'GAS FILE'!$C$59),IF(J26="GBP",'Input - Monitor Limits'!J26+$C$14+IF($C$11="LIBOR",'GAS FILE'!$C$57,'GAS FILE'!$C$58),J26+$C$14+'GAS FILE'!$C$60))))),"") ->  | X26: =IF(ISNUMBER(W26),IF(W26>=$C$13,Lists!$E$2,Lists!$E$4),"") ->  | AC26: =AB26/SUMIF('Input - Monitor Limits'!$AB$19:$AB$318,"<1E100")*100 -> 
A27: 9 | Q27: =IF(ISNUMBER(L27),IF(I27="Fixed",J27,IF(F27="USD",J27+$C$14+IF($C$11="LIBOR",'GAS FILE'!$C$53,'GAS FILE'!$C$54),IF(F27="JPY",J27+$C$14+'GAS FILE'!$C$56,IF(F27="EUR",J27+$C$14+IF($C$11="LIBOR",'GAS FILE'!$C$55,'GAS FILE'!$C$59),IF(J27="GBP",'Input - Monitor Limits'!J27+$C$14+IF($C$11="LIBOR",'GAS FILE'!$C$57,'GAS FILE'!$C$58),J27+$C$14+'GAS FILE'!$C$60))))),"") ->  | X27: =IF(ISNUMBER(W27),IF(W27>=$C$13,Lists!$E$2,Lists!$E$4),"") ->  | AC27: =AB27/SUMIF('Input - Monitor Limits'!$AB$19:$AB$318,"<1E100")*100 -> 
A28: 10 | Q28: =IF(ISNUMBER(L28),IF(I28="Fixed",J28,IF(F28="USD",J28+$C$14+IF($C$11="LIBOR",'GAS FILE'!$C$53,'GAS FILE'!$C$54),IF(F28="JPY",J28+$C$14+'GAS FILE'!$C$56,IF(F28="EUR",J28+$C$14+IF($C$11="LIBOR",'GAS FILE'!$C$55,'GAS FILE'!$C$59),IF(J28="GBP",'Input - Monitor Limits'!J28+$C$14+IF($C$11="LIBOR",'GAS FILE'!$C$57,'GAS FILE'!$C$58),J28+$C$14+'GAS FILE'!$C$60))))),"") ->  | X28: =IF(ISNUMBER(W28),IF(W28>=$C$13,Lists!$E$2,Lists!$E$4),"") ->  | AC28: =AB28/SUMIF('Input - Monitor Limits'!$AB$19:$AB$318,"<1E100")*100 -> 
A29: 11 | Q29: =IF(ISNUMBER(L29),IF(I29="Fixed",J29,IF(F29="USD",J29+$C$14+IF($C$11="LIBOR",'GAS FILE'!$C$53,'GAS FILE'!$C$54),IF(F29="JPY",J29+$C$14+'GAS FILE'!$C$56,IF(F29="EUR",J29+$C$14+IF($C$11="LIBOR",'GAS FILE'!$C$55,'GAS FILE'!$C$59),IF(J29="GBP",'Input - Monitor Limits'!J29+$C$14+IF($C$11="LIBOR",'GAS FILE'!$C$57,'GAS FILE'!$C$58),J29+$C$14+'GAS FILE'!$C$60))))),"") ->  | X29: =IF(ISNUMBER(W29),IF(W29>=$C$13,Lists!$E$2,Lists!$E$4),"") ->  | AC29: =AB29/SUMIF('Input - Monitor Limits'!$AB$19:$AB$318,"<1E100")*100 -> 
A30: 12 | Q30: =IF(ISNUMBER(L30),IF(I30="Fixed",J30,IF(F30="USD",J30+$C$14+IF($C$11="LIBOR",'GAS FILE'!$C$53,'GAS FILE'!$C$54),IF(F30="JPY",J30+$C$14+'GAS FILE'!$C$56,IF(F30="EUR",J30+$C$14+IF($C$11="LIBOR",'GAS FILE'!$C$55,'GAS FILE'!$C$59),IF(J30="GBP",'Input - Monitor Limits'!J30+$C$14+IF($C$11="LIBOR",'GAS FILE'!$C$57,'GAS FILE'!$C$58),J30+$C$14+'GAS FILE'!$C$60))))),"") ->  | X30: =IF(ISNUMBER(W30),IF(W30>=$C$13,Lists!$E$2,Lists!$E$4),"") ->  | AC30: =AB30/SUMIF('Input - Monitor Limits'!$AB$19:$AB$318,"<1E100")*100 -> 
A31: 13 | Q31: =IF(ISNUMBER(L31),IF(I31="Fixed",J31,IF(F31="USD",J31+$C$14+IF($C$11="LIBOR",'GAS FILE'!$C$53,'GAS FILE'!$C$54),IF(F31="JPY",J31+$C$14+'GAS FILE'!$C$56,IF(F31="EUR",J31+$C$14+IF($C$11="LIBOR",'GAS FILE'!$C$55,'GAS FILE'!$C$59),IF(J31="GBP",'Input - Monitor Limits'!J31+$C$14+IF($C$11="LIBOR",'GAS FILE'!$C$57,'GAS FILE'!$C$58),J31+$C$14+'GAS FILE'!$C$60))))),"") ->  | X31: =IF(ISNUMBER(W31),IF(W31>=$C$13,Lists!$E$2,Lists!$E$4),"") ->  | AC31: =AB31/SUMIF('Input - Monitor Limits'!$AB$19:$AB$318,"<1E100")*100 -> 
A32: 14 | Q32: =IF(ISNUMBER(L32),IF(I32="Fixed",J32,IF(F32="USD",J32+$C$14+IF($C$11="LIBOR",'GAS FILE'!$C$53,'GAS FILE'!$C$54),IF(F32="JPY",J32+$C$14+'GAS FILE'!$C$56,IF(F32="EUR",J32+$C$14+IF($C$11="LIBOR",'GAS FILE'!$C$55,'GAS FILE'!$C$59),IF(J32="GBP",'Input - Monitor Limits'!J32+$C$14+IF($C$11="LIBOR",'GAS FILE'!$C$57,'GAS FILE'!$C$58),J32+$C$14+'GAS FILE'!$C$60))))),"") ->  | X32: =IF(ISNUMBER(W32),IF(W32>=$C$13,Lists!$E$2,Lists!$E$4),"") ->  | AC32: =AB32/SUMIF('Input - Monitor Limits'!$AB$19:$AB$318,"<1E100")*100 -> 
A33: 15 | Q33: =IF(ISNUMBER(L33),IF(I33="Fixed",J33,IF(F33="USD",J33+$C$14+IF($C$11="LIBOR",'GAS FILE'!$C$53,'GAS FILE'!$C$54),IF(F33="JPY",J33+$C$14+'GAS FILE'!$C$56,IF(F33="EUR",J33+$C$14+IF($C$11="LIBOR",'GAS FILE'!$C$55,'GAS FILE'!$C$59),IF(J33="GBP",'Input - Monitor Limits'!J33+$C$14+IF($C$11="LIBOR",'GAS FILE'!$C$57,'GAS FILE'!$C$58),J33+$C$14+'GAS FILE'!$C$60))))),"") ->  | X33: =IF(ISNUMBER(W33),IF(W33>=$C$13,Lists!$E$2,Lists!$E$4),"") ->  | AC33: =AB33/SUMIF('Input - Monitor Limits'!$AB$19:$AB$318,"<1E100")*100 -> 
A34: 16 | Q34: =IF(ISNUMBER(L34),IF(I34="Fixed",J34,IF(F34="USD",J34+$C$14+IF($C$11="LIBOR",'GAS FILE'!$C$53,'GAS FILE'!$C$54),IF(F34="JPY",J34+$C$14+'GAS FILE'!$C$56,IF(F34="EUR",J34+$C$14+IF($C$11="LIBOR",'GAS FILE'!$C$55,'GAS FILE'!$C$59),IF(J34="GBP",'Input - Monitor Limits'!J34+$C$14+IF($C$11="LIBOR",'GAS FILE'!$C$57,'GAS FILE'!$C$58),J34+$C$14+'GAS FILE'!$C$60))))),"") ->  | X34: =IF(ISNUMBER(W34),IF(W34>=$C$13,Lists!$E$2,Lists!$E$4),"") ->  | AC34: =AB34/SUMIF('Input - Monitor Limits'!$AB$19:$AB$318,"<1E100")*100 -> 
A35: 17 | Q35: =IF(ISNUMBER(L35),IF(I35="Fixed",J35,IF(F35="USD",J35+$C$14+IF($C$11="LIBOR",'GAS FILE'!$C$53,'GAS FILE'!$C$54),IF(F35="JPY",J35+$C$14+'GAS FILE'!$C$56,IF(F35="EUR",J35+$C$14+IF($C$11="LIBOR",'GAS FILE'!$C$55,'GAS FILE'!$C$59),IF(J35="GBP",'Input - Monitor Limits'!J35+$C$14+IF($C$11="LIBOR",'GAS FILE'!$C$57,'GAS FILE'!$C$58),J35+$C$14+'GAS FILE'!$C$60))))),"") ->  | X35: =IF(ISNUMBER(W35),IF(W35>=$C$13,Lists!$E$2,Lists!$E$4),"") ->  | AC35: =AB35/SUMIF('Input - Monitor Limits'!$AB$19:$AB$318,"<1E100")*100 -> 
A36: 18 | Q36: =IF(ISNUMBER(L36),IF(I36="Fixed",J36,IF(F36="USD",J36+$C$14+IF($C$11="LIBOR",'GAS FILE'!$C$53,'GAS FILE'!$C$54),IF(F36="JPY",J36+$C$14+'GAS FILE'!$C$56,IF(F36="EUR",J36+$C$14+IF($C$11="LIBOR",'GAS FILE'!$C$55,'GAS FILE'!$C$59),IF(J36="GBP",'Input - Monitor Limits'!J36+$C$14+IF($C$11="LIBOR",'GAS FILE'!$C$57,'GAS FILE'!$C$58),J36+$C$14+'GAS FILE'!$C$60))))),"") ->  | X36: =IF(ISNUMBER(W36),IF(W36>=$C$13,Lists!$E$2,Lists!$E$4),"") ->  | AC36: =AB36/SUMIF('Input - Monitor Limits'!$AB$19:$AB$318,"<1E100")*100 -> 
A37: 19 | Q37: =IF(ISNUMBER(L37),IF(I37="Fixed",J37,IF(F37="USD",J37+$C$14+IF($C$11="LIBOR",'GAS FILE'!$C$53,'GAS FILE'!$C$54),IF(F37="JPY",J37+$C$14+'GAS FILE'!$C$56,IF(F37="EUR",J37+$C$14+IF($C$11="LIBOR",'GAS FILE'!$C$55,'GAS FILE'!$C$59),IF(J37="GBP",'Input - Monitor Limits'!J37+$C$14+IF($C$11="LIBOR",'GAS FILE'!$C$57,'GAS FILE'!$C$58),J37+$C$14+'GAS FILE'!$C$60))))),"") ->  | X37: =IF(ISNUMBER(W37),IF(W37>=$C$13,Lists!$E$2,Lists!$E$4),"") ->  | AC37: =AB37/SUMIF('Input - Monitor Limits'!$AB$19:$AB$318,"<1E100")*100 -> 
A38: 20 | Q38: =IF(ISNUMBER(L38),IF(I38="Fixed",J38,IF(F38="USD",J38+$C$14+IF($C$11="LIBOR",'GAS FILE'!$C$53,'GAS FILE'!$C$54),IF(F38="JPY",J38+$C$14+'GAS FILE'!$C$56,IF(F38="EUR",J38+$C$14+IF($C$11="LIBOR",'GAS FILE'!$C$55,'GAS FILE'!$C$59),IF(J38="GBP",'Input - Monitor Limits'!J38+$C$14+IF($C$11="LIBOR",'GAS FILE'!$C$57,'GAS FILE'!$C$58),J38+$C$14+'GAS FILE'!$C$60))))),"") ->  | X38: =IF(ISNUMBER(W38),IF(W38>=$C$13,Lists!$E$2,Lists!$E$4),"") ->  | AC38: =AB38/SUMIF('Input - Monitor Limits'!$AB$19:$AB$318,"<1E100")*100 -> 
A39: 21 | Q39: =IF(ISNUMBER(L39),IF(I39="Fixed",J39,IF(F39="USD",J39+$C$14+IF($C$11="LIBOR",'GAS FILE'!$C$53,'GAS FILE'!$C$54),IF(F39="JPY",J39+$C$14+'GAS FILE'!$C$56,IF(F39="EUR",J39+$C$14+IF($C$11="LIBOR",'GAS FILE'!$C$55,'GAS FILE'!$C$59),IF(J39="GBP",'Input - Monitor Limits'!J39+$C$14+IF($C$11="LIBOR",'GAS FILE'!$C$57,'GAS FILE'!$C$58),J39+$C$14+'GAS FILE'!$C$60))))),"") ->  | X39: =IF(ISNUMBER(W39),IF(W39>=$C$13,Lists!$E$2,Lists!$E$4),"") ->  | AC39: =AB39/SUMIF('Input - Monitor Limits'!$AB$19:$AB$318,"<1E100")*100 -> 
A40: 22 | Q40: =IF(ISNUMBER(L40),IF(I40="Fixed",J40,IF(F40="USD",J40+$C$14+IF($C$11="LIBOR",'GAS FILE'!$C$53,'GAS FILE'!$C$54),IF(F40="JPY",J40+$C$14+'GAS FILE'!$C$56,IF(F40="EUR",J40+$C$14+IF($C$11="LIBOR",'GAS FILE'!$C$55,'GAS FILE'!$C$59),IF(J40="GBP",'Input - Monitor Limits'!J40+$C$14+IF($C$11="LIBOR",'GAS FILE'!$C$57,'GAS FILE'!$C$58),J40+$C$14+'GAS FILE'!$C$60))))),"") ->  | X40: =IF(ISNUMBER(W40),IF(W40>=$C$13,Lists!$E$2,Lists!$E$4),"") ->  | AC40: =AB40/SUMIF('Input - Monitor Limits'!$AB$19:$AB$318,"<1E100")*100 -> 
A41: 23 | Q41: =IF(ISNUMBER(L41),IF(I41="Fixed",J41,IF(F41="USD",J41+$C$14+IF($C$11="LIBOR",'GAS FILE'!$C$53,'GAS FILE'!$C$54),IF(F41="JPY",J41+$C$14+'GAS FILE'!$C$56,IF(F41="EUR",J41+$C$14+IF($C$11="LIBOR",'GAS FILE'!$C$55,'GAS FILE'!$C$59),IF(J41="GBP",'Input - Monitor Limits'!J41+$C$14+IF($C$11="LIBOR",'GAS FILE'!$C$57,'GAS FILE'!$C$58),J41+$C$14+'GAS FILE'!$C$60))))),"") ->  | X41: =IF(ISNUMBER(W41),IF(W41>=$C$13,Lists!$E$2,Lists!$E$4),"") ->  | AC41: =AB41/SUMIF('Input - Monitor Limits'!$AB$19:$AB$318,"<1E100")*100 -> 
A42: 24 | Q42: =IF(ISNUMBER(L42),IF(I42="Fixed",J42,IF(F42="USD",J42+$C$14+IF($C$11="LIBOR",'GAS FILE'!$C$53,'GAS FILE'!$C$54),IF(F42="JPY",J42+$C$14+'GAS FILE'!$C$56,IF(F42="EUR",J42+$C$14+IF($C$11="LIBOR",'GAS FILE'!$C$55,'GAS FILE'!$C$59),IF(J42="GBP",'Input - Monitor Limits'!J42+$C$14+IF($C$11="LIBOR",'GAS FILE'!$C$57,'GAS FILE'!$C$58),J42+$C$14+'GAS FILE'!$C$60))))),"") ->  | X42: =IF(ISNUMBER(W42),IF(W42>=$C$13,Lists!$E$2,Lists!$E$4),"") ->  | AC42: =AB42/SUMIF('Input - Monitor Limits'!$AB$19:$AB$318,"<1E100")*100 -> 
A43: 25 | Q43: =IF(ISNUMBER(L43),IF(I43="Fixed",J43,IF(F43="USD",J43+$C$14+IF($C$11="LIBOR",'GAS FILE'!$C$53,'GAS FILE'!$C$54),IF(F43="JPY",J43+$C$14+'GAS FILE'!$C$56,IF(F43="EUR",J43+$C$14+IF($C$11="LIBOR",'GAS FILE'!$C$55,'GAS FILE'!$C$59),IF(J43="GBP",'Input - Monitor Limits'!J43+$C$14+IF($C$11="LIBOR",'GAS FILE'!$C$57,'GAS FILE'!$C$58),J43+$C$14+'GAS FILE'!$C$60))))),"") ->  | X43: =IF(ISNUMBER(W43),IF(W43>=$C$13,Lists!$E$2,Lists!$E$4),"") ->  | AC43: =AB43/SUMIF('Input - Monitor Limits'!$AB$19:$AB$318,"<1E100")*100 -> 
A44: 26 | Q44: =IF(ISNUMBER(L44),IF(I44="Fixed",J44,IF(F44="USD",J44+$C$14+IF($C$11="LIBOR",'GAS FILE'!$C$53,'GAS FILE'!$C$54),IF(F44="JPY",J44+$C$14+'GAS FILE'!$C$56,IF(F44="EUR",J44+$C$14+IF($C$11="LIBOR",'GAS FILE'!$C$55,'GAS FILE'!$C$59),IF(J44="GBP",'Input - Monitor Limits'!J44+$C$14+IF($C$11="LIBOR",'GAS FILE'!$C$57,'GAS FILE'!$C$58),J44+$C$14+'GAS FILE'!$C$60))))),"") ->  | X44: =IF(ISNUMBER(W44),IF(W44>=$C$13,Lists!$E$2,Lists!$E$4),"") ->  | AC44: =AB44/SUMIF('Input - Monitor Limits'!$AB$19:$AB$318,"<1E100")*100 -> 
A45: 27 | Q45: =IF(ISNUMBER(L45),IF(I45="Fixed",J45,IF(F45="USD",J45+$C$14+IF($C$11="LIBOR",'GAS FILE'!$C$53,'GAS FILE'!$C$54),IF(F45="JPY",J45+$C$14+'GAS FILE'!$C$56,IF(F45="EUR",J45+$C$14+IF($C$11="LIBOR",'GAS FILE'!$C$55,'GAS FILE'!$C$59),IF(J45="GBP",'Input - Monitor Limits'!J45+$C$14+IF($C$11="LIBOR",'GAS FILE'!$C$57,'GAS FILE'!$C$58),J45+$C$14+'GAS FILE'!$C$60))))),"") ->  | X45: =IF(ISNUMBER(W45),IF(W45>=$C$13,Lists!$E$2,Lists!$E$4),"") ->  | AC45: =AB45/SUMIF('Input - Monitor Limits'!$AB$19:$AB$318,"<1E100")*100 -> 
A46: 28 | Q46: =IF(ISNUMBER(L46),IF(I46="Fixed",J46,IF(F46="USD",J46+$C$14+IF($C$11="LIBOR",'GAS FILE'!$C$53,'GAS FILE'!$C$54),IF(F46="JPY",J46+$C$14+'GAS FILE'!$C$56,IF(F46="EUR",J46+$C$14+IF($C$11="LIBOR",'GAS FILE'!$C$55,'GAS FILE'!$C$59),IF(J46="GBP",'Input - Monitor Limits'!J46+$C$14+IF($C$11="LIBOR",'GAS FILE'!$C$57,'GAS FILE'!$C$58),J46+$C$14+'GAS FILE'!$C$60))))),"") ->  | X46: =IF(ISNUMBER(W46),IF(W46>=$C$13,Lists!$E$2,Lists!$E$4),"") ->  | AC46: =AB46/SUMIF('Input - Monitor Limits'!$AB$19:$AB$318,"<1E100")*100 -> 
A47: 29 | Q47: =IF(ISNUMBER(L47),IF(I47="Fixed",J47,IF(F47="USD",J47+$C$14+IF($C$11="LIBOR",'GAS FILE'!$C$53,'GAS FILE'!$C$54),IF(F47="JPY",J47+$C$14+'GAS FILE'!$C$56,IF(F47="EUR",J47+$C$14+IF($C$11="LIBOR",'GAS FILE'!$C$55,'GAS FILE'!$C$59),IF(J47="GBP",'Input - Monitor Limits'!J47+$C$14+IF($C$11="LIBOR",'GAS FILE'!$C$57,'GAS FILE'!$C$58),J47+$C$14+'GAS FILE'!$C$60))))),"") ->  | X47: =IF(ISNUMBER(W47),IF(W47>=$C$13,Lists!$E$2,Lists!$E$4),"") ->  | AC47: =AB47/SUMIF('Input - Monitor Limits'!$AB$19:$AB$318,"<1E100")*100 -> 
A48: 30 | Q48: =IF(ISNUMBER(L48),IF(I48="Fixed",J48,IF(F48="USD",J48+$C$14+IF($C$11="LIBOR",'GAS FILE'!$C$53,'GAS FILE'!$C$54),IF(F48="JPY",J48+$C$14+'GAS FILE'!$C$56,IF(F48="EUR",J48+$C$14+IF($C$11="LIBOR",'GAS FILE'!$C$55,'GAS FILE'!$C$59),IF(J48="GBP",'Input - Monitor Limits'!J48+$C$14+IF($C$11="LIBOR",'GAS FILE'!$C$57,'GAS FILE'!$C$58),J48+$C$14+'GAS FILE'!$C$60))))),"") ->  | X48: =IF(ISNUMBER(W48),IF(W48>=$C$13,Lists!$E$2,Lists!$E$4),"") ->  | AC48: =AB48/SUMIF('Input - Monitor Limits'!$AB$19:$AB$318,"<1E100")*100 -> 
A49: 31 | Q49: =IF(ISNUMBER(L49),IF(I49="Fixed",J49,IF(F49="USD",J49+$C$14+IF($C$11="LIBOR",'GAS FILE'!$C$53,'GAS FILE'!$C$54),IF(F49="JPY",J49+$C$14+'GAS FILE'!$C$56,IF(F49="EUR",J49+$C$14+IF($C$11="LIBOR",'GAS FILE'!$C$55,'GAS FILE'!$C$59),IF(J49="GBP",'Input - Monitor Limits'!J49+$C$14+IF($C$11="LIBOR",'GAS FILE'!$C$57,'GAS FILE'!$C$58),J49+$C$14+'GAS FILE'!$C$60))))),"") ->  | X49: =IF(ISNUMBER(W49),IF(W49>=$C$13,Lists!$E$2,Lists!$E$4),"") ->  | AC49: =AB49/SUMIF('Input - Monitor Limits'!$AB$19:$AB$318,"<1E100")*100 -> 
A50: 32 | Q50: =IF(ISNUMBER(L50),IF(I50="Fixed",J50,IF(F50="USD",J50+$C$14+IF($C$11="LIBOR",'GAS FILE'!$C$53,'GAS FILE'!$C$54),IF(F50="JPY",J50+$C$14+'GAS FILE'!$C$56,IF(F50="EUR",J50+$C$14+IF($C$11="LIBOR",'GAS FILE'!$C$55,'GAS FILE'!$C$59),IF(J50="GBP",'Input - Monitor Limits'!J50+$C$14+IF($C$11="LIBOR",'GAS FILE'!$C$57,'GAS FILE'!$C$58),J50+$C$14+'GAS FILE'!$C$60))))),"") ->  | X50: =IF(ISNUMBER(W50),IF(W50>=$C$13,Lists!$E$2,Lists!$E$4),"") ->  | AC50: =AB50/SUMIF('Input - Monitor Limits'!$AB$19:$AB$318,"<1E100")*100 -> 
A51: 33 | Q51: =IF(ISNUMBER(L51),IF(I51="Fixed",J51,IF(F51="USD",J51+$C$14+IF($C$11="LIBOR",'GAS FILE'!$C$53,'GAS FILE'!$C$54),IF(F51="JPY",J51+$C$14+'GAS FILE'!$C$56,IF(F51="EUR",J51+$C$14+IF($C$11="LIBOR",'GAS FILE'!$C$55,'GAS FILE'!$C$59),IF(J51="GBP",'Input - Monitor Limits'!J51+$C$14+IF($C$11="LIBOR",'GAS FILE'!$C$57,'GAS FILE'!$C$58),J51+$C$14+'GAS FILE'!$C$60))))),"") ->  | X51: =IF(ISNUMBER(W51),IF(W51>=$C$13,Lists!$E$2,Lists!$E$4),"") ->  | AC51: =AB51/SUMIF('Input - Monitor Limits'!$AB$19:$AB$318,"<1E100")*100 -> 
A52: 34 | Q52: =IF(ISNUMBER(L52),IF(I52="Fixed",J52,IF(F52="USD",J52+$C$14+IF($C$11="LIBOR",'GAS FILE'!$C$53,'GAS FILE'!$C$54),IF(F52="JPY",J52+$C$14+'GAS FILE'!$C$56,IF(F52="EUR",J52+$C$14+IF($C$11="LIBOR",'GAS FILE'!$C$55,'GAS FILE'!$C$59),IF(J52="GBP",'Input - Monitor Limits'!J52+$C$14+IF($C$11="LIBOR",'GAS FILE'!$C$57,'GAS FILE'!$C$58),J52+$C$14+'GAS FILE'!$C$60))))),"") ->  | X52: =IF(ISNUMBER(W52),IF(W52>=$C$13,Lists!$E$2,Lists!$E$4),"") ->  | AC52: =AB52/SUMIF('Input - Monitor Limits'!$AB$19:$AB$318,"<1E100")*100 -> 
A53: 35 | Q53: =IF(ISNUMBER(L53),IF(I53="Fixed",J53,IF(F53="USD",J53+$C$14+IF($C$11="LIBOR",'GAS FILE'!$C$53,'GAS FILE'!$C$54),IF(F53="JPY",J53+$C$14+'GAS FILE'!$C$56,IF(F53="EUR",J53+$C$14+IF($C$11="LIBOR",'GAS FILE'!$C$55,'GAS FILE'!$C$59),IF(J53="GBP",'Input - Monitor Limits'!J53+$C$14+IF($C$11="LIBOR",'GAS FILE'!$C$57,'GAS FILE'!$C$58),J53+$C$14+'GAS FILE'!$C$60))))),"") ->  | X53: =IF(ISNUMBER(W53),IF(W53>=$C$13,Lists!$E$2,Lists!$E$4),"") ->  | AC53: =AB53/SUMIF('Input - Monitor Limits'!$AB$19:$AB$318,"<1E100")*100 -> 
A54: 36 | Q54: =IF(ISNUMBER(L54),IF(I54="Fixed",J54,IF(F54="USD",J54+$C$14+IF($C$11="LIBOR",'GAS FILE'!$C$53,'GAS FILE'!$C$54),IF(F54="JPY",J54+$C$14+'GAS FILE'!$C$56,IF(F54="EUR",J54+$C$14+IF($C$11="LIBOR",'GAS FILE'!$C$55,'GAS FILE'!$C$59),IF(J54="GBP",'Input - Monitor Limits'!J54+$C$14+IF($C$11="LIBOR",'GAS FILE'!$C$57,'GAS FILE'!$C$58),J54+$C$14+'GAS FILE'!$C$60))))),"") ->  | X54: =IF(ISNUMBER(W54),IF(W54>=$C$13,Lists!$E$2,Lists!$E$4),"") ->  | AC54: =AB54/SUMIF('Input - Monitor Limits'!$AB$19:$AB$318,"<1E100")*100 -> 
A55: 37 | Q55: =IF(ISNUMBER(L55),IF(I55="Fixed",J55,IF(F55="USD",J55+$C$14+IF($C$11="LIBOR",'GAS FILE'!$C$53,'GAS FILE'!$C$54),IF(F55="JPY",J55+$C$14+'GAS FILE'!$C$56,IF(F55="EUR",J55+$C$14+IF($C$11="LIBOR",'GAS FILE'!$C$55,'GAS FILE'!$C$59),IF(J55="GBP",'Input - Monitor Limits'!J55+$C$14+IF($C$11="LIBOR",'GAS FILE'!$C$57,'GAS FILE'!$C$58),J55+$C$14+'GAS FILE'!$C$60))))),"") ->  | X55: =IF(ISNUMBER(W55),IF(W55>=$C$13,Lists!$E$2,Lists!$E$4),"") ->  | AC55: =AB55/SUMIF('Input - Monitor Limits'!$AB$19:$AB$318,"<1E100")*100 -> 
A56: 38 | Q56: =IF(ISNUMBER(L56),IF(I56="Fixed",J56,IF(F56="USD",J56+$C$14+IF($C$11="LIBOR",'GAS FILE'!$C$53,'GAS FILE'!$C$54),IF(F56="JPY",J56+$C$14+'GAS FILE'!$C$56,IF(F56="EUR",J56+$C$14+IF($C$11="LIBOR",'GAS FILE'!$C$55,'GAS FILE'!$C$59),IF(J56="GBP",'Input - Monitor Limits'!J56+$C$14+IF($C$11="LIBOR",'GAS FILE'!$C$57,'GAS FILE'!$C$58),J56+$C$14+'GAS FILE'!$C$60))))),"") ->  | X56: =IF(ISNUMBER(W56),IF(W56>=$C$13,Lists!$E$2,Lists!$E$4),"") ->  | AC56: =AB56/SUMIF('Input - Monitor Limits'!$AB$19:$AB$318,"<1E100")*100 -> 
A57: 39 | Q57: =IF(ISNUMBER(L57),IF(I57="Fixed",J57,IF(F57="USD",J57+$C$14+IF($C$11="LIBOR",'GAS FILE'!$C$53,'GAS FILE'!$C$54),IF(F57="JPY",J57+$C$14+'GAS FILE'!$C$56,IF(F57="EUR",J57+$C$14+IF($C$11="LIBOR",'GAS FILE'!$C$55,'GAS FILE'!$C$59),IF(J57="GBP",'Input - Monitor Limits'!J57+$C$14+IF($C$11="LIBOR",'GAS FILE'!$C$57,'GAS FILE'!$C$58),J57+$C$14+'GAS FILE'!$C$60))))),"") ->  | X57: =IF(ISNUMBER(W57),IF(W57>=$C$13,Lists!$E$2,Lists!$E$4),"") ->  | AC57: =AB57/SUMIF('Input - Monitor Limits'!$AB$19:$AB$318,"<1E100")*100 -> 
A58: 40 | Q58: =IF(ISNUMBER(L58),IF(I58="Fixed",J58,IF(F58="USD",J58+$C$14+IF($C$11="LIBOR",'GAS FILE'!$C$53,'GAS FILE'!$C$54),IF(F58="JPY",J58+$C$14+'GAS FILE'!$C$56,IF(F58="EUR",J58+$C$14+IF($C$11="LIBOR",'GAS FILE'!$C$55,'GAS FILE'!$C$59),IF(J58="GBP",'Input - Monitor Limits'!J58+$C$14+IF($C$11="LIBOR",'GAS FILE'!$C$57,'GAS FILE'!$C$58),J58+$C$14+'GAS FILE'!$C$60))))),"") ->  | X58: =IF(ISNUMBER(W58),IF(W58>=$C$13,Lists!$E$2,Lists!$E$4),"") ->  | AC58: =AB58/SUMIF('Input - Monitor Limits'!$AB$19:$AB$318,"<1E100")*100 -> 
A59: 41 | Q59: =IF(ISNUMBER(L59),IF(I59="Fixed",J59,IF(F59="USD",J59+$C$14+IF($C$11="LIBOR",'GAS FILE'!$C$53,'GAS FILE'!$C$54),IF(F59="JPY",J59+$C$14+'GAS FILE'!$C$56,IF(F59="EUR",J59+$C$14+IF($C$11="LIBOR",'GAS FILE'!$C$55,'GAS FILE'!$C$59),IF(J59="GBP",'Input - Monitor Limits'!J59+$C$14+IF($C$11="LIBOR",'GAS FILE'!$C$57,'GAS FILE'!$C$58),J59+$C$14+'GAS FILE'!$C$60))))),"") ->  | X59: =IF(ISNUMBER(W59),IF(W59>=$C$13,Lists!$E$2,Lists!$E$4),"") ->  | AC59: =AB59/SUMIF('Input - Monitor Limits'!$AB$19:$AB$318,"<1E100")*100 -> 
A60: 42 | Q60: =IF(ISNUMBER(L60),IF(I60="Fixed",J60,IF(F60="USD",J60+$C$14+IF($C$11="LIBOR",'GAS FILE'!$C$53,'GAS FILE'!$C$54),IF(F60="JPY",J60+$C$14+'GAS FILE'!$C$56,IF(F60="EUR",J60+$C$14+IF($C$11="LIBOR",'GAS FILE'!$C$55,'GAS FILE'!$C$59),IF(J60="GBP",'Input - Monitor Limits'!J60+$C$14+IF($C$11="LIBOR",'GAS FILE'!$C$57,'GAS FILE'!$C$58),J60+$C$14+'GAS FILE'!$C$60))))),"") ->  | X60: =IF(ISNUMBER(W60),IF(W60>=$C$13,Lists!$E$2,Lists!$E$4),"") ->  | AC60: =AB60/SUMIF('Input - Monitor Limits'!$AB$19:$AB$318,"<1E100")*100 -> 
A61: 43 | Q61: =IF(ISNUMBER(L61),IF(I61="Fixed",J61,IF(F61="USD",J61+$C$14+IF($C$11="LIBOR",'GAS FILE'!$C$53,'GAS FILE'!$C$54),IF(F61="JPY",J61+$C$14+'GAS FILE'!$C$56,IF(F61="EUR",J61+$C$14+IF($C$11="LIBOR",'GAS FILE'!$C$55,'GAS FILE'!$C$59),IF(J61="GBP",'Input - Monitor Limits'!J61+$C$14+IF($C$11="LIBOR",'GAS FILE'!$C$57,'GAS FILE'!$C$58),J61+$C$14+'GAS FILE'!$C$60))))),"") ->  | X61: =IF(ISNUMBER(W61),IF(W61>=$C$13,Lists!$E$2,Lists!$E$4),"") ->  | AC61: =AB61/SUMIF('Input - Monitor Limits'!$AB$19:$AB$318,"<1E100")*100 -> 
A62: 44 | Q62: =IF(ISNUMBER(L62),IF(I62="Fixed",J62,IF(F62="USD",J62+$C$14+IF($C$11="LIBOR",'GAS FILE'!$C$53,'GAS FILE'!$C$54),IF(F62="JPY",J62+$C$14+'GAS FILE'!$C$56,IF(F62="EUR",J62+$C$14+IF($C$11="LIBOR",'GAS FILE'!$C$55,'GAS FILE'!$C$59),IF(J62="GBP",'Input - Monitor Limits'!J62+$C$14+IF($C$11="LIBOR",'GAS FILE'!$C$57,'GAS FILE'!$C$58),J62+$C$14+'GAS FILE'!$C$60))))),"") ->  | X62: =IF(ISNUMBER(W62),IF(W62>=$C$13,Lists!$E$2,Lists!$E$4),"") ->  | AC62: =AB62/SUMIF('Input - Monitor Limits'!$AB$19:$AB$318,"<1E100")*100 -> 
A63: 45 | Q63: =IF(ISNUMBER(L63),IF(I63="Fixed",J63,IF(F63="USD",J63+$C$14+IF($C$11="LIBOR",'GAS FILE'!$C$53,'GAS FILE'!$C$54),IF(F63="JPY",J63+$C$14+'GAS FILE'!$C$56,IF(F63="EUR",J63+$C$14+IF($C$11="LIBOR",'GAS FILE'!$C$55,'GAS FILE'!$C$59),IF(J63="GBP",'Input - Monitor Limits'!J63+$C$14+IF($C$11="LIBOR",'GAS FILE'!$C$57,'GAS FILE'!$C$58),J63+$C$14+'GAS FILE'!$C$60))))),"") ->  | X63: =IF(ISNUMBER(W63),IF(W63>=$C$13,Lists!$E$2,Lists!$E$4),"") ->  | AC63: =AB63/SUMIF('Input - Monitor Limits'!$AB$19:$AB$318,"<1E100")*100 -> 
A64: 46 | Q64: =IF(ISNUMBER(L64),IF(I64="Fixed",J64,IF(F64="USD",J64+$C$14+IF($C$11="LIBOR",'GAS FILE'!$C$53,'GAS FILE'!$C$54),IF(F64="JPY",J64+$C$14+'GAS FILE'!$C$56,IF(F64="EUR",J64+$C$14+IF($C$11="LIBOR",'GAS FILE'!$C$55,'GAS FILE'!$C$59),IF(J64="GBP",'Input - Monitor Limits'!J64+$C$14+IF($C$11="LIBOR",'GAS FILE'!$C$57,'GAS FILE'!$C$58),J64+$C$14+'GAS FILE'!$C$60))))),"") ->  | X64: =IF(ISNUMBER(W64),IF(W64>=$C$13,Lists!$E$2,Lists!$E$4),"") ->  | AC64: =AB64/SUMIF('Input - Monitor Limits'!$AB$19:$AB$318,"<1E100")*100 -> 
A65: 47 | Q65: =IF(ISNUMBER(L65),IF(I65="Fixed",J65,IF(F65="USD",J65+$C$14+IF($C$11="LIBOR",'GAS FILE'!$C$53,'GAS FILE'!$C$54),IF(F65="JPY",J65+$C$14+'GAS FILE'!$C$56,IF(F65="EUR",J65+$C$14+IF($C$11="LIBOR",'GAS FILE'!$C$55,'GAS FILE'!$C$59),IF(J65="GBP",'Input - Monitor Limits'!J65+$C$14+IF($C$11="LIBOR",'GAS FILE'!$C$57,'GAS FILE'!$C$58),J65+$C$14+'GAS FILE'!$C$60))))),"") ->  | X65: =IF(ISNUMBER(W65),IF(W65>=$C$13,Lists!$E$2,Lists!$E$4),"") ->  | AC65: =AB65/SUMIF('Input - Monitor Limits'!$AB$19:$AB$318,"<1E100")*100 -> 
A66: 48 | Q66: =IF(ISNUMBER(L66),IF(I66="Fixed",J66,IF(F66="USD",J66+$C$14+IF($C$11="LIBOR",'GAS FILE'!$C$53,'GAS FILE'!$C$54),IF(F66="JPY",J66+$C$14+'GAS FILE'!$C$56,IF(F66="EUR",J66+$C$14+IF($C$11="LIBOR",'GAS FILE'!$C$55,'GAS FILE'!$C$59),IF(J66="GBP",'Input - Monitor Limits'!J66+$C$14+IF($C$11="LIBOR",'GAS FILE'!$C$57,'GAS FILE'!$C$58),J66+$C$14+'GAS FILE'!$C$60))))),"") ->  | X66: =IF(ISNUMBER(W66),IF(W66>=$C$13,Lists!$E$2,Lists!$E$4),"") ->  | AC66: =AB66/SUMIF('Input - Monitor Limits'!$AB$19:$AB$318,"<1E100")*100 -> 
A67: 49 | Q67: =IF(ISNUMBER(L67),IF(I67="Fixed",J67,IF(F67="USD",J67+$C$14+IF($C$11="LIBOR",'GAS FILE'!$C$53,'GAS FILE'!$C$54),IF(F67="JPY",J67+$C$14+'GAS FILE'!$C$56,IF(F67="EUR",J67+$C$14+IF($C$11="LIBOR",'GAS FILE'!$C$55,'GAS FILE'!$C$59),IF(J67="GBP",'Input - Monitor Limits'!J67+$C$14+IF($C$11="LIBOR",'GAS FILE'!$C$57,'GAS FILE'!$C$58),J67+$C$14+'GAS FILE'!$C$60))))),"") ->  | X67: =IF(ISNUMBER(W67),IF(W67>=$C$13,Lists!$E$2,Lists!$E$4),"") ->  | AC67: =AB67/SUMIF('Input - Monitor Limits'!$AB$19:$AB$318,"<1E100")*100 -> 
A68: 50 | Q68: =IF(ISNUMBER(L68),IF(I68="Fixed",J68,IF(F68="USD",J68+$C$14+IF($C$11="LIBOR",'GAS FILE'!$C$53,'GAS FILE'!$C$54),IF(F68="JPY",J68+$C$14+'GAS FILE'!$C$56,IF(F68="EUR",J68+$C$14+IF($C$11="LIBOR",'GAS FILE'!$C$55,'GAS FILE'!$C$59),IF(J68="GBP",'Input - Monitor Limits'!J68+$C$14+IF($C$11="LIBOR",'GAS FILE'!$C$57,'GAS FILE'!$C$58),J68+$C$14+'GAS FILE'!$C$60))))),"") ->  | X68: =IF(ISNUMBER(W68),IF(W68>=$C$13,Lists!$E$2,Lists!$E$4),"") ->  | AC68: =AB68/SUMIF('Input - Monitor Limits'!$AB$19:$AB$318,"<1E100")*100 -> 
A69: 51 | Q69: =IF(ISNUMBER(L69),IF(I69="Fixed",J69,IF(F69="USD",J69+$C$14+IF($C$11="LIBOR",'GAS FILE'!$C$53,'GAS FILE'!$C$54),IF(F69="JPY",J69+$C$14+'GAS FILE'!$C$56,IF(F69="EUR",J69+$C$14+IF($C$11="LIBOR",'GAS FILE'!$C$55,'GAS FILE'!$C$59),IF(J69="GBP",'Input - Monitor Limits'!J69+$C$14+IF($C$11="LIBOR",'GAS FILE'!$C$57,'GAS FILE'!$C$58),J69+$C$14+'GAS FILE'!$C$60))))),"") ->  | X69: =IF(ISNUMBER(W69),IF(W69>=$C$13,Lists!$E$2,Lists!$E$4),"") ->  | AC69: =AB69/SUMIF('Input - Monitor Limits'!$AB$19:$AB$318,"<1E100")*100 -> 
A70: 52 | Q70: =IF(ISNUMBER(L70),IF(I70="Fixed",J70,IF(F70="USD",J70+$C$14+IF($C$11="LIBOR",'GAS FILE'!$C$53,'GAS FILE'!$C$54),IF(F70="JPY",J70+$C$14+'GAS FILE'!$C$56,IF(F70="EUR",J70+$C$14+IF($C$11="LIBOR",'GAS FILE'!$C$55,'GAS FILE'!$C$59),IF(J70="GBP",'Input - Monitor Limits'!J70+$C$14+IF($C$11="LIBOR",'GAS FILE'!$C$57,'GAS FILE'!$C$58),J70+$C$14+'GAS FILE'!$C$60))))),"") ->  | X70: =IF(ISNUMBER(W70),IF(W70>=$C$13,Lists!$E$2,Lists!$E$4),"") ->  | AC70: =AB70/SUMIF('Input - Monitor Limits'!$AB$19:$AB$318,"<1E100")*100 -> 
A71: 53 | Q71: =IF(ISNUMBER(L71),IF(I71="Fixed",J71,IF(F71="USD",J71+$C$14+IF($C$11="LIBOR",'GAS FILE'!$C$53,'GAS FILE'!$C$54),IF(F71="JPY",J71+$C$14+'GAS FILE'!$C$56,IF(F71="EUR",J71+$C$14+IF($C$11="LIBOR",'GAS FILE'!$C$55,'GAS FILE'!$C$59),IF(J71="GBP",'Input - Monitor Limits'!J71+$C$14+IF($C$11="LIBOR",'GAS FILE'!$C$57,'GAS FILE'!$C$58),J71+$C$14+'GAS FILE'!$C$60))))),"") ->  | X71: =IF(ISNUMBER(W71),IF(W71>=$C$13,Lists!$E$2,Lists!$E$4),"") ->  | AC71: =AB71/SUMIF('Input - Monitor Limits'!$AB$19:$AB$318,"<1E100")*100 -> 
A72: 54 | Q72: =IF(ISNUMBER(L72),IF(I72="Fixed",J72,IF(F72="USD",J72+$C$14+IF($C$11="LIBOR",'GAS FILE'!$C$53,'GAS FILE'!$C$54),IF(F72="JPY",J72+$C$14+'GAS FILE'!$C$56,IF(F72="EUR",J72+$C$14+IF($C$11="LIBOR",'GAS FILE'!$C$55,'GAS FILE'!$C$59),IF(J72="GBP",'Input - Monitor Limits'!J72+$C$14+IF($C$11="LIBOR",'GAS FILE'!$C$57,'GAS FILE'!$C$58),J72+$C$14+'GAS FILE'!$C$60))))),"") ->  | X72: =IF(ISNUMBER(W72),IF(W72>=$C$13,Lists!$E$2,Lists!$E$4),"") ->  | AC72: =AB72/SUMIF('Input - Monitor Limits'!$AB$19:$AB$318,"<1E100")*100 -> 
A73: 55 | Q73: =IF(ISNUMBER(L73),IF(I73="Fixed",J73,IF(F73="USD",J73+$C$14+IF($C$11="LIBOR",'GAS FILE'!$C$53,'GAS FILE'!$C$54),IF(F73="JPY",J73+$C$14+'GAS FILE'!$C$56,IF(F73="EUR",J73+$C$14+IF($C$11="LIBOR",'GAS FILE'!$C$55,'GAS FILE'!$C$59),IF(J73="GBP",'Input - Monitor Limits'!J73+$C$14+IF($C$11="LIBOR",'GAS FILE'!$C$57,'GAS FILE'!$C$58),J73+$C$14+'GAS FILE'!$C$60))))),"") ->  | X73: =IF(ISNUMBER(W73),IF(W73>=$C$13,Lists!$E$2,Lists!$E$4),"") ->  | AC73: =AB73/SUMIF('Input - Monitor Limits'!$AB$19:$AB$318,"<1E100")*100 -> 
A74: 56 | Q74: =IF(ISNUMBER(L74),IF(I74="Fixed",J74,IF(F74="USD",J74+$C$14+IF($C$11="LIBOR",'GAS FILE'!$C$53,'GAS FILE'!$C$54),IF(F74="JPY",J74+$C$14+'GAS FILE'!$C$56,IF(F74="EUR",J74+$C$14+IF($C$11="LIBOR",'GAS FILE'!$C$55,'GAS FILE'!$C$59),IF(J74="GBP",'Input - Monitor Limits'!J74+$C$14+IF($C$11="LIBOR",'GAS FILE'!$C$57,'GAS FILE'!$C$58),J74+$C$14+'GAS FILE'!$C$60))))),"") ->  | X74: =IF(ISNUMBER(W74),IF(W74>=$C$13,Lists!$E$2,Lists!$E$4),"") ->  | AC74: =AB74/SUMIF('Input - Monitor Limits'!$AB$19:$AB$318,"<1E100")*100 -> 
A75: 57 | Q75: =IF(ISNUMBER(L75),IF(I75="Fixed",J75,IF(F75="USD",J75+$C$14+IF($C$11="LIBOR",'GAS FILE'!$C$53,'GAS FILE'!$C$54),IF(F75="JPY",J75+$C$14+'GAS FILE'!$C$56,IF(F75="EUR",J75+$C$14+IF($C$11="LIBOR",'GAS FILE'!$C$55,'GAS FILE'!$C$59),IF(J75="GBP",'Input - Monitor Limits'!J75+$C$14+IF($C$11="LIBOR",'GAS FILE'!$C$57,'GAS FILE'!$C$58),J75+$C$14+'GAS FILE'!$C$60))))),"") ->  | X75: =IF(ISNUMBER(W75),IF(W75>=$C$13,Lists!$E$2,Lists!$E$4),"") ->  | AC75: =AB75/SUMIF('Input - Monitor Limits'!$AB$19:$AB$318,"<1E100")*100 -> 
A76: 58 | Q76: =IF(ISNUMBER(L76),IF(I76="Fixed",J76,IF(F76="USD",J76+$C$14+IF($C$11="LIBOR",'GAS FILE'!$C$53,'GAS FILE'!$C$54),IF(F76="JPY",J76+$C$14+'GAS FILE'!$C$56,IF(F76="EUR",J76+$C$14+IF($C$11="LIBOR",'GAS FILE'!$C$55,'GAS FILE'!$C$59),IF(J76="GBP",'Input - Monitor Limits'!J76+$C$14+IF($C$11="LIBOR",'GAS FILE'!$C$57,'GAS FILE'!$C$58),J76+$C$14+'GAS FILE'!$C$60))))),"") ->  | X76: =IF(ISNUMBER(W76),IF(W76>=$C$13,Lists!$E$2,Lists!$E$4),"") ->  | AC76: =AB76/SUMIF('Input - Monitor Limits'!$AB$19:$AB$318,"<1E100")*100 -> 
A77: 59 | Q77: =IF(ISNUMBER(L77),IF(I77="Fixed",J77,IF(F77="USD",J77+$C$14+IF($C$11="LIBOR",'GAS FILE'!$C$53,'GAS FILE'!$C$54),IF(F77="JPY",J77+$C$14+'GAS FILE'!$C$56,IF(F77="EUR",J77+$C$14+IF($C$11="LIBOR",'GAS FILE'!$C$55,'GAS FILE'!$C$59),IF(J77="GBP",'Input - Monitor Limits'!J77+$C$14+IF($C$11="LIBOR",'GAS FILE'!$C$57,'GAS FILE'!$C$58),J77+$C$14+'GAS FILE'!$C$60))))),"") ->  | X77: =IF(ISNUMBER(W77),IF(W77>=$C$13,Lists!$E$2,Lists!$E$4),"") ->  | AC77: =AB77/SUMIF('Input - Monitor Limits'!$AB$19:$AB$318,"<1E100")*100 -> 
A78: 60 | Q78: =IF(ISNUMBER(L78),IF(I78="Fixed",J78,IF(F78="USD",J78+$C$14+IF($C$11="LIBOR",'GAS FILE'!$C$53,'GAS FILE'!$C$54),IF(F78="JPY",J78+$C$14+'GAS FILE'!$C$56,IF(F78="EUR",J78+$C$14+IF($C$11="LIBOR",'GAS FILE'!$C$55,'GAS FILE'!$C$59),IF(J78="GBP",'Input - Monitor Limits'!J78+$C$14+IF($C$11="LIBOR",'GAS FILE'!$C$57,'GAS FILE'!$C$58),J78+$C$14+'GAS FILE'!$C$60))))),"") ->  | X78: =IF(ISNUMBER(W78),IF(W78>=$C$13,Lists!$E$2,Lists!$E$4),"") ->  | AC78: =AB78/SUMIF('Input - Monitor Limits'!$AB$19:$AB$318,"<1E100")*100 -> 
A79: 61 | Q79: =IF(ISNUMBER(L79),IF(I79="Fixed",J79,IF(F79="USD",J79+$C$14+IF($C$11="LIBOR",'GAS FILE'!$C$53,'GAS FILE'!$C$54),IF(F79="JPY",J79+$C$14+'GAS FILE'!$C$56,IF(F79="EUR",J79+$C$14+IF($C$11="LIBOR",'GAS FILE'!$C$55,'GAS FILE'!$C$59),IF(J79="GBP",'Input - Monitor Limits'!J79+$C$14+IF($C$11="LIBOR",'GAS FILE'!$C$57,'GAS FILE'!$C$58),J79+$C$14+'GAS FILE'!$C$60))))),"") ->  | X79: =IF(ISNUMBER(W79),IF(W79>=$C$13,Lists!$E$2,Lists!$E$4),"") ->  | AC79: =AB79/SUMIF('Input - Monitor Limits'!$AB$19:$AB$318,"<1E100")*100 -> 
A80: 62 | Q80: =IF(ISNUMBER(L80),IF(I80="Fixed",J80,IF(F80="USD",J80+$C$14+IF($C$11="LIBOR",'GAS FILE'!$C$53,'GAS FILE'!$C$54),IF(F80="JPY",J80+$C$14+'GAS FILE'!$C$56,IF(F80="EUR",J80+$C$14+IF($C$11="LIBOR",'GAS FILE'!$C$55,'GAS FILE'!$C$59),IF(J80="GBP",'Input - Monitor Limits'!J80+$C$14+IF($C$11="LIBOR",'GAS FILE'!$C$57,'GAS FILE'!$C$58),J80+$C$14+'GAS FILE'!$C$60))))),"") ->  | X80: =IF(ISNUMBER(W80),IF(W80>=$C$13,Lists!$E$2,Lists!$E$4),"") ->  | AC80: =AB80/SUMIF('Input - Monitor Limits'!$AB$19:$AB$318,"<1E100")*100 -> 
A81: 63 | Q81: =IF(ISNUMBER(L81),IF(I81="Fixed",J81,IF(F81="USD",J81+$C$14+IF($C$11="LIBOR",'GAS FILE'!$C$53,'GAS FILE'!$C$54),IF(F81="JPY",J81+$C$14+'GAS FILE'!$C$56,IF(F81="EUR",J81+$C$14+IF($C$11="LIBOR",'GAS FILE'!$C$55,'GAS FILE'!$C$59),IF(J81="GBP",'Input - Monitor Limits'!J81+$C$14+IF($C$11="LIBOR",'GAS FILE'!$C$57,'GAS FILE'!$C$58),J81+$C$14+'GAS FILE'!$C$60))))),"") ->  | X81: =IF(ISNUMBER(W81),IF(W81>=$C$13,Lists!$E$2,Lists!$E$4),"") ->  | AC81: =AB81/SUMIF('Input - Monitor Limits'!$AB$19:$AB$318,"<1E100")*100 -> 
A82: 64 | Q82: =IF(ISNUMBER(L82),IF(I82="Fixed",J82,IF(F82="USD",J82+$C$14+IF($C$11="LIBOR",'GAS FILE'!$C$53,'GAS FILE'!$C$54),IF(F82="JPY",J82+$C$14+'GAS FILE'!$C$56,IF(F82="EUR",J82+$C$14+IF($C$11="LIBOR",'GAS FILE'!$C$55,'GAS FILE'!$C$59),IF(J82="GBP",'Input - Monitor Limits'!J82+$C$14+IF($C$11="LIBOR",'GAS FILE'!$C$57,'GAS FILE'!$C$58),J82+$C$14+'GAS FILE'!$C$60))))),"") ->  | X82: =IF(ISNUMBER(W82),IF(W82>=$C$13,Lists!$E$2,Lists!$E$4),"") ->  | AC82: =AB82/SUMIF('Input - Monitor Limits'!$AB$19:$AB$318,"<1E100")*100 -> 
A83: 65 | Q83: =IF(ISNUMBER(L83),IF(I83="Fixed",J83,IF(F83="USD",J83+$C$14+IF($C$11="LIBOR",'GAS FILE'!$C$53,'GAS FILE'!$C$54),IF(F83="JPY",J83+$C$14+'GAS FILE'!$C$56,IF(F83="EUR",J83+$C$14+IF($C$11="LIBOR",'GAS FILE'!$C$55,'GAS FILE'!$C$59),IF(J83="GBP",'Input - Monitor Limits'!J83+$C$14+IF($C$11="LIBOR",'GAS FILE'!$C$57,'GAS FILE'!$C$58),J83+$C$14+'GAS FILE'!$C$60))))),"") ->  | X83: =IF(ISNUMBER(W83),IF(W83>=$C$13,Lists!$E$2,Lists!$E$4),"") ->  | AC83: =AB83/SUMIF('Input - Monitor Limits'!$AB$19:$AB$318,"<1E100")*100 ->  | AD83: =AC83*W83 -> 
A84: 66 | Q84: =IF(ISNUMBER(L84),IF(I84="Fixed",J84,IF(F84="USD",J84+$C$14+IF($C$11="LIBOR",'GAS FILE'!$C$53,'GAS FILE'!$C$54),IF(F84="JPY",J84+$C$14+'GAS FILE'!$C$56,IF(F84="EUR",J84+$C$14+IF($C$11="LIBOR",'GAS FILE'!$C$55,'GAS FILE'!$C$59),IF(J84="GBP",'Input - Monitor Limits'!J84+$C$14+IF($C$11="LIBOR",'GAS FILE'!$C$57,'GAS FILE'!$C$58),J84+$C$14+'GAS FILE'!$C$60))))),"") ->  | X84: =IF(ISNUMBER(W84),IF(W84>=$C$13,Lists!$E$2,Lists!$E$4),"") ->  | AC84: =AB84/SUMIF('Input - Monitor Limits'!$AB$19:$AB$318,"<1E100")*100 ->  | AF84: =IF(YEAR(B84)<$C$16,"",YEAR(B84)) -> 
A85: 67 | Q85: =IF(ISNUMBER(L85),IF(I85="Fixed",J85,IF(F85="USD",J85+$C$14+IF($C$11="LIBOR",'GAS FILE'!$C$53,'GAS FILE'!$C$54),IF(F85="JPY",J85+$C$14+'GAS FILE'!$C$56,IF(F85="EUR",J85+$C$14+IF($C$11="LIBOR",'GAS FILE'!$C$55,'GAS FILE'!$C$59),IF(J85="GBP",'Input - Monitor Limits'!J85+$C$14+IF($C$11="LIBOR",'GAS FILE'!$C$57,'GAS FILE'!$C$58),J85+$C$14+'GAS FILE'!$C$60))))),"") ->  | X85: =IF(ISNUMBER(W85),IF(W85>=$C$13,Lists!$E$2,Lists!$E$4),"") ->  | AC85: =AB85/SUMIF('Input - Monitor Limits'!$AB$19:$AB$318,"<1E100")*100 -> 
A86: 68 | Q86: =IF(ISNUMBER(L86),IF(I86="Fixed",J86,IF(F86="USD",J86+$C$14+IF($C$11="LIBOR",'GAS FILE'!$C$53,'GAS FILE'!$C$54),IF(F86="JPY",J86+$C$14+'GAS FILE'!$C$56,IF(F86="EUR",J86+$C$14+IF($C$11="LIBOR",'GAS FILE'!$C$55,'GAS FILE'!$C$59),IF(J86="GBP",'Input - Monitor Limits'!J86+$C$14+IF($C$11="LIBOR",'GAS FILE'!$C$57,'GAS FILE'!$C$58),J86+$C$14+'GAS FILE'!$C$60))))),"") ->  | X86: =IF(ISNUMBER(W86),IF(W86>=$C$13,Lists!$E$2,Lists!$E$4),"") ->  | AC86: =AB86/SUMIF('Input - Monitor Limits'!$AB$19:$AB$318,"<1E100")*100 -> 
A87: 69 | Q87: =IF(ISNUMBER(L87),IF(I87="Fixed",J87,IF(F87="USD",J87+$C$14+IF($C$11="LIBOR",'GAS FILE'!$C$53,'GAS FILE'!$C$54),IF(F87="JPY",J87+$C$14+'GAS FILE'!$C$56,IF(F87="EUR",J87+$C$14+IF($C$11="LIBOR",'GAS FILE'!$C$55,'GAS FILE'!$C$59),IF(J87="GBP",'Input - Monitor Limits'!J87+$C$14+IF($C$11="LIBOR",'GAS FILE'!$C$57,'GAS FILE'!$C$58),J87+$C$14+'GAS FILE'!$C$60))))),"") ->  | X87: =IF(ISNUMBER(W87),IF(W87>=$C$13,Lists!$E$2,Lists!$E$4),"") ->  | AC87: =AB87/SUMIF('Input - Monitor Limits'!$AB$19:$AB$318,"<1E100")*100 -> 
A88: 70 | Q88: =IF(ISNUMBER(L88),IF(I88="Fixed",J88,IF(F88="USD",J88+$C$14+IF($C$11="LIBOR",'GAS FILE'!$C$53,'GAS FILE'!$C$54),IF(F88="JPY",J88+$C$14+'GAS FILE'!$C$56,IF(F88="EUR",J88+$C$14+IF($C$11="LIBOR",'GAS FILE'!$C$55,'GAS FILE'!$C$59),IF(J88="GBP",'Input - Monitor Limits'!J88+$C$14+IF($C$11="LIBOR",'GAS FILE'!$C$57,'GAS FILE'!$C$58),J88+$C$14+'GAS FILE'!$C$60))))),"") ->  | X88: =IF(ISNUMBER(W88),IF(W88>=$C$13,Lists!$E$2,Lists!$E$4),"") ->  | AC88: =AB88/SUMIF('Input - Monitor Limits'!$AB$19:$AB$318,"<1E100")*100 -> 
A89: 71 | Q89: =IF(ISNUMBER(L89),IF(I89="Fixed",J89,IF(F89="USD",J89+$C$14+IF($C$11="LIBOR",'GAS FILE'!$C$53,'GAS FILE'!$C$54),IF(F89="JPY",J89+$C$14+'GAS FILE'!$C$56,IF(F89="EUR",J89+$C$14+IF($C$11="LIBOR",'GAS FILE'!$C$55,'GAS FILE'!$C$59),IF(J89="GBP",'Input - Monitor Limits'!J89+$C$14+IF($C$11="LIBOR",'GAS FILE'!$C$57,'GAS FILE'!$C$58),J89+$C$14+'GAS FILE'!$C$60))))),"") ->  | X89: =IF(ISNUMBER(W89),IF(W89>=$C$13,Lists!$E$2,Lists!$E$4),"") ->  | Z89: =IF(ISNUMBER(V89/H89),V89/H89,"") ->  | AA89: =IF(ISNUMBER(IF(W89<0,AB89,Z89)),IF(W89<0,AB89,Z89),"") ->  | AB89: =IF(ISNUMBER(L89/H89),L89/H89,"") ->  | AC89: =AB89/SUMIF('Input - Monitor Limits'!$AB$19:$AB$318,"<1E100")*100 -> 
A90: 72 | Q90: =IF(ISNUMBER(L90),IF(I90="Fixed",J90,IF(F90="USD",J90+$C$14+IF($C$11="LIBOR",'GAS FILE'!$C$53,'GAS FILE'!$C$54),IF(F90="JPY",J90+$C$14+'GAS FILE'!$C$56,IF(F90="EUR",J90+$C$14+IF($C$11="LIBOR",'GAS FILE'!$C$55,'GAS FILE'!$C$59),IF(J90="GBP",'Input - Monitor Limits'!J90+$C$14+IF($C$11="LIBOR",'GAS FILE'!$C$57,'GAS FILE'!$C$58),J90+$C$14+'GAS FILE'!$C$60))))),"") ->  | X90: =IF(ISNUMBER(W90),IF(W90>=$C$13,Lists!$E$2,Lists!$E$4),"") ->  | AC90: =AB90/SUMIF('Input - Monitor Limits'!$AB$19:$AB$318,"<1E100")*100 -> 
A91: 73 | Q91: =IF(ISNUMBER(L91),IF(I91="Fixed",J91,IF(F91="USD",J91+$C$14+IF($C$11="LIBOR",'GAS FILE'!$C$53,'GAS FILE'!$C$54),IF(F91="JPY",J91+$C$14+'GAS FILE'!$C$56,IF(F91="EUR",J91+$C$14+IF($C$11="LIBOR",'GAS FILE'!$C$55,'GAS FILE'!$C$59),IF(J91="GBP",'Input - Monitor Limits'!J91+$C$14+IF($C$11="LIBOR",'GAS FILE'!$C$57,'GAS FILE'!$C$58),J91+$C$14+'GAS FILE'!$C$60))))),"") ->  | X91: =IF(ISNUMBER(W91),IF(W91>=$C$13,Lists!$E$2,Lists!$E$4),"") ->  | AC91: =AB91/SUMIF('Input - Monitor Limits'!$AB$19:$AB$318,"<1E100")*100 -> 
A92: 74 | Q92: =IF(ISNUMBER(L92),IF(I92="Fixed",J92,IF(F92="USD",J92+$C$14+IF($C$11="LIBOR",'GAS FILE'!$C$53,'GAS FILE'!$C$54),IF(F92="JPY",J92+$C$14+'GAS FILE'!$C$56,IF(F92="EUR",J92+$C$14+IF($C$11="LIBOR",'GAS FILE'!$C$55,'GAS FILE'!$C$59),IF(J92="GBP",'Input - Monitor Limits'!J92+$C$14+IF($C$11="LIBOR",'GAS FILE'!$C$57,'GAS FILE'!$C$58),J92+$C$14+'GAS FILE'!$C$60))))),"") ->  | X92: =IF(ISNUMBER(W92),IF(W92>=$C$13,Lists!$E$2,Lists!$E$4),"") ->  | AC92: =AB92/SUMIF('Input - Monitor Limits'!$AB$19:$AB$318,"<1E100")*100 -> 
A93: 75 | Q93: =IF(ISNUMBER(L93),IF(I93="Fixed",J93,IF(F93="USD",J93+$C$14+IF($C$11="LIBOR",'GAS FILE'!$C$53,'GAS FILE'!$C$54),IF(F93="JPY",J93+$C$14+'GAS FILE'!$C$56,IF(F93="EUR",J93+$C$14+IF($C$11="LIBOR",'GAS FILE'!$C$55,'GAS FILE'!$C$59),IF(J93="GBP",'Input - Monitor Limits'!J93+$C$14+IF($C$11="LIBOR",'GAS FILE'!$C$57,'GAS FILE'!$C$58),J93+$C$14+'GAS FILE'!$C$60))))),"") ->  | X93: =IF(ISNUMBER(W93),IF(W93>=$C$13,Lists!$E$2,Lists!$E$4),"") ->  | AC93: =AB93/SUMIF('Input - Monitor Limits'!$AB$19:$AB$318,"<1E100")*100 -> 
A94: 76 | Q94: =IF(ISNUMBER(L94),IF(I94="Fixed",J94,IF(F94="USD",J94+$C$14+IF($C$11="LIBOR",'GAS FILE'!$C$53,'GAS FILE'!$C$54),IF(F94="JPY",J94+$C$14+'GAS FILE'!$C$56,IF(F94="EUR",J94+$C$14+IF($C$11="LIBOR",'GAS FILE'!$C$55,'GAS FILE'!$C$59),IF(J94="GBP",'Input - Monitor Limits'!J94+$C$14+IF($C$11="LIBOR",'GAS FILE'!$C$57,'GAS FILE'!$C$58),J94+$C$14+'GAS FILE'!$C$60))))),"") ->  | X94: =IF(ISNUMBER(W94),IF(W94>=$C$13,Lists!$E$2,Lists!$E$4),"") ->  | AC94: =AB94/SUMIF('Input - Monitor Limits'!$AB$19:$AB$318,"<1E100")*100 -> 
A95: 77 | Q95: =IF(ISNUMBER(L95),IF(I95="Fixed",J95,IF(F95="USD",J95+$C$14+IF($C$11="LIBOR",'GAS FILE'!$C$53,'GAS FILE'!$C$54),IF(F95="JPY",J95+$C$14+'GAS FILE'!$C$56,IF(F95="EUR",J95+$C$14+IF($C$11="LIBOR",'GAS FILE'!$C$55,'GAS FILE'!$C$59),IF(J95="GBP",'Input - Monitor Limits'!J95+$C$14+IF($C$11="LIBOR",'GAS FILE'!$C$57,'GAS FILE'!$C$58),J95+$C$14+'GAS FILE'!$C$60))))),"") ->  | X95: =IF(ISNUMBER(W95),IF(W95>=$C$13,Lists!$E$2,Lists!$E$4),"") ->  | AC95: =AB95/SUMIF('Input - Monitor Limits'!$AB$19:$AB$318,"<1E100")*100 -> 
A96: 78 | Q96: =IF(ISNUMBER(L96),IF(I96="Fixed",J96,IF(F96="USD",J96+$C$14+IF($C$11="LIBOR",'GAS FILE'!$C$53,'GAS FILE'!$C$54),IF(F96="JPY",J96+$C$14+'GAS FILE'!$C$56,IF(F96="EUR",J96+$C$14+IF($C$11="LIBOR",'GAS FILE'!$C$55,'GAS FILE'!$C$59),IF(J96="GBP",'Input - Monitor Limits'!J96+$C$14+IF($C$11="LIBOR",'GAS FILE'!$C$57,'GAS FILE'!$C$58),J96+$C$14+'GAS FILE'!$C$60))))),"") ->  | X96: =IF(ISNUMBER(W96),IF(W96>=$C$13,Lists!$E$2,Lists!$E$4),"") ->  | AC96: =AB96/SUMIF('Input - Monitor Limits'!$AB$19:$AB$318,"<1E100")*100 -> 
A97: 79 | Q97: =IF(ISNUMBER(L97),IF(I97="Fixed",J97,IF(F97="USD",J97+$C$14+IF($C$11="LIBOR",'GAS FILE'!$C$53,'GAS FILE'!$C$54),IF(F97="JPY",J97+$C$14+'GAS FILE'!$C$56,IF(F97="EUR",J97+$C$14+IF($C$11="LIBOR",'GAS FILE'!$C$55,'GAS FILE'!$C$59),IF(J97="GBP",'Input - Monitor Limits'!J97+$C$14+IF($C$11="LIBOR",'GAS FILE'!$C$57,'GAS FILE'!$C$58),J97+$C$14+'GAS FILE'!$C$60))))),"") ->  | X97: =IF(ISNUMBER(W97),IF(W97>=$C$13,Lists!$E$2,Lists!$E$4),"") ->  | AC97: =AB97/SUMIF('Input - Monitor Limits'!$AB$19:$AB$318,"<1E100")*100 -> 
A98: 80 | Q98: =IF(ISNUMBER(L98),IF(I98="Fixed",J98,IF(F98="USD",J98+$C$14+IF($C$11="LIBOR",'GAS FILE'!$C$53,'GAS FILE'!$C$54),IF(F98="JPY",J98+$C$14+'GAS FILE'!$C$56,IF(F98="EUR",J98+$C$14+IF($C$11="LIBOR",'GAS FILE'!$C$55,'GAS FILE'!$C$59),IF(J98="GBP",'Input - Monitor Limits'!J98+$C$14+IF($C$11="LIBOR",'GAS FILE'!$C$57,'GAS FILE'!$C$58),J98+$C$14+'GAS FILE'!$C$60))))),"") ->  | X98: =IF(ISNUMBER(W98),IF(W98>=$C$13,Lists!$E$2,Lists!$E$4),"") ->  | AC98: =AB98/SUMIF('Input - Monitor Limits'!$AB$19:$AB$318,"<1E100")*100 -> 
A99: 81 | Q99: =IF(ISNUMBER(L99),IF(I99="Fixed",J99,IF(F99="USD",J99+$C$14+IF($C$11="LIBOR",'GAS FILE'!$C$53,'GAS FILE'!$C$54),IF(F99="JPY",J99+$C$14+'GAS FILE'!$C$56,IF(F99="EUR",J99+$C$14+IF($C$11="LIBOR",'GAS FILE'!$C$55,'GAS FILE'!$C$59),IF(J99="GBP",'Input - Monitor Limits'!J99+$C$14+IF($C$11="LIBOR",'GAS FILE'!$C$57,'GAS FILE'!$C$58),J99+$C$14+'GAS FILE'!$C$60))))),"") ->  | X99: =IF(ISNUMBER(W99),IF(W99>=$C$13,Lists!$E$2,Lists!$E$4),"") ->  | AC99: =AB99/SUMIF('Input - Monitor Limits'!$AB$19:$AB$318,"<1E100")*100 -> 
A100: 82 | Q100: =IF(ISNUMBER(L100),IF(I100="Fixed",J100,IF(F100="USD",J100+$C$14+IF($C$11="LIBOR",'GAS FILE'!$C$53,'GAS FILE'!$C$54),IF(F100="JPY",J100+$C$14+'GAS FILE'!$C$56,IF(F100="EUR",J100+$C$14+IF($C$11="LIBOR",'GAS FILE'!$C$55,'GAS FILE'!$C$59),IF(J100="GBP",'Input - Monitor Limits'!J100+$C$14+IF($C$11="LIBOR",'GAS FILE'!$C$57,'GAS FILE'!$C$58),J100+$C$14+'GAS FILE'!$C$60))))),"") ->  | X100: =IF(ISNUMBER(W100),IF(W100>=$C$13,Lists!$E$2,Lists!$E$4),"") ->  | AC100: =AB100/SUMIF('Input - Monitor Limits'!$AB$19:$AB$318,"<1E100")*100 -> 
A101: 83 | Q101: =IF(ISNUMBER(L101),IF(I101="Fixed",J101,IF(F101="USD",J101+$C$14+IF($C$11="LIBOR",'GAS FILE'!$C$53,'GAS FILE'!$C$54),IF(F101="JPY",J101+$C$14+'GAS FILE'!$C$56,IF(F101="EUR",J101+$C$14+IF($C$11="LIBOR",'GAS FILE'!$C$55,'GAS FILE'!$C$59),IF(J101="GBP",'Input - Monitor Limits'!J101+$C$14+IF($C$11="LIBOR",'GAS FILE'!$C$57,'GAS FILE'!$C$58),J101+$C$14+'GAS FILE'!$C$60))))),"") ->  | X101: =IF(ISNUMBER(W101),IF(W101>=$C$13,Lists!$E$2,Lists!$E$4),"") ->  | AC101: =AB101/SUMIF('Input - Monitor Limits'!$AB$19:$AB$318,"<1E100")*100 -> 
A102: 84 | Q102: =IF(ISNUMBER(L102),IF(I102="Fixed",J102,IF(F102="USD",J102+$C$14+IF($C$11="LIBOR",'GAS FILE'!$C$53,'GAS FILE'!$C$54),IF(F102="JPY",J102+$C$14+'GAS FILE'!$C$56,IF(F102="EUR",J102+$C$14+IF($C$11="LIBOR",'GAS FILE'!$C$55,'GAS FILE'!$C$59),IF(J102="GBP",'Input - Monitor Limits'!J102+$C$14+IF($C$11="LIBOR",'GAS FILE'!$C$57,'GAS FILE'!$C$58),J102+$C$14+'GAS FILE'!$C$60))))),"") ->  | X102: =IF(ISNUMBER(W102),IF(W102>=$C$13,Lists!$E$2,Lists!$E$4),"") ->  | AC102: =AB102/SUMIF('Input - Monitor Limits'!$AB$19:$AB$318,"<1E100")*100 -> 
A103: 85 | Q103: =IF(ISNUMBER(L103),IF(I103="Fixed",J103,IF(F103="USD",J103+$C$14+IF($C$11="LIBOR",'GAS FILE'!$C$53,'GAS FILE'!$C$54),IF(F103="JPY",J103+$C$14+'GAS FILE'!$C$56,IF(F103="EUR",J103+$C$14+IF($C$11="LIBOR",'GAS FILE'!$C$55,'GAS FILE'!$C$59),IF(J103="GBP",'Input - Monitor Limits'!J103+$C$14+IF($C$11="LIBOR",'GAS FILE'!$C$57,'GAS FILE'!$C$58),J103+$C$14+'GAS FILE'!$C$60))))),"") ->  | X103: =IF(ISNUMBER(W103),IF(W103>=$C$13,Lists!$E$2,Lists!$E$4),"") ->  | AC103: =AB103/SUMIF('Input - Monitor Limits'!$AB$19:$AB$318,"<1E100")*100 -> 
A104: 86 | Q104: =IF(ISNUMBER(L104),IF(I104="Fixed",J104,IF(F104="USD",J104+$C$14+IF($C$11="LIBOR",'GAS FILE'!$C$53,'GAS FILE'!$C$54),IF(F104="JPY",J104+$C$14+'GAS FILE'!$C$56,IF(F104="EUR",J104+$C$14+IF($C$11="LIBOR",'GAS FILE'!$C$55,'GAS FILE'!$C$59),IF(J104="GBP",'Input - Monitor Limits'!J104+$C$14+IF($C$11="LIBOR",'GAS FILE'!$C$57,'GAS FILE'!$C$58),J104+$C$14+'GAS FILE'!$C$60))))),"") ->  | X104: =IF(ISNUMBER(W104),IF(W104>=$C$13,Lists!$E$2,Lists!$E$4),"") ->  | AC104: =AB104/SUMIF('Input - Monitor Limits'!$AB$19:$AB$318,"<1E100")*100 -> 
A105: 87 | Q105: =IF(ISNUMBER(L105),IF(I105="Fixed",J105,IF(F105="USD",J105+$C$14+IF($C$11="LIBOR",'GAS FILE'!$C$53,'GAS FILE'!$C$54),IF(F105="JPY",J105+$C$14+'GAS FILE'!$C$56,IF(F105="EUR",J105+$C$14+IF($C$11="LIBOR",'GAS FILE'!$C$55,'GAS FILE'!$C$59),IF(J105="GBP",'Input - Monitor Limits'!J105+$C$14+IF($C$11="LIBOR",'GAS FILE'!$C$57,'GAS FILE'!$C$58),J105+$C$14+'GAS FILE'!$C$60))))),"") ->  | X105: =IF(ISNUMBER(W105),IF(W105>=$C$13,Lists!$E$2,Lists!$E$4),"") ->  | AC105: =AB105/SUMIF('Input - Monitor Limits'!$AB$19:$AB$318,"<1E100")*100 -> 
A106: 88 | Q106: =IF(ISNUMBER(L106),IF(I106="Fixed",J106,IF(F106="USD",J106+$C$14+IF($C$11="LIBOR",'GAS FILE'!$C$53,'GAS FILE'!$C$54),IF(F106="JPY",J106+$C$14+'GAS FILE'!$C$56,IF(F106="EUR",J106+$C$14+IF($C$11="LIBOR",'GAS FILE'!$C$55,'GAS FILE'!$C$59),IF(J106="GBP",'Input - Monitor Limits'!J106+$C$14+IF($C$11="LIBOR",'GAS FILE'!$C$57,'GAS FILE'!$C$58),J106+$C$14+'GAS FILE'!$C$60))))),"") ->  | X106: =IF(ISNUMBER(W106),IF(W106>=$C$13,Lists!$E$2,Lists!$E$4),"") ->  | AC106: =AB106/SUMIF('Input - Monitor Limits'!$AB$19:$AB$318,"<1E100")*100 -> 
A107: 89 | Q107: =IF(ISNUMBER(L107),IF(I107="Fixed",J107,IF(F107="USD",J107+$C$14+IF($C$11="LIBOR",'GAS FILE'!$C$53,'GAS FILE'!$C$54),IF(F107="JPY",J107+$C$14+'GAS FILE'!$C$56,IF(F107="EUR",J107+$C$14+IF($C$11="LIBOR",'GAS FILE'!$C$55,'GAS FILE'!$C$59),IF(J107="GBP",'Input - Monitor Limits'!J107+$C$14+IF($C$11="LIBOR",'GAS FILE'!$C$57,'GAS FILE'!$C$58),J107+$C$14+'GAS FILE'!$C$60))))),"") ->  | X107: =IF(ISNUMBER(W107),IF(W107>=$C$13,Lists!$E$2,Lists!$E$4),"") ->  | AC107: =AB107/SUMIF('Input - Monitor Limits'!$AB$19:$AB$318,"<1E100")*100 -> 
A108: 90 | Q108: =IF(ISNUMBER(L108),IF(I108="Fixed",J108,IF(F108="USD",J108+$C$14+IF($C$11="LIBOR",'GAS FILE'!$C$53,'GAS FILE'!$C$54),IF(F108="JPY",J108+$C$14+'GAS FILE'!$C$56,IF(F108="EUR",J108+$C$14+IF($C$11="LIBOR",'GAS FILE'!$C$55,'GAS FILE'!$C$59),IF(J108="GBP",'Input - Monitor Limits'!J108+$C$14+IF($C$11="LIBOR",'GAS FILE'!$C$57,'GAS FILE'!$C$58),J108+$C$14+'GAS FILE'!$C$60))))),"") ->  | X108: =IF(ISNUMBER(W108),IF(W108>=$C$13,Lists!$E$2,Lists!$E$4),"") ->  | AC108: =AB108/SUMIF('Input - Monitor Limits'!$AB$19:$AB$318,"<1E100")*100 -> 
A109: 91 | Q109: =IF(ISNUMBER(L109),IF(I109="Fixed",J109,IF(F109="USD",J109+$C$14+IF($C$11="LIBOR",'GAS FILE'!$C$53,'GAS FILE'!$C$54),IF(F109="JPY",J109+$C$14+'GAS FILE'!$C$56,IF(F109="EUR",J109+$C$14+IF($C$11="LIBOR",'GAS FILE'!$C$55,'GAS FILE'!$C$59),IF(J109="GBP",'Input - Monitor Limits'!J109+$C$14+IF($C$11="LIBOR",'GAS FILE'!$C$57,'GAS FILE'!$C$58),J109+$C$14+'GAS FILE'!$C$60))))),"") ->  | X109: =IF(ISNUMBER(W109),IF(W109>=$C$13,Lists!$E$2,Lists!$E$4),"") ->  | AC109: =AB109/SUMIF('Input - Monitor Limits'!$AB$19:$AB$318,"<1E100")*100 -> 
A110: 92 | Q110: =IF(ISNUMBER(L110),IF(I110="Fixed",J110,IF(F110="USD",J110+$C$14+IF($C$11="LIBOR",'GAS FILE'!$C$53,'GAS FILE'!$C$54),IF(F110="JPY",J110+$C$14+'GAS FILE'!$C$56,IF(F110="EUR",J110+$C$14+IF($C$11="LIBOR",'GAS FILE'!$C$55,'GAS FILE'!$C$59),IF(J110="GBP",'Input - Monitor Limits'!J110+$C$14+IF($C$11="LIBOR",'GAS FILE'!$C$57,'GAS FILE'!$C$58),J110+$C$14+'GAS FILE'!$C$60))))),"") ->  | X110: =IF(ISNUMBER(W110),IF(W110>=$C$13,Lists!$E$2,Lists!$E$4),"") ->  | AC110: =AB110/SUMIF('Input - Monitor Limits'!$AB$19:$AB$318,"<1E100")*100 -> 
A111: 93 | Q111: =IF(ISNUMBER(L111),IF(I111="Fixed",J111,IF(F111="USD",J111+$C$14+IF($C$11="LIBOR",'GAS FILE'!$C$53,'GAS FILE'!$C$54),IF(F111="JPY",J111+$C$14+'GAS FILE'!$C$56,IF(F111="EUR",J111+$C$14+IF($C$11="LIBOR",'GAS FILE'!$C$55,'GAS FILE'!$C$59),IF(J111="GBP",'Input - Monitor Limits'!J111+$C$14+IF($C$11="LIBOR",'GAS FILE'!$C$57,'GAS FILE'!$C$58),J111+$C$14+'GAS FILE'!$C$60))))),"") ->  | X111: =IF(ISNUMBER(W111),IF(W111>=$C$13,Lists!$E$2,Lists!$E$4),"") ->  | AC111: =AB111/SUMIF('Input - Monitor Limits'!$AB$19:$AB$318,"<1E100")*100 -> 
A112: 94 | Q112: =IF(ISNUMBER(L112),IF(I112="Fixed",J112,IF(F112="USD",J112+$C$14+IF($C$11="LIBOR",'GAS FILE'!$C$53,'GAS FILE'!$C$54),IF(F112="JPY",J112+$C$14+'GAS FILE'!$C$56,IF(F112="EUR",J112+$C$14+IF($C$11="LIBOR",'GAS FILE'!$C$55,'GAS FILE'!$C$59),IF(J112="GBP",'Input - Monitor Limits'!J112+$C$14+IF($C$11="LIBOR",'GAS FILE'!$C$57,'GAS FILE'!$C$58),J112+$C$14+'GAS FILE'!$C$60))))),"") ->  | X112: =IF(ISNUMBER(W112),IF(W112>=$C$13,Lists!$E$2,Lists!$E$4),"") ->  | AC112: =AB112/SUMIF('Input - Monitor Limits'!$AB$19:$AB$318,"<1E100")*100 -> 
A113: 95 | Q113: =IF(ISNUMBER(L113),IF(I113="Fixed",J113,IF(F113="USD",J113+$C$14+IF($C$11="LIBOR",'GAS FILE'!$C$53,'GAS FILE'!$C$54),IF(F113="JPY",J113+$C$14+'GAS FILE'!$C$56,IF(F113="EUR",J113+$C$14+IF($C$11="LIBOR",'GAS FILE'!$C$55,'GAS FILE'!$C$59),IF(J113="GBP",'Input - Monitor Limits'!J113+$C$14+IF($C$11="LIBOR",'GAS FILE'!$C$57,'GAS FILE'!$C$58),J113+$C$14+'GAS FILE'!$C$60))))),"") ->  | X113: =IF(ISNUMBER(W113),IF(W113>=$C$13,Lists!$E$2,Lists!$E$4),"") ->  | AC113: =AB113/SUMIF('Input - Monitor Limits'!$AB$19:$AB$318,"<1E100")*100 -> 
A114: 96 | Q114: =IF(ISNUMBER(L114),IF(I114="Fixed",J114,IF(F114="USD",J114+$C$14+IF($C$11="LIBOR",'GAS FILE'!$C$53,'GAS FILE'!$C$54),IF(F114="JPY",J114+$C$14+'GAS FILE'!$C$56,IF(F114="EUR",J114+$C$14+IF($C$11="LIBOR",'GAS FILE'!$C$55,'GAS FILE'!$C$59),IF(J114="GBP",'Input - Monitor Limits'!J114+$C$14+IF($C$11="LIBOR",'GAS FILE'!$C$57,'GAS FILE'!$C$58),J114+$C$14+'GAS FILE'!$C$60))))),"") ->  | X114: =IF(ISNUMBER(W114),IF(W114>=$C$13,Lists!$E$2,Lists!$E$4),"") ->  | AC114: =AB114/SUMIF('Input - Monitor Limits'!$AB$19:$AB$318,"<1E100")*100 -> 
A115: 97 | Q115: =IF(ISNUMBER(L115),IF(I115="Fixed",J115,IF(F115="USD",J115+$C$14+IF($C$11="LIBOR",'GAS FILE'!$C$53,'GAS FILE'!$C$54),IF(F115="JPY",J115+$C$14+'GAS FILE'!$C$56,IF(F115="EUR",J115+$C$14+IF($C$11="LIBOR",'GAS FILE'!$C$55,'GAS FILE'!$C$59),IF(J115="GBP",'Input - Monitor Limits'!J115+$C$14+IF($C$11="LIBOR",'GAS FILE'!$C$57,'GAS FILE'!$C$58),J115+$C$14+'GAS FILE'!$C$60))))),"") ->  | X115: =IF(ISNUMBER(W115),IF(W115>=$C$13,Lists!$E$2,Lists!$E$4),"") ->  | AC115: =AB115/SUMIF('Input - Monitor Limits'!$AB$19:$AB$318,"<1E100")*100 -> 
A116: 98 | Q116: =IF(ISNUMBER(L116),IF(I116="Fixed",J116,IF(F116="USD",J116+$C$14+IF($C$11="LIBOR",'GAS FILE'!$C$53,'GAS FILE'!$C$54),IF(F116="JPY",J116+$C$14+'GAS FILE'!$C$56,IF(F116="EUR",J116+$C$14+IF($C$11="LIBOR",'GAS FILE'!$C$55,'GAS FILE'!$C$59),IF(J116="GBP",'Input - Monitor Limits'!J116+$C$14+IF($C$11="LIBOR",'GAS FILE'!$C$57,'GAS FILE'!$C$58),J116+$C$14+'GAS FILE'!$C$60))))),"") ->  | X116: =IF(ISNUMBER(W116),IF(W116>=$C$13,Lists!$E$2,Lists!$E$4),"") ->  | AC116: =AB116/SUMIF('Input - Monitor Limits'!$AB$19:$AB$318,"<1E100")*100 -> 
A117: 99 | Q117: =IF(ISNUMBER(L117),IF(I117="Fixed",J117,IF(F117="USD",J117+$C$14+IF($C$11="LIBOR",'GAS FILE'!$C$53,'GAS FILE'!$C$54),IF(F117="JPY",J117+$C$14+'GAS FILE'!$C$56,IF(F117="EUR",J117+$C$14+IF($C$11="LIBOR",'GAS FILE'!$C$55,'GAS FILE'!$C$59),IF(J117="GBP",'Input - Monitor Limits'!J117+$C$14+IF($C$11="LIBOR",'GAS FILE'!$C$57,'GAS FILE'!$C$58),J117+$C$14+'GAS FILE'!$C$60))))),"") ->  | X117: =IF(ISNUMBER(W117),IF(W117>=$C$13,Lists!$E$2,Lists!$E$4),"") ->  | AC117: =AB117/SUMIF('Input - Monitor Limits'!$AB$19:$AB$318,"<1E100")*100 -> 
A118: 100 | Q118: =IF(ISNUMBER(L118),IF(I118="Fixed",J118,IF(F118="USD",J118+$C$14+IF($C$11="LIBOR",'GAS FILE'!$C$53,'GAS FILE'!$C$54),IF(F118="JPY",J118+$C$14+'GAS FILE'!$C$56,IF(F118="EUR",J118+$C$14+IF($C$11="LIBOR",'GAS FILE'!$C$55,'GAS FILE'!$C$59),IF(J118="GBP",'Input - Monitor Limits'!J118+$C$14+IF($C$11="LIBOR",'GAS FILE'!$C$57,'GAS FILE'!$C$58),J118+$C$14+'GAS FILE'!$C$60))))),"") ->  | X118: =IF(ISNUMBER(W118),IF(W118>=$C$13,Lists!$E$2,Lists!$E$4),"") ->  | AC118: =AB118/SUMIF('Input - Monitor Limits'!$AB$19:$AB$318,"<1E100")*100 -> 
A119: 101 | Q119: =IF(ISNUMBER(L119),IF(I119="Fixed",J119,IF(F119="USD",J119+$C$14+IF($C$11="LIBOR",'GAS FILE'!$C$53,'GAS FILE'!$C$54),IF(F119="JPY",J119+$C$14+'GAS FILE'!$C$56,IF(F119="EUR",J119+$C$14+IF($C$11="LIBOR",'GAS FILE'!$C$55,'GAS FILE'!$C$59),IF(J119="GBP",'Input - Monitor Limits'!J119+$C$14+IF($C$11="LIBOR",'GAS FILE'!$C$57,'GAS FILE'!$C$58),J119+$C$14+'GAS FILE'!$C$60))))),"") ->  | X119: =IF(ISNUMBER(W119),IF(W119>=$C$13,Lists!$E$2,Lists!$E$4),"") ->  | AC119: =AB119/SUMIF('Input - Monitor Limits'!$AB$19:$AB$318,"<1E100")*100 -> 
A120: 102 | Q120: =IF(ISNUMBER(L120),IF(I120="Fixed",J120,IF(F120="USD",J120+$C$14+IF($C$11="LIBOR",'GAS FILE'!$C$53,'GAS FILE'!$C$54),IF(F120="JPY",J120+$C$14+'GAS FILE'!$C$56,IF(F120="EUR",J120+$C$14+IF($C$11="LIBOR",'GAS FILE'!$C$55,'GAS FILE'!$C$59),IF(J120="GBP",'Input - Monitor Limits'!J120+$C$14+IF($C$11="LIBOR",'GAS FILE'!$C$57,'GAS FILE'!$C$58),J120+$C$14+'GAS FILE'!$C$60))))),"") ->  | X120: =IF(ISNUMBER(W120),IF(W120>=$C$13,Lists!$E$2,Lists!$E$4),"") ->  | AC120: =AB120/SUMIF('Input - Monitor Limits'!$AB$19:$AB$318,"<1E100")*100 -> 
A121: 103 | Q121: =IF(ISNUMBER(L121),IF(I121="Fixed",J121,IF(F121="USD",J121+$C$14+IF($C$11="LIBOR",'GAS FILE'!$C$53,'GAS FILE'!$C$54),IF(F121="JPY",J121+$C$14+'GAS FILE'!$C$56,IF(F121="EUR",J121+$C$14+IF($C$11="LIBOR",'GAS FILE'!$C$55,'GAS FILE'!$C$59),IF(J121="GBP",'Input - Monitor Limits'!J121+$C$14+IF($C$11="LIBOR",'GAS FILE'!$C$57,'GAS FILE'!$C$58),J121+$C$14+'GAS FILE'!$C$60))))),"") ->  | X121: =IF(ISNUMBER(W121),IF(W121>=$C$13,Lists!$E$2,Lists!$E$4),"") ->  | AC121: =AB121/SUMIF('Input - Monitor Limits'!$AB$19:$AB$318,"<1E100")*100 -> 
A122: 104 | Q122: =IF(ISNUMBER(L122),IF(I122="Fixed",J122,IF(F122="USD",J122+$C$14+IF($C$11="LIBOR",'GAS FILE'!$C$53,'GAS FILE'!$C$54),IF(F122="JPY",J122+$C$14+'GAS FILE'!$C$56,IF(F122="EUR",J122+$C$14+IF($C$11="LIBOR",'GAS FILE'!$C$55,'GAS FILE'!$C$59),IF(J122="GBP",'Input - Monitor Limits'!J122+$C$14+IF($C$11="LIBOR",'GAS FILE'!$C$57,'GAS FILE'!$C$58),J122+$C$14+'GAS FILE'!$C$60))))),"") ->  | X122: =IF(ISNUMBER(W122),IF(W122>=$C$13,Lists!$E$2,Lists!$E$4),"") ->  | AC122: =AB122/SUMIF('Input - Monitor Limits'!$AB$19:$AB$318,"<1E100")*100 -> 
A123: 105 | Q123: =IF(ISNUMBER(L123),IF(I123="Fixed",J123,IF(F123="USD",J123+$C$14+IF($C$11="LIBOR",'GAS FILE'!$C$53,'GAS FILE'!$C$54),IF(F123="JPY",J123+$C$14+'GAS FILE'!$C$56,IF(F123="EUR",J123+$C$14+IF($C$11="LIBOR",'GAS FILE'!$C$55,'GAS FILE'!$C$59),IF(J123="GBP",'Input - Monitor Limits'!J123+$C$14+IF($C$11="LIBOR",'GAS FILE'!$C$57,'GAS FILE'!$C$58),J123+$C$14+'GAS FILE'!$C$60))))),"") ->  | X123: =IF(ISNUMBER(W123),IF(W123>=$C$13,Lists!$E$2,Lists!$E$4),"") ->  | AC123: =AB123/SUMIF('Input - Monitor Limits'!$AB$19:$AB$318,"<1E100")*100 -> 
A124: 106 | Q124: =IF(ISNUMBER(L124),IF(I124="Fixed",J124,IF(F124="USD",J124+$C$14+IF($C$11="LIBOR",'GAS FILE'!$C$53,'GAS FILE'!$C$54),IF(F124="JPY",J124+$C$14+'GAS FILE'!$C$56,IF(F124="EUR",J124+$C$14+IF($C$11="LIBOR",'GAS FILE'!$C$55,'GAS FILE'!$C$59),IF(J124="GBP",'Input - Monitor Limits'!J124+$C$14+IF($C$11="LIBOR",'GAS FILE'!$C$57,'GAS FILE'!$C$58),J124+$C$14+'GAS FILE'!$C$60))))),"") ->  | X124: =IF(ISNUMBER(W124),IF(W124>=$C$13,Lists!$E$2,Lists!$E$4),"") ->  | AC124: =AB124/SUMIF('Input - Monitor Limits'!$AB$19:$AB$318,"<1E100")*100 -> 
A125: 107 | Q125: =IF(ISNUMBER(L125),IF(I125="Fixed",J125,IF(F125="USD",J125+$C$14+IF($C$11="LIBOR",'GAS FILE'!$C$53,'GAS FILE'!$C$54),IF(F125="JPY",J125+$C$14+'GAS FILE'!$C$56,IF(F125="EUR",J125+$C$14+IF($C$11="LIBOR",'GAS FILE'!$C$55,'GAS FILE'!$C$59),IF(J125="GBP",'Input - Monitor Limits'!J125+$C$14+IF($C$11="LIBOR",'GAS FILE'!$C$57,'GAS FILE'!$C$58),J125+$C$14+'GAS FILE'!$C$60))))),"") ->  | X125: =IF(ISNUMBER(W125),IF(W125>=$C$13,Lists!$E$2,Lists!$E$4),"") ->  | AC125: =AB125/SUMIF('Input - Monitor Limits'!$AB$19:$AB$318,"<1E100")*100 -> 
A126: 108 | Q126: =IF(ISNUMBER(L126),IF(I126="Fixed",J126,IF(F126="USD",J126+$C$14+IF($C$11="LIBOR",'GAS FILE'!$C$53,'GAS FILE'!$C$54),IF(F126="JPY",J126+$C$14+'GAS FILE'!$C$56,IF(F126="EUR",J126+$C$14+IF($C$11="LIBOR",'GAS FILE'!$C$55,'GAS FILE'!$C$59),IF(J126="GBP",'Input - Monitor Limits'!J126+$C$14+IF($C$11="LIBOR",'GAS FILE'!$C$57,'GAS FILE'!$C$58),J126+$C$14+'GAS FILE'!$C$60))))),"") ->  | X126: =IF(ISNUMBER(W126),IF(W126>=$C$13,Lists!$E$2,Lists!$E$4),"") ->  | AC126: =AB126/SUMIF('Input - Monitor Limits'!$AB$19:$AB$318,"<1E100")*100 -> 
A127: 109 | Q127: =IF(ISNUMBER(L127),IF(I127="Fixed",J127,IF(F127="USD",J127+$C$14+IF($C$11="LIBOR",'GAS FILE'!$C$53,'GAS FILE'!$C$54),IF(F127="JPY",J127+$C$14+'GAS FILE'!$C$56,IF(F127="EUR",J127+$C$14+IF($C$11="LIBOR",'GAS FILE'!$C$55,'GAS FILE'!$C$59),IF(J127="GBP",'Input - Monitor Limits'!J127+$C$14+IF($C$11="LIBOR",'GAS FILE'!$C$57,'GAS FILE'!$C$58),J127+$C$14+'GAS FILE'!$C$60))))),"") ->  | X127: =IF(ISNUMBER(W127),IF(W127>=$C$13,Lists!$E$2,Lists!$E$4),"") ->  | AC127: =AB127/SUMIF('Input - Monitor Limits'!$AB$19:$AB$318,"<1E100")*100 -> 
A128: 110 | Q128: =IF(ISNUMBER(L128),IF(I128="Fixed",J128,IF(F128="USD",J128+$C$14+IF($C$11="LIBOR",'GAS FILE'!$C$53,'GAS FILE'!$C$54),IF(F128="JPY",J128+$C$14+'GAS FILE'!$C$56,IF(F128="EUR",J128+$C$14+IF($C$11="LIBOR",'GAS FILE'!$C$55,'GAS FILE'!$C$59),IF(J128="GBP",'Input - Monitor Limits'!J128+$C$14+IF($C$11="LIBOR",'GAS FILE'!$C$57,'GAS FILE'!$C$58),J128+$C$14+'GAS FILE'!$C$60))))),"") ->  | X128: =IF(ISNUMBER(W128),IF(W128>=$C$13,Lists!$E$2,Lists!$E$4),"") ->  | AC128: =AB128/SUMIF('Input - Monitor Limits'!$AB$19:$AB$318,"<1E100")*100 -> 
A129: 111 | Q129: =IF(ISNUMBER(L129),IF(I129="Fixed",J129,IF(F129="USD",J129+$C$14+IF($C$11="LIBOR",'GAS FILE'!$C$53,'GAS FILE'!$C$54),IF(F129="JPY",J129+$C$14+'GAS FILE'!$C$56,IF(F129="EUR",J129+$C$14+IF($C$11="LIBOR",'GAS FILE'!$C$55,'GAS FILE'!$C$59),IF(J129="GBP",'Input - Monitor Limits'!J129+$C$14+IF($C$11="LIBOR",'GAS FILE'!$C$57,'GAS FILE'!$C$58),J129+$C$14+'GAS FILE'!$C$60))))),"") ->  | X129: =IF(ISNUMBER(W129),IF(W129>=$C$13,Lists!$E$2,Lists!$E$4),"") ->  | AC129: =AB129/SUMIF('Input - Monitor Limits'!$AB$19:$AB$318,"<1E100")*100 -> 
A130: 112 | Q130: =IF(ISNUMBER(L130),IF(I130="Fixed",J130,IF(F130="USD",J130+$C$14+IF($C$11="LIBOR",'GAS FILE'!$C$53,'GAS FILE'!$C$54),IF(F130="JPY",J130+$C$14+'GAS FILE'!$C$56,IF(F130="EUR",J130+$C$14+IF($C$11="LIBOR",'GAS FILE'!$C$55,'GAS FILE'!$C$59),IF(J130="GBP",'Input - Monitor Limits'!J130+$C$14+IF($C$11="LIBOR",'GAS FILE'!$C$57,'GAS FILE'!$C$58),J130+$C$14+'GAS FILE'!$C$60))))),"") ->  | X130: =IF(ISNUMBER(W130),IF(W130>=$C$13,Lists!$E$2,Lists!$E$4),"") ->  | AC130: =AB130/SUMIF('Input - Monitor Limits'!$AB$19:$AB$318,"<1E100")*100 -> 
A131: 113 | Q131: =IF(ISNUMBER(L131),IF(I131="Fixed",J131,IF(F131="USD",J131+$C$14+IF($C$11="LIBOR",'GAS FILE'!$C$53,'GAS FILE'!$C$54),IF(F131="JPY",J131+$C$14+'GAS FILE'!$C$56,IF(F131="EUR",J131+$C$14+IF($C$11="LIBOR",'GAS FILE'!$C$55,'GAS FILE'!$C$59),IF(J131="GBP",'Input - Monitor Limits'!J131+$C$14+IF($C$11="LIBOR",'GAS FILE'!$C$57,'GAS FILE'!$C$58),J131+$C$14+'GAS FILE'!$C$60))))),"") ->  | X131: =IF(ISNUMBER(W131),IF(W131>=$C$13,Lists!$E$2,Lists!$E$4),"") ->  | AC131: =AB131/SUMIF('Input - Monitor Limits'!$AB$19:$AB$318,"<1E100")*100 -> 
A132: 114 | Q132: =IF(ISNUMBER(L132),IF(I132="Fixed",J132,IF(F132="USD",J132+$C$14+IF($C$11="LIBOR",'GAS FILE'!$C$53,'GAS FILE'!$C$54),IF(F132="JPY",J132+$C$14+'GAS FILE'!$C$56,IF(F132="EUR",J132+$C$14+IF($C$11="LIBOR",'GAS FILE'!$C$55,'GAS FILE'!$C$59),IF(J132="GBP",'Input - Monitor Limits'!J132+$C$14+IF($C$11="LIBOR",'GAS FILE'!$C$57,'GAS FILE'!$C$58),J132+$C$14+'GAS FILE'!$C$60))))),"") ->  | X132: =IF(ISNUMBER(W132),IF(W132>=$C$13,Lists!$E$2,Lists!$E$4),"") ->  | AC132: =AB132/SUMIF('Input - Monitor Limits'!$AB$19:$AB$318,"<1E100")*100 -> 
A133: 115 | Q133: =IF(ISNUMBER(L133),IF(I133="Fixed",J133,IF(F133="USD",J133+$C$14+IF($C$11="LIBOR",'GAS FILE'!$C$53,'GAS FILE'!$C$54),IF(F133="JPY",J133+$C$14+'GAS FILE'!$C$56,IF(F133="EUR",J133+$C$14+IF($C$11="LIBOR",'GAS FILE'!$C$55,'GAS FILE'!$C$59),IF(J133="GBP",'Input - Monitor Limits'!J133+$C$14+IF($C$11="LIBOR",'GAS FILE'!$C$57,'GAS FILE'!$C$58),J133+$C$14+'GAS FILE'!$C$60))))),"") ->  | X133: =IF(ISNUMBER(W133),IF(W133>=$C$13,Lists!$E$2,Lists!$E$4),"") ->  | AC133: =AB133/SUMIF('Input - Monitor Limits'!$AB$19:$AB$318,"<1E100")*100 -> 
A134: 116 | Q134: =IF(ISNUMBER(L134),IF(I134="Fixed",J134,IF(F134="USD",J134+$C$14+IF($C$11="LIBOR",'GAS FILE'!$C$53,'GAS FILE'!$C$54),IF(F134="JPY",J134+$C$14+'GAS FILE'!$C$56,IF(F134="EUR",J134+$C$14+IF($C$11="LIBOR",'GAS FILE'!$C$55,'GAS FILE'!$C$59),IF(J134="GBP",'Input - Monitor Limits'!J134+$C$14+IF($C$11="LIBOR",'GAS FILE'!$C$57,'GAS FILE'!$C$58),J134+$C$14+'GAS FILE'!$C$60))))),"") ->  | X134: =IF(ISNUMBER(W134),IF(W134>=$C$13,Lists!$E$2,Lists!$E$4),"") ->  | AC134: =AB134/SUMIF('Input - Monitor Limits'!$AB$19:$AB$318,"<1E100")*100 -> 
A135: 117 | Q135: =IF(ISNUMBER(L135),IF(I135="Fixed",J135,IF(F135="USD",J135+$C$14+IF($C$11="LIBOR",'GAS FILE'!$C$53,'GAS FILE'!$C$54),IF(F135="JPY",J135+$C$14+'GAS FILE'!$C$56,IF(F135="EUR",J135+$C$14+IF($C$11="LIBOR",'GAS FILE'!$C$55,'GAS FILE'!$C$59),IF(J135="GBP",'Input - Monitor Limits'!J135+$C$14+IF($C$11="LIBOR",'GAS FILE'!$C$57,'GAS FILE'!$C$58),J135+$C$14+'GAS FILE'!$C$60))))),"") ->  | X135: =IF(ISNUMBER(W135),IF(W135>=$C$13,Lists!$E$2,Lists!$E$4),"") ->  | AC135: =AB135/SUMIF('Input - Monitor Limits'!$AB$19:$AB$318,"<1E100")*100 -> 
A136: 118 | Q136: =IF(ISNUMBER(L136),IF(I136="Fixed",J136,IF(F136="USD",J136+$C$14+IF($C$11="LIBOR",'GAS FILE'!$C$53,'GAS FILE'!$C$54),IF(F136="JPY",J136+$C$14+'GAS FILE'!$C$56,IF(F136="EUR",J136+$C$14+IF($C$11="LIBOR",'GAS FILE'!$C$55,'GAS FILE'!$C$59),IF(J136="GBP",'Input - Monitor Limits'!J136+$C$14+IF($C$11="LIBOR",'GAS FILE'!$C$57,'GAS FILE'!$C$58),J136+$C$14+'GAS FILE'!$C$60))))),"") ->  | X136: =IF(ISNUMBER(W136),IF(W136>=$C$13,Lists!$E$2,Lists!$E$4),"") ->  | AC136: =AB136/SUMIF('Input - Monitor Limits'!$AB$19:$AB$318,"<1E100")*100 -> 
A137: 119 | Q137: =IF(ISNUMBER(L137),IF(I137="Fixed",J137,IF(F137="USD",J137+$C$14+IF($C$11="LIBOR",'GAS FILE'!$C$53,'GAS FILE'!$C$54),IF(F137="JPY",J137+$C$14+'GAS FILE'!$C$56,IF(F137="EUR",J137+$C$14+IF($C$11="LIBOR",'GAS FILE'!$C$55,'GAS FILE'!$C$59),IF(J137="GBP",'Input - Monitor Limits'!J137+$C$14+IF($C$11="LIBOR",'GAS FILE'!$C$57,'GAS FILE'!$C$58),J137+$C$14+'GAS FILE'!$C$60))))),"") ->  | X137: =IF(ISNUMBER(W137),IF(W137>=$C$13,Lists!$E$2,Lists!$E$4),"") ->  | AC137: =AB137/SUMIF('Input - Monitor Limits'!$AB$19:$AB$318,"<1E100")*100 -> 
A138: 120 | Q138: =IF(ISNUMBER(L138),IF(I138="Fixed",J138,IF(F138="USD",J138+$C$14+IF($C$11="LIBOR",'GAS FILE'!$C$53,'GAS FILE'!$C$54),IF(F138="JPY",J138+$C$14+'GAS FILE'!$C$56,IF(F138="EUR",J138+$C$14+IF($C$11="LIBOR",'GAS FILE'!$C$55,'GAS FILE'!$C$59),IF(J138="GBP",'Input - Monitor Limits'!J138+$C$14+IF($C$11="LIBOR",'GAS FILE'!$C$57,'GAS FILE'!$C$58),J138+$C$14+'GAS FILE'!$C$60))))),"") ->  | X138: =IF(ISNUMBER(W138),IF(W138>=$C$13,Lists!$E$2,Lists!$E$4),"") ->  | AC138: =AB138/SUMIF('Input - Monitor Limits'!$AB$19:$AB$318,"<1E100")*100 -> 
A139: 121 | Q139: =IF(ISNUMBER(L139),IF(I139="Fixed",J139,IF(F139="USD",J139+$C$14+IF($C$11="LIBOR",'GAS FILE'!$C$53,'GAS FILE'!$C$54),IF(F139="JPY",J139+$C$14+'GAS FILE'!$C$56,IF(F139="EUR",J139+$C$14+IF($C$11="LIBOR",'GAS FILE'!$C$55,'GAS FILE'!$C$59),IF(J139="GBP",'Input - Monitor Limits'!J139+$C$14+IF($C$11="LIBOR",'GAS FILE'!$C$57,'GAS FILE'!$C$58),J139+$C$14+'GAS FILE'!$C$60))))),"") ->  | X139: =IF(ISNUMBER(W139),IF(W139>=$C$13,Lists!$E$2,Lists!$E$4),"") ->  | AC139: =AB139/SUMIF('Input - Monitor Limits'!$AB$19:$AB$318,"<1E100")*100 -> 
A140: 122 | Q140: =IF(ISNUMBER(L140),IF(I140="Fixed",J140,IF(F140="USD",J140+$C$14+IF($C$11="LIBOR",'GAS FILE'!$C$53,'GAS FILE'!$C$54),IF(F140="JPY",J140+$C$14+'GAS FILE'!$C$56,IF(F140="EUR",J140+$C$14+IF($C$11="LIBOR",'GAS FILE'!$C$55,'GAS FILE'!$C$59),IF(J140="GBP",'Input - Monitor Limits'!J140+$C$14+IF($C$11="LIBOR",'GAS FILE'!$C$57,'GAS FILE'!$C$58),J140+$C$14+'GAS FILE'!$C$60))))),"") ->  | X140: =IF(ISNUMBER(W140),IF(W140>=$C$13,Lists!$E$2,Lists!$E$4),"") ->  | AC140: =AB140/SUMIF('Input - Monitor Limits'!$AB$19:$AB$318,"<1E100")*100 -> 
A141: 123 | Q141: =IF(ISNUMBER(L141),IF(I141="Fixed",J141,IF(F141="USD",J141+$C$14+IF($C$11="LIBOR",'GAS FILE'!$C$53,'GAS FILE'!$C$54),IF(F141="JPY",J141+$C$14+'GAS FILE'!$C$56,IF(F141="EUR",J141+$C$14+IF($C$11="LIBOR",'GAS FILE'!$C$55,'GAS FILE'!$C$59),IF(J141="GBP",'Input - Monitor Limits'!J141+$C$14+IF($C$11="LIBOR",'GAS FILE'!$C$57,'GAS FILE'!$C$58),J141+$C$14+'GAS FILE'!$C$60))))),"") ->  | X141: =IF(ISNUMBER(W141),IF(W141>=$C$13,Lists!$E$2,Lists!$E$4),"") ->  | AC141: =AB141/SUMIF('Input - Monitor Limits'!$AB$19:$AB$318,"<1E100")*100 -> 
A142: 124 | Q142: =IF(ISNUMBER(L142),IF(I142="Fixed",J142,IF(F142="USD",J142+$C$14+IF($C$11="LIBOR",'GAS FILE'!$C$53,'GAS FILE'!$C$54),IF(F142="JPY",J142+$C$14+'GAS FILE'!$C$56,IF(F142="EUR",J142+$C$14+IF($C$11="LIBOR",'GAS FILE'!$C$55,'GAS FILE'!$C$59),IF(J142="GBP",'Input - Monitor Limits'!J142+$C$14+IF($C$11="LIBOR",'GAS FILE'!$C$57,'GAS FILE'!$C$58),J142+$C$14+'GAS FILE'!$C$60))))),"") ->  | X142: =IF(ISNUMBER(W142),IF(W142>=$C$13,Lists!$E$2,Lists!$E$4),"") ->  | AC142: =AB142/SUMIF('Input - Monitor Limits'!$AB$19:$AB$318,"<1E100")*100 -> 
A143: 125 | Q143: =IF(ISNUMBER(L143),IF(I143="Fixed",J143,IF(F143="USD",J143+$C$14+IF($C$11="LIBOR",'GAS FILE'!$C$53,'GAS FILE'!$C$54),IF(F143="JPY",J143+$C$14+'GAS FILE'!$C$56,IF(F143="EUR",J143+$C$14+IF($C$11="LIBOR",'GAS FILE'!$C$55,'GAS FILE'!$C$59),IF(J143="GBP",'Input - Monitor Limits'!J143+$C$14+IF($C$11="LIBOR",'GAS FILE'!$C$57,'GAS FILE'!$C$58),J143+$C$14+'GAS FILE'!$C$60))))),"") ->  | X143: =IF(ISNUMBER(W143),IF(W143>=$C$13,Lists!$E$2,Lists!$E$4),"") ->  | AC143: =AB143/SUMIF('Input - Monitor Limits'!$AB$19:$AB$318,"<1E100")*100 -> 
A144: 126 | Q144: =IF(ISNUMBER(L144),IF(I144="Fixed",J144,IF(F144="USD",J144+$C$14+IF($C$11="LIBOR",'GAS FILE'!$C$53,'GAS FILE'!$C$54),IF(F144="JPY",J144+$C$14+'GAS FILE'!$C$56,IF(F144="EUR",J144+$C$14+IF($C$11="LIBOR",'GAS FILE'!$C$55,'GAS FILE'!$C$59),IF(J144="GBP",'Input - Monitor Limits'!J144+$C$14+IF($C$11="LIBOR",'GAS FILE'!$C$57,'GAS FILE'!$C$58),J144+$C$14+'GAS FILE'!$C$60))))),"") ->  | X144: =IF(ISNUMBER(W144),IF(W144>=$C$13,Lists!$E$2,Lists!$E$4),"") ->  | AC144: =AB144/SUMIF('Input - Monitor Limits'!$AB$19:$AB$318,"<1E100")*100 -> 
A145: 127 | Q145: =IF(ISNUMBER(L145),IF(I145="Fixed",J145,IF(F145="USD",J145+$C$14+IF($C$11="LIBOR",'GAS FILE'!$C$53,'GAS FILE'!$C$54),IF(F145="JPY",J145+$C$14+'GAS FILE'!$C$56,IF(F145="EUR",J145+$C$14+IF($C$11="LIBOR",'GAS FILE'!$C$55,'GAS FILE'!$C$59),IF(J145="GBP",'Input - Monitor Limits'!J145+$C$14+IF($C$11="LIBOR",'GAS FILE'!$C$57,'GAS FILE'!$C$58),J145+$C$14+'GAS FILE'!$C$60))))),"") ->  | X145: =IF(ISNUMBER(W145),IF(W145>=$C$13,Lists!$E$2,Lists!$E$4),"") ->  | AC145: =AB145/SUMIF('Input - Monitor Limits'!$AB$19:$AB$318,"<1E100")*100 -> 
A146: 128 | Q146: =IF(ISNUMBER(L146),IF(I146="Fixed",J146,IF(F146="USD",J146+$C$14+IF($C$11="LIBOR",'GAS FILE'!$C$53,'GAS FILE'!$C$54),IF(F146="JPY",J146+$C$14+'GAS FILE'!$C$56,IF(F146="EUR",J146+$C$14+IF($C$11="LIBOR",'GAS FILE'!$C$55,'GAS FILE'!$C$59),IF(J146="GBP",'Input - Monitor Limits'!J146+$C$14+IF($C$11="LIBOR",'GAS FILE'!$C$57,'GAS FILE'!$C$58),J146+$C$14+'GAS FILE'!$C$60))))),"") ->  | X146: =IF(ISNUMBER(W146),IF(W146>=$C$13,Lists!$E$2,Lists!$E$4),"") ->  | AC146: =AB146/SUMIF('Input - Monitor Limits'!$AB$19:$AB$318,"<1E100")*100 -> 
A147: 129 | Q147: =IF(ISNUMBER(L147),IF(I147="Fixed",J147,IF(F147="USD",J147+$C$14+IF($C$11="LIBOR",'GAS FILE'!$C$53,'GAS FILE'!$C$54),IF(F147="JPY",J147+$C$14+'GAS FILE'!$C$56,IF(F147="EUR",J147+$C$14+IF($C$11="LIBOR",'GAS FILE'!$C$55,'GAS FILE'!$C$59),IF(J147="GBP",'Input - Monitor Limits'!J147+$C$14+IF($C$11="LIBOR",'GAS FILE'!$C$57,'GAS FILE'!$C$58),J147+$C$14+'GAS FILE'!$C$60))))),"") ->  | X147: =IF(ISNUMBER(W147),IF(W147>=$C$13,Lists!$E$2,Lists!$E$4),"") ->  | AC147: =AB147/SUMIF('Input - Monitor Limits'!$AB$19:$AB$318,"<1E100")*100 ->  | AD147: =AC147*W147 -> 
A148: 130 | Q148: =IF(ISNUMBER(L148),IF(I148="Fixed",J148,IF(F148="USD",J148+$C$14+IF($C$11="LIBOR",'GAS FILE'!$C$53,'GAS FILE'!$C$54),IF(F148="JPY",J148+$C$14+'GAS FILE'!$C$56,IF(F148="EUR",J148+$C$14+IF($C$11="LIBOR",'GAS FILE'!$C$55,'GAS FILE'!$C$59),IF(J148="GBP",'Input - Monitor Limits'!J148+$C$14+IF($C$11="LIBOR",'GAS FILE'!$C$57,'GAS FILE'!$C$58),J148+$C$14+'GAS FILE'!$C$60))))),"") ->  | X148: =IF(ISNUMBER(W148),IF(W148>=$C$13,Lists!$E$2,Lists!$E$4),"") ->  | AC148: =AB148/SUMIF('Input - Monitor Limits'!$AB$19:$AB$318,"<1E100")*100 ->  | AF148: =IF(YEAR(B148)<$C$16,"",YEAR(B148)) -> 
A149: 131 | Q149: =IF(ISNUMBER(L149),IF(I149="Fixed",J149,IF(F149="USD",J149+$C$14+IF($C$11="LIBOR",'GAS FILE'!$C$53,'GAS FILE'!$C$54),IF(F149="JPY",J149+$C$14+'GAS FILE'!$C$56,IF(F149="EUR",J149+$C$14+IF($C$11="LIBOR",'GAS FILE'!$C$55,'GAS FILE'!$C$59),IF(J149="GBP",'Input - Monitor Limits'!J149+$C$14+IF($C$11="LIBOR",'GAS FILE'!$C$57,'GAS FILE'!$C$58),J149+$C$14+'GAS FILE'!$C$60))))),"") ->  | X149: =IF(ISNUMBER(W149),IF(W149>=$C$13,Lists!$E$2,Lists!$E$4),"") ->  | AC149: =AB149/SUMIF('Input - Monitor Limits'!$AB$19:$AB$318,"<1E100")*100 -> 
A150: 132 | Q150: =IF(ISNUMBER(L150),IF(I150="Fixed",J150,IF(F150="USD",J150+$C$14+IF($C$11="LIBOR",'GAS FILE'!$C$53,'GAS FILE'!$C$54),IF(F150="JPY",J150+$C$14+'GAS FILE'!$C$56,IF(F150="EUR",J150+$C$14+IF($C$11="LIBOR",'GAS FILE'!$C$55,'GAS FILE'!$C$59),IF(J150="GBP",'Input - Monitor Limits'!J150+$C$14+IF($C$11="LIBOR",'GAS FILE'!$C$57,'GAS FILE'!$C$58),J150+$C$14+'GAS FILE'!$C$60))))),"") ->  | X150: =IF(ISNUMBER(W150),IF(W150>=$C$13,Lists!$E$2,Lists!$E$4),"") ->  | AC150: =AB150/SUMIF('Input - Monitor Limits'!$AB$19:$AB$318,"<1E100")*100 -> 
A151: 133 | Q151: =IF(ISNUMBER(L151),IF(I151="Fixed",J151,IF(F151="USD",J151+$C$14+IF($C$11="LIBOR",'GAS FILE'!$C$53,'GAS FILE'!$C$54),IF(F151="JPY",J151+$C$14+'GAS FILE'!$C$56,IF(F151="EUR",J151+$C$14+IF($C$11="LIBOR",'GAS FILE'!$C$55,'GAS FILE'!$C$59),IF(J151="GBP",'Input - Monitor Limits'!J151+$C$14+IF($C$11="LIBOR",'GAS FILE'!$C$57,'GAS FILE'!$C$58),J151+$C$14+'GAS FILE'!$C$60))))),"") ->  | X151: =IF(ISNUMBER(W151),IF(W151>=$C$13,Lists!$E$2,Lists!$E$4),"") ->  | AC151: =AB151/SUMIF('Input - Monitor Limits'!$AB$19:$AB$318,"<1E100")*100 -> 
A152: 134 | Q152: =IF(ISNUMBER(L152),IF(I152="Fixed",J152,IF(F152="USD",J152+$C$14+IF($C$11="LIBOR",'GAS FILE'!$C$53,'GAS FILE'!$C$54),IF(F152="JPY",J152+$C$14+'GAS FILE'!$C$56,IF(F152="EUR",J152+$C$14+IF($C$11="LIBOR",'GAS FILE'!$C$55,'GAS FILE'!$C$59),IF(J152="GBP",'Input - Monitor Limits'!J152+$C$14+IF($C$11="LIBOR",'GAS FILE'!$C$57,'GAS FILE'!$C$58),J152+$C$14+'GAS FILE'!$C$60))))),"") ->  | X152: =IF(ISNUMBER(W152),IF(W152>=$C$13,Lists!$E$2,Lists!$E$4),"") ->  | AC152: =AB152/SUMIF('Input - Monitor Limits'!$AB$19:$AB$318,"<1E100")*100 -> 
A153: 135 | Q153: =IF(ISNUMBER(L153),IF(I153="Fixed",J153,IF(F153="USD",J153+$C$14+IF($C$11="LIBOR",'GAS FILE'!$C$53,'GAS FILE'!$C$54),IF(F153="JPY",J153+$C$14+'GAS FILE'!$C$56,IF(F153="EUR",J153+$C$14+IF($C$11="LIBOR",'GAS FILE'!$C$55,'GAS FILE'!$C$59),IF(J153="GBP",'Input - Monitor Limits'!J153+$C$14+IF($C$11="LIBOR",'GAS FILE'!$C$57,'GAS FILE'!$C$58),J153+$C$14+'GAS FILE'!$C$60))))),"") ->  | X153: =IF(ISNUMBER(W153),IF(W153>=$C$13,Lists!$E$2,Lists!$E$4),"") ->  | Z153: =IF(ISNUMBER(V153/H153),V153/H153,"") ->  | AA153: =IF(ISNUMBER(IF(W153<0,AB153,Z153)),IF(W153<0,AB153,Z153),"") ->  | AB153: =IF(ISNUMBER(L153/H153),L153/H153,"") ->  | AC153: =AB153/SUMIF('Input - Monitor Limits'!$AB$19:$AB$318,"<1E100")*100 -> 
A154: 136 | Q154: =IF(ISNUMBER(L154),IF(I154="Fixed",J154,IF(F154="USD",J154+$C$14+IF($C$11="LIBOR",'GAS FILE'!$C$53,'GAS FILE'!$C$54),IF(F154="JPY",J154+$C$14+'GAS FILE'!$C$56,IF(F154="EUR",J154+$C$14+IF($C$11="LIBOR",'GAS FILE'!$C$55,'GAS FILE'!$C$59),IF(J154="GBP",'Input - Monitor Limits'!J154+$C$14+IF($C$11="LIBOR",'GAS FILE'!$C$57,'GAS FILE'!$C$58),J154+$C$14+'GAS FILE'!$C$60))))),"") ->  | X154: =IF(ISNUMBER(W154),IF(W154>=$C$13,Lists!$E$2,Lists!$E$4),"") ->  | AC154: =AB154/SUMIF('Input - Monitor Limits'!$AB$19:$AB$318,"<1E100")*100 -> 
A155: 137 | Q155: =IF(ISNUMBER(L155),IF(I155="Fixed",J155,IF(F155="USD",J155+$C$14+IF($C$11="LIBOR",'GAS FILE'!$C$53,'GAS FILE'!$C$54),IF(F155="JPY",J155+$C$14+'GAS FILE'!$C$56,IF(F155="EUR",J155+$C$14+IF($C$11="LIBOR",'GAS FILE'!$C$55,'GAS FILE'!$C$59),IF(J155="GBP",'Input - Monitor Limits'!J155+$C$14+IF($C$11="LIBOR",'GAS FILE'!$C$57,'GAS FILE'!$C$58),J155+$C$14+'GAS FILE'!$C$60))))),"") ->  | X155: =IF(ISNUMBER(W155),IF(W155>=$C$13,Lists!$E$2,Lists!$E$4),"") ->  | AC155: =AB155/SUMIF('Input - Monitor Limits'!$AB$19:$AB$318,"<1E100")*100 -> 
A156: 138 | Q156: =IF(ISNUMBER(L156),IF(I156="Fixed",J156,IF(F156="USD",J156+$C$14+IF($C$11="LIBOR",'GAS FILE'!$C$53,'GAS FILE'!$C$54),IF(F156="JPY",J156+$C$14+'GAS FILE'!$C$56,IF(F156="EUR",J156+$C$14+IF($C$11="LIBOR",'GAS FILE'!$C$55,'GAS FILE'!$C$59),IF(J156="GBP",'Input - Monitor Limits'!J156+$C$14+IF($C$11="LIBOR",'GAS FILE'!$C$57,'GAS FILE'!$C$58),J156+$C$14+'GAS FILE'!$C$60))))),"") ->  | X156: =IF(ISNUMBER(W156),IF(W156>=$C$13,Lists!$E$2,Lists!$E$4),"") ->  | AC156: =AB156/SUMIF('Input - Monitor Limits'!$AB$19:$AB$318,"<1E100")*100 -> 
A157: 139 | Q157: =IF(ISNUMBER(L157),IF(I157="Fixed",J157,IF(F157="USD",J157+$C$14+IF($C$11="LIBOR",'GAS FILE'!$C$53,'GAS FILE'!$C$54),IF(F157="JPY",J157+$C$14+'GAS FILE'!$C$56,IF(F157="EUR",J157+$C$14+IF($C$11="LIBOR",'GAS FILE'!$C$55,'GAS FILE'!$C$59),IF(J157="GBP",'Input - Monitor Limits'!J157+$C$14+IF($C$11="LIBOR",'GAS FILE'!$C$57,'GAS FILE'!$C$58),J157+$C$14+'GAS FILE'!$C$60))))),"") ->  | X157: =IF(ISNUMBER(W157),IF(W157>=$C$13,Lists!$E$2,Lists!$E$4),"") ->  | AC157: =AB157/SUMIF('Input - Monitor Limits'!$AB$19:$AB$318,"<1E100")*100 -> 
A158: 140 | Q158: =IF(ISNUMBER(L158),IF(I158="Fixed",J158,IF(F158="USD",J158+$C$14+IF($C$11="LIBOR",'GAS FILE'!$C$53,'GAS FILE'!$C$54),IF(F158="JPY",J158+$C$14+'GAS FILE'!$C$56,IF(F158="EUR",J158+$C$14+IF($C$11="LIBOR",'GAS FILE'!$C$55,'GAS FILE'!$C$59),IF(J158="GBP",'Input - Monitor Limits'!J158+$C$14+IF($C$11="LIBOR",'GAS FILE'!$C$57,'GAS FILE'!$C$58),J158+$C$14+'GAS FILE'!$C$60))))),"") ->  | X158: =IF(ISNUMBER(W158),IF(W158>=$C$13,Lists!$E$2,Lists!$E$4),"") ->  | AC158: =AB158/SUMIF('Input - Monitor Limits'!$AB$19:$AB$318,"<1E100")*100 -> 
A159: 141 | Q159: =IF(ISNUMBER(L159),IF(I159="Fixed",J159,IF(F159="USD",J159+$C$14+IF($C$11="LIBOR",'GAS FILE'!$C$53,'GAS FILE'!$C$54),IF(F159="JPY",J159+$C$14+'GAS FILE'!$C$56,IF(F159="EUR",J159+$C$14+IF($C$11="LIBOR",'GAS FILE'!$C$55,'GAS FILE'!$C$59),IF(J159="GBP",'Input - Monitor Limits'!J159+$C$14+IF($C$11="LIBOR",'GAS FILE'!$C$57,'GAS FILE'!$C$58),J159+$C$14+'GAS FILE'!$C$60))))),"") ->  | X159: =IF(ISNUMBER(W159),IF(W159>=$C$13,Lists!$E$2,Lists!$E$4),"") ->  | AC159: =AB159/SUMIF('Input - Monitor Limits'!$AB$19:$AB$318,"<1E100")*100 -> 
A160: 142 | Q160: =IF(ISNUMBER(L160),IF(I160="Fixed",J160,IF(F160="USD",J160+$C$14+IF($C$11="LIBOR",'GAS FILE'!$C$53,'GAS FILE'!$C$54),IF(F160="JPY",J160+$C$14+'GAS FILE'!$C$56,IF(F160="EUR",J160+$C$14+IF($C$11="LIBOR",'GAS FILE'!$C$55,'GAS FILE'!$C$59),IF(J160="GBP",'Input - Monitor Limits'!J160+$C$14+IF($C$11="LIBOR",'GAS FILE'!$C$57,'GAS FILE'!$C$58),J160+$C$14+'GAS FILE'!$C$60))))),"") ->  | X160: =IF(ISNUMBER(W160),IF(W160>=$C$13,Lists!$E$2,Lists!$E$4),"") ->  | AC160: =AB160/SUMIF('Input - Monitor Limits'!$AB$19:$AB$318,"<1E100")*100 -> 
A161: 143 | Q161: =IF(ISNUMBER(L161),IF(I161="Fixed",J161,IF(F161="USD",J161+$C$14+IF($C$11="LIBOR",'GAS FILE'!$C$53,'GAS FILE'!$C$54),IF(F161="JPY",J161+$C$14+'GAS FILE'!$C$56,IF(F161="EUR",J161+$C$14+IF($C$11="LIBOR",'GAS FILE'!$C$55,'GAS FILE'!$C$59),IF(J161="GBP",'Input - Monitor Limits'!J161+$C$14+IF($C$11="LIBOR",'GAS FILE'!$C$57,'GAS FILE'!$C$58),J161+$C$14+'GAS FILE'!$C$60))))),"") ->  | X161: =IF(ISNUMBER(W161),IF(W161>=$C$13,Lists!$E$2,Lists!$E$4),"") ->  | AC161: =AB161/SUMIF('Input - Monitor Limits'!$AB$19:$AB$318,"<1E100")*100 -> 
A162: 144 | Q162: =IF(ISNUMBER(L162),IF(I162="Fixed",J162,IF(F162="USD",J162+$C$14+IF($C$11="LIBOR",'GAS FILE'!$C$53,'GAS FILE'!$C$54),IF(F162="JPY",J162+$C$14+'GAS FILE'!$C$56,IF(F162="EUR",J162+$C$14+IF($C$11="LIBOR",'GAS FILE'!$C$55,'GAS FILE'!$C$59),IF(J162="GBP",'Input - Monitor Limits'!J162+$C$14+IF($C$11="LIBOR",'GAS FILE'!$C$57,'GAS FILE'!$C$58),J162+$C$14+'GAS FILE'!$C$60))))),"") ->  | X162: =IF(ISNUMBER(W162),IF(W162>=$C$13,Lists!$E$2,Lists!$E$4),"") ->  | AC162: =AB162/SUMIF('Input - Monitor Limits'!$AB$19:$AB$318,"<1E100")*100 -> 
A163: 145 | Q163: =IF(ISNUMBER(L163),IF(I163="Fixed",J163,IF(F163="USD",J163+$C$14+IF($C$11="LIBOR",'GAS FILE'!$C$53,'GAS FILE'!$C$54),IF(F163="JPY",J163+$C$14+'GAS FILE'!$C$56,IF(F163="EUR",J163+$C$14+IF($C$11="LIBOR",'GAS FILE'!$C$55,'GAS FILE'!$C$59),IF(J163="GBP",'Input - Monitor Limits'!J163+$C$14+IF($C$11="LIBOR",'GAS FILE'!$C$57,'GAS FILE'!$C$58),J163+$C$14+'GAS FILE'!$C$60))))),"") ->  | X163: =IF(ISNUMBER(W163),IF(W163>=$C$13,Lists!$E$2,Lists!$E$4),"") ->  | AC163: =AB163/SUMIF('Input - Monitor Limits'!$AB$19:$AB$318,"<1E100")*100 -> 
A164: 146 | Q164: =IF(ISNUMBER(L164),IF(I164="Fixed",J164,IF(F164="USD",J164+$C$14+IF($C$11="LIBOR",'GAS FILE'!$C$53,'GAS FILE'!$C$54),IF(F164="JPY",J164+$C$14+'GAS FILE'!$C$56,IF(F164="EUR",J164+$C$14+IF($C$11="LIBOR",'GAS FILE'!$C$55,'GAS FILE'!$C$59),IF(J164="GBP",'Input - Monitor Limits'!J164+$C$14+IF($C$11="LIBOR",'GAS FILE'!$C$57,'GAS FILE'!$C$58),J164+$C$14+'GAS FILE'!$C$60))))),"") ->  | X164: =IF(ISNUMBER(W164),IF(W164>=$C$13,Lists!$E$2,Lists!$E$4),"") ->  | AC164: =AB164/SUMIF('Input - Monitor Limits'!$AB$19:$AB$318,"<1E100")*100 -> 
A165: 147 | Q165: =IF(ISNUMBER(L165),IF(I165="Fixed",J165,IF(F165="USD",J165+$C$14+IF($C$11="LIBOR",'GAS FILE'!$C$53,'GAS FILE'!$C$54),IF(F165="JPY",J165+$C$14+'GAS FILE'!$C$56,IF(F165="EUR",J165+$C$14+IF($C$11="LIBOR",'GAS FILE'!$C$55,'GAS FILE'!$C$59),IF(J165="GBP",'Input - Monitor Limits'!J165+$C$14+IF($C$11="LIBOR",'GAS FILE'!$C$57,'GAS FILE'!$C$58),J165+$C$14+'GAS FILE'!$C$60))))),"") ->  | X165: =IF(ISNUMBER(W165),IF(W165>=$C$13,Lists!$E$2,Lists!$E$4),"") ->  | AC165: =AB165/SUMIF('Input - Monitor Limits'!$AB$19:$AB$318,"<1E100")*100 -> 
A166: 148 | Q166: =IF(ISNUMBER(L166),IF(I166="Fixed",J166,IF(F166="USD",J166+$C$14+IF($C$11="LIBOR",'GAS FILE'!$C$53,'GAS FILE'!$C$54),IF(F166="JPY",J166+$C$14+'GAS FILE'!$C$56,IF(F166="EUR",J166+$C$14+IF($C$11="LIBOR",'GAS FILE'!$C$55,'GAS FILE'!$C$59),IF(J166="GBP",'Input - Monitor Limits'!J166+$C$14+IF($C$11="LIBOR",'GAS FILE'!$C$57,'GAS FILE'!$C$58),J166+$C$14+'GAS FILE'!$C$60))))),"") ->  | X166: =IF(ISNUMBER(W166),IF(W166>=$C$13,Lists!$E$2,Lists!$E$4),"") ->  | AC166: =AB166/SUMIF('Input - Monitor Limits'!$AB$19:$AB$318,"<1E100")*100 -> 
A167: 149 | Q167: =IF(ISNUMBER(L167),IF(I167="Fixed",J167,IF(F167="USD",J167+$C$14+IF($C$11="LIBOR",'GAS FILE'!$C$53,'GAS FILE'!$C$54),IF(F167="JPY",J167+$C$14+'GAS FILE'!$C$56,IF(F167="EUR",J167+$C$14+IF($C$11="LIBOR",'GAS FILE'!$C$55,'GAS FILE'!$C$59),IF(J167="GBP",'Input - Monitor Limits'!J167+$C$14+IF($C$11="LIBOR",'GAS FILE'!$C$57,'GAS FILE'!$C$58),J167+$C$14+'GAS FILE'!$C$60))))),"") ->  | X167: =IF(ISNUMBER(W167),IF(W167>=$C$13,Lists!$E$2,Lists!$E$4),"") ->  | AC167: =AB167/SUMIF('Input - Monitor Limits'!$AB$19:$AB$318,"<1E100")*100 -> 
A168: 150 | Q168: =IF(ISNUMBER(L168),IF(I168="Fixed",J168,IF(F168="USD",J168+$C$14+IF($C$11="LIBOR",'GAS FILE'!$C$53,'GAS FILE'!$C$54),IF(F168="JPY",J168+$C$14+'GAS FILE'!$C$56,IF(F168="EUR",J168+$C$14+IF($C$11="LIBOR",'GAS FILE'!$C$55,'GAS FILE'!$C$59),IF(J168="GBP",'Input - Monitor Limits'!J168+$C$14+IF($C$11="LIBOR",'GAS FILE'!$C$57,'GAS FILE'!$C$58),J168+$C$14+'GAS FILE'!$C$60))))),"") ->  | X168: =IF(ISNUMBER(W168),IF(W168>=$C$13,Lists!$E$2,Lists!$E$4),"") ->  | AC168: =AB168/SUMIF('Input - Monitor Limits'!$AB$19:$AB$318,"<1E100")*100 -> 
A169: 151 | Q169: =IF(ISNUMBER(L169),IF(I169="Fixed",J169,IF(F169="USD",J169+$C$14+IF($C$11="LIBOR",'GAS FILE'!$C$53,'GAS FILE'!$C$54),IF(F169="JPY",J169+$C$14+'GAS FILE'!$C$56,IF(F169="EUR",J169+$C$14+IF($C$11="LIBOR",'GAS FILE'!$C$55,'GAS FILE'!$C$59),IF(J169="GBP",'Input - Monitor Limits'!J169+$C$14+IF($C$11="LIBOR",'GAS FILE'!$C$57,'GAS FILE'!$C$58),J169+$C$14+'GAS FILE'!$C$60))))),"") ->  | X169: =IF(ISNUMBER(W169),IF(W169>=$C$13,Lists!$E$2,Lists!$E$4),"") ->  | AC169: =AB169/SUMIF('Input - Monitor Limits'!$AB$19:$AB$318,"<1E100")*100 -> 
A170: 152 | Q170: =IF(ISNUMBER(L170),IF(I170="Fixed",J170,IF(F170="USD",J170+$C$14+IF($C$11="LIBOR",'GAS FILE'!$C$53,'GAS FILE'!$C$54),IF(F170="JPY",J170+$C$14+'GAS FILE'!$C$56,IF(F170="EUR",J170+$C$14+IF($C$11="LIBOR",'GAS FILE'!$C$55,'GAS FILE'!$C$59),IF(J170="GBP",'Input - Monitor Limits'!J170+$C$14+IF($C$11="LIBOR",'GAS FILE'!$C$57,'GAS FILE'!$C$58),J170+$C$14+'GAS FILE'!$C$60))))),"") ->  | X170: =IF(ISNUMBER(W170),IF(W170>=$C$13,Lists!$E$2,Lists!$E$4),"") ->  | AC170: =AB170/SUMIF('Input - Monitor Limits'!$AB$19:$AB$318,"<1E100")*100 -> 
A171: 153 | Q171: =IF(ISNUMBER(L171),IF(I171="Fixed",J171,IF(F171="USD",J171+$C$14+IF($C$11="LIBOR",'GAS FILE'!$C$53,'GAS FILE'!$C$54),IF(F171="JPY",J171+$C$14+'GAS FILE'!$C$56,IF(F171="EUR",J171+$C$14+IF($C$11="LIBOR",'GAS FILE'!$C$55,'GAS FILE'!$C$59),IF(J171="GBP",'Input - Monitor Limits'!J171+$C$14+IF($C$11="LIBOR",'GAS FILE'!$C$57,'GAS FILE'!$C$58),J171+$C$14+'GAS FILE'!$C$60))))),"") ->  | X171: =IF(ISNUMBER(W171),IF(W171>=$C$13,Lists!$E$2,Lists!$E$4),"") ->  | AC171: =AB171/SUMIF('Input - Monitor Limits'!$AB$19:$AB$318,"<1E100")*100 -> 
A172: 154 | Q172: =IF(ISNUMBER(L172),IF(I172="Fixed",J172,IF(F172="USD",J172+$C$14+IF($C$11="LIBOR",'GAS FILE'!$C$53,'GAS FILE'!$C$54),IF(F172="JPY",J172+$C$14+'GAS FILE'!$C$56,IF(F172="EUR",J172+$C$14+IF($C$11="LIBOR",'GAS FILE'!$C$55,'GAS FILE'!$C$59),IF(J172="GBP",'Input - Monitor Limits'!J172+$C$14+IF($C$11="LIBOR",'GAS FILE'!$C$57,'GAS FILE'!$C$58),J172+$C$14+'GAS FILE'!$C$60))))),"") ->  | X172: =IF(ISNUMBER(W172),IF(W172>=$C$13,Lists!$E$2,Lists!$E$4),"") ->  | AC172: =AB172/SUMIF('Input - Monitor Limits'!$AB$19:$AB$318,"<1E100")*100 -> 
A173: 155 | Q173: =IF(ISNUMBER(L173),IF(I173="Fixed",J173,IF(F173="USD",J173+$C$14+IF($C$11="LIBOR",'GAS FILE'!$C$53,'GAS FILE'!$C$54),IF(F173="JPY",J173+$C$14+'GAS FILE'!$C$56,IF(F173="EUR",J173+$C$14+IF($C$11="LIBOR",'GAS FILE'!$C$55,'GAS FILE'!$C$59),IF(J173="GBP",'Input - Monitor Limits'!J173+$C$14+IF($C$11="LIBOR",'GAS FILE'!$C$57,'GAS FILE'!$C$58),J173+$C$14+'GAS FILE'!$C$60))))),"") ->  | X173: =IF(ISNUMBER(W173),IF(W173>=$C$13,Lists!$E$2,Lists!$E$4),"") ->  | AC173: =AB173/SUMIF('Input - Monitor Limits'!$AB$19:$AB$318,"<1E100")*100 -> 
A174: 156 | Q174: =IF(ISNUMBER(L174),IF(I174="Fixed",J174,IF(F174="USD",J174+$C$14+IF($C$11="LIBOR",'GAS FILE'!$C$53,'GAS FILE'!$C$54),IF(F174="JPY",J174+$C$14+'GAS FILE'!$C$56,IF(F174="EUR",J174+$C$14+IF($C$11="LIBOR",'GAS FILE'!$C$55,'GAS FILE'!$C$59),IF(J174="GBP",'Input - Monitor Limits'!J174+$C$14+IF($C$11="LIBOR",'GAS FILE'!$C$57,'GAS FILE'!$C$58),J174+$C$14+'GAS FILE'!$C$60))))),"") ->  | X174: =IF(ISNUMBER(W174),IF(W174>=$C$13,Lists!$E$2,Lists!$E$4),"") ->  | AC174: =AB174/SUMIF('Input - Monitor Limits'!$AB$19:$AB$318,"<1E100")*100 -> 
A175: 157 | Q175: =IF(ISNUMBER(L175),IF(I175="Fixed",J175,IF(F175="USD",J175+$C$14+IF($C$11="LIBOR",'GAS FILE'!$C$53,'GAS FILE'!$C$54),IF(F175="JPY",J175+$C$14+'GAS FILE'!$C$56,IF(F175="EUR",J175+$C$14+IF($C$11="LIBOR",'GAS FILE'!$C$55,'GAS FILE'!$C$59),IF(J175="GBP",'Input - Monitor Limits'!J175+$C$14+IF($C$11="LIBOR",'GAS FILE'!$C$57,'GAS FILE'!$C$58),J175+$C$14+'GAS FILE'!$C$60))))),"") ->  | X175: =IF(ISNUMBER(W175),IF(W175>=$C$13,Lists!$E$2,Lists!$E$4),"") ->  | AC175: =AB175/SUMIF('Input - Monitor Limits'!$AB$19:$AB$318,"<1E100")*100 -> 
A176: 158 | Q176: =IF(ISNUMBER(L176),IF(I176="Fixed",J176,IF(F176="USD",J176+$C$14+IF($C$11="LIBOR",'GAS FILE'!$C$53,'GAS FILE'!$C$54),IF(F176="JPY",J176+$C$14+'GAS FILE'!$C$56,IF(F176="EUR",J176+$C$14+IF($C$11="LIBOR",'GAS FILE'!$C$55,'GAS FILE'!$C$59),IF(J176="GBP",'Input - Monitor Limits'!J176+$C$14+IF($C$11="LIBOR",'GAS FILE'!$C$57,'GAS FILE'!$C$58),J176+$C$14+'GAS FILE'!$C$60))))),"") ->  | X176: =IF(ISNUMBER(W176),IF(W176>=$C$13,Lists!$E$2,Lists!$E$4),"") ->  | AC176: =AB176/SUMIF('Input - Monitor Limits'!$AB$19:$AB$318,"<1E100")*100 -> 
A177: 159 | Q177: =IF(ISNUMBER(L177),IF(I177="Fixed",J177,IF(F177="USD",J177+$C$14+IF($C$11="LIBOR",'GAS FILE'!$C$53,'GAS FILE'!$C$54),IF(F177="JPY",J177+$C$14+'GAS FILE'!$C$56,IF(F177="EUR",J177+$C$14+IF($C$11="LIBOR",'GAS FILE'!$C$55,'GAS FILE'!$C$59),IF(J177="GBP",'Input - Monitor Limits'!J177+$C$14+IF($C$11="LIBOR",'GAS FILE'!$C$57,'GAS FILE'!$C$58),J177+$C$14+'GAS FILE'!$C$60))))),"") ->  | X177: =IF(ISNUMBER(W177),IF(W177>=$C$13,Lists!$E$2,Lists!$E$4),"") ->  | AC177: =AB177/SUMIF('Input - Monitor Limits'!$AB$19:$AB$318,"<1E100")*100 -> 
A178: 160 | Q178: =IF(ISNUMBER(L178),IF(I178="Fixed",J178,IF(F178="USD",J178+$C$14+IF($C$11="LIBOR",'GAS FILE'!$C$53,'GAS FILE'!$C$54),IF(F178="JPY",J178+$C$14+'GAS FILE'!$C$56,IF(F178="EUR",J178+$C$14+IF($C$11="LIBOR",'GAS FILE'!$C$55,'GAS FILE'!$C$59),IF(J178="GBP",'Input - Monitor Limits'!J178+$C$14+IF($C$11="LIBOR",'GAS FILE'!$C$57,'GAS FILE'!$C$58),J178+$C$14+'GAS FILE'!$C$60))))),"") ->  | X178: =IF(ISNUMBER(W178),IF(W178>=$C$13,Lists!$E$2,Lists!$E$4),"") ->  | AC178: =AB178/SUMIF('Input - Monitor Limits'!$AB$19:$AB$318,"<1E100")*100 -> 
A179: 161 | Q179: =IF(ISNUMBER(L179),IF(I179="Fixed",J179,IF(F179="USD",J179+$C$14+IF($C$11="LIBOR",'GAS FILE'!$C$53,'GAS FILE'!$C$54),IF(F179="JPY",J179+$C$14+'GAS FILE'!$C$56,IF(F179="EUR",J179+$C$14+IF($C$11="LIBOR",'GAS FILE'!$C$55,'GAS FILE'!$C$59),IF(J179="GBP",'Input - Monitor Limits'!J179+$C$14+IF($C$11="LIBOR",'GAS FILE'!$C$57,'GAS FILE'!$C$58),J179+$C$14+'GAS FILE'!$C$60))))),"") ->  | X179: =IF(ISNUMBER(W179),IF(W179>=$C$13,Lists!$E$2,Lists!$E$4),"") ->  | AC179: =AB179/SUMIF('Input - Monitor Limits'!$AB$19:$AB$318,"<1E100")*100 -> 
A180: 162 | Q180: =IF(ISNUMBER(L180),IF(I180="Fixed",J180,IF(F180="USD",J180+$C$14+IF($C$11="LIBOR",'GAS FILE'!$C$53,'GAS FILE'!$C$54),IF(F180="JPY",J180+$C$14+'GAS FILE'!$C$56,IF(F180="EUR",J180+$C$14+IF($C$11="LIBOR",'GAS FILE'!$C$55,'GAS FILE'!$C$59),IF(J180="GBP",'Input - Monitor Limits'!J180+$C$14+IF($C$11="LIBOR",'GAS FILE'!$C$57,'GAS FILE'!$C$58),J180+$C$14+'GAS FILE'!$C$60))))),"") ->  | X180: =IF(ISNUMBER(W180),IF(W180>=$C$13,Lists!$E$2,Lists!$E$4),"") ->  | AC180: =AB180/SUMIF('Input - Monitor Limits'!$AB$19:$AB$318,"<1E100")*100 -> 
A181: 163 | Q181: =IF(ISNUMBER(L181),IF(I181="Fixed",J181,IF(F181="USD",J181+$C$14+IF($C$11="LIBOR",'GAS FILE'!$C$53,'GAS FILE'!$C$54),IF(F181="JPY",J181+$C$14+'GAS FILE'!$C$56,IF(F181="EUR",J181+$C$14+IF($C$11="LIBOR",'GAS FILE'!$C$55,'GAS FILE'!$C$59),IF(J181="GBP",'Input - Monitor Limits'!J181+$C$14+IF($C$11="LIBOR",'GAS FILE'!$C$57,'GAS FILE'!$C$58),J181+$C$14+'GAS FILE'!$C$60))))),"") ->  | X181: =IF(ISNUMBER(W181),IF(W181>=$C$13,Lists!$E$2,Lists!$E$4),"") ->  | AC181: =AB181/SUMIF('Input - Monitor Limits'!$AB$19:$AB$318,"<1E100")*100 -> 
A182: 164 | Q182: =IF(ISNUMBER(L182),IF(I182="Fixed",J182,IF(F182="USD",J182+$C$14+IF($C$11="LIBOR",'GAS FILE'!$C$53,'GAS FILE'!$C$54),IF(F182="JPY",J182+$C$14+'GAS FILE'!$C$56,IF(F182="EUR",J182+$C$14+IF($C$11="LIBOR",'GAS FILE'!$C$55,'GAS FILE'!$C$59),IF(J182="GBP",'Input - Monitor Limits'!J182+$C$14+IF($C$11="LIBOR",'GAS FILE'!$C$57,'GAS FILE'!$C$58),J182+$C$14+'GAS FILE'!$C$60))))),"") ->  | X182: =IF(ISNUMBER(W182),IF(W182>=$C$13,Lists!$E$2,Lists!$E$4),"") ->  | AC182: =AB182/SUMIF('Input - Monitor Limits'!$AB$19:$AB$318,"<1E100")*100 -> 
A183: 165 | Q183: =IF(ISNUMBER(L183),IF(I183="Fixed",J183,IF(F183="USD",J183+$C$14+IF($C$11="LIBOR",'GAS FILE'!$C$53,'GAS FILE'!$C$54),IF(F183="JPY",J183+$C$14+'GAS FILE'!$C$56,IF(F183="EUR",J183+$C$14+IF($C$11="LIBOR",'GAS FILE'!$C$55,'GAS FILE'!$C$59),IF(J183="GBP",'Input - Monitor Limits'!J183+$C$14+IF($C$11="LIBOR",'GAS FILE'!$C$57,'GAS FILE'!$C$58),J183+$C$14+'GAS FILE'!$C$60))))),"") ->  | X183: =IF(ISNUMBER(W183),IF(W183>=$C$13,Lists!$E$2,Lists!$E$4),"") ->  | AC183: =AB183/SUMIF('Input - Monitor Limits'!$AB$19:$AB$318,"<1E100")*100 -> 
A184: 166 | Q184: =IF(ISNUMBER(L184),IF(I184="Fixed",J184,IF(F184="USD",J184+$C$14+IF($C$11="LIBOR",'GAS FILE'!$C$53,'GAS FILE'!$C$54),IF(F184="JPY",J184+$C$14+'GAS FILE'!$C$56,IF(F184="EUR",J184+$C$14+IF($C$11="LIBOR",'GAS FILE'!$C$55,'GAS FILE'!$C$59),IF(J184="GBP",'Input - Monitor Limits'!J184+$C$14+IF($C$11="LIBOR",'GAS FILE'!$C$57,'GAS FILE'!$C$58),J184+$C$14+'GAS FILE'!$C$60))))),"") ->  | X184: =IF(ISNUMBER(W184),IF(W184>=$C$13,Lists!$E$2,Lists!$E$4),"") ->  | AC184: =AB184/SUMIF('Input - Monitor Limits'!$AB$19:$AB$318,"<1E100")*100 -> 
A185: 167 | Q185: =IF(ISNUMBER(L185),IF(I185="Fixed",J185,IF(F185="USD",J185+$C$14+IF($C$11="LIBOR",'GAS FILE'!$C$53,'GAS FILE'!$C$54),IF(F185="JPY",J185+$C$14+'GAS FILE'!$C$56,IF(F185="EUR",J185+$C$14+IF($C$11="LIBOR",'GAS FILE'!$C$55,'GAS FILE'!$C$59),IF(J185="GBP",'Input - Monitor Limits'!J185+$C$14+IF($C$11="LIBOR",'GAS FILE'!$C$57,'GAS FILE'!$C$58),J185+$C$14+'GAS FILE'!$C$60))))),"") ->  | X185: =IF(ISNUMBER(W185),IF(W185>=$C$13,Lists!$E$2,Lists!$E$4),"") ->  | AC185: =AB185/SUMIF('Input - Monitor Limits'!$AB$19:$AB$318,"<1E100")*100 -> 
A186: 168 | Q186: =IF(ISNUMBER(L186),IF(I186="Fixed",J186,IF(F186="USD",J186+$C$14+IF($C$11="LIBOR",'GAS FILE'!$C$53,'GAS FILE'!$C$54),IF(F186="JPY",J186+$C$14+'GAS FILE'!$C$56,IF(F186="EUR",J186+$C$14+IF($C$11="LIBOR",'GAS FILE'!$C$55,'GAS FILE'!$C$59),IF(J186="GBP",'Input - Monitor Limits'!J186+$C$14+IF($C$11="LIBOR",'GAS FILE'!$C$57,'GAS FILE'!$C$58),J186+$C$14+'GAS FILE'!$C$60))))),"") ->  | X186: =IF(ISNUMBER(W186),IF(W186>=$C$13,Lists!$E$2,Lists!$E$4),"") ->  | AC186: =AB186/SUMIF('Input - Monitor Limits'!$AB$19:$AB$318,"<1E100")*100 -> 
A187: 169 | Q187: =IF(ISNUMBER(L187),IF(I187="Fixed",J187,IF(F187="USD",J187+$C$14+IF($C$11="LIBOR",'GAS FILE'!$C$53,'GAS FILE'!$C$54),IF(F187="JPY",J187+$C$14+'GAS FILE'!$C$56,IF(F187="EUR",J187+$C$14+IF($C$11="LIBOR",'GAS FILE'!$C$55,'GAS FILE'!$C$59),IF(J187="GBP",'Input - Monitor Limits'!J187+$C$14+IF($C$11="LIBOR",'GAS FILE'!$C$57,'GAS FILE'!$C$58),J187+$C$14+'GAS FILE'!$C$60))))),"") ->  | X187: =IF(ISNUMBER(W187),IF(W187>=$C$13,Lists!$E$2,Lists!$E$4),"") ->  | AC187: =AB187/SUMIF('Input - Monitor Limits'!$AB$19:$AB$318,"<1E100")*100 -> 
A188: 170 | Q188: =IF(ISNUMBER(L188),IF(I188="Fixed",J188,IF(F188="USD",J188+$C$14+IF($C$11="LIBOR",'GAS FILE'!$C$53,'GAS FILE'!$C$54),IF(F188="JPY",J188+$C$14+'GAS FILE'!$C$56,IF(F188="EUR",J188+$C$14+IF($C$11="LIBOR",'GAS FILE'!$C$55,'GAS FILE'!$C$59),IF(J188="GBP",'Input - Monitor Limits'!J188+$C$14+IF($C$11="LIBOR",'GAS FILE'!$C$57,'GAS FILE'!$C$58),J188+$C$14+'GAS FILE'!$C$60))))),"") ->  | X188: =IF(ISNUMBER(W188),IF(W188>=$C$13,Lists!$E$2,Lists!$E$4),"") ->  | AC188: =AB188/SUMIF('Input - Monitor Limits'!$AB$19:$AB$318,"<1E100")*100 -> 
A189: 171 | Q189: =IF(ISNUMBER(L189),IF(I189="Fixed",J189,IF(F189="USD",J189+$C$14+IF($C$11="LIBOR",'GAS FILE'!$C$53,'GAS FILE'!$C$54),IF(F189="JPY",J189+$C$14+'GAS FILE'!$C$56,IF(F189="EUR",J189+$C$14+IF($C$11="LIBOR",'GAS FILE'!$C$55,'GAS FILE'!$C$59),IF(J189="GBP",'Input - Monitor Limits'!J189+$C$14+IF($C$11="LIBOR",'GAS FILE'!$C$57,'GAS FILE'!$C$58),J189+$C$14+'GAS FILE'!$C$60))))),"") ->  | X189: =IF(ISNUMBER(W189),IF(W189>=$C$13,Lists!$E$2,Lists!$E$4),"") ->  | AC189: =AB189/SUMIF('Input - Monitor Limits'!$AB$19:$AB$318,"<1E100")*100 -> 
A190: 172 | Q190: =IF(ISNUMBER(L190),IF(I190="Fixed",J190,IF(F190="USD",J190+$C$14+IF($C$11="LIBOR",'GAS FILE'!$C$53,'GAS FILE'!$C$54),IF(F190="JPY",J190+$C$14+'GAS FILE'!$C$56,IF(F190="EUR",J190+$C$14+IF($C$11="LIBOR",'GAS FILE'!$C$55,'GAS FILE'!$C$59),IF(J190="GBP",'Input - Monitor Limits'!J190+$C$14+IF($C$11="LIBOR",'GAS FILE'!$C$57,'GAS FILE'!$C$58),J190+$C$14+'GAS FILE'!$C$60))))),"") ->  | X190: =IF(ISNUMBER(W190),IF(W190>=$C$13,Lists!$E$2,Lists!$E$4),"") ->  | AC190: =AB190/SUMIF('Input - Monitor Limits'!$AB$19:$AB$318,"<1E100")*100 -> 
A191: 173 | Q191: =IF(ISNUMBER(L191),IF(I191="Fixed",J191,IF(F191="USD",J191+$C$14+IF($C$11="LIBOR",'GAS FILE'!$C$53,'GAS FILE'!$C$54),IF(F191="JPY",J191+$C$14+'GAS FILE'!$C$56,IF(F191="EUR",J191+$C$14+IF($C$11="LIBOR",'GAS FILE'!$C$55,'GAS FILE'!$C$59),IF(J191="GBP",'Input - Monitor Limits'!J191+$C$14+IF($C$11="LIBOR",'GAS FILE'!$C$57,'GAS FILE'!$C$58),J191+$C$14+'GAS FILE'!$C$60))))),"") ->  | X191: =IF(ISNUMBER(W191),IF(W191>=$C$13,Lists!$E$2,Lists!$E$4),"") ->  | AC191: =AB191/SUMIF('Input - Monitor Limits'!$AB$19:$AB$318,"<1E100")*100 -> 
A192: 174 | Q192: =IF(ISNUMBER(L192),IF(I192="Fixed",J192,IF(F192="USD",J192+$C$14+IF($C$11="LIBOR",'GAS FILE'!$C$53,'GAS FILE'!$C$54),IF(F192="JPY",J192+$C$14+'GAS FILE'!$C$56,IF(F192="EUR",J192+$C$14+IF($C$11="LIBOR",'GAS FILE'!$C$55,'GAS FILE'!$C$59),IF(J192="GBP",'Input - Monitor Limits'!J192+$C$14+IF($C$11="LIBOR",'GAS FILE'!$C$57,'GAS FILE'!$C$58),J192+$C$14+'GAS FILE'!$C$60))))),"") ->  | X192: =IF(ISNUMBER(W192),IF(W192>=$C$13,Lists!$E$2,Lists!$E$4),"") ->  | AC192: =AB192/SUMIF('Input - Monitor Limits'!$AB$19:$AB$318,"<1E100")*100 -> 
A193: 175 | Q193: =IF(ISNUMBER(L193),IF(I193="Fixed",J193,IF(F193="USD",J193+$C$14+IF($C$11="LIBOR",'GAS FILE'!$C$53,'GAS FILE'!$C$54),IF(F193="JPY",J193+$C$14+'GAS FILE'!$C$56,IF(F193="EUR",J193+$C$14+IF($C$11="LIBOR",'GAS FILE'!$C$55,'GAS FILE'!$C$59),IF(J193="GBP",'Input - Monitor Limits'!J193+$C$14+IF($C$11="LIBOR",'GAS FILE'!$C$57,'GAS FILE'!$C$58),J193+$C$14+'GAS FILE'!$C$60))))),"") ->  | X193: =IF(ISNUMBER(W193),IF(W193>=$C$13,Lists!$E$2,Lists!$E$4),"") ->  | AC193: =AB193/SUMIF('Input - Monitor Limits'!$AB$19:$AB$318,"<1E100")*100 -> 
A194: 176 | Q194: =IF(ISNUMBER(L194),IF(I194="Fixed",J194,IF(F194="USD",J194+$C$14+IF($C$11="LIBOR",'GAS FILE'!$C$53,'GAS FILE'!$C$54),IF(F194="JPY",J194+$C$14+'GAS FILE'!$C$56,IF(F194="EUR",J194+$C$14+IF($C$11="LIBOR",'GAS FILE'!$C$55,'GAS FILE'!$C$59),IF(J194="GBP",'Input - Monitor Limits'!J194+$C$14+IF($C$11="LIBOR",'GAS FILE'!$C$57,'GAS FILE'!$C$58),J194+$C$14+'GAS FILE'!$C$60))))),"") ->  | X194: =IF(ISNUMBER(W194),IF(W194>=$C$13,Lists!$E$2,Lists!$E$4),"") ->  | AC194: =AB194/SUMIF('Input - Monitor Limits'!$AB$19:$AB$318,"<1E100")*100 -> 
A195: 177 | Q195: =IF(ISNUMBER(L195),IF(I195="Fixed",J195,IF(F195="USD",J195+$C$14+IF($C$11="LIBOR",'GAS FILE'!$C$53,'GAS FILE'!$C$54),IF(F195="JPY",J195+$C$14+'GAS FILE'!$C$56,IF(F195="EUR",J195+$C$14+IF($C$11="LIBOR",'GAS FILE'!$C$55,'GAS FILE'!$C$59),IF(J195="GBP",'Input - Monitor Limits'!J195+$C$14+IF($C$11="LIBOR",'GAS FILE'!$C$57,'GAS FILE'!$C$58),J195+$C$14+'GAS FILE'!$C$60))))),"") ->  | X195: =IF(ISNUMBER(W195),IF(W195>=$C$13,Lists!$E$2,Lists!$E$4),"") ->  | AC195: =AB195/SUMIF('Input - Monitor Limits'!$AB$19:$AB$318,"<1E100")*100 -> 
A196: 178 | Q196: =IF(ISNUMBER(L196),IF(I196="Fixed",J196,IF(F196="USD",J196+$C$14+IF($C$11="LIBOR",'GAS FILE'!$C$53,'GAS FILE'!$C$54),IF(F196="JPY",J196+$C$14+'GAS FILE'!$C$56,IF(F196="EUR",J196+$C$14+IF($C$11="LIBOR",'GAS FILE'!$C$55,'GAS FILE'!$C$59),IF(J196="GBP",'Input - Monitor Limits'!J196+$C$14+IF($C$11="LIBOR",'GAS FILE'!$C$57,'GAS FILE'!$C$58),J196+$C$14+'GAS FILE'!$C$60))))),"") ->  | X196: =IF(ISNUMBER(W196),IF(W196>=$C$13,Lists!$E$2,Lists!$E$4),"") ->  | AC196: =AB196/SUMIF('Input - Monitor Limits'!$AB$19:$AB$318,"<1E100")*100 -> 
A197: 179 | Q197: =IF(ISNUMBER(L197),IF(I197="Fixed",J197,IF(F197="USD",J197+$C$14+IF($C$11="LIBOR",'GAS FILE'!$C$53,'GAS FILE'!$C$54),IF(F197="JPY",J197+$C$14+'GAS FILE'!$C$56,IF(F197="EUR",J197+$C$14+IF($C$11="LIBOR",'GAS FILE'!$C$55,'GAS FILE'!$C$59),IF(J197="GBP",'Input - Monitor Limits'!J197+$C$14+IF($C$11="LIBOR",'GAS FILE'!$C$57,'GAS FILE'!$C$58),J197+$C$14+'GAS FILE'!$C$60))))),"") ->  | X197: =IF(ISNUMBER(W197),IF(W197>=$C$13,Lists!$E$2,Lists!$E$4),"") ->  | AC197: =AB197/SUMIF('Input - Monitor Limits'!$AB$19:$AB$318,"<1E100")*100 -> 
A198: 180 | Q198: =IF(ISNUMBER(L198),IF(I198="Fixed",J198,IF(F198="USD",J198+$C$14+IF($C$11="LIBOR",'GAS FILE'!$C$53,'GAS FILE'!$C$54),IF(F198="JPY",J198+$C$14+'GAS FILE'!$C$56,IF(F198="EUR",J198+$C$14+IF($C$11="LIBOR",'GAS FILE'!$C$55,'GAS FILE'!$C$59),IF(J198="GBP",'Input - Monitor Limits'!J198+$C$14+IF($C$11="LIBOR",'GAS FILE'!$C$57,'GAS FILE'!$C$58),J198+$C$14+'GAS FILE'!$C$60))))),"") ->  | X198: =IF(ISNUMBER(W198),IF(W198>=$C$13,Lists!$E$2,Lists!$E$4),"") ->  | AC198: =AB198/SUMIF('Input - Monitor Limits'!$AB$19:$AB$318,"<1E100")*100 -> 
A199: 181 | Q199: =IF(ISNUMBER(L199),IF(I199="Fixed",J199,IF(F199="USD",J199+$C$14+IF($C$11="LIBOR",'GAS FILE'!$C$53,'GAS FILE'!$C$54),IF(F199="JPY",J199+$C$14+'GAS FILE'!$C$56,IF(F199="EUR",J199+$C$14+IF($C$11="LIBOR",'GAS FILE'!$C$55,'GAS FILE'!$C$59),IF(J199="GBP",'Input - Monitor Limits'!J199+$C$14+IF($C$11="LIBOR",'GAS FILE'!$C$57,'GAS FILE'!$C$58),J199+$C$14+'GAS FILE'!$C$60))))),"") ->  | X199: =IF(ISNUMBER(W199),IF(W199>=$C$13,Lists!$E$2,Lists!$E$4),"") ->  | AC199: =AB199/SUMIF('Input - Monitor Limits'!$AB$19:$AB$318,"<1E100")*100 -> 
A200: 182 | Q200: =IF(ISNUMBER(L200),IF(I200="Fixed",J200,IF(F200="USD",J200+$C$14+IF($C$11="LIBOR",'GAS FILE'!$C$53,'GAS FILE'!$C$54),IF(F200="JPY",J200+$C$14+'GAS FILE'!$C$56,IF(F200="EUR",J200+$C$14+IF($C$11="LIBOR",'GAS FILE'!$C$55,'GAS FILE'!$C$59),IF(J200="GBP",'Input - Monitor Limits'!J200+$C$14+IF($C$11="LIBOR",'GAS FILE'!$C$57,'GAS FILE'!$C$58),J200+$C$14+'GAS FILE'!$C$60))))),"") ->  | X200: =IF(ISNUMBER(W200),IF(W200>=$C$13,Lists!$E$2,Lists!$E$4),"") ->  | AC200: =AB200/SUMIF('Input - Monitor Limits'!$AB$19:$AB$318,"<1E100")*100 -> 
A201: 183 | Q201: =IF(ISNUMBER(L201),IF(I201="Fixed",J201,IF(F201="USD",J201+$C$14+IF($C$11="LIBOR",'GAS FILE'!$C$53,'GAS FILE'!$C$54),IF(F201="JPY",J201+$C$14+'GAS FILE'!$C$56,IF(F201="EUR",J201+$C$14+IF($C$11="LIBOR",'GAS FILE'!$C$55,'GAS FILE'!$C$59),IF(J201="GBP",'Input - Monitor Limits'!J201+$C$14+IF($C$11="LIBOR",'GAS FILE'!$C$57,'GAS FILE'!$C$58),J201+$C$14+'GAS FILE'!$C$60))))),"") ->  | X201: =IF(ISNUMBER(W201),IF(W201>=$C$13,Lists!$E$2,Lists!$E$4),"") ->  | AC201: =AB201/SUMIF('Input - Monitor Limits'!$AB$19:$AB$318,"<1E100")*100 -> 
A202: 184 | Q202: =IF(ISNUMBER(L202),IF(I202="Fixed",J202,IF(F202="USD",J202+$C$14+IF($C$11="LIBOR",'GAS FILE'!$C$53,'GAS FILE'!$C$54),IF(F202="JPY",J202+$C$14+'GAS FILE'!$C$56,IF(F202="EUR",J202+$C$14+IF($C$11="LIBOR",'GAS FILE'!$C$55,'GAS FILE'!$C$59),IF(J202="GBP",'Input - Monitor Limits'!J202+$C$14+IF($C$11="LIBOR",'GAS FILE'!$C$57,'GAS FILE'!$C$58),J202+$C$14+'GAS FILE'!$C$60))))),"") ->  | X202: =IF(ISNUMBER(W202),IF(W202>=$C$13,Lists!$E$2,Lists!$E$4),"") ->  | AC202: =AB202/SUMIF('Input - Monitor Limits'!$AB$19:$AB$318,"<1E100")*100 -> 
A203: 185 | Q203: =IF(ISNUMBER(L203),IF(I203="Fixed",J203,IF(F203="USD",J203+$C$14+IF($C$11="LIBOR",'GAS FILE'!$C$53,'GAS FILE'!$C$54),IF(F203="JPY",J203+$C$14+'GAS FILE'!$C$56,IF(F203="EUR",J203+$C$14+IF($C$11="LIBOR",'GAS FILE'!$C$55,'GAS FILE'!$C$59),IF(J203="GBP",'Input - Monitor Limits'!J203+$C$14+IF($C$11="LIBOR",'GAS FILE'!$C$57,'GAS FILE'!$C$58),J203+$C$14+'GAS FILE'!$C$60))))),"") ->  | X203: =IF(ISNUMBER(W203),IF(W203>=$C$13,Lists!$E$2,Lists!$E$4),"") ->  | AC203: =AB203/SUMIF('Input - Monitor Limits'!$AB$19:$AB$318,"<1E100")*100 -> 
A204: 186 | Q204: =IF(ISNUMBER(L204),IF(I204="Fixed",J204,IF(F204="USD",J204+$C$14+IF($C$11="LIBOR",'GAS FILE'!$C$53,'GAS FILE'!$C$54),IF(F204="JPY",J204+$C$14+'GAS FILE'!$C$56,IF(F204="EUR",J204+$C$14+IF($C$11="LIBOR",'GAS FILE'!$C$55,'GAS FILE'!$C$59),IF(J204="GBP",'Input - Monitor Limits'!J204+$C$14+IF($C$11="LIBOR",'GAS FILE'!$C$57,'GAS FILE'!$C$58),J204+$C$14+'GAS FILE'!$C$60))))),"") ->  | X204: =IF(ISNUMBER(W204),IF(W204>=$C$13,Lists!$E$2,Lists!$E$4),"") ->  | AC204: =AB204/SUMIF('Input - Monitor Limits'!$AB$19:$AB$318,"<1E100")*100 -> 
... 115 more rows

Sheet Input - Monitor Limits UL
B2: INTRODUCTION: | C2: ='Input - Set Limits UL'!C2 -> This sheet is used for unconventional loans (i.e. loans under Islamic law and other IsDB instruments).
C3: ='Input - Set Limits UL'!C3 -> The PV of such loans will have to be manually calculated separately. For IsDP loans or other instruments (lease, installment sales or Istisn'a), please use GE-Calculation IsDB Loan
C4: ='Input - Set Limits UL'!C4 -> or GE-Calculation-Other IsDB sheets, respectively. The results from these IsDB sheets will have to be hardcoded into the relevant inputs.
C5: The Output Table sheet summarizes the results from these loans.
B10: INPUTS - PART 1
B11: INTEREST RATE TYPE | C11: ='Input - Monitor Limits'!C11 -> FIRF
B12: DEBT LIMIT BASIS | C12: ='Input - Monitor Limits'!C12 -> Contracting
B13: MIN GRANT ELEMENT | C13: ='Input - Monitor Limits'!C13 -> 0.35
B14: REFERENCE RATE | C14: ='Input - Monitor Limits'!C14 -> 0.03286127628
B15: DISCOUNT RATE | C15: ='Input - Monitor Limits'!C15 -> 0.05
B16: Period Start/End Date | C16: ='Input - Monitor Limits'!C16 -> 2023-01-01 | D16: ='Input - Monitor Limits'!D16 -> 2023-12-31
B17: INPUTS PART 2 | O17: Management Fees | V17: INPUT | Z17: OUTPUT
B18: Effective date (as of) | C18: Creditor Name (Optional) | D18: Use of debt financing | E18: Creditor Type | F18: Currency for rate calculation | G18: Currency of loan denomination | H18: Exchange rate (Currency per USD) | I18: Fixed/ Variable | J18: Rate (if Fixed) / Spread from loan contract (if Variable) | K18: Repayment Profile (choose from the 5 profiles in the drop down menu) | L18: Face Value (currency of denonimation) | M18: Grant (as part of financing package) | N18: Upfront Commission (in percent) | O18: Percent of the outstanding nominal amount | P18: Nominal Amount (per period) | Q18: Effective interest Rate | R18: Maturity (years) | S18: Payments per annum | T18: Grace Period (years) | V18: Present Value (currency specific) | W18: Grant Element | X18: =CONCATENATE("Concessionality (based on ", C13*100," % GE)") -> Concessionality (based on 35 % GE) | Z18: Present Value Actual in USD | AA18: Present Value in USD for program purposes | AB18: Nominal in USD
B19: 2018-01-01 | D19: Budget Financing | E19: Multilateral | G19: EUR | H19: 1 | L19: 50000000 | V19: 36968453 | W19: 0.4 | X19: Concessional | Z19: =IF(ISNUMBER(V19/H19),V19/H19,"") -> 36968453 | AA19: =IF(ISNUMBER(IF(W19<0,AB19,Z19)),IF(W19<0,AB19,Z19),"") -> 36968453 | AB19: =IF(ISNUMBER(L19/H19),L19/H19,"") -> 50000000 | AC19: =IF(YEAR(B19)<$C$16,"",YEAR(B19)) -> 
Z20: =IF(ISNUMBER(V20/H20),V20/H20,"") ->  | AA20: =IF(ISNUMBER(IF(W20<0,AB20,Z20)),IF(W20<0,AB20,Z20),"") ->  | AB20: =IF(ISNUMBER(L20/H20),L20/H20,"") ->  | AC20: =IF(YEAR(B20)<$C$16,"",YEAR(B20)) -> 
Z21: =IF(ISNUMBER(V21/H21),V21/H21,"") ->  | AA21: =IF(ISNUMBER(IF(W21<0,AB21,Z21)),IF(W21<0,AB21,Z21),"") ->  | AB21: =IF(ISNUMBER(L21/H21),L21/H21,"") -> 
AC84: =IF(YEAR(B84)<$C$16,"",YEAR(B84)) -> 
Z85: =IF(ISNUMBER(V85/H85),V85/H85,"") ->  | AA85: =IF(ISNUMBER(IF(W85<0,AB85,Z85)),IF(W85<0,AB85,Z85),"") ->  | AB85: =IF(ISNUMBER(L85/H85),L85/H85,"") -> 
AC148: =IF(YEAR(B148)<$C$16,"",YEAR(B148)) -> 
Z149: =IF(ISNUMBER(V149/H149),V149/H149,"") ->  | AA149: =IF(ISNUMBER(IF(W149<0,AB149,Z149)),IF(W149<0,AB149,Z149),"") ->  | AB149: =IF(ISNUMBER(L149/H149),L149/H149,"") -> 
AC212: =IF(YEAR(B212)<$C$16,"",YEAR(B212)) -> 
Z213: =IF(ISNUMBER(V213/H213),V213/H213,"") ->  | AA213: =IF(ISNUMBER(IF(W213<0,AB213,Z213)),IF(W213<0,AB213,Z213),"") ->  | AB213: =IF(ISNUMBER(L213/H213),L213/H213,"") -> 
AC276: =IF(YEAR(B276)<$C$16,"",YEAR(B276)) -> 
Z277: =IF(ISNUMBER(V277/H277),V277/H277,"") ->  | AA277: =IF(ISNUMBER(IF(W277<0,AB277,Z277)),IF(W277<0,AB277,Z277),"") ->  | AB277: =IF(ISNUMBER(L277/H277),L277/H277,"") -> 

Sheet Output - Monitor Limits
B1: Program Base Year | C1: ='Input - Monitor Limits'!C16 -> 2023-01-01 | D1: ='Input - Monitor Limits'!D16 -> 2023-12-31 | F1: Reference year | G1: =YEAR(C1) -> 2023
B2: Debt Limit Basis | C2: ='Input - Monitor Limits'!C12 -> Contracting
B4: Table 1. Summary Table of Actual External Borrowing Monitor
B5: =TEXT(C1,"[$-409]mmmm d, yyyy;@") & " to " &TEXT(D1,"[$-409]mmmm d, yyyy;@") -> January 1, 2023 to December 31, 2023
B7: PPG external debt | C7: =CONCATENATE("Volume of new debt in ",G1) -> Volume of new debt in 2023 | F7: =CONCATENATE("PV of new debt in ",G1," (program purposes) ") -> PV of new debt in 2023 (program purposes) | I7: =CONCATENATE("PV of new debt in ",G1," (including negative GEs)") -> PV of new debt in 2023 (including negative GEs)
C8: USD million | D8: Percent | F8: USD million | G8: Percent | I8: USD million | J8: Percent
B10: Sources of debt financing | C10: =C11+C15 -> 0 | D10: =C10/$C$10*100 ->  | F10: =F11+F15 -> 0 | G10: =F10/$F$10*100 ->  | I10: =I11+I15 -> 0 | J10: =I10/$I$10*100 -> 
B11: Concessional debt, of which | C11: =(SUMIFS('Input - Monitor Limits'!AB19:AB318,'Input - Monitor Limits'!AB19:AB318,"<1E100",'Input - Monitor Limits'!W19:W318,">="&'Input - Monitor Limits'!$C$13,'Input - Monitor Limits'!B19:B318,">="&$C$1, 'Input - Monitor Limits'!B19:B318,"<="&$D$1)/1000000)+(SUMIFS('Input - Monitor Limits UL'!AB19:AB318,'Input - Monitor Limits UL'!AB19:AB318,"<1E100",'Input - Monitor Limits UL'!W19:W318,">="&'Input - Monitor Limits UL'!$C$13,'Input - Monitor Limits UL'!B19:B318,">="&$C$1, 'Input - Monitor Limits UL'!B19:B318,"<="&$D$1)/1000000) -> 0 | D11: =C11/$C$10*100 ->  | F11: =(SUMIFS('Input - Monitor Limits'!AA19:AA318,'Input - Monitor Limits'!AA19:AA318,"<1E100",'Input - Monitor Limits'!W19:W318,">="&'Input - Monitor Limits'!$C$13,'Input - Monitor Limits'!B19:B318,">="&$C$1, 'Input - Monitor Limits'!B19:B318,"<="&$D$1)/1000000)+(SUMIFS('Input - Monitor Limits UL'!AA19:AA318,'Input - Monitor Limits UL'!AA19:AA318,"<1E100",'Input - Monitor Limits UL'!W19:W318,">="&'Input - Monitor Limits UL'!$C$13,'Input - Monitor Limits UL'!B19:B318,">="&$C$1, 'Input - Monitor Limits UL'!B19:B318,"<="&$D$1)/1000000) -> 0 | G11: =F11/$F$10*100 ->  | I11: =(SUMIFS('Input - Monitor Limits'!Z19:Z318,'Input - Monitor Limits'!Z19:Z318,"<1E100",'Input - Monitor Limits'!W19:W318,">="&'Input - Monitor Limits'!$C$13,'Input - Monitor Limits'!B19:B318,">="&$C$1, 'Input - Monitor Limits'!B19:B318,"<="&$D$1)/1000000)+(SUMIFS('Input - Monitor Limits UL'!Z19:Z318,'Input - Monitor Limits UL'!Z19:Z318,"<1E100",'Input - Monitor Limits UL'!W19:W318,">="&'Input - Monitor Limits UL'!$C$13,'Input - Monitor Limits UL'!B19:B318,">="&$C$1, 'Input - Monitor Limits UL'!B19:B318,"<="&$D$1)/1000000) -> 0 | J11: =I11/$I$10*100 -> 
B12: Multilateral debt | C12: =(SUMIFS('Input - Monitor Limits'!AB19:AB301,'Input - Monitor Limits'!AB19:AB301,"<1E100",'Input - Monitor Limits'!W19:W301,">="&'Input - Monitor Limits'!$C$13,'Input - Monitor Limits'!E19:E301,Lists!$B$2,'Input - Monitor Limits'!B19:B301,">="&$C$1, 'Input - Monitor Limits'!B19:B301,"<="&$D$1)/1000000)+(SUMIFS('Input - Monitor Limits UL'!AB19:AB301,'Input - Monitor Limits UL'!AB19:AB301,"<1E100",'Input - Monitor Limits UL'!W19:W301,">="&'Input - Monitor Limits UL'!$C$13,'Input - Monitor Limits UL'!E19:E301,Lists!$B$2,'Input - Monitor Limits UL'!B19:B301,">="&$C$1,'Input - Monitor Limits UL'!B19:B301,"<="&$D$1)/1000000) -> 0 | D12: =C12/$C$10*100 ->  | F12: =(SUMIFS('Input - Monitor Limits'!AA19:AA301,'Input - Monitor Limits'!AA19:AA301,"<1E100",'Input - Monitor Limits'!W19:W301,">="&'Input - Monitor Limits'!$C$13,'Input - Monitor Limits'!E19:E301,Lists!$B$2,'Input - Monitor Limits'!B19:B301,">="&$C$1, 'Input - Monitor Limits'!B19:B301,"<="&$D$1)/1000000)+(SUMIFS('Input - Monitor Limits UL'!AA19:AA301,'Input - Monitor Limits UL'!AA19:AA301,"<1E100",'Input - Monitor Limits UL'!W19:W301,">="&'Input - Monitor Limits UL'!$C$13,'Input - Monitor Limits UL'!E19:E301,Lists!$B$2,'Input - Monitor Limits UL'!B19:B301,">="&$C$1,'Input - Monitor Limits UL'!B19:B301,"<="&$D$1)/1000000) -> 0 | G12: =F12/$F$10*100 ->  | I12: =(SUMIFS('Input - Monitor Limits'!Z19:Z301,'Input - Monitor Limits'!Z19:Z301,"<1E100",'Input - Monitor Limits'!W19:W301,">="&'Input - Monitor Limits'!$C$13,'Input - Monitor Limits'!E19:E301,Lists!$B$2,'Input - Monitor Limits'!B19:B301,">="&$C$1, 'Input - Monitor Limits'!B19:B301,"<="&$D$1)/1000000)+(SUMIFS('Input - Monitor Limits UL'!Z19:Z301,'Input - Monitor Limits UL'!Z19:Z301,"<1E100",'Input - Monitor Limits UL'!W19:W301,">="&'Input - Monitor Limits UL'!$C$13,'Input - Monitor Limits UL'!E19:E301,Lists!$B$2,'Input - Monitor Limits UL'!B19:B301,">="&$C$1,'Input - Monitor Limits UL'!B19:B301,"<="&$D$1)/1000000) -> 0 | J12: =I12/$I$10*100 -> 
B13: Bilateral debt | C13: =(SUMIFS('Input - Monitor Limits'!AB19:AB301,'Input - Monitor Limits'!AB19:AB301,"<1E100",'Input - Monitor Limits'!W19:W301,">="&'Input - Monitor Limits'!$C$13,'Input - Monitor Limits'!E19:E301,Lists!$B$3,'Input - Monitor Limits'!B19:B301,">="&$C$1, 'Input - Monitor Limits'!B19:B301,"<="&$D$1)/1000000)+(SUMIFS('Input - Monitor Limits'!AB19:AB301,'Input - Monitor Limits'!AB19:AB301,"<1E100",'Input - Monitor Limits'!W19:W301,">="&'Input - Monitor Limits'!$C$13,'Input - Monitor Limits'!E19:E301,Lists!$B$4,'Input - Monitor Limits'!B19:B301,">="&$C$1, 'Input - Monitor Limits'!B19:B301,"<="&$D$1)/1000000)+(SUMIFS('Input - Monitor Limits UL'!AB19:AB301,'Input - Monitor Limits UL'!AB19:AB301,"<1E100",'Input - Monitor Limits UL'!W19:W301,">="&'Input - Monitor Limits UL'!$C$13,'Input - Monitor Limits UL'!E19:E301,Lists!$B$3,'Input - Monitor Limits UL'!B19:B301,">="&$C$1, 'Input - Monitor Limits UL'!B19:B301,"<="&$D$1)/1000000)+(SUMIFS('Input - Monitor Limits UL'!AB19:AB301,'Input - Monitor Limits UL'!AB19:AB301,"<1E100",'Input - Monitor Limits UL'!W19:W301,">="&'Input - Monitor Limits UL'!$C$13,'Input - Monitor Limits UL'!E19:E301,Lists!$B$4,'Input - Monitor Limits UL'!B19:B301,">="&$C$1, 'Input - Monitor Limits UL'!B19:B301,"<="&$D$1)/1000000) -> 0 | F13: =(SUMIFS('Input - Monitor Limits'!AA19:AA301,'Input - Monitor Limits'!AA19:AA301,"<1E100",'Input - Monitor Limits'!W19:W301,">="&'Input - Monitor Limits'!$C$13,'Input - Monitor Limits'!E19:E301,Lists!$B$3,'Input - Monitor Limits'!B19:B301,">="&$C$1, 'Input - Monitor Limits'!B19:B301,"<="&$D$1)/1000000)+(SUMIFS('Input - Monitor Limits'!AA19:AA301,'Input - Monitor Limits'!AA19:AA301,"<1E100",'Input - Monitor Limits'!W19:W301,">="&'Input - Monitor Limits'!$C$13,'Input - Monitor Limits'!E19:E301,Lists!$B$4,'Input - Monitor Limits'!B19:B301,">="&$C$1, 'Input - Monitor Limits'!B19:B301,"<="&$D$1)/1000000)+(SUMIFS('Input - Monitor Limits UL'!AA19:AA301,'Input - Monitor Limits UL'!AA19:AA301,"<1E100",'Input - Monitor Limits UL'!W19:W301,">="&'Input - Monitor Limits UL'!$C$13,'Input - Monitor Limits UL'!E19:E301,Lists!$B$3,'Input - Monitor Limits UL'!B19:B301,">="&$C$1, 'Input - Monitor Limits UL'!B19:B301,"<="&$D$1)/1000000)+(SUMIFS('Input - Monitor Limits UL'!AA19:AA301,'Input - Monitor Limits UL'!AA19:AA301,"<1E100",'Input - Monitor Limits UL'!W19:W301,">="&'Input - Monitor Limits UL'!$C$13,'Input - Monitor Limits UL'!E19:E301,Lists!$B$4,'Input - Monitor Limits UL'!B19:B301,">="&$C$1, 'Input - Monitor Limits UL'!B19:B301,"<="&$D$1)/1000000) -> 0 | I13: =(SUMIFS('Input - Monitor Limits'!Z19:Z301,'Input - Monitor Limits'!Z19:Z301,"<1E100",'Input - Monitor Limits'!W19:W301,">="&'Input - Monitor Limits'!$C$13,'Input - Monitor Limits'!E19:E301,Lists!$B$3,'Input - Monitor Limits'!B19:B301,">="&$C$1, 'Input - Monitor Limits'!B19:B301,"<="&$D$1)/1000000)+(SUMIFS('Input - Monitor Limits'!Z19:Z301,'Input - Monitor Limits'!Z19:Z301,"<1E100",'Input - Monitor Limits'!W19:W301,">="&'Input - Monitor Limits'!$C$13,'Input - Monitor Limits'!E19:E301,Lists!$B$4,'Input - Monitor Limits'!B19:B301,">="&$C$1, 'Input - Monitor Limits'!B19:B301,"<="&$D$1)/1000000)+(SUMIFS('Input - Monitor Limits UL'!Z19:Z301,'Input - Monitor Limits UL'!Z19:Z301,"<1E100",'Input - Monitor Limits UL'!W19:W301,">="&'Input - Monitor Limits UL'!$C$13,'Input - Monitor Limits UL'!E19:E301,Lists!$B$3,'Input - Monitor Limits UL'!B19:B301,">="&$C$1, 'Input - Monitor Limits UL'!B19:B301,"<="&$D$1)/1000000)+(SUMIFS('Input - Monitor Limits UL'!Z19:Z301,'Input - Monitor Limits UL'!Z19:Z301,"<1E100",'Input - Monitor Limits UL'!W19:W301,">="&'Input - Monitor Limits UL'!$C$13,'Input - Monitor Limits UL'!E19:E301,Lists!$B$4,'Input - Monitor Limits UL'!B19:B301,">="&$C$1, 'Input - Monitor Limits UL'!B19:B301,"<="&$D$1)/1000000) -> 0
B14: Other | C14: =SUM((SUMIFS('Input - Monitor Limits'!AB19:AB301,'Input - Monitor Limits'!AB19:AB301,"<1E100",'Input - Monitor Limits'!W19:W301,">="&'Input - Monitor Limits'!$C$13,'Input - Monitor Limits'!E19:E301,Lists!$B$5,'Input - Monitor Limits'!B19:B301,">="&$C$1, 'Input - Monitor Limits'!B19:B301,"<="&$D$1)/1000000)+(SUMIFS('Input - Monitor Limits'!AB19:AB301,'Input - Monitor Limits'!AB19:AB301,"<1E100",'Input - Monitor Limits'!W19:W301,">="&'Input - Monitor Limits'!$C$13,'Input - Monitor Limits'!E19:E301,"",'Input - Monitor Limits'!B19:B301,">="&$C$1, 'Input - Monitor Limits'!B19:B301,"<="&$D$1)/1000000)+(SUMIFS('Input - Monitor Limits UL'!AB19:AB301,'Input - Monitor Limits UL'!AB19:AB301,"<1E100",'Input - Monitor Limits UL'!W19:W301,">="&'Input - Monitor Limits UL'!$C$13,'Input - Monitor Limits UL'!E19:E301,Lists!$B$5,'Input - Monitor Limits UL'!B19:B301,">="&$C$1, 'Input - Monitor Limits UL'!B19:B301,"<="&$D$1)/1000000)+(SUMIFS('Input - Monitor Limits UL'!AB19:AB301,'Input - Monitor Limits UL'!AB19:AB301,"<1E100",'Input - Monitor Limits UL'!W19:W301,">="&'Input - Monitor Limits UL'!$C$13,'Input - Monitor Limits UL'!E19:E301,"",'Input - Monitor Limits UL'!B19:B301,">="&$C$1, 'Input - Monitor Limits UL'!B19:B301,"<="&$D$1)/1000000)) -> 0 | F14: =SUM((SUMIFS('Input - Monitor Limits'!AA19:AA301,'Input - Monitor Limits'!AA19:AA301,"<1E100",'Input - Monitor Limits'!W19:W301,">="&'Input - Monitor Limits'!$C$13,'Input - Monitor Limits'!E19:E301,Lists!$B$5,'Input - Monitor Limits'!B19:B301,">="&$C$1, 'Input - Monitor Limits'!B19:B301,"<="&$D$1)/1000000)+(SUMIFS('Input - Monitor Limits'!AA19:AA301,'Input - Monitor Limits'!AA19:AA301,"<1E100",'Input - Monitor Limits'!W19:W301,">="&'Input - Monitor Limits'!$C$13,'Input - Monitor Limits'!E19:E301,"",'Input - Monitor Limits'!B19:B301,">="&$C$1, 'Input - Monitor Limits'!B19:B301,"<="&$D$1)/1000000)+(SUMIFS('Input - Monitor Limits UL'!AA19:AA301,'Input - Monitor Limits UL'!AA19:AA301,"<1E100",'Input - Monitor Limits UL'!W19:W301,">="&'Input - Monitor Limits UL'!$C$13,'Input - Monitor Limits UL'!E19:E301,Lists!$B$5,'Input - Monitor Limits UL'!B19:B301,">="&$C$1, 'Input - Monitor Limits UL'!B19:B301,"<="&$D$1)/1000000)+(SUMIFS('Input - Monitor Limits UL'!AA19:AA301,'Input - Monitor Limits UL'!AA19:AA301,"<1E100",'Input - Monitor Limits UL'!W19:W301,">="&'Input - Monitor Limits UL'!$C$13,'Input - Monitor Limits UL'!E19:E301,"",'Input - Monitor Limits UL'!B19:B301,">="&$C$1, 'Input - Monitor Limits UL'!B19:B301,"<="&$D$1)/1000000)) -> 0 | I14: =SUM((SUMIFS('Input - Monitor Limits'!Z19:Z301,'Input - Monitor Limits'!Z19:Z301,"<1E100",'Input - Monitor Limits'!W19:W301,">="&'Input - Monitor Limits'!$C$13,'Input - Monitor Limits'!E19:E301,Lists!$B$5,'Input - Monitor Limits'!B19:B301,">="&$C$1, 'Input - Monitor Limits'!B19:B301,"<="&$D$1)/1000000)+(SUMIFS('Input - Monitor Limits'!Z19:Z301,'Input - Monitor Limits'!Z19:Z301,"<1E100",'Input - Monitor Limits'!W19:W301,">="&'Input - Monitor Limits'!$C$13,'Input - Monitor Limits'!E19:E301,"",'Input - Monitor Limits'!B19:B301,">="&$C$1, 'Input - Monitor Limits'!B19:B301,"<="&$D$1)/1000000)+(SUMIFS('Input - Monitor Limits UL'!Z19:Z301,'Input - Monitor Limits UL'!Z19:Z301,"<1E100",'Input - Monitor Limits UL'!W19:W301,">="&'Input - Monitor Limits UL'!$C$13,'Input - Monitor Limits UL'!E19:E301,Lists!$B$5,'Input - Monitor Limits UL'!B19:B301,">="&$C$1, 'Input - Monitor Limits UL'!B19:B301,"<="&$D$1)/1000000)+(SUMIFS('Input - Monitor Limits UL'!Z19:Z301,'Input - Monitor Limits UL'!Z19:Z301,"<1E100",'Input - Monitor Limits UL'!W19:W301,">="&'Input - Monitor Limits UL'!$C$13,'Input - Monitor Limits UL'!E19:E301,"",'Input - Monitor Limits UL'!B19:B301,">="&$C$1, 'Input - Monitor Limits UL'!B19:B301,"<="&$D$1)/1000000)) -> 0
B15: Non-concessional debt, of which | C15: =C16+C17 -> 0 | F15: =F16+F17 -> 0 | I15: =I16+I17 -> 0
B16: Semi-concessional | C16: =(SUMIFS('Input - Monitor Limits'!AB19:AB301,'Input - Monitor Limits'!AB19:AB301,"<1E100",'Input - Monitor Limits'!W19:W301,"<"&'Input - Monitor Limits'!$C$13,'Input - Monitor Limits'!W19:W301,">0",'Input - Monitor Limits'!B19:B301,">="&$C$1,'Input - Monitor Limits'!B19:B301,"<="&$D$1)/1000000)+(SUMIFS('Input - Monitor Limits UL'!AB19:AB301,'Input - Monitor Limits UL'!AB19:AB301,"<1E100",'Input - Monitor Limits UL'!W19:W301,"<"&'Input - Monitor Limits UL'!$C$13,'Input - Monitor Limits UL'!W19:W301,">0",'Input - Monitor Limits UL'!B19:B301,">="&$C$1, 'Input - Monitor Limits UL'!B19:B301,"<="&$D$1)/1000000) -> 0 | F16: =(SUMIFS('Input - Monitor Limits'!AA19:AA301,'Input - Monitor Limits'!AA19:AA301,"<1E100",'Input - Monitor Limits'!W19:W301,"<"&'Input - Monitor Limits'!$C$13,'Input - Monitor Limits'!W19:W301,">0",'Input - Monitor Limits'!B19:B301,">="&$C$1,'Input - Monitor Limits'!B19:B301,"<="&$D$1)/1000000)+(SUMIFS('Input - Monitor Limits UL'!AA19:AA301,'Input - Monitor Limits UL'!AA19:AA301,"<1E100",'Input - Monitor Limits UL'!W19:W301,"<"&'Input - Monitor Limits UL'!$C$13,'Input - Monitor Limits UL'!W19:W301,">0",'Input - Monitor Limits UL'!B19:B301,">="&$C$1, 'Input - Monitor Limits UL'!B19:B301,"<="&$D$1)/1000000) -> 0 | G16: =F16/$F$10*100 ->  | I16: =(SUMIFS('Input - Monitor Limits'!Z19:Z301,'Input - Monitor Limits'!Z19:Z301,"<1E100",'Input - Monitor Limits'!W19:W301,"<"&'Input - Monitor Limits'!$C$13,'Input - Monitor Limits'!W19:W301,">0",'Input - Monitor Limits'!B19:B301,">="&$C$1,'Input - Monitor Limits'!B19:B301,"<="&$D$1)/1000000)+(SUMIFS('Input - Monitor Limits UL'!Z19:Z301,'Input - Monitor Limits UL'!Z19:Z301,"<1E100",'Input - Monitor Limits UL'!W19:W301,"<"&'Input - Monitor Limits UL'!$C$13,'Input - Monitor Limits UL'!W19:W301,">0",'Input - Monitor Limits UL'!B19:B301,">="&$C$1, 'Input - Monitor Limits UL'!B19:B301,"<="&$D$1)/1000000) -> 0
B17: Commercial terms | C17: =(SUMIFS('Input - Monitor Limits'!AB19:AB301,'Input - Monitor Limits'!AB19:AB301,"<1E100",'Input - Monitor Limits'!W19:W301,"<=0",'Input - Monitor Limits'!B19:B301,">="&$C$1, 'Input - Monitor Limits'!B19:B301,"<="&$D$1)/1000000)+(SUMIFS('Input - Monitor Limits UL'!AB19:AB301,'Input - Monitor Limits UL'!AB19:AB301,"<1E100",'Input - Monitor Limits UL'!W19:W301,"<=0",'Input - Monitor Limits UL'!B19:B301,">="&$C$1, 'Input - Monitor Limits UL'!B19:B301,"<="&$D$1)/1000000) -> 0 | F17: =(SUMIFS('Input - Monitor Limits'!AA19:AA301,'Input - Monitor Limits'!AA19:AA301,"<1E100",'Input - Monitor Limits'!W19:W301,"<=0",'Input - Monitor Limits'!B19:B301,">="&$C$1, 'Input - Monitor Limits'!B19:B301,"<="&$D$1)/1000000)+(SUMIFS('Input - Monitor Limits UL'!AA19:AA301,'Input - Monitor Limits UL'!AA19:AA301,"<1E100",'Input - Monitor Limits UL'!W19:W301,"<=0",'Input - Monitor Limits UL'!B19:B301,">="&$C$1, 'Input - Monitor Limits UL'!B19:B301,"<="&$D$1)/1000000) -> 0 | I17: =(SUMIFS('Input - Monitor Limits'!Z19:Z301,'Input - Monitor Limits'!Z19:Z301,"<1E100",'Input - Monitor Limits'!W19:W301,"<=0",'Input - Monitor Limits'!B19:B301,">="&$C$1, 'Input - Monitor Limits'!B19:B301,"<="&$D$1)/1000000)+(SUMIFS('Input - Monitor Limits UL'!Z19:Z301,'Input - Monitor Limits UL'!Z19:Z301,"<1E100",'Input - Monitor Limits UL'!W19:W301,"<=0",'Input - Monitor Limits UL'!B19:B301,">="&$C$1, 'Input - Monitor Limits UL'!B19:B301,"<="&$D$1)/1000000) -> 0
B19: By Creditor Type | C19: =SUM(C20:C23) -> 0 | D19: =C19/$C$19*100 ->  | F19: =SUM(F20:F23) -> 0 | G19: =F19/$F$19*100 ->  | I19: =SUM(I20:I23) -> 0 | J19: =I19/$I$19*100 -> 
B20: =Lists!B2 -> Multilateral | C20: =(SUMIFS('Input - Monitor Limits'!AB19:AB301,'Input - Monitor Limits'!AB19:AB301,"<1E100",'Input - Monitor Limits'!E19:E301,B20,'Input - Monitor Limits'!B19:B301,">="&$C$1, 'Input - Monitor Limits'!B19:B301,"<="&$D$1)/1000000)+(SUMIFS('Input - Monitor Limits UL'!AB19:AB301,'Input - Monitor Limits UL'!AB19:AB301,"<1E100",'Input - Monitor Limits UL'!E19:E301,B20,'Input - Monitor Limits UL'!B19:B301,">="&$C$1, 'Input - Monitor Limits UL'!B19:B301,"<="&$D$1)/1000000) -> 0 | D20: =C20/C10*100 ->  | F20: =(SUMIFS('Input - Monitor Limits'!AA19:AA301,'Input - Monitor Limits'!AA19:AA301,"<1E100",'Input - Monitor Limits'!E19:E301,B20,'Input - Monitor Limits'!B19:B301,">="&$C$1, 'Input - Monitor Limits'!B19:B301,"<="&$D$1)/1000000)+(SUMIFS('Input - Monitor Limits UL'!AA19:AA301,'Input - Monitor Limits UL'!AA19:AA301,"<1E100",'Input - Monitor Limits UL'!E19:E301,B20,'Input - Monitor Limits UL'!B19:B301,">="&$C$1, 'Input - Monitor Limits UL'!B19:B301,"<="&$D$1)/1000000) -> 0 | G20: =F20/$F$10*100 ->  | I20: =(SUMIFS('Input - Monitor Limits'!Z19:Z301,'Input - Monitor Limits'!Z19:Z301,"<1E100",'Input - Monitor Limits'!E19:E301,B20,'Input - Monitor Limits'!B19:B301,">="&$C$1, 'Input - Monitor Limits'!B19:B301,"<="&$D$1)/1000000)+(SUMIFS('Input - Monitor Limits UL'!Z19:Z301,'Input - Monitor Limits UL'!Z19:Z301,"<1E100",'Input - Monitor Limits UL'!E19:E301,B20,'Input - Monitor Limits UL'!B19:B301,">="&$C$1, 'Input - Monitor Limits UL'!B19:B301,"<="&$D$1)/1000000) -> 0 | J20: =I20/I10*100 -> 
B21: =Lists!B3 -> Bilateral - Paris Club | C21: =(SUMIFS('Input - Monitor Limits'!AB19:AB301,'Input - Monitor Limits'!AB19:AB301,"<1E100",'Input - Monitor Limits'!E19:E301,B21,'Input - Monitor Limits'!B19:B301,">="&$C$1, 'Input - Monitor Limits'!B19:B301,"<="&$D$1)/1000000)+(SUMIFS('Input - Monitor Limits UL'!AB19:AB301,'Input - Monitor Limits UL'!AB19:AB301,"<1E100",'Input - Monitor Limits UL'!E19:E301,B21,'Input - Monitor Limits UL'!B19:B301,">="&$C$1, 'Input - Monitor Limits UL'!B19:B301,"<="&$D$1)/1000000) -> 0 | D21: =C21/C10*100 ->  | F21: =(SUMIFS('Input - Monitor Limits'!AA19:AA301,'Input - Monitor Limits'!AA19:AA301,"<1E100",'Input - Monitor Limits'!E19:E301,B21,'Input - Monitor Limits'!B19:B301,">="&$C$1, 'Input - Monitor Limits'!B19:B301,"<="&$D$1)/1000000)+(SUMIFS('Input - Monitor Limits UL'!AA19:AA301,'Input - Monitor Limits UL'!AA19:AA301,"<1E100",'Input - Monitor Limits UL'!E19:E301,B21,'Input - Monitor Limits UL'!B19:B301,">="&$C$1, 'Input - Monitor Limits UL'!B19:B301,"<="&$D$1)/1000000) -> 0 | G21: =F21/$F$10*100 ->  | I21: =(SUMIFS('Input - Monitor Limits'!Z19:Z301,'Input - Monitor Limits'!Z19:Z301,"<1E100",'Input - Monitor Limits'!E19:E301,B21,'Input - Monitor Limits'!B19:B301,">="&$C$1, 'Input - Monitor Limits'!B19:B301,"<="&$D$1)/1000000)+(SUMIFS('Input - Monitor Limits UL'!Z19:Z301,'Input - Monitor Limits UL'!Z19:Z301,"<1E100",'Input - Monitor Limits UL'!E19:E301,B21,'Input - Monitor Limits UL'!B19:B301,">="&$C$1, 'Input - Monitor Limits UL'!B19:B301,"<="&$D$1)/1000000) -> 0 | J21: =I21/I10*100 -> 
B22: =Lists!B4 -> Bilateral - Non-Paris Club | C22: =(SUMIFS('Input - Monitor Limits'!AB19:AB301,'Input - Monitor Limits'!AB19:AB301,"<1E100",'Input - Monitor Limits'!E19:E301,B22,'Input - Monitor Limits'!B19:B301,">="&$C$1, 'Input - Monitor Limits'!B19:B301,"<="&$D$1)/1000000)+(SUMIFS('Input - Monitor Limits UL'!AB19:AB301,'Input - Monitor Limits UL'!AB19:AB301,"<1E100",'Input - Monitor Limits UL'!E19:E301,B22,'Input - Monitor Limits UL'!B19:B301,">="&$C$1, 'Input - Monitor Limits UL'!B19:B301,"<="&$D$1)/1000000) -> 0 | D22: =C22/C10*100 ->  | F22: =(SUMIFS('Input - Monitor Limits'!AA19:AA301,'Input - Monitor Limits'!AA19:AA301,"<1E100",'Input - Monitor Limits'!E19:E301,B22,'Input - Monitor Limits'!B19:B301,">="&$C$1, 'Input - Monitor Limits'!B19:B301,"<="&$D$1)/1000000)+(SUMIFS('Input - Monitor Limits UL'!AA19:AA301,'Input - Monitor Limits UL'!AA19:AA301,"<1E100",'Input - Monitor Limits UL'!E19:E301,B22,'Input - Monitor Limits UL'!B19:B301,">="&$C$1, 'Input - Monitor Limits UL'!B19:B301,"<="&$D$1)/1000000) -> 0 | G22: =F22/$F$10*100 ->  | I22: =(SUMIFS('Input - Monitor Limits'!Z19:Z301,'Input - Monitor Limits'!Z19:Z301,"<1E100",'Input - Monitor Limits'!E19:E301,B22,'Input - Monitor Limits'!B19:B301,">="&$C$1, 'Input - Monitor Limits'!B19:B301,"<="&$D$1)/1000000)+(SUMIFS('Input - Monitor Limits UL'!Z19:Z301,'Input - Monitor Limits UL'!Z19:Z301,"<1E100",'Input - Monitor Limits UL'!E19:E301,B22,'Input - Monitor Limits UL'!B19:B301,">="&$C$1, 'Input - Monitor Limits UL'!B19:B301,"<="&$D$1)/1000000) -> 0 | J22: =I22/I10*100 -> 
B23: =Lists!B5 -> Other | C23: =C10-SUM(C20:C22) -> 0 | D23: =C23/C10*100 ->  | F23: =F10-SUM(F20:F22) -> 0 | G23: =F23/$F$10*100 ->  | I23: =I10-SUM(I20:I22) -> 0 | J23: =I23/I10*100 -> 
B25: Uses of debt financing | C25: =SUM(C26:C29) -> 0 | D25: =C25/$C$25*100 ->  | F25: =SUM(F26:F29) -> 0 | G25: =F25/$F$25*100 ->  | I25: =SUM(I26:I29) -> 0 | J25: =I25/$I$25*100 -> 
B26: =Lists!F2 -> Infrastructure | C26: =(SUMIFS('Input - Monitor Limits'!$AB$19:$AB$318,'Input - Monitor Limits'!$AB$19:$AB$318,"<1E100",'Input - Monitor Limits'!$D$19:$D$318,Lists!$F$2,'Input - Monitor Limits'!$B$19:$B$318,">="&$C$1, 'Input - Monitor Limits'!$B$19:$B$318,"<="&$D$1)/1000000)+(SUMIFS('Input - Monitor Limits UL'!$AB$19:$AB$318,'Input - Monitor Limits UL'!$AB$19:$AB$318,"<1E100",'Input - Monitor Limits UL'!$D$19:$D$318,Lists!$F$2,'Input - Monitor Limits UL'!$B$19:$B$318,">="&$C$1, 'Input - Monitor Limits UL'!$B$19:$B$318,"<="&$D$1)/1000000) -> 0 | D26: =C26/$C$10*100 ->  | F26: =(SUMIFS('Input - Monitor Limits'!$AA$19:$AA$318,'Input - Monitor Limits'!$AA$19:$AA$318,"<1E100",'Input - Monitor Limits'!$D$19:$D$318,Lists!$F$2,'Input - Monitor Limits'!$B$19:$B$318,">="&$C$1, 'Input - Monitor Limits'!$B$19:$B$318,"<="&$D$1)/1000000)+(SUMIFS('Input - Monitor Limits UL'!$AA$19:$AA$318,'Input - Monitor Limits UL'!$AA$19:$AA$318,"<1E100",'Input - Monitor Limits UL'!$D$19:$D$318,Lists!$F$2,'Input - Monitor Limits UL'!$B$19:$B$318,">="&$C$1, 'Input - Monitor Limits UL'!$B$19:$B$318,"<="&$D$1)/1000000) -> 0 | G26: =F26/$F$10*100 ->  | I26: =(SUMIFS('Input - Monitor Limits'!$Z$19:$Z$318,'Input - Monitor Limits'!$Z$19:$Z$318,"<1E100",'Input - Monitor Limits'!$D$19:$D$318,Lists!$F$2,'Input - Monitor Limits'!$B$19:$B$318,">="&$C$1, 'Input - Monitor Limits'!$B$19:$B$318,"<="&$D$1)/1000000)+(SUMIFS('Input - Monitor Limits UL'!$Z$19:$Z$318,'Input - Monitor Limits UL'!$Z$19:$Z$318,"<1E100",'Input - Monitor Limits UL'!$D$19:$D$318,Lists!$F$2,'Input - Monitor Limits UL'!$B$19:$B$318,">="&$C$1, 'Input - Monitor Limits UL'!$B$19:$B$318,"<="&$D$1)/1000000) -> 0 | J26: =I26/$I$10*100 -> 
B27: =Lists!F3 -> Social Spending | C27: =(SUMIFS('Input - Monitor Limits'!$AB$19:$AB$318,'Input - Monitor Limits'!$AB$19:$AB$318,"<1E100",'Input - Monitor Limits'!$D$19:$D$318,Lists!$F$3,'Input - Monitor Limits'!$B$19:$B$318,">="&$C$1, 'Input - Monitor Limits'!$B$19:$B$318,"<="&$D$1)/1000000)+(SUMIFS('Input - Monitor Limits UL'!$AB$19:$AB$318,'Input - Monitor Limits UL'!$AB$19:$AB$318,"<1E100",'Input - Monitor Limits UL'!$D$19:$D$318,Lists!$F$3,'Input - Monitor Limits UL'!$B$19:$B$318,">="&$C$1, 'Input - Monitor Limits UL'!$B$19:$B$318,"<="&$D$1)/1000000) -> 0 | D27: =C27/$C$10*100 ->  | F27: =(SUMIFS('Input - Monitor Limits'!$AA$19:$AA$318,'Input - Monitor Limits'!$AA$19:$AA$318,"<1E100",'Input - Monitor Limits'!$D$19:$D$318,Lists!$F$3,'Input - Monitor Limits'!$B$19:$B$318,">="&$C$1, 'Input - Monitor Limits'!$B$19:$B$318,"<="&$D$1)/1000000)+(SUMIFS('Input - Monitor Limits UL'!$AA$19:$AA$318,'Input - Monitor Limits UL'!$AA$19:$AA$318,"<1E100",'Input - Monitor Limits UL'!$D$19:$D$318,Lists!$F$3,'Input - Monitor Limits UL'!$B$19:$B$318,">="&$C$1, 'Input - Monitor Limits UL'!$B$19:$B$318,"<="&$D$1)/1000000) -> 0 | G27: =F27/$F$10*100 ->  | I27: =(SUMIFS('Input - Monitor Limits'!$Z$19:$Z$318,'Input - Monitor Limits'!$Z$19:$Z$318,"<1E100",'Input - Monitor Limits'!$D$19:$D$318,Lists!$F$3,'Input - Monitor Limits'!$B$19:$B$318,">="&$C$1, 'Input - Monitor Limits'!$B$19:$B$318,"<="&$D$1)/1000000)+(SUMIFS('Input - Monitor Limits UL'!$Z$19:$Z$318,'Input - Monitor Limits UL'!$Z$19:$Z$318,"<1E100",'Input - Monitor Limits UL'!$D$19:$D$318,Lists!$F$3,'Input - Monitor Limits UL'!$B$19:$B$318,">="&$C$1, 'Input - Monitor Limits UL'!$B$19:$B$318,"<="&$D$1)/1000000) -> 0 | J27: =I27/$I$10*100 -> 
B28: =Lists!F4 -> Budget Financing | C28: =(SUMIFS('Input - Monitor Limits'!$AB$19:$AB$318,'Input - Monitor Limits'!$AB$19:$AB$318,"<1E100",'Input - Monitor Limits'!$D$19:$D$318,Lists!$F$4,'Input - Monitor Limits'!$B$19:$B$318,">="&$C$1, 'Input - Monitor Limits'!$B$19:$B$318,"<="&$D$1)/1000000)+(SUMIFS('Input - Monitor Limits UL'!$AB$19:$AB$318,'Input - Monitor Limits UL'!$AB$19:$AB$318,"<1E100",'Input - Monitor Limits UL'!$D$19:$D$318,Lists!$F$4,'Input - Monitor Limits UL'!$B$19:$B$318,">="&$C$1, 'Input - Monitor Limits UL'!$B$19:$B$318,"<="&$D$1)/1000000) -> 0 | F28: =(SUMIFS('Input - Monitor Limits'!$AA$19:$AA$318,'Input - Monitor Limits'!$AA$19:$AA$318,"<1E100",'Input - Monitor Limits'!$D$19:$D$318,Lists!$F$4,'Input - Monitor Limits'!$B$19:$B$318,">="&$C$1, 'Input - Monitor Limits'!$B$19:$B$318,"<="&$D$1)/1000000)+(SUMIFS('Input - Monitor Limits UL'!$AA$19:$AA$318,'Input - Monitor Limits UL'!$AA$19:$AA$318,"<1E100",'Input - Monitor Limits UL'!$D$19:$D$318,Lists!$F$4,'Input - Monitor Limits UL'!$B$19:$B$318,">="&$C$1, 'Input - Monitor Limits UL'!$B$19:$B$318,"<="&$D$1)/1000000) -> 0 | G28: =F28/$F$10*100 ->  | I28: =(SUMIFS('Input - Monitor Limits'!$Z$19:$Z$318,'Input - Monitor Limits'!$Z$19:$Z$318,"<1E100",'Input - Monitor Limits'!$D$19:$D$318,Lists!$F$4,'Input - Monitor Limits'!$B$19:$B$318,">="&$C$1, 'Input - Monitor Limits'!$B$19:$B$318,"<="&$D$1)/1000000)+(SUMIFS('Input - Monitor Limits UL'!$Z$19:$Z$318,'Input - Monitor Limits UL'!$Z$19:$Z$318,"<1E100",'Input - Monitor Limits UL'!$D$19:$D$318,Lists!$F$4,'Input - Monitor Limits UL'!$B$19:$B$318,">="&$C$1, 'Input - Monitor Limits UL'!$B$19:$B$318,"<="&$D$1)/1000000) -> 0
B29: =Lists!F5 -> Other | C29: =C10-SUM(C26:C28) -> 0 | F29: =F10-SUM(F26:F28) -> 0 | G29: =F29/$F$10*100 ->  | I29: =I10-SUM(I26:I28) -> 0
B31: Memo items
B32: Indicative projections
B33: Year 2 | C33: =(SUMIFS('Input - Monitor Limits'!AB19:AB301,'Input - Monitor Limits'!AB19:AB301,"<1E100",'Input - Monitor Limits'!B19:B301,">"&$D$1,'Input - Monitor Limits'!B19:B301,"<="&(EDATE($D$1,12)))/1000000)+(SUMIFS('Input - Monitor Limits UL'!AB19:AB301,'Input - Monitor Limits UL'!AB19:AB301,"<1E100",'Input - Monitor Limits UL'!B19:B301,">"&$D$1,'Input - Monitor Limits UL'!B19:B301,"<="&(EDATE($D$1,12)))/1000000) -> 0 | F33: =(SUMIFS('Input - Monitor Limits'!AA19:AA301,'Input - Monitor Limits'!AA19:AA301,"<1E100",'Input - Monitor Limits'!B19:B301,">"&$D$1,'Input - Monitor Limits'!B19:B301,"<="&(EDATE($D$1,12)))/1000000)+(SUMIFS('Input - Monitor Limits UL'!AA19:AA301,'Input - Monitor Limits UL'!AA19:AA301,"<1E100",'Input - Monitor Limits UL'!B19:B301,">"&$D$1,'Input - Monitor Limits UL'!B19:B301,"<="&(EDATE($D$1,12)))/1000000) -> 0 | I33: =(SUMIFS('Input - Monitor Limits'!Z19:Z301,'Input - Monitor Limits'!Z19:Z301,"<1E100",'Input - Monitor Limits'!B19:B301,">"&$D$1,'Input - Monitor Limits'!B19:B301,"<="&(EDATE($D$1,12)))/1000000)+(SUMIFS('Input - Monitor Limits UL'!Z19:Z301,'Input - Monitor Limits UL'!Z19:Z301,"<1E100",'Input - Monitor Limits UL'!B19:B301,">"&$D$1,'Input - Monitor Limits UL'!B19:B301,"<="&(EDATE($D$1,12)))/1000000) -> 0
B34: Year 3 | C34: =(SUMIFS('Input - Monitor Limits'!AB19:AB301,'Input - Monitor Limits'!AB19:AB301,"<1E100",'Input - Monitor Limits'!B19:B301,">"&(EDATE($D$1,12)),'Input - Monitor Limits'!B19:B301,"<="&(EDATE($D$1,24)))/1000000)+(SUMIFS('Input - Monitor Limits UL'!AB19:AB301,'Input - Monitor Limits UL'!AB19:AB301,"<1E100",'Input - Monitor Limits UL'!B19:B301,">"&(EDATE($D$1,12)),'Input - Monitor Limits UL'!B19:B301,"<="&(EDATE($D$1,24)))/1000000) -> 0 | F34: =(SUMIFS('Input - Monitor Limits'!AA19:AA301,'Input - Monitor Limits'!AA19:AA301,"<1E100",'Input - Monitor Limits'!B19:B301,">"&(EDATE($D$1,12)),'Input - Monitor Limits'!B19:B301,"<="&(EDATE($D$1,24)))/1000000)+(SUMIFS('Input - Monitor Limits UL'!AA19:AA301,'Input - Monitor Limits UL'!AA19:AA301,"<1E100",'Input - Monitor Limits UL'!B19:B301,">"&(EDATE($D$1,12)),'Input - Monitor Limits UL'!B19:B301,"<="&(EDATE($D$1,24)))/1000000) -> 0 | I34: =(SUMIFS('Input - Monitor Limits'!Z19:Z301,'Input - Monitor Limits'!Z19:Z301,"<1E100",'Input - Monitor Limits'!B19:B301,">"&(EDATE($D$1,12)),'Input - Monitor Limits'!B19:B301,"<="&(EDATE($D$1,24)))/1000000)+(SUMIFS('Input - Monitor Limits UL'!Z19:Z301,'Input - Monitor Limits UL'!Z19:Z301,"<1E100",'Input - Monitor Limits UL'!B19:B301,">"&(EDATE($D$1,12)),'Input - Monitor Limits UL'!B19:B301,"<="&(EDATE($D$1,24)))/1000000) -> 0
B36: Table 2. Type of New External Debt, USD million
B37: =B5 -> January 1, 2023 to December 31, 2023
B39: By the type of interest rate
B40: Fixed Interest Rate | C40: =(SUMIFS('Input - Monitor Limits'!AB19:AB318,'Input - Monitor Limits'!AB19:AB318,"<1E100",'Input - Monitor Limits'!I19:I318,"Fixed",'Input - Monitor Limits'!$B$19:$B$318,">="&$C$1, 'Input - Monitor Limits'!$B$19:$B$318,"<="&$D$1)/1000000)+(SUMIFS('Input - Monitor Limits UL'!AB19:AB318,'Input - Monitor Limits UL'!AB19:AB318,"<1E100",'Input - Monitor Limits UL'!I19:I318,"Fixed",'Input - Monitor Limits UL'!$B$19:$B$318,">="&$C$1, 'Input - Monitor Limits UL'!$B$19:$B$318,"<="&$D$1)/1000000) -> 0
